Workbook

Sheet Info
C3: Versión del modelo: | D3: Versión actualizada respecto a la incorporada al libro "Modelos de Análisis y Valoración de Proyectos"
C4: Fecha de actualización: | D4: 2018-12-19
C6: Modeleva ha sido desarrollado por Alfonso Rodríguez Sandiás, Universidad de Santiago de Compostela.
C7: La marca Modeleva es propiedad del autor.
C8: www.usc.es/modeleva
C10: Introduzca sus inputs en las celdas verdes en las siguientes hojas:
C11: CONTROL, INV, INCO y RIESGO
C12: Consulte el libro de referencia si tiene dudas acerca del funcionamiento del modelo
C14: Atención: Modeleva tiene propósitos fundamentalmente formativos. Puede utilizarse como apoyo a decisiones empresariales. En todo caso la responsabilidad acerca de las decisiones tomadas es del usuario.
C16: Uso de Modeleva en idiomas diferentes al español: Para usar Modeleva con versiones de Excel distintas del español vaya a la hoja oculta titulada “meses” y ponga en ella las abreviaturas que su versión de excel tiene para los diferentes meses del año.

Sheet CONTROL
B2: INPUTS DEL MODELO | C2: Proyecto Ejemplo | D2: Año inicio -- > | E2: 2020 | F2: Mes inicio -- > | G2: Ene | H2: =EOMONTH(DATEVALUE(CONTROL!G2&CONTROL!E2),0) -> 2020-01-31
B3: FINANCIACIÓN INICIAL | H3: INFLACIÓN
B4: Coste Recursos Propios | C4: 0.1 | G4: IPC | H4: 0
B5: Múltiplos de capital | C5: 1 | D5: Cuantía | G5: IPC Ingresos | H5: 0
B6: Capital | D6: =FIN!H5 -> 0 | G6: IPC Costes | H6: 0
B7: Subvención | C7: 0.1 | D7: =FIN!H6 -> 1032.381463 | H7: IMPUESTO DE SOCIEDADES
B8: Deuda 1 | C8: 0.9 | D8: =FIN!H7 -> 9291.433171 | G8: Tasa Impositiva | H8: 0.3
B9: Deuda 2 | D9: =FIN!H8 -> 0 | G9: Tasa Reducida
B10: Deuda 3 (flotante) | C10: =IF(1-C6-C7-C8-C9<-0.001,"Exceso de fondos",1-C6-C7-C8-C9) -> 0 | D10: =FIN!H9 -> 0 | G10: Tramo Reducido
C11: Deuda 1 | D11: Deuda 2 | G11: Pago Impuestos | H11: Dic
B12: Tipo de Deuda | C12: Francés | H12: IVA
B13: Duración | C13: 2 | G13: IVA Compras | H13: 0.21
B14: Coste | C14: 0.0675 | G14: IVA Otros Explotación | H14: 0.21
B15: Pagos anuales | C15: 12 | G15: IVA Costes Fijos | H15: 0.21
B16: Carencia | C16: 0 | H16: FONDO DE MANIOBRA
B17: Comisión | C17: 0.015 | G17: Mensualización | H17: Libre
B18: OTRA INFORMACIÓN FINANCIERA | G18: Demora Pago Proveedores | H18: 3
B19: Financiación Extra Inicial | C19: No | D19: Años subvención | E19: 1 | G19: Demora Pago Acreedores | H19: 0
B20: Interés Activo | C20: 0 | D20: Interés Pasivo | E20: 0 | G20: Demora en Cobros | H20: 0
B21: Deuda Mínima | C21: 0 | D21: Deuda Máxima | E21: 0 | G21: Stock Materias Primas | H21: 2
B22: Dividendos | C22: 0 | D22: Pago Dividendos | E22: Dic | G22: Stock Producto Terminado | H22: 1
B23: Crecimiento Residual | C23: 0 | D23: Equilibrio | E23: Si | G23: Tesorería Operativa | H23: 0.15
B24: LÍNEAS DE NEGOCIO | C24: Línea A | D24: Línea B | E24: Línea C | F24: Línea D | G24: Línea E | H24: Línea F
B25: Inicio Línea | C25: 2020
B26: Precio Venta Inicial | C26: 4
B27: Ventas Iniciales | C27: 140160
B28: IVA | C28: 0.21
B29: ="Crecimiento, " &E2&"- " &E2+1 -> Crecimiento, 2020- 2021 | C29: 0.1
B30: ="Crecimiento, " &E2+1&"- " &E2+2 -> Crecimiento, 2021- 2022 | C30: 0.15
B31: ="Crecimiento, " &E2+2&"- " &E2+3 -> Crecimiento, 2022- 2023 | C31: 0.2
B32: ="Crecimiento, " &E2+3&"- " &E2+4 -> Crecimiento, 2023- 2024 | C32: 0.25
B33: ="Crecimiento, " &E2+4&"- " &E2+5 -> Crecimiento, 2024- 2025 | C33: 0.3
B34: ="Crecimiento, " &E2+5&"- " &E2+6 -> Crecimiento, 2025- 2026 | C34: 0.35
C35: OUTPUTS DEL MODELO
B36: Usar CCMP Variable | D36: =IF(B36="Usar CCMP Constante","CCMP = ","CCMP Promedio = ") -> CCMP Promedio = | E36: =IF(B36="Usar CCMP Constante",FIN!J10,FIN!D20) -> 0.09873319119 | G36: Chequeos | H36: =IF(COUNTIF(H37:H44,"O.K")=8,TRUE,"Error") -> TRUE
B37: RESULTADOS DEL PROYECTO | E37: RESULTADOS DEL CAPITAL | G37: Mensualización | H37: =IF(AND(INCO!N10="",INCO!O10=""),"O.K","Incorrecta") -> O.K
B38: VAN = | C38: =IFERROR(RENTAB!C19*H36,"Error") -> 6379160.461 | E38: TIR Capital = | F38: =IFERROR(RENTAB!C40*H36,"Error") -> 2.980232239e-09 | G38: Fecha Inversiones | H38: =IF(INV!A5:A27="Fuera de Plazo","Error","O.K") -> O.K
B39: Indice de Rentabilidad Neto = | C39: =IFERROR(RENTAB!C20*H36,"Error") -> 871.7302609 | E39: TIR Capital Modificada = | F39: =IFERROR(RENTAB!C41*H36,"Error") -> 0.9358339775 | G39: Financiación inicial | H39: =IF(ISNUMBER(C10),"O.K","Sin cuadrar") -> O.K
B40: TIR = | C40: =IFERROR(RENTAB!G19*H36,"Error") -> 6.825320005 | G40: Balance | H40: =IF(MAX(BALANCE!C34:DC34)<0.01, "O.K","Descuadrado") -> O.K
B41: TIR Modificada = | C41: =IFERROR(RENTAB!G20*H36,"Error") -> 1.876565346 | G41: Tesorería | H41: =IF(MAX(TES!C32:DC32)<1,"O.K","Descuadrada") -> O.K
G42: Recursos propios | H42: =IF(MIN(BALANCE!C20:J20)>=0,"O.K", "Negativos") -> O.K
G43: Flujo Capital | H43: =IF(MAX(RENTAB!C39:J39)<1,"O.K","Descuadre") -> O.K
G44: ROIC Residual | H44: =IF(OR(RENTAB!F3<0.05,RENTAB!F3>0.25),"ROIC poco coherente","O.K") -> O.K

Sheet Meses (hidden)
B2: Cambiar el nombre de los meses en caso de usar un Excel con un idioma diferente al español
B3: Meses
B4: Ene
B5: Feb
B6: Mar
B7: Abr
B8: May
B9: Jun
B10: Jul
B11: Ago
B12: Sep
B13: Oct
B14: Nov
B15: Dic

Sheet INV
B1: =IF(CONTROL!H36=TRUE,"Modelo O.K","Error en modelo")&", VAN = "&TEXT(CONTROL!C38,"#.#") -> Modelo O.K, VAN = 6.379.160
B2: =CONTROL!C2 -> Proyecto Ejemplo | C2: Inicio: | D2: =CONTROL!H2 -> 2020-01-31 | J2: Cuadro de Amortización Anual | Q2: =YEAR(Q3) -> 2020 | R2: =YEAR(R3) -> 2020 | S2: =YEAR(S3) -> 2020 | T2: 2020 | U2: 2020 | V2: 2020 | W2: 2020 | X2: 2020 | Y2: 2020 | Z2: 2020 | AA2: 2020 | AB2: 2020 | AC2: 2021 | AD2: 2021 | AE2: 2021 | AF2: 2021 | AG2: 2021 | AH2: 2021 | AI2: 2021 | AJ2: 2021 | AK2: 2021 | AL2: 2021 | AM2: 2021 | AN2: 2021 | AO2: 2022 | AP2: 2022 | AQ2: 2022 | AR2: 2022 | AS2: 2022 | AT2: 2022 | AU2: 2022 | AV2: 2022 | AW2: 2022 | AX2: 2022 | AY2: 2022 | AZ2: 2022 | BA2: 2023 | BB2: 2023 | BC2: 2023 | BD2: 2023 | BE2: 2023 | BF2: 2023 | BG2: 2023 | BH2: 2023 | BI2: 2023 | BJ2: 2023 | BK2: 2023 | BL2: 2023 | BM2: 2024 | BN2: 2024 | BO2: 2024 | BP2: 2024 | BQ2: 2024 | BR2: 2024 | BS2: 2024 | BT2: 2024 | BU2: 2024 | BV2: 2024 | BW2: 2024 | BX2: 2024 | BY2: 2025 | BZ2: 2025 | CA2: 2025 | CB2: 2025 | CC2: 2025 | CD2: 2025 | CE2: =YEAR(CE3) -> 2025 | CF2: 2025 | CG2: 2025 | CH2: 2025 | CI2: 2025 | CJ2: 2025 | CK2: 2026 | CL2: 2026 | CM2: 2026 | CN2: 2026 | CO2: 2026 | CP2: 2026 | CQ2: 2026 | CR2: 2026 | CS2: 2026 | CT2: 2026 | CU2: 2026 | CV2: 2026
C3: Estimación | D3: Fecha | E3: Coef. | F3: IVA | G3: Inversión | H3: IVA | I3: =YEAR(D2) -> 2020 | J3: =I3+1 -> 2021 | K3: 2022 | L3: 2023 | M3: 2024 | N3: 2025 | O3: 2026 | Q3: =D2 -> 2020-01-31 | R3: =EOMONTH(Q3,1) -> 2020-02-29 | S3: =EOMONTH(R3,1) -> 2020-03-31 | T3: 2020-04-30 | U3: 2020-05-31 | V3: 2020-06-30 | W3: 2020-07-31 | X3: 2020-08-31 | Y3: 2020-09-30 | Z3: 2020-10-31 | AA3: 2020-11-30 | AB3: 2020-12-31 | AC3: 2021-01-31 | AD3: 2021-02-28 | AE3: 2021-03-31 | AF3: 2021-04-30 | AG3: 2021-05-31 | AH3: 2021-06-30 | AI3: 2021-07-31 | AJ3: 2021-08-31 | AK3: 2021-09-30 | AL3: 2021-10-31 | AM3: 2021-11-30 | AN3: 2021-12-31 | AO3: 2022-01-31 | AP3: 2022-02-28 | AQ3: 2022-03-31 | AR3: 2022-04-30 | AS3: 2022-05-31 | AT3: 2022-06-30 | AU3: 2022-07-31 | AV3: 2022-08-31 | AW3: 2022-09-30 | AX3: 2022-10-31 | AY3: 2022-11-30 | AZ3: 2022-12-31 | BA3: 2023-01-31 | BB3: 2023-02-28 | BC3: 2023-03-31 | BD3: 2023-04-30 | BE3: 2023-05-31 | BF3: 2023-06-30 | BG3: 2023-07-31 | BH3: 2023-08-31 | BI3: 2023-09-30 | BJ3: 2023-10-31 | BK3: 2023-11-30 | BL3: 2023-12-31 | BM3: 2024-01-31 | BN3: 2024-02-29 | BO3: 2024-03-31 | BP3: 2024-04-30 | BQ3: 2024-05-31 | BR3: 2024-06-30 | BS3: 2024-07-31 | BT3: 2024-08-31 | BU3: 2024-09-30 | BV3: 2024-10-31 | BW3: 2024-11-30 | BX3: 2024-12-31 | BY3: 2025-01-31 | BZ3: 2025-02-28 | CA3: 2025-03-31 | CB3: 2025-04-30 | CC3: 2025-05-31 | CD3: 2025-06-30 | CE3: =EOMONTH(CD3,1) -> 2025-07-31 | CF3: 2025-08-31 | CG3: 2025-09-30 | CH3: 2025-10-31 | CI3: 2025-11-30 | CJ3: 2025-12-31 | CK3: 2026-01-31 | CL3: 2026-02-28 | CM3: 2026-03-31 | CN3: 2026-04-30 | CO3: 2026-05-31 | CP3: 2026-06-30 | CQ3: 2026-07-31 | CR3: 2026-08-31 | CS3: 2026-09-30 | CT3: 2026-10-31 | CU3: 2026-11-30 | CV3: 2026-12-31
B4: INMOVILIZADO MATERIAL
A5: =IF(D5<EOMONTH($D$2,-12),"Fuera de plazo",IF(D5>BALANCE!$J$3,"Fuera de plazo","")) ->  | B5: Terrenos | C5: 0 | D5: 2019-01-31 | G5: =IF(YEAR(D5)<=YEAR($D$2),C5,C5*(1+CONTROL!$H$4)^(YEAR(D5)-YEAR($D$2)))*RIESGO!$C$4 -> 0 | H5: =G5*F5 -> 0
A6: =IF(D6<EOMONTH($D$2,-12),"Fuera de plazo",IF(D6>BALANCE!$J$3,"Fuera de plazo","")) ->  | B6: Edificios | C6: 0 | D6: 2019-02-01 | G6: =IF(YEAR(D6)<=YEAR($D$2),C6,C6*(1+CONTROL!$H$4)^(YEAR(D6)-YEAR($D$2)))*RIESGO!$C$4 -> 0 | H6: 0 | I6: =SUMIF($Q$2:$CV$2,I$3,$Q6:$CV6) -> 0 | J6: 0 | K6: 0 | L6: 0 | M6: 0 | N6: 0 | O6: 0 | Q6: =IF(D6>=$Q$3,0,$E6/12*$G6) -> 0 | R6: =IF($D6>=R$3,0,IF($G6*$E6/12<($G6-SUM($Q6:Q6)),$G6*$E6/12,($G6-SUM($Q6:Q6)))) -> 0 | S6: =IF($D6>=S$3,0,IF($G6*$E6/12<($G6-SUM($Q6:R6)),$G6*$E6/12,($G6-SUM($Q6:R6)))) -> 0 | T6: =IF($D6>=T$3,0,IF($G6*$E6/12<($G6-SUM($Q6:S6)),$G6*$E6/12,($G6-SUM($Q6:S6)))) -> 0 | U6: =IF($D6>=U$3,0,IF($G6*$E6/12<($G6-SUM($Q6:T6)),$G6*$E6/12,($G6-SUM($Q6:T6)))) -> 0 | V6: =IF($D6>=V$3,0,IF($G6*$E6/12<($G6-SUM($Q6:U6)),$G6*$E6/12,($G6-SUM($Q6:U6)))) -> 0 | W6: =IF($D6>=W$3,0,IF($G6*$E6/12<($G6-SUM($Q6:V6)),$G6*$E6/12,($G6-SUM($Q6:V6)))) -> 0 | X6: =IF($D6>=X$3,0,IF($G6*$E6/12<($G6-SUM($Q6:W6)),$G6*$E6/12,($G6-SUM($Q6:W6)))) -> 0 | Y6: =IF($D6>=Y$3,0,IF($G6*$E6/12<($G6-SUM($Q6:X6)),$G6*$E6/12,($G6-SUM($Q6:X6)))) -> 0 | Z6: =IF($D6>=Z$3,0,IF($G6*$E6/12<($G6-SUM($Q6:Y6)),$G6*$E6/12,($G6-SUM($Q6:Y6)))) -> 0 | AA6: =IF($D6>=AA$3,0,IF($G6*$E6/12<($G6-SUM($Q6:Z6)),$G6*$E6/12,($G6-SUM($Q6:Z6)))) -> 0 | AB6: =IF($D6>=AB$3,0,IF($G6*$E6/12<($G6-SUM($Q6:AA6)),$G6*$E6/12,($G6-SUM($Q6:AA6)))) -> 0 | AC6: =IF($D6>=AC$3,0,IF($G6*$E6/12<($G6-SUM($Q6:AB6)),$G6*$E6/12,($G6-SUM($Q6:AB6)))) -> 0 | AD6: =IF($D6>=AD$3,0,IF($G6*$E6/12<($G6-SUM($Q6:AC6)),$G6*$E6/12,($G6-SUM($Q6:AC6)))) -> 0 | AE6: =IF($D6>=AE$3,0,IF($G6*$E6/12<($G6-SUM($Q6:AD6)),$G6*$E6/12,($G6-SUM($Q6:AD6)))) -> 0 | AF6: =IF($D6>=AF$3,0,IF($G6*$E6/12<($G6-SUM($Q6:AE6)),$G6*$E6/12,($G6-SUM($Q6:AE6)))) -> 0 | AG6: =IF($D6>=AG$3,0,IF($G6*$E6/12<($G6-SUM($Q6:AF6)),$G6*$E6/12,($G6-SUM($Q6:AF6)))) -> 0 | AH6: =IF($D6>=AH$3,0,IF($G6*$E6/12<($G6-SUM($Q6:AG6)),$G6*$E6/12,($G6-SUM($Q6:AG6)))) -> 0 | AI6: =IF($D6>=AI$3,0,IF($G6*$E6/12<($G6-SUM($Q6:AH6)),$G6*$E6/12,($G6-SUM($Q6:AH6)))) -> 0 | AJ6: =IF($D6>=AJ$3,0,IF($G6*$E6/12<($G6-SUM($Q6:AI6)),$G6*$E6/12,($G6-SUM($Q6:AI6)))) -> 0 | AK6: =IF($D6>=AK$3,0,IF($G6*$E6/12<($G6-SUM($Q6:AJ6)),$G6*$E6/12,($G6-SUM($Q6:AJ6)))) -> 0 | AL6: =IF($D6>=AL$3,0,IF($G6*$E6/12<($G6-SUM($Q6:AK6)),$G6*$E6/12,($G6-SUM($Q6:AK6)))) -> 0 | AM6: =IF($D6>=AM$3,0,IF($G6*$E6/12<($G6-SUM($Q6:AL6)),$G6*$E6/12,($G6-SUM($Q6:AL6)))) -> 0 | AN6: =IF($D6>=AN$3,0,IF($G6*$E6/12<($G6-SUM($Q6:AM6)),$G6*$E6/12,($G6-SUM($Q6:AM6)))) -> 0 | AO6: =IF($D6>=AO$3,0,IF($G6*$E6/12<($G6-SUM($Q6:AN6)),$G6*$E6/12,($G6-SUM($Q6:AN6)))) -> 0 | AP6: =IF($D6>=AP$3,0,IF($G6*$E6/12<($G6-SUM($Q6:AO6)),$G6*$E6/12,($G6-SUM($Q6:AO6)))) -> 0 | AQ6: =IF($D6>=AQ$3,0,IF($G6*$E6/12<($G6-SUM($Q6:AP6)),$G6*$E6/12,($G6-SUM($Q6:AP6)))) -> 0 | AR6: =IF($D6>=AR$3,0,IF($G6*$E6/12<($G6-SUM($Q6:AQ6)),$G6*$E6/12,($G6-SUM($Q6:AQ6)))) -> 0 | AS6: =IF($D6>=AS$3,0,IF($G6*$E6/12<($G6-SUM($Q6:AR6)),$G6*$E6/12,($G6-SUM($Q6:AR6)))) -> 0 | AT6: =IF($D6>=AT$3,0,IF($G6*$E6/12<($G6-SUM($Q6:AS6)),$G6*$E6/12,($G6-SUM($Q6:AS6)))) -> 0 | AU6: =IF($D6>=AU$3,0,IF($G6*$E6/12<($G6-SUM($Q6:AT6)),$G6*$E6/12,($G6-SUM($Q6:AT6)))) -> 0 | AV6: =IF($D6>=AV$3,0,IF($G6*$E6/12<($G6-SUM($Q6:AU6)),$G6*$E6/12,($G6-SUM($Q6:AU6)))) -> 0 | AW6: =IF($D6>=AW$3,0,IF($G6*$E6/12<($G6-SUM($Q6:AV6)),$G6*$E6/12,($G6-SUM($Q6:AV6)))) -> 0 | AX6: =IF($D6>=AX$3,0,IF($G6*$E6/12<($G6-SUM($Q6:AW6)),$G6*$E6/12,($G6-SUM($Q6:AW6)))) -> 0 | AY6: =IF($D6>=AY$3,0,IF($G6*$E6/12<($G6-SUM($Q6:AX6)),$G6*$E6/12,($G6-SUM($Q6:AX6)))) -> 0 | AZ6: =IF($D6>=AZ$3,0,IF($G6*$E6/12<($G6-SUM($Q6:AY6)),$G6*$E6/12,($G6-SUM($Q6:AY6)))) -> 0 | BA6: =IF($D6>=BA$3,0,IF($G6*$E6/12<($G6-SUM($Q6:AZ6)),$G6*$E6/12,($G6-SUM($Q6:AZ6)))) -> 0 | BB6: =IF($D6>=BB$3,0,IF($G6*$E6/12<($G6-SUM($Q6:BA6)),$G6*$E6/12,($G6-SUM($Q6:BA6)))) -> 0 | BC6: =IF($D6>=BC$3,0,IF($G6*$E6/12<($G6-SUM($Q6:BB6)),$G6*$E6/12,($G6-SUM($Q6:BB6)))) -> 0 | BD6: =IF($D6>=BD$3,0,IF($G6*$E6/12<($G6-SUM($Q6:BC6)),$G6*$E6/12,($G6-SUM($Q6:BC6)))) -> 0 | BE6: =IF($D6>=BE$3,0,IF($G6*$E6/12<($G6-SUM($Q6:BD6)),$G6*$E6/12,($G6-SUM($Q6:BD6)))) -> 0 | BF6: =IF($D6>=BF$3,0,IF($G6*$E6/12<($G6-SUM($Q6:BE6)),$G6*$E6/12,($G6-SUM($Q6:BE6)))) -> 0 | BG6: =IF($D6>=BG$3,0,IF($G6*$E6/12<($G6-SUM($Q6:BF6)),$G6*$E6/12,($G6-SUM($Q6:BF6)))) -> 0 | BH6: =IF($D6>=BH$3,0,IF($G6*$E6/12<($G6-SUM($Q6:BG6)),$G6*$E6/12,($G6-SUM($Q6:BG6)))) -> 0 | BI6: =IF($D6>=BI$3,0,IF($G6*$E6/12<($G6-SUM($Q6:BH6)),$G6*$E6/12,($G6-SUM($Q6:BH6)))) -> 0 | BJ6: =IF($D6>=BJ$3,0,IF($G6*$E6/12<($G6-SUM($Q6:BI6)),$G6*$E6/12,($G6-SUM($Q6:BI6)))) -> 0 | BK6: =IF($D6>=BK$3,0,IF($G6*$E6/12<($G6-SUM($Q6:BJ6)),$G6*$E6/12,($G6-SUM($Q6:BJ6)))) -> 0 | BL6: =IF($D6>=BL$3,0,IF($G6*$E6/12<($G6-SUM($Q6:BK6)),$G6*$E6/12,($G6-SUM($Q6:BK6)))) -> 0 | BM6: =IF($D6>=BM$3,0,IF($G6*$E6/12<($G6-SUM($Q6:BL6)),$G6*$E6/12,($G6-SUM($Q6:BL6)))) -> 0 | BN6: =IF($D6>=BN$3,0,IF($G6*$E6/12<($G6-SUM($Q6:BM6)),$G6*$E6/12,($G6-SUM($Q6:BM6)))) -> 0 | BO6: =IF($D6>=BO$3,0,IF($G6*$E6/12<($G6-SUM($Q6:BN6)),$G6*$E6/12,($G6-SUM($Q6:BN6)))) -> 0 | BP6: =IF($D6>=BP$3,0,IF($G6*$E6/12<($G6-SUM($Q6:BO6)),$G6*$E6/12,($G6-SUM($Q6:BO6)))) -> 0 | BQ6: =IF($D6>=BQ$3,0,IF($G6*$E6/12<($G6-SUM($Q6:BP6)),$G6*$E6/12,($G6-SUM($Q6:BP6)))) -> 0 | BR6: =IF($D6>=BR$3,0,IF($G6*$E6/12<($G6-SUM($Q6:BQ6)),$G6*$E6/12,($G6-SUM($Q6:BQ6)))) -> 0 | BS6: =IF($D6>=BS$3,0,IF($G6*$E6/12<($G6-SUM($Q6:BR6)),$G6*$E6/12,($G6-SUM($Q6:BR6)))) -> 0 | BT6: =IF($D6>=BT$3,0,IF($G6*$E6/12<($G6-SUM($Q6:BS6)),$G6*$E6/12,($G6-SUM($Q6:BS6)))) -> 0 | BU6: =IF($D6>=BU$3,0,IF($G6*$E6/12<($G6-SUM($Q6:BT6)),$G6*$E6/12,($G6-SUM($Q6:BT6)))) -> 0 | BV6: =IF($D6>=BV$3,0,IF($G6*$E6/12<($G6-SUM($Q6:BU6)),$G6*$E6/12,($G6-SUM($Q6:BU6)))) -> 0 | BW6: =IF($D6>=BW$3,0,IF($G6*$E6/12<($G6-SUM($Q6:BV6)),$G6*$E6/12,($G6-SUM($Q6:BV6)))) -> 0 | BX6: =IF($D6>=BX$3,0,IF($G6*$E6/12<($G6-SUM($Q6:BW6)),$G6*$E6/12,($G6-SUM($Q6:BW6)))) -> 0 | BY6: =IF($D6>=BY$3,0,IF($G6*$E6/12<($G6-SUM($Q6:BX6)),$G6*$E6/12,($G6-SUM($Q6:BX6)))) -> 0 | BZ6: =IF($D6>=BZ$3,0,IF($G6*$E6/12<($G6-SUM($Q6:BY6)),$G6*$E6/12,($G6-SUM($Q6:BY6)))) -> 0 | CA6: =IF($D6>=CA$3,0,IF($G6*$E6/12<($G6-SUM($Q6:BZ6)),$G6*$E6/12,($G6-SUM($Q6:BZ6)))) -> 0 | CB6: =IF($D6>=CB$3,0,IF($G6*$E6/12<($G6-SUM($Q6:CA6)),$G6*$E6/12,($G6-SUM($Q6:CA6)))) -> 0 | CC6: =IF($D6>=CC$3,0,IF($G6*$E6/12<($G6-SUM($Q6:CB6)),$G6*$E6/12,($G6-SUM($Q6:CB6)))) -> 0 | CD6: =IF($D6>=CD$3,0,IF($G6*$E6/12<($G6-SUM($Q6:CC6)),$G6*$E6/12,($G6-SUM($Q6:CC6)))) -> 0 | CE6: =IF($D6>=CE$3,0,IF($G6*$E6/12<($G6-SUM($Q6:CD6)),$G6*$E6/12,($G6-SUM($Q6:CD6)))) -> 0 | CF6: =IF($D6>=CF$3,0,IF($G6*$E6/12<($G6-SUM($Q6:CE6)),$G6*$E6/12,($G6-SUM($Q6:CE6)))) -> 0 | CG6: =IF($D6>=CG$3,0,IF($G6*$E6/12<($G6-SUM($Q6:CF6)),$G6*$E6/12,($G6-SUM($Q6:CF6)))) -> 0 | CH6: =IF($D6>=CH$3,0,IF($G6*$E6/12<($G6-SUM($Q6:CG6)),$G6*$E6/12,($G6-SUM($Q6:CG6)))) -> 0 | CI6: =IF($D6>=CI$3,0,IF($G6*$E6/12<($G6-SUM($Q6:CH6)),$G6*$E6/12,($G6-SUM($Q6:CH6)))) -> 0 | CJ6: =IF($D6>=CJ$3,0,IF($G6*$E6/12<($G6-SUM($Q6:CI6)),$G6*$E6/12,($G6-SUM($Q6:CI6)))) -> 0 | CK6: =IF($D6>=CK$3,0,IF($G6*$E6/12<($G6-SUM($Q6:CJ6)),$G6*$E6/12,($G6-SUM($Q6:CJ6)))) -> 0 | CL6: =IF($D6>=CL$3,0,IF($G6*$E6/12<($G6-SUM($Q6:CK6)),$G6*$E6/12,($G6-SUM($Q6:CK6)))) -> 0 | CM6: =IF($D6>=CM$3,0,IF($G6*$E6/12<($G6-SUM($Q6:CL6)),$G6*$E6/12,($G6-SUM($Q6:CL6)))) -> 0 | CN6: =IF($D6>=CN$3,0,IF($G6*$E6/12<($G6-SUM($Q6:CM6)),$G6*$E6/12,($G6-SUM($Q6:CM6)))) -> 0 | CO6: =IF($D6>=CO$3,0,IF($G6*$E6/12<($G6-SUM($Q6:CN6)),$G6*$E6/12,($G6-SUM($Q6:CN6)))) -> 0 | CP6: =IF($D6>=CP$3,0,IF($G6*$E6/12<($G6-SUM($Q6:CO6)),$G6*$E6/12,($G6-SUM($Q6:CO6)))) -> 0 | CQ6: =IF($D6>=CQ$3,0,IF($G6*$E6/12<($G6-SUM($Q6:CP6)),$G6*$E6/12,($G6-SUM($Q6:CP6)))) -> 0 | CR6: =IF($D6>=CR$3,0,IF($G6*$E6/12<($G6-SUM($Q6:CQ6)),$G6*$E6/12,($G6-SUM($Q6:CQ6)))) -> 0 | CS6: =IF($D6>=CS$3,0,IF($G6*$E6/12<($G6-SUM($Q6:CR6)),$G6*$E6/12,($G6-SUM($Q6:CR6)))) -> 0 | CT6: =IF($D6>=CT$3,0,IF($G6*$E6/12<($G6-SUM($Q6:CS6)),$G6*$E6/12,($G6-SUM($Q6:CS6)))) -> 0 | CU6: =IF($D6>=CU$3,0,IF($G6*$E6/12<($G6-SUM($Q6:CT6)),$G6*$E6/12,($G6-SUM($Q6:CT6)))) -> 0 | CV6: =IF($D6>=CV$3,0,IF($G6*$E6/12<($G6-SUM($Q6:CU6)),$G6*$E6/12,($G6-SUM($Q6:CU6)))) -> 0
A7: =IF(D7<EOMONTH($D$2,-12),"Fuera de plazo",IF(D7>BALANCE!$J$3,"Fuera de plazo","")) ->  | B7: Edificios | C7: 0 | D7: 2019-02-02 | G7: =IF(YEAR(D7)<=YEAR($D$2),C7,C7*(1+CONTROL!$H$4)^(YEAR(D7)-YEAR($D$2)))*RIESGO!$C$4 -> 0 | H7: 0 | I7: 0 | J7: 0 | K7: 0 | L7: 0 | M7: 0 | N7: 0 | O7: 0 | Q7: =IF(D7>=$Q$3,0,$E7/12*$G7) -> 0 | R7: =IF($D7>=R$3,0,IF($G7*$E7/12<($G7-SUM($Q7:Q7)),$G7*$E7/12,($G7-SUM($Q7:Q7)))) -> 0 | S7: =IF($D7>=S$3,0,IF($G7*$E7/12<($G7-SUM($Q7:R7)),$G7*$E7/12,($G7-SUM($Q7:R7)))) -> 0 | T7: =IF($D7>=T$3,0,IF($G7*$E7/12<($G7-SUM($Q7:S7)),$G7*$E7/12,($G7-SUM($Q7:S7)))) -> 0 | U7: =IF($D7>=U$3,0,IF($G7*$E7/12<($G7-SUM($Q7:T7)),$G7*$E7/12,($G7-SUM($Q7:T7)))) -> 0 | V7: =IF($D7>=V$3,0,IF($G7*$E7/12<($G7-SUM($Q7:U7)),$G7*$E7/12,($G7-SUM($Q7:U7)))) -> 0 | W7: =IF($D7>=W$3,0,IF($G7*$E7/12<($G7-SUM($Q7:V7)),$G7*$E7/12,($G7-SUM($Q7:V7)))) -> 0 | X7: =IF($D7>=X$3,0,IF($G7*$E7/12<($G7-SUM($Q7:W7)),$G7*$E7/12,($G7-SUM($Q7:W7)))) -> 0 | Y7: =IF($D7>=Y$3,0,IF($G7*$E7/12<($G7-SUM($Q7:X7)),$G7*$E7/12,($G7-SUM($Q7:X7)))) -> 0 | Z7: =IF($D7>=Z$3,0,IF($G7*$E7/12<($G7-SUM($Q7:Y7)),$G7*$E7/12,($G7-SUM($Q7:Y7)))) -> 0 | AA7: =IF($D7>=AA$3,0,IF($G7*$E7/12<($G7-SUM($Q7:Z7)),$G7*$E7/12,($G7-SUM($Q7:Z7)))) -> 0 | AB7: =IF($D7>=AB$3,0,IF($G7*$E7/12<($G7-SUM($Q7:AA7)),$G7*$E7/12,($G7-SUM($Q7:AA7)))) -> 0 | AC7: =IF($D7>=AC$3,0,IF($G7*$E7/12<($G7-SUM($Q7:AB7)),$G7*$E7/12,($G7-SUM($Q7:AB7)))) -> 0 | AD7: =IF($D7>=AD$3,0,IF($G7*$E7/12<($G7-SUM($Q7:AC7)),$G7*$E7/12,($G7-SUM($Q7:AC7)))) -> 0 | AE7: =IF($D7>=AE$3,0,IF($G7*$E7/12<($G7-SUM($Q7:AD7)),$G7*$E7/12,($G7-SUM($Q7:AD7)))) -> 0 | AF7: =IF($D7>=AF$3,0,IF($G7*$E7/12<($G7-SUM($Q7:AE7)),$G7*$E7/12,($G7-SUM($Q7:AE7)))) -> 0 | AG7: =IF($D7>=AG$3,0,IF($G7*$E7/12<($G7-SUM($Q7:AF7)),$G7*$E7/12,($G7-SUM($Q7:AF7)))) -> 0 | AH7: =IF($D7>=AH$3,0,IF($G7*$E7/12<($G7-SUM($Q7:AG7)),$G7*$E7/12,($G7-SUM($Q7:AG7)))) -> 0 | AI7: =IF($D7>=AI$3,0,IF($G7*$E7/12<($G7-SUM($Q7:AH7)),$G7*$E7/12,($G7-SUM($Q7:AH7)))) -> 0 | AJ7: =IF($D7>=AJ$3,0,IF($G7*$E7/12<($G7-SUM($Q7:AI7)),$G7*$E7/12,($G7-SUM($Q7:AI7)))) -> 0 | AK7: =IF($D7>=AK$3,0,IF($G7*$E7/12<($G7-SUM($Q7:AJ7)),$G7*$E7/12,($G7-SUM($Q7:AJ7)))) -> 0 | AL7: =IF($D7>=AL$3,0,IF($G7*$E7/12<($G7-SUM($Q7:AK7)),$G7*$E7/12,($G7-SUM($Q7:AK7)))) -> 0 | AM7: =IF($D7>=AM$3,0,IF($G7*$E7/12<($G7-SUM($Q7:AL7)),$G7*$E7/12,($G7-SUM($Q7:AL7)))) -> 0 | AN7: =IF($D7>=AN$3,0,IF($G7*$E7/12<($G7-SUM($Q7:AM7)),$G7*$E7/12,($G7-SUM($Q7:AM7)))) -> 0 | AO7: =IF($D7>=AO$3,0,IF($G7*$E7/12<($G7-SUM($Q7:AN7)),$G7*$E7/12,($G7-SUM($Q7:AN7)))) -> 0 | AP7: =IF($D7>=AP$3,0,IF($G7*$E7/12<($G7-SUM($Q7:AO7)),$G7*$E7/12,($G7-SUM($Q7:AO7)))) -> 0 | AQ7: =IF($D7>=AQ$3,0,IF($G7*$E7/12<($G7-SUM($Q7:AP7)),$G7*$E7/12,($G7-SUM($Q7:AP7)))) -> 0 | AR7: =IF($D7>=AR$3,0,IF($G7*$E7/12<($G7-SUM($Q7:AQ7)),$G7*$E7/12,($G7-SUM($Q7:AQ7)))) -> 0 | AS7: =IF($D7>=AS$3,0,IF($G7*$E7/12<($G7-SUM($Q7:AR7)),$G7*$E7/12,($G7-SUM($Q7:AR7)))) -> 0 | AT7: =IF($D7>=AT$3,0,IF($G7*$E7/12<($G7-SUM($Q7:AS7)),$G7*$E7/12,($G7-SUM($Q7:AS7)))) -> 0 | AU7: =IF($D7>=AU$3,0,IF($G7*$E7/12<($G7-SUM($Q7:AT7)),$G7*$E7/12,($G7-SUM($Q7:AT7)))) -> 0 | AV7: =IF($D7>=AV$3,0,IF($G7*$E7/12<($G7-SUM($Q7:AU7)),$G7*$E7/12,($G7-SUM($Q7:AU7)))) -> 0 | AW7: =IF($D7>=AW$3,0,IF($G7*$E7/12<($G7-SUM($Q7:AV7)),$G7*$E7/12,($G7-SUM($Q7:AV7)))) -> 0 | AX7: =IF($D7>=AX$3,0,IF($G7*$E7/12<($G7-SUM($Q7:AW7)),$G7*$E7/12,($G7-SUM($Q7:AW7)))) -> 0 | AY7: =IF($D7>=AY$3,0,IF($G7*$E7/12<($G7-SUM($Q7:AX7)),$G7*$E7/12,($G7-SUM($Q7:AX7)))) -> 0 | AZ7: =IF($D7>=AZ$3,0,IF($G7*$E7/12<($G7-SUM($Q7:AY7)),$G7*$E7/12,($G7-SUM($Q7:AY7)))) -> 0 | BA7: =IF($D7>=BA$3,0,IF($G7*$E7/12<($G7-SUM($Q7:AZ7)),$G7*$E7/12,($G7-SUM($Q7:AZ7)))) -> 0 | BB7: =IF($D7>=BB$3,0,IF($G7*$E7/12<($G7-SUM($Q7:BA7)),$G7*$E7/12,($G7-SUM($Q7:BA7)))) -> 0 | BC7: =IF($D7>=BC$3,0,IF($G7*$E7/12<($G7-SUM($Q7:BB7)),$G7*$E7/12,($G7-SUM($Q7:BB7)))) -> 0 | BD7: =IF($D7>=BD$3,0,IF($G7*$E7/12<($G7-SUM($Q7:BC7)),$G7*$E7/12,($G7-SUM($Q7:BC7)))) -> 0 | BE7: =IF($D7>=BE$3,0,IF($G7*$E7/12<($G7-SUM($Q7:BD7)),$G7*$E7/12,($G7-SUM($Q7:BD7)))) -> 0 | BF7: =IF($D7>=BF$3,0,IF($G7*$E7/12<($G7-SUM($Q7:BE7)),$G7*$E7/12,($G7-SUM($Q7:BE7)))) -> 0 | BG7: =IF($D7>=BG$3,0,IF($G7*$E7/12<($G7-SUM($Q7:BF7)),$G7*$E7/12,($G7-SUM($Q7:BF7)))) -> 0 | BH7: =IF($D7>=BH$3,0,IF($G7*$E7/12<($G7-SUM($Q7:BG7)),$G7*$E7/12,($G7-SUM($Q7:BG7)))) -> 0 | BI7: =IF($D7>=BI$3,0,IF($G7*$E7/12<($G7-SUM($Q7:BH7)),$G7*$E7/12,($G7-SUM($Q7:BH7)))) -> 0 | BJ7: =IF($D7>=BJ$3,0,IF($G7*$E7/12<($G7-SUM($Q7:BI7)),$G7*$E7/12,($G7-SUM($Q7:BI7)))) -> 0 | BK7: =IF($D7>=BK$3,0,IF($G7*$E7/12<($G7-SUM($Q7:BJ7)),$G7*$E7/12,($G7-SUM($Q7:BJ7)))) -> 0 | BL7: =IF($D7>=BL$3,0,IF($G7*$E7/12<($G7-SUM($Q7:BK7)),$G7*$E7/12,($G7-SUM($Q7:BK7)))) -> 0 | BM7: =IF($D7>=BM$3,0,IF($G7*$E7/12<($G7-SUM($Q7:BL7)),$G7*$E7/12,($G7-SUM($Q7:BL7)))) -> 0 | BN7: =IF($D7>=BN$3,0,IF($G7*$E7/12<($G7-SUM($Q7:BM7)),$G7*$E7/12,($G7-SUM($Q7:BM7)))) -> 0 | BO7: =IF($D7>=BO$3,0,IF($G7*$E7/12<($G7-SUM($Q7:BN7)),$G7*$E7/12,($G7-SUM($Q7:BN7)))) -> 0 | BP7: =IF($D7>=BP$3,0,IF($G7*$E7/12<($G7-SUM($Q7:BO7)),$G7*$E7/12,($G7-SUM($Q7:BO7)))) -> 0 | BQ7: =IF($D7>=BQ$3,0,IF($G7*$E7/12<($G7-SUM($Q7:BP7)),$G7*$E7/12,($G7-SUM($Q7:BP7)))) -> 0 | BR7: =IF($D7>=BR$3,0,IF($G7*$E7/12<($G7-SUM($Q7:BQ7)),$G7*$E7/12,($G7-SUM($Q7:BQ7)))) -> 0 | BS7: =IF($D7>=BS$3,0,IF($G7*$E7/12<($G7-SUM($Q7:BR7)),$G7*$E7/12,($G7-SUM($Q7:BR7)))) -> 0 | BT7: =IF($D7>=BT$3,0,IF($G7*$E7/12<($G7-SUM($Q7:BS7)),$G7*$E7/12,($G7-SUM($Q7:BS7)))) -> 0 | BU7: =IF($D7>=BU$3,0,IF($G7*$E7/12<($G7-SUM($Q7:BT7)),$G7*$E7/12,($G7-SUM($Q7:BT7)))) -> 0 | BV7: =IF($D7>=BV$3,0,IF($G7*$E7/12<($G7-SUM($Q7:BU7)),$G7*$E7/12,($G7-SUM($Q7:BU7)))) -> 0 | BW7: =IF($D7>=BW$3,0,IF($G7*$E7/12<($G7-SUM($Q7:BV7)),$G7*$E7/12,($G7-SUM($Q7:BV7)))) -> 0 | BX7: =IF($D7>=BX$3,0,IF($G7*$E7/12<($G7-SUM($Q7:BW7)),$G7*$E7/12,($G7-SUM($Q7:BW7)))) -> 0 | BY7: =IF($D7>=BY$3,0,IF($G7*$E7/12<($G7-SUM($Q7:BX7)),$G7*$E7/12,($G7-SUM($Q7:BX7)))) -> 0 | BZ7: =IF($D7>=BZ$3,0,IF($G7*$E7/12<($G7-SUM($Q7:BY7)),$G7*$E7/12,($G7-SUM($Q7:BY7)))) -> 0 | CA7: =IF($D7>=CA$3,0,IF($G7*$E7/12<($G7-SUM($Q7:BZ7)),$G7*$E7/12,($G7-SUM($Q7:BZ7)))) -> 0 | CB7: =IF($D7>=CB$3,0,IF($G7*$E7/12<($G7-SUM($Q7:CA7)),$G7*$E7/12,($G7-SUM($Q7:CA7)))) -> 0 | CC7: =IF($D7>=CC$3,0,IF($G7*$E7/12<($G7-SUM($Q7:CB7)),$G7*$E7/12,($G7-SUM($Q7:CB7)))) -> 0 | CD7: =IF($D7>=CD$3,0,IF($G7*$E7/12<($G7-SUM($Q7:CC7)),$G7*$E7/12,($G7-SUM($Q7:CC7)))) -> 0 | CE7: =IF($D7>=CE$3,0,IF($G7*$E7/12<($G7-SUM($Q7:CD7)),$G7*$E7/12,($G7-SUM($Q7:CD7)))) -> 0 | CF7: =IF($D7>=CF$3,0,IF($G7*$E7/12<($G7-SUM($Q7:CE7)),$G7*$E7/12,($G7-SUM($Q7:CE7)))) -> 0 | CG7: =IF($D7>=CG$3,0,IF($G7*$E7/12<($G7-SUM($Q7:CF7)),$G7*$E7/12,($G7-SUM($Q7:CF7)))) -> 0 | CH7: =IF($D7>=CH$3,0,IF($G7*$E7/12<($G7-SUM($Q7:CG7)),$G7*$E7/12,($G7-SUM($Q7:CG7)))) -> 0 | CI7: =IF($D7>=CI$3,0,IF($G7*$E7/12<($G7-SUM($Q7:CH7)),$G7*$E7/12,($G7-SUM($Q7:CH7)))) -> 0 | CJ7: =IF($D7>=CJ$3,0,IF($G7*$E7/12<($G7-SUM($Q7:CI7)),$G7*$E7/12,($G7-SUM($Q7:CI7)))) -> 0 | CK7: =IF($D7>=CK$3,0,IF($G7*$E7/12<($G7-SUM($Q7:CJ7)),$G7*$E7/12,($G7-SUM($Q7:CJ7)))) -> 0 | CL7: =IF($D7>=CL$3,0,IF($G7*$E7/12<($G7-SUM($Q7:CK7)),$G7*$E7/12,($G7-SUM($Q7:CK7)))) -> 0 | CM7: =IF($D7>=CM$3,0,IF($G7*$E7/12<($G7-SUM($Q7:CL7)),$G7*$E7/12,($G7-SUM($Q7:CL7)))) -> 0 | CN7: =IF($D7>=CN$3,0,IF($G7*$E7/12<($G7-SUM($Q7:CM7)),$G7*$E7/12,($G7-SUM($Q7:CM7)))) -> 0 | CO7: =IF($D7>=CO$3,0,IF($G7*$E7/12<($G7-SUM($Q7:CN7)),$G7*$E7/12,($G7-SUM($Q7:CN7)))) -> 0 | CP7: =IF($D7>=CP$3,0,IF($G7*$E7/12<($G7-SUM($Q7:CO7)),$G7*$E7/12,($G7-SUM($Q7:CO7)))) -> 0 | CQ7: =IF($D7>=CQ$3,0,IF($G7*$E7/12<($G7-SUM($Q7:CP7)),$G7*$E7/12,($G7-SUM($Q7:CP7)))) -> 0 | CR7: =IF($D7>=CR$3,0,IF($G7*$E7/12<($G7-SUM($Q7:CQ7)),$G7*$E7/12,($G7-SUM($Q7:CQ7)))) -> 0 | CS7: =IF($D7>=CS$3,0,IF($G7*$E7/12<($G7-SUM($Q7:CR7)),$G7*$E7/12,($G7-SUM($Q7:CR7)))) -> 0 | CT7: =IF($D7>=CT$3,0,IF($G7*$E7/12<($G7-SUM($Q7:CS7)),$G7*$E7/12,($G7-SUM($Q7:CS7)))) -> 0 | CU7: =IF($D7>=CU$3,0,IF($G7*$E7/12<($G7-SUM($Q7:CT7)),$G7*$E7/12,($G7-SUM($Q7:CT7)))) -> 0 | CV7: =IF($D7>=CV$3,0,IF($G7*$E7/12<($G7-SUM($Q7:CU7)),$G7*$E7/12,($G7-SUM($Q7:CU7)))) -> 0
A8: =IF(D8<EOMONTH($D$2,-12),"Fuera de plazo",IF(D8>BALANCE!$J$3,"Fuera de plazo","")) ->  | B8: Edificios | C8: 0 | D8: 2019-02-03 | G8: =IF(YEAR(D8)<=YEAR($D$2),C8,C8*(1+CONTROL!$H$4)^(YEAR(D8)-YEAR($D$2)))*RIESGO!$C$4 -> 0 | H8: 0 | I8: 0 | J8: 0 | K8: 0 | L8: 0 | M8: 0 | N8: 0 | O8: 0 | Q8: 0 | R8: =IF($D8>=R$3,0,IF($G8*$E8/12<($G8-SUM($Q8:Q8)),$G8*$E8/12,($G8-SUM($Q8:Q8)))) -> 0 | S8: =IF($D8>=S$3,0,IF($G8*$E8/12<($G8-SUM($Q8:R8)),$G8*$E8/12,($G8-SUM($Q8:R8)))) -> 0 | T8: =IF($D8>=T$3,0,IF($G8*$E8/12<($G8-SUM($Q8:S8)),$G8*$E8/12,($G8-SUM($Q8:S8)))) -> 0 | U8: =IF($D8>=U$3,0,IF($G8*$E8/12<($G8-SUM($Q8:T8)),$G8*$E8/12,($G8-SUM($Q8:T8)))) -> 0 | V8: =IF($D8>=V$3,0,IF($G8*$E8/12<($G8-SUM($Q8:U8)),$G8*$E8/12,($G8-SUM($Q8:U8)))) -> 0 | W8: =IF($D8>=W$3,0,IF($G8*$E8/12<($G8-SUM($Q8:V8)),$G8*$E8/12,($G8-SUM($Q8:V8)))) -> 0 | X8: =IF($D8>=X$3,0,IF($G8*$E8/12<($G8-SUM($Q8:W8)),$G8*$E8/12,($G8-SUM($Q8:W8)))) -> 0 | Y8: =IF($D8>=Y$3,0,IF($G8*$E8/12<($G8-SUM($Q8:X8)),$G8*$E8/12,($G8-SUM($Q8:X8)))) -> 0 | Z8: =IF($D8>=Z$3,0,IF($G8*$E8/12<($G8-SUM($Q8:Y8)),$G8*$E8/12,($G8-SUM($Q8:Y8)))) -> 0 | AA8: =IF($D8>=AA$3,0,IF($G8*$E8/12<($G8-SUM($Q8:Z8)),$G8*$E8/12,($G8-SUM($Q8:Z8)))) -> 0 | AB8: =IF($D8>=AB$3,0,IF($G8*$E8/12<($G8-SUM($Q8:AA8)),$G8*$E8/12,($G8-SUM($Q8:AA8)))) -> 0 | AC8: =IF($D8>=AC$3,0,IF($G8*$E8/12<($G8-SUM($Q8:AB8)),$G8*$E8/12,($G8-SUM($Q8:AB8)))) -> 0 | AD8: =IF($D8>=AD$3,0,IF($G8*$E8/12<($G8-SUM($Q8:AC8)),$G8*$E8/12,($G8-SUM($Q8:AC8)))) -> 0 | AE8: =IF($D8>=AE$3,0,IF($G8*$E8/12<($G8-SUM($Q8:AD8)),$G8*$E8/12,($G8-SUM($Q8:AD8)))) -> 0 | AF8: =IF($D8>=AF$3,0,IF($G8*$E8/12<($G8-SUM($Q8:AE8)),$G8*$E8/12,($G8-SUM($Q8:AE8)))) -> 0 | AG8: =IF($D8>=AG$3,0,IF($G8*$E8/12<($G8-SUM($Q8:AF8)),$G8*$E8/12,($G8-SUM($Q8:AF8)))) -> 0 | AH8: =IF($D8>=AH$3,0,IF($G8*$E8/12<($G8-SUM($Q8:AG8)),$G8*$E8/12,($G8-SUM($Q8:AG8)))) -> 0 | AI8: =IF($D8>=AI$3,0,IF($G8*$E8/12<($G8-SUM($Q8:AH8)),$G8*$E8/12,($G8-SUM($Q8:AH8)))) -> 0 | AJ8: =IF($D8>=AJ$3,0,IF($G8*$E8/12<($G8-SUM($Q8:AI8)),$G8*$E8/12,($G8-SUM($Q8:AI8)))) -> 0 | AK8: =IF($D8>=AK$3,0,IF($G8*$E8/12<($G8-SUM($Q8:AJ8)),$G8*$E8/12,($G8-SUM($Q8:AJ8)))) -> 0 | AL8: =IF($D8>=AL$3,0,IF($G8*$E8/12<($G8-SUM($Q8:AK8)),$G8*$E8/12,($G8-SUM($Q8:AK8)))) -> 0 | AM8: =IF($D8>=AM$3,0,IF($G8*$E8/12<($G8-SUM($Q8:AL8)),$G8*$E8/12,($G8-SUM($Q8:AL8)))) -> 0 | AN8: =IF($D8>=AN$3,0,IF($G8*$E8/12<($G8-SUM($Q8:AM8)),$G8*$E8/12,($G8-SUM($Q8:AM8)))) -> 0 | AO8: =IF($D8>=AO$3,0,IF($G8*$E8/12<($G8-SUM($Q8:AN8)),$G8*$E8/12,($G8-SUM($Q8:AN8)))) -> 0 | AP8: =IF($D8>=AP$3,0,IF($G8*$E8/12<($G8-SUM($Q8:AO8)),$G8*$E8/12,($G8-SUM($Q8:AO8)))) -> 0 | AQ8: =IF($D8>=AQ$3,0,IF($G8*$E8/12<($G8-SUM($Q8:AP8)),$G8*$E8/12,($G8-SUM($Q8:AP8)))) -> 0 | AR8: =IF($D8>=AR$3,0,IF($G8*$E8/12<($G8-SUM($Q8:AQ8)),$G8*$E8/12,($G8-SUM($Q8:AQ8)))) -> 0 | AS8: =IF($D8>=AS$3,0,IF($G8*$E8/12<($G8-SUM($Q8:AR8)),$G8*$E8/12,($G8-SUM($Q8:AR8)))) -> 0 | AT8: =IF($D8>=AT$3,0,IF($G8*$E8/12<($G8-SUM($Q8:AS8)),$G8*$E8/12,($G8-SUM($Q8:AS8)))) -> 0 | AU8: =IF($D8>=AU$3,0,IF($G8*$E8/12<($G8-SUM($Q8:AT8)),$G8*$E8/12,($G8-SUM($Q8:AT8)))) -> 0 | AV8: =IF($D8>=AV$3,0,IF($G8*$E8/12<($G8-SUM($Q8:AU8)),$G8*$E8/12,($G8-SUM($Q8:AU8)))) -> 0 | AW8: =IF($D8>=AW$3,0,IF($G8*$E8/12<($G8-SUM($Q8:AV8)),$G8*$E8/12,($G8-SUM($Q8:AV8)))) -> 0 | AX8: =IF($D8>=AX$3,0,IF($G8*$E8/12<($G8-SUM($Q8:AW8)),$G8*$E8/12,($G8-SUM($Q8:AW8)))) -> 0 | AY8: =IF($D8>=AY$3,0,IF($G8*$E8/12<($G8-SUM($Q8:AX8)),$G8*$E8/12,($G8-SUM($Q8:AX8)))) -> 0 | AZ8: =IF($D8>=AZ$3,0,IF($G8*$E8/12<($G8-SUM($Q8:AY8)),$G8*$E8/12,($G8-SUM($Q8:AY8)))) -> 0 | BA8: =IF($D8>=BA$3,0,IF($G8*$E8/12<($G8-SUM($Q8:AZ8)),$G8*$E8/12,($G8-SUM($Q8:AZ8)))) -> 0 | BB8: =IF($D8>=BB$3,0,IF($G8*$E8/12<($G8-SUM($Q8:BA8)),$G8*$E8/12,($G8-SUM($Q8:BA8)))) -> 0 | BC8: =IF($D8>=BC$3,0,IF($G8*$E8/12<($G8-SUM($Q8:BB8)),$G8*$E8/12,($G8-SUM($Q8:BB8)))) -> 0 | BD8: =IF($D8>=BD$3,0,IF($G8*$E8/12<($G8-SUM($Q8:BC8)),$G8*$E8/12,($G8-SUM($Q8:BC8)))) -> 0 | BE8: =IF($D8>=BE$3,0,IF($G8*$E8/12<($G8-SUM($Q8:BD8)),$G8*$E8/12,($G8-SUM($Q8:BD8)))) -> 0 | BF8: =IF($D8>=BF$3,0,IF($G8*$E8/12<($G8-SUM($Q8:BE8)),$G8*$E8/12,($G8-SUM($Q8:BE8)))) -> 0 | BG8: =IF($D8>=BG$3,0,IF($G8*$E8/12<($G8-SUM($Q8:BF8)),$G8*$E8/12,($G8-SUM($Q8:BF8)))) -> 0 | BH8: =IF($D8>=BH$3,0,IF($G8*$E8/12<($G8-SUM($Q8:BG8)),$G8*$E8/12,($G8-SUM($Q8:BG8)))) -> 0 | BI8: =IF($D8>=BI$3,0,IF($G8*$E8/12<($G8-SUM($Q8:BH8)),$G8*$E8/12,($G8-SUM($Q8:BH8)))) -> 0 | BJ8: =IF($D8>=BJ$3,0,IF($G8*$E8/12<($G8-SUM($Q8:BI8)),$G8*$E8/12,($G8-SUM($Q8:BI8)))) -> 0 | BK8: =IF($D8>=BK$3,0,IF($G8*$E8/12<($G8-SUM($Q8:BJ8)),$G8*$E8/12,($G8-SUM($Q8:BJ8)))) -> 0 | BL8: =IF($D8>=BL$3,0,IF($G8*$E8/12<($G8-SUM($Q8:BK8)),$G8*$E8/12,($G8-SUM($Q8:BK8)))) -> 0 | BM8: =IF($D8>=BM$3,0,IF($G8*$E8/12<($G8-SUM($Q8:BL8)),$G8*$E8/12,($G8-SUM($Q8:BL8)))) -> 0 | BN8: =IF($D8>=BN$3,0,IF($G8*$E8/12<($G8-SUM($Q8:BM8)),$G8*$E8/12,($G8-SUM($Q8:BM8)))) -> 0 | BO8: =IF($D8>=BO$3,0,IF($G8*$E8/12<($G8-SUM($Q8:BN8)),$G8*$E8/12,($G8-SUM($Q8:BN8)))) -> 0 | BP8: =IF($D8>=BP$3,0,IF($G8*$E8/12<($G8-SUM($Q8:BO8)),$G8*$E8/12,($G8-SUM($Q8:BO8)))) -> 0 | BQ8: =IF($D8>=BQ$3,0,IF($G8*$E8/12<($G8-SUM($Q8:BP8)),$G8*$E8/12,($G8-SUM($Q8:BP8)))) -> 0 | BR8: =IF($D8>=BR$3,0,IF($G8*$E8/12<($G8-SUM($Q8:BQ8)),$G8*$E8/12,($G8-SUM($Q8:BQ8)))) -> 0 | BS8: =IF($D8>=BS$3,0,IF($G8*$E8/12<($G8-SUM($Q8:BR8)),$G8*$E8/12,($G8-SUM($Q8:BR8)))) -> 0 | BT8: =IF($D8>=BT$3,0,IF($G8*$E8/12<($G8-SUM($Q8:BS8)),$G8*$E8/12,($G8-SUM($Q8:BS8)))) -> 0 | BU8: =IF($D8>=BU$3,0,IF($G8*$E8/12<($G8-SUM($Q8:BT8)),$G8*$E8/12,($G8-SUM($Q8:BT8)))) -> 0 | BV8: =IF($D8>=BV$3,0,IF($G8*$E8/12<($G8-SUM($Q8:BU8)),$G8*$E8/12,($G8-SUM($Q8:BU8)))) -> 0 | BW8: =IF($D8>=BW$3,0,IF($G8*$E8/12<($G8-SUM($Q8:BV8)),$G8*$E8/12,($G8-SUM($Q8:BV8)))) -> 0 | BX8: =IF($D8>=BX$3,0,IF($G8*$E8/12<($G8-SUM($Q8:BW8)),$G8*$E8/12,($G8-SUM($Q8:BW8)))) -> 0 | BY8: =IF($D8>=BY$3,0,IF($G8*$E8/12<($G8-SUM($Q8:BX8)),$G8*$E8/12,($G8-SUM($Q8:BX8)))) -> 0 | BZ8: =IF($D8>=BZ$3,0,IF($G8*$E8/12<($G8-SUM($Q8:BY8)),$G8*$E8/12,($G8-SUM($Q8:BY8)))) -> 0 | CA8: =IF($D8>=CA$3,0,IF($G8*$E8/12<($G8-SUM($Q8:BZ8)),$G8*$E8/12,($G8-SUM($Q8:BZ8)))) -> 0 | CB8: =IF($D8>=CB$3,0,IF($G8*$E8/12<($G8-SUM($Q8:CA8)),$G8*$E8/12,($G8-SUM($Q8:CA8)))) -> 0 | CC8: =IF($D8>=CC$3,0,IF($G8*$E8/12<($G8-SUM($Q8:CB8)),$G8*$E8/12,($G8-SUM($Q8:CB8)))) -> 0 | CD8: =IF($D8>=CD$3,0,IF($G8*$E8/12<($G8-SUM($Q8:CC8)),$G8*$E8/12,($G8-SUM($Q8:CC8)))) -> 0 | CE8: =IF($D8>=CE$3,0,IF($G8*$E8/12<($G8-SUM($Q8:CD8)),$G8*$E8/12,($G8-SUM($Q8:CD8)))) -> 0 | CF8: =IF($D8>=CF$3,0,IF($G8*$E8/12<($G8-SUM($Q8:CE8)),$G8*$E8/12,($G8-SUM($Q8:CE8)))) -> 0 | CG8: =IF($D8>=CG$3,0,IF($G8*$E8/12<($G8-SUM($Q8:CF8)),$G8*$E8/12,($G8-SUM($Q8:CF8)))) -> 0 | CH8: =IF($D8>=CH$3,0,IF($G8*$E8/12<($G8-SUM($Q8:CG8)),$G8*$E8/12,($G8-SUM($Q8:CG8)))) -> 0 | CI8: =IF($D8>=CI$3,0,IF($G8*$E8/12<($G8-SUM($Q8:CH8)),$G8*$E8/12,($G8-SUM($Q8:CH8)))) -> 0 | CJ8: =IF($D8>=CJ$3,0,IF($G8*$E8/12<($G8-SUM($Q8:CI8)),$G8*$E8/12,($G8-SUM($Q8:CI8)))) -> 0 | CK8: =IF($D8>=CK$3,0,IF($G8*$E8/12<($G8-SUM($Q8:CJ8)),$G8*$E8/12,($G8-SUM($Q8:CJ8)))) -> 0 | CL8: =IF($D8>=CL$3,0,IF($G8*$E8/12<($G8-SUM($Q8:CK8)),$G8*$E8/12,($G8-SUM($Q8:CK8)))) -> 0 | CM8: =IF($D8>=CM$3,0,IF($G8*$E8/12<($G8-SUM($Q8:CL8)),$G8*$E8/12,($G8-SUM($Q8:CL8)))) -> 0 | CN8: =IF($D8>=CN$3,0,IF($G8*$E8/12<($G8-SUM($Q8:CM8)),$G8*$E8/12,($G8-SUM($Q8:CM8)))) -> 0 | CO8: =IF($D8>=CO$3,0,IF($G8*$E8/12<($G8-SUM($Q8:CN8)),$G8*$E8/12,($G8-SUM($Q8:CN8)))) -> 0 | CP8: =IF($D8>=CP$3,0,IF($G8*$E8/12<($G8-SUM($Q8:CO8)),$G8*$E8/12,($G8-SUM($Q8:CO8)))) -> 0 | CQ8: =IF($D8>=CQ$3,0,IF($G8*$E8/12<($G8-SUM($Q8:CP8)),$G8*$E8/12,($G8-SUM($Q8:CP8)))) -> 0 | CR8: =IF($D8>=CR$3,0,IF($G8*$E8/12<($G8-SUM($Q8:CQ8)),$G8*$E8/12,($G8-SUM($Q8:CQ8)))) -> 0 | CS8: =IF($D8>=CS$3,0,IF($G8*$E8/12<($G8-SUM($Q8:CR8)),$G8*$E8/12,($G8-SUM($Q8:CR8)))) -> 0 | CT8: =IF($D8>=CT$3,0,IF($G8*$E8/12<($G8-SUM($Q8:CS8)),$G8*$E8/12,($G8-SUM($Q8:CS8)))) -> 0 | CU8: =IF($D8>=CU$3,0,IF($G8*$E8/12<($G8-SUM($Q8:CT8)),$G8*$E8/12,($G8-SUM($Q8:CT8)))) -> 0 | CV8: =IF($D8>=CV$3,0,IF($G8*$E8/12<($G8-SUM($Q8:CU8)),$G8*$E8/12,($G8-SUM($Q8:CU8)))) -> 0
A9: =IF(D9<EOMONTH($D$2,-12),"Fuera de plazo",IF(D9>BALANCE!$J$3,"Fuera de plazo","")) ->  | B9: Instalaciones | C9: 0 | D9: 2019-02-04 | G9: =IF(YEAR(D9)<=YEAR($D$2),C9,C9*(1+CONTROL!$H$4)^(YEAR(D9)-YEAR($D$2)))*RIESGO!$C$4 -> 0 | H9: 0 | I9: 0 | J9: 0 | K9: 0 | L9: 0 | M9: 0 | N9: 0 | O9: 0 | Q9: 0 | R9: =IF($D9>=R$3,0,IF($G9*$E9/12<($G9-SUM($Q9:Q9)),$G9*$E9/12,($G9-SUM($Q9:Q9)))) -> 0 | S9: =IF($D9>=S$3,0,IF($G9*$E9/12<($G9-SUM($Q9:R9)),$G9*$E9/12,($G9-SUM($Q9:R9)))) -> 0 | T9: =IF($D9>=T$3,0,IF($G9*$E9/12<($G9-SUM($Q9:S9)),$G9*$E9/12,($G9-SUM($Q9:S9)))) -> 0 | U9: =IF($D9>=U$3,0,IF($G9*$E9/12<($G9-SUM($Q9:T9)),$G9*$E9/12,($G9-SUM($Q9:T9)))) -> 0 | V9: =IF($D9>=V$3,0,IF($G9*$E9/12<($G9-SUM($Q9:U9)),$G9*$E9/12,($G9-SUM($Q9:U9)))) -> 0 | W9: =IF($D9>=W$3,0,IF($G9*$E9/12<($G9-SUM($Q9:V9)),$G9*$E9/12,($G9-SUM($Q9:V9)))) -> 0 | X9: =IF($D9>=X$3,0,IF($G9*$E9/12<($G9-SUM($Q9:W9)),$G9*$E9/12,($G9-SUM($Q9:W9)))) -> 0 | Y9: =IF($D9>=Y$3,0,IF($G9*$E9/12<($G9-SUM($Q9:X9)),$G9*$E9/12,($G9-SUM($Q9:X9)))) -> 0 | Z9: =IF($D9>=Z$3,0,IF($G9*$E9/12<($G9-SUM($Q9:Y9)),$G9*$E9/12,($G9-SUM($Q9:Y9)))) -> 0 | AA9: =IF($D9>=AA$3,0,IF($G9*$E9/12<($G9-SUM($Q9:Z9)),$G9*$E9/12,($G9-SUM($Q9:Z9)))) -> 0 | AB9: =IF($D9>=AB$3,0,IF($G9*$E9/12<($G9-SUM($Q9:AA9)),$G9*$E9/12,($G9-SUM($Q9:AA9)))) -> 0 | AC9: =IF($D9>=AC$3,0,IF($G9*$E9/12<($G9-SUM($Q9:AB9)),$G9*$E9/12,($G9-SUM($Q9:AB9)))) -> 0 | AD9: =IF($D9>=AD$3,0,IF($G9*$E9/12<($G9-SUM($Q9:AC9)),$G9*$E9/12,($G9-SUM($Q9:AC9)))) -> 0 | AE9: =IF($D9>=AE$3,0,IF($G9*$E9/12<($G9-SUM($Q9:AD9)),$G9*$E9/12,($G9-SUM($Q9:AD9)))) -> 0 | AF9: =IF($D9>=AF$3,0,IF($G9*$E9/12<($G9-SUM($Q9:AE9)),$G9*$E9/12,($G9-SUM($Q9:AE9)))) -> 0 | AG9: =IF($D9>=AG$3,0,IF($G9*$E9/12<($G9-SUM($Q9:AF9)),$G9*$E9/12,($G9-SUM($Q9:AF9)))) -> 0 | AH9: =IF($D9>=AH$3,0,IF($G9*$E9/12<($G9-SUM($Q9:AG9)),$G9*$E9/12,($G9-SUM($Q9:AG9)))) -> 0 | AI9: =IF($D9>=AI$3,0,IF($G9*$E9/12<($G9-SUM($Q9:AH9)),$G9*$E9/12,($G9-SUM($Q9:AH9)))) -> 0 | AJ9: =IF($D9>=AJ$3,0,IF($G9*$E9/12<($G9-SUM($Q9:AI9)),$G9*$E9/12,($G9-SUM($Q9:AI9)))) -> 0 | AK9: =IF($D9>=AK$3,0,IF($G9*$E9/12<($G9-SUM($Q9:AJ9)),$G9*$E9/12,($G9-SUM($Q9:AJ9)))) -> 0 | AL9: =IF($D9>=AL$3,0,IF($G9*$E9/12<($G9-SUM($Q9:AK9)),$G9*$E9/12,($G9-SUM($Q9:AK9)))) -> 0 | AM9: =IF($D9>=AM$3,0,IF($G9*$E9/12<($G9-SUM($Q9:AL9)),$G9*$E9/12,($G9-SUM($Q9:AL9)))) -> 0 | AN9: =IF($D9>=AN$3,0,IF($G9*$E9/12<($G9-SUM($Q9:AM9)),$G9*$E9/12,($G9-SUM($Q9:AM9)))) -> 0 | AO9: =IF($D9>=AO$3,0,IF($G9*$E9/12<($G9-SUM($Q9:AN9)),$G9*$E9/12,($G9-SUM($Q9:AN9)))) -> 0 | AP9: =IF($D9>=AP$3,0,IF($G9*$E9/12<($G9-SUM($Q9:AO9)),$G9*$E9/12,($G9-SUM($Q9:AO9)))) -> 0 | AQ9: =IF($D9>=AQ$3,0,IF($G9*$E9/12<($G9-SUM($Q9:AP9)),$G9*$E9/12,($G9-SUM($Q9:AP9)))) -> 0 | AR9: =IF($D9>=AR$3,0,IF($G9*$E9/12<($G9-SUM($Q9:AQ9)),$G9*$E9/12,($G9-SUM($Q9:AQ9)))) -> 0 | AS9: =IF($D9>=AS$3,0,IF($G9*$E9/12<($G9-SUM($Q9:AR9)),$G9*$E9/12,($G9-SUM($Q9:AR9)))) -> 0 | AT9: =IF($D9>=AT$3,0,IF($G9*$E9/12<($G9-SUM($Q9:AS9)),$G9*$E9/12,($G9-SUM($Q9:AS9)))) -> 0 | AU9: =IF($D9>=AU$3,0,IF($G9*$E9/12<($G9-SUM($Q9:AT9)),$G9*$E9/12,($G9-SUM($Q9:AT9)))) -> 0 | AV9: =IF($D9>=AV$3,0,IF($G9*$E9/12<($G9-SUM($Q9:AU9)),$G9*$E9/12,($G9-SUM($Q9:AU9)))) -> 0 | AW9: =IF($D9>=AW$3,0,IF($G9*$E9/12<($G9-SUM($Q9:AV9)),$G9*$E9/12,($G9-SUM($Q9:AV9)))) -> 0 | AX9: =IF($D9>=AX$3,0,IF($G9*$E9/12<($G9-SUM($Q9:AW9)),$G9*$E9/12,($G9-SUM($Q9:AW9)))) -> 0 | AY9: =IF($D9>=AY$3,0,IF($G9*$E9/12<($G9-SUM($Q9:AX9)),$G9*$E9/12,($G9-SUM($Q9:AX9)))) -> 0 | AZ9: =IF($D9>=AZ$3,0,IF($G9*$E9/12<($G9-SUM($Q9:AY9)),$G9*$E9/12,($G9-SUM($Q9:AY9)))) -> 0 | BA9: =IF($D9>=BA$3,0,IF($G9*$E9/12<($G9-SUM($Q9:AZ9)),$G9*$E9/12,($G9-SUM($Q9:AZ9)))) -> 0 | BB9: =IF($D9>=BB$3,0,IF($G9*$E9/12<($G9-SUM($Q9:BA9)),$G9*$E9/12,($G9-SUM($Q9:BA9)))) -> 0 | BC9: =IF($D9>=BC$3,0,IF($G9*$E9/12<($G9-SUM($Q9:BB9)),$G9*$E9/12,($G9-SUM($Q9:BB9)))) -> 0 | BD9: =IF($D9>=BD$3,0,IF($G9*$E9/12<($G9-SUM($Q9:BC9)),$G9*$E9/12,($G9-SUM($Q9:BC9)))) -> 0 | BE9: =IF($D9>=BE$3,0,IF($G9*$E9/12<($G9-SUM($Q9:BD9)),$G9*$E9/12,($G9-SUM($Q9:BD9)))) -> 0 | BF9: =IF($D9>=BF$3,0,IF($G9*$E9/12<($G9-SUM($Q9:BE9)),$G9*$E9/12,($G9-SUM($Q9:BE9)))) -> 0 | BG9: =IF($D9>=BG$3,0,IF($G9*$E9/12<($G9-SUM($Q9:BF9)),$G9*$E9/12,($G9-SUM($Q9:BF9)))) -> 0 | BH9: =IF($D9>=BH$3,0,IF($G9*$E9/12<($G9-SUM($Q9:BG9)),$G9*$E9/12,($G9-SUM($Q9:BG9)))) -> 0 | BI9: =IF($D9>=BI$3,0,IF($G9*$E9/12<($G9-SUM($Q9:BH9)),$G9*$E9/12,($G9-SUM($Q9:BH9)))) -> 0 | BJ9: =IF($D9>=BJ$3,0,IF($G9*$E9/12<($G9-SUM($Q9:BI9)),$G9*$E9/12,($G9-SUM($Q9:BI9)))) -> 0 | BK9: =IF($D9>=BK$3,0,IF($G9*$E9/12<($G9-SUM($Q9:BJ9)),$G9*$E9/12,($G9-SUM($Q9:BJ9)))) -> 0 | BL9: =IF($D9>=BL$3,0,IF($G9*$E9/12<($G9-SUM($Q9:BK9)),$G9*$E9/12,($G9-SUM($Q9:BK9)))) -> 0 | BM9: =IF($D9>=BM$3,0,IF($G9*$E9/12<($G9-SUM($Q9:BL9)),$G9*$E9/12,($G9-SUM($Q9:BL9)))) -> 0 | BN9: =IF($D9>=BN$3,0,IF($G9*$E9/12<($G9-SUM($Q9:BM9)),$G9*$E9/12,($G9-SUM($Q9:BM9)))) -> 0 | BO9: =IF($D9>=BO$3,0,IF($G9*$E9/12<($G9-SUM($Q9:BN9)),$G9*$E9/12,($G9-SUM($Q9:BN9)))) -> 0 | BP9: =IF($D9>=BP$3,0,IF($G9*$E9/12<($G9-SUM($Q9:BO9)),$G9*$E9/12,($G9-SUM($Q9:BO9)))) -> 0 | BQ9: =IF($D9>=BQ$3,0,IF($G9*$E9/12<($G9-SUM($Q9:BP9)),$G9*$E9/12,($G9-SUM($Q9:BP9)))) -> 0 | BR9: =IF($D9>=BR$3,0,IF($G9*$E9/12<($G9-SUM($Q9:BQ9)),$G9*$E9/12,($G9-SUM($Q9:BQ9)))) -> 0 | BS9: =IF($D9>=BS$3,0,IF($G9*$E9/12<($G9-SUM($Q9:BR9)),$G9*$E9/12,($G9-SUM($Q9:BR9)))) -> 0 | BT9: =IF($D9>=BT$3,0,IF($G9*$E9/12<($G9-SUM($Q9:BS9)),$G9*$E9/12,($G9-SUM($Q9:BS9)))) -> 0 | BU9: =IF($D9>=BU$3,0,IF($G9*$E9/12<($G9-SUM($Q9:BT9)),$G9*$E9/12,($G9-SUM($Q9:BT9)))) -> 0 | BV9: =IF($D9>=BV$3,0,IF($G9*$E9/12<($G9-SUM($Q9:BU9)),$G9*$E9/12,($G9-SUM($Q9:BU9)))) -> 0 | BW9: =IF($D9>=BW$3,0,IF($G9*$E9/12<($G9-SUM($Q9:BV9)),$G9*$E9/12,($G9-SUM($Q9:BV9)))) -> 0 | BX9: =IF($D9>=BX$3,0,IF($G9*$E9/12<($G9-SUM($Q9:BW9)),$G9*$E9/12,($G9-SUM($Q9:BW9)))) -> 0 | BY9: =IF($D9>=BY$3,0,IF($G9*$E9/12<($G9-SUM($Q9:BX9)),$G9*$E9/12,($G9-SUM($Q9:BX9)))) -> 0 | BZ9: =IF($D9>=BZ$3,0,IF($G9*$E9/12<($G9-SUM($Q9:BY9)),$G9*$E9/12,($G9-SUM($Q9:BY9)))) -> 0 | CA9: =IF($D9>=CA$3,0,IF($G9*$E9/12<($G9-SUM($Q9:BZ9)),$G9*$E9/12,($G9-SUM($Q9:BZ9)))) -> 0 | CB9: =IF($D9>=CB$3,0,IF($G9*$E9/12<($G9-SUM($Q9:CA9)),$G9*$E9/12,($G9-SUM($Q9:CA9)))) -> 0 | CC9: =IF($D9>=CC$3,0,IF($G9*$E9/12<($G9-SUM($Q9:CB9)),$G9*$E9/12,($G9-SUM($Q9:CB9)))) -> 0 | CD9: =IF($D9>=CD$3,0,IF($G9*$E9/12<($G9-SUM($Q9:CC9)),$G9*$E9/12,($G9-SUM($Q9:CC9)))) -> 0 | CE9: =IF($D9>=CE$3,0,IF($G9*$E9/12<($G9-SUM($Q9:CD9)),$G9*$E9/12,($G9-SUM($Q9:CD9)))) -> 0 | CF9: =IF($D9>=CF$3,0,IF($G9*$E9/12<($G9-SUM($Q9:CE9)),$G9*$E9/12,($G9-SUM($Q9:CE9)))) -> 0 | CG9: =IF($D9>=CG$3,0,IF($G9*$E9/12<($G9-SUM($Q9:CF9)),$G9*$E9/12,($G9-SUM($Q9:CF9)))) -> 0 | CH9: =IF($D9>=CH$3,0,IF($G9*$E9/12<($G9-SUM($Q9:CG9)),$G9*$E9/12,($G9-SUM($Q9:CG9)))) -> 0 | CI9: =IF($D9>=CI$3,0,IF($G9*$E9/12<($G9-SUM($Q9:CH9)),$G9*$E9/12,($G9-SUM($Q9:CH9)))) -> 0 | CJ9: =IF($D9>=CJ$3,0,IF($G9*$E9/12<($G9-SUM($Q9:CI9)),$G9*$E9/12,($G9-SUM($Q9:CI9)))) -> 0 | CK9: =IF($D9>=CK$3,0,IF($G9*$E9/12<($G9-SUM($Q9:CJ9)),$G9*$E9/12,($G9-SUM($Q9:CJ9)))) -> 0 | CL9: =IF($D9>=CL$3,0,IF($G9*$E9/12<($G9-SUM($Q9:CK9)),$G9*$E9/12,($G9-SUM($Q9:CK9)))) -> 0 | CM9: =IF($D9>=CM$3,0,IF($G9*$E9/12<($G9-SUM($Q9:CL9)),$G9*$E9/12,($G9-SUM($Q9:CL9)))) -> 0 | CN9: =IF($D9>=CN$3,0,IF($G9*$E9/12<($G9-SUM($Q9:CM9)),$G9*$E9/12,($G9-SUM($Q9:CM9)))) -> 0 | CO9: =IF($D9>=CO$3,0,IF($G9*$E9/12<($G9-SUM($Q9:CN9)),$G9*$E9/12,($G9-SUM($Q9:CN9)))) -> 0 | CP9: =IF($D9>=CP$3,0,IF($G9*$E9/12<($G9-SUM($Q9:CO9)),$G9*$E9/12,($G9-SUM($Q9:CO9)))) -> 0 | CQ9: =IF($D9>=CQ$3,0,IF($G9*$E9/12<($G9-SUM($Q9:CP9)),$G9*$E9/12,($G9-SUM($Q9:CP9)))) -> 0 | CR9: =IF($D9>=CR$3,0,IF($G9*$E9/12<($G9-SUM($Q9:CQ9)),$G9*$E9/12,($G9-SUM($Q9:CQ9)))) -> 0 | CS9: =IF($D9>=CS$3,0,IF($G9*$E9/12<($G9-SUM($Q9:CR9)),$G9*$E9/12,($G9-SUM($Q9:CR9)))) -> 0 | CT9: =IF($D9>=CT$3,0,IF($G9*$E9/12<($G9-SUM($Q9:CS9)),$G9*$E9/12,($G9-SUM($Q9:CS9)))) -> 0 | CU9: =IF($D9>=CU$3,0,IF($G9*$E9/12<($G9-SUM($Q9:CT9)),$G9*$E9/12,($G9-SUM($Q9:CT9)))) -> 0 | CV9: =IF($D9>=CV$3,0,IF($G9*$E9/12<($G9-SUM($Q9:CU9)),$G9*$E9/12,($G9-SUM($Q9:CU9)))) -> 0
A10: =IF(D10<EOMONTH($D$2,-12),"Fuera de plazo",IF(D10>BALANCE!$J$3,"Fuera de plazo","")) ->  | B10: Equipamiento | C10: 0 | D10: 2019-02-05 | G10: =IF(YEAR(D10)<=YEAR($D$2),C10,C10*(1+CONTROL!$H$4)^(YEAR(D10)-YEAR($D$2)))*RIESGO!$C$4 -> 0 | H10: 0 | I10: 0 | J10: 0 | K10: 0 | L10: 0 | M10: 0 | N10: 0 | O10: 0 | Q10: 0 | R10: =IF($D10>=R$3,0,IF($G10*$E10/12<($G10-SUM($Q10:Q10)),$G10*$E10/12,($G10-SUM($Q10:Q10)))) -> 0 | S10: =IF($D10>=S$3,0,IF($G10*$E10/12<($G10-SUM($Q10:R10)),$G10*$E10/12,($G10-SUM($Q10:R10)))) -> 0 | T10: =IF($D10>=T$3,0,IF($G10*$E10/12<($G10-SUM($Q10:S10)),$G10*$E10/12,($G10-SUM($Q10:S10)))) -> 0 | U10: =IF($D10>=U$3,0,IF($G10*$E10/12<($G10-SUM($Q10:T10)),$G10*$E10/12,($G10-SUM($Q10:T10)))) -> 0 | V10: =IF($D10>=V$3,0,IF($G10*$E10/12<($G10-SUM($Q10:U10)),$G10*$E10/12,($G10-SUM($Q10:U10)))) -> 0 | W10: =IF($D10>=W$3,0,IF($G10*$E10/12<($G10-SUM($Q10:V10)),$G10*$E10/12,($G10-SUM($Q10:V10)))) -> 0 | X10: =IF($D10>=X$3,0,IF($G10*$E10/12<($G10-SUM($Q10:W10)),$G10*$E10/12,($G10-SUM($Q10:W10)))) -> 0 | Y10: =IF($D10>=Y$3,0,IF($G10*$E10/12<($G10-SUM($Q10:X10)),$G10*$E10/12,($G10-SUM($Q10:X10)))) -> 0 | Z10: =IF($D10>=Z$3,0,IF($G10*$E10/12<($G10-SUM($Q10:Y10)),$G10*$E10/12,($G10-SUM($Q10:Y10)))) -> 0 | AA10: =IF($D10>=AA$3,0,IF($G10*$E10/12<($G10-SUM($Q10:Z10)),$G10*$E10/12,($G10-SUM($Q10:Z10)))) -> 0 | AB10: =IF($D10>=AB$3,0,IF($G10*$E10/12<($G10-SUM($Q10:AA10)),$G10*$E10/12,($G10-SUM($Q10:AA10)))) -> 0 | AC10: =IF($D10>=AC$3,0,IF($G10*$E10/12<($G10-SUM($Q10:AB10)),$G10*$E10/12,($G10-SUM($Q10:AB10)))) -> 0 | AD10: =IF($D10>=AD$3,0,IF($G10*$E10/12<($G10-SUM($Q10:AC10)),$G10*$E10/12,($G10-SUM($Q10:AC10)))) -> 0 | AE10: =IF($D10>=AE$3,0,IF($G10*$E10/12<($G10-SUM($Q10:AD10)),$G10*$E10/12,($G10-SUM($Q10:AD10)))) -> 0 | AF10: =IF($D10>=AF$3,0,IF($G10*$E10/12<($G10-SUM($Q10:AE10)),$G10*$E10/12,($G10-SUM($Q10:AE10)))) -> 0 | AG10: =IF($D10>=AG$3,0,IF($G10*$E10/12<($G10-SUM($Q10:AF10)),$G10*$E10/12,($G10-SUM($Q10:AF10)))) -> 0 | AH10: =IF($D10>=AH$3,0,IF($G10*$E10/12<($G10-SUM($Q10:AG10)),$G10*$E10/12,($G10-SUM($Q10:AG10)))) -> 0 | AI10: =IF($D10>=AI$3,0,IF($G10*$E10/12<($G10-SUM($Q10:AH10)),$G10*$E10/12,($G10-SUM($Q10:AH10)))) -> 0 | AJ10: =IF($D10>=AJ$3,0,IF($G10*$E10/12<($G10-SUM($Q10:AI10)),$G10*$E10/12,($G10-SUM($Q10:AI10)))) -> 0 | AK10: =IF($D10>=AK$3,0,IF($G10*$E10/12<($G10-SUM($Q10:AJ10)),$G10*$E10/12,($G10-SUM($Q10:AJ10)))) -> 0 | AL10: =IF($D10>=AL$3,0,IF($G10*$E10/12<($G10-SUM($Q10:AK10)),$G10*$E10/12,($G10-SUM($Q10:AK10)))) -> 0 | AM10: =IF($D10>=AM$3,0,IF($G10*$E10/12<($G10-SUM($Q10:AL10)),$G10*$E10/12,($G10-SUM($Q10:AL10)))) -> 0 | AN10: =IF($D10>=AN$3,0,IF($G10*$E10/12<($G10-SUM($Q10:AM10)),$G10*$E10/12,($G10-SUM($Q10:AM10)))) -> 0 | AO10: =IF($D10>=AO$3,0,IF($G10*$E10/12<($G10-SUM($Q10:AN10)),$G10*$E10/12,($G10-SUM($Q10:AN10)))) -> 0 | AP10: =IF($D10>=AP$3,0,IF($G10*$E10/12<($G10-SUM($Q10:AO10)),$G10*$E10/12,($G10-SUM($Q10:AO10)))) -> 0 | AQ10: =IF($D10>=AQ$3,0,IF($G10*$E10/12<($G10-SUM($Q10:AP10)),$G10*$E10/12,($G10-SUM($Q10:AP10)))) -> 0 | AR10: =IF($D10>=AR$3,0,IF($G10*$E10/12<($G10-SUM($Q10:AQ10)),$G10*$E10/12,($G10-SUM($Q10:AQ10)))) -> 0 | AS10: =IF($D10>=AS$3,0,IF($G10*$E10/12<($G10-SUM($Q10:AR10)),$G10*$E10/12,($G10-SUM($Q10:AR10)))) -> 0 | AT10: =IF($D10>=AT$3,0,IF($G10*$E10/12<($G10-SUM($Q10:AS10)),$G10*$E10/12,($G10-SUM($Q10:AS10)))) -> 0 | AU10: =IF($D10>=AU$3,0,IF($G10*$E10/12<($G10-SUM($Q10:AT10)),$G10*$E10/12,($G10-SUM($Q10:AT10)))) -> 0 | AV10: =IF($D10>=AV$3,0,IF($G10*$E10/12<($G10-SUM($Q10:AU10)),$G10*$E10/12,($G10-SUM($Q10:AU10)))) -> 0 | AW10: =IF($D10>=AW$3,0,IF($G10*$E10/12<($G10-SUM($Q10:AV10)),$G10*$E10/12,($G10-SUM($Q10:AV10)))) -> 0 | AX10: =IF($D10>=AX$3,0,IF($G10*$E10/12<($G10-SUM($Q10:AW10)),$G10*$E10/12,($G10-SUM($Q10:AW10)))) -> 0 | AY10: =IF($D10>=AY$3,0,IF($G10*$E10/12<($G10-SUM($Q10:AX10)),$G10*$E10/12,($G10-SUM($Q10:AX10)))) -> 0 | AZ10: =IF($D10>=AZ$3,0,IF($G10*$E10/12<($G10-SUM($Q10:AY10)),$G10*$E10/12,($G10-SUM($Q10:AY10)))) -> 0 | BA10: =IF($D10>=BA$3,0,IF($G10*$E10/12<($G10-SUM($Q10:AZ10)),$G10*$E10/12,($G10-SUM($Q10:AZ10)))) -> 0 | BB10: =IF($D10>=BB$3,0,IF($G10*$E10/12<($G10-SUM($Q10:BA10)),$G10*$E10/12,($G10-SUM($Q10:BA10)))) -> 0 | BC10: =IF($D10>=BC$3,0,IF($G10*$E10/12<($G10-SUM($Q10:BB10)),$G10*$E10/12,($G10-SUM($Q10:BB10)))) -> 0 | BD10: =IF($D10>=BD$3,0,IF($G10*$E10/12<($G10-SUM($Q10:BC10)),$G10*$E10/12,($G10-SUM($Q10:BC10)))) -> 0 | BE10: =IF($D10>=BE$3,0,IF($G10*$E10/12<($G10-SUM($Q10:BD10)),$G10*$E10/12,($G10-SUM($Q10:BD10)))) -> 0 | BF10: =IF($D10>=BF$3,0,IF($G10*$E10/12<($G10-SUM($Q10:BE10)),$G10*$E10/12,($G10-SUM($Q10:BE10)))) -> 0 | BG10: =IF($D10>=BG$3,0,IF($G10*$E10/12<($G10-SUM($Q10:BF10)),$G10*$E10/12,($G10-SUM($Q10:BF10)))) -> 0 | BH10: =IF($D10>=BH$3,0,IF($G10*$E10/12<($G10-SUM($Q10:BG10)),$G10*$E10/12,($G10-SUM($Q10:BG10)))) -> 0 | BI10: =IF($D10>=BI$3,0,IF($G10*$E10/12<($G10-SUM($Q10:BH10)),$G10*$E10/12,($G10-SUM($Q10:BH10)))) -> 0 | BJ10: =IF($D10>=BJ$3,0,IF($G10*$E10/12<($G10-SUM($Q10:BI10)),$G10*$E10/12,($G10-SUM($Q10:BI10)))) -> 0 | BK10: =IF($D10>=BK$3,0,IF($G10*$E10/12<($G10-SUM($Q10:BJ10)),$G10*$E10/12,($G10-SUM($Q10:BJ10)))) -> 0 | BL10: =IF($D10>=BL$3,0,IF($G10*$E10/12<($G10-SUM($Q10:BK10)),$G10*$E10/12,($G10-SUM($Q10:BK10)))) -> 0 | BM10: =IF($D10>=BM$3,0,IF($G10*$E10/12<($G10-SUM($Q10:BL10)),$G10*$E10/12,($G10-SUM($Q10:BL10)))) -> 0 | BN10: =IF($D10>=BN$3,0,IF($G10*$E10/12<($G10-SUM($Q10:BM10)),$G10*$E10/12,($G10-SUM($Q10:BM10)))) -> 0 | BO10: =IF($D10>=BO$3,0,IF($G10*$E10/12<($G10-SUM($Q10:BN10)),$G10*$E10/12,($G10-SUM($Q10:BN10)))) -> 0 | BP10: =IF($D10>=BP$3,0,IF($G10*$E10/12<($G10-SUM($Q10:BO10)),$G10*$E10/12,($G10-SUM($Q10:BO10)))) -> 0 | BQ10: =IF($D10>=BQ$3,0,IF($G10*$E10/12<($G10-SUM($Q10:BP10)),$G10*$E10/12,($G10-SUM($Q10:BP10)))) -> 0 | BR10: =IF($D10>=BR$3,0,IF($G10*$E10/12<($G10-SUM($Q10:BQ10)),$G10*$E10/12,($G10-SUM($Q10:BQ10)))) -> 0 | BS10: =IF($D10>=BS$3,0,IF($G10*$E10/12<($G10-SUM($Q10:BR10)),$G10*$E10/12,($G10-SUM($Q10:BR10)))) -> 0 | BT10: =IF($D10>=BT$3,0,IF($G10*$E10/12<($G10-SUM($Q10:BS10)),$G10*$E10/12,($G10-SUM($Q10:BS10)))) -> 0 | BU10: =IF($D10>=BU$3,0,IF($G10*$E10/12<($G10-SUM($Q10:BT10)),$G10*$E10/12,($G10-SUM($Q10:BT10)))) -> 0 | BV10: =IF($D10>=BV$3,0,IF($G10*$E10/12<($G10-SUM($Q10:BU10)),$G10*$E10/12,($G10-SUM($Q10:BU10)))) -> 0 | BW10: =IF($D10>=BW$3,0,IF($G10*$E10/12<($G10-SUM($Q10:BV10)),$G10*$E10/12,($G10-SUM($Q10:BV10)))) -> 0 | BX10: =IF($D10>=BX$3,0,IF($G10*$E10/12<($G10-SUM($Q10:BW10)),$G10*$E10/12,($G10-SUM($Q10:BW10)))) -> 0 | BY10: =IF($D10>=BY$3,0,IF($G10*$E10/12<($G10-SUM($Q10:BX10)),$G10*$E10/12,($G10-SUM($Q10:BX10)))) -> 0 | BZ10: =IF($D10>=BZ$3,0,IF($G10*$E10/12<($G10-SUM($Q10:BY10)),$G10*$E10/12,($G10-SUM($Q10:BY10)))) -> 0 | CA10: =IF($D10>=CA$3,0,IF($G10*$E10/12<($G10-SUM($Q10:BZ10)),$G10*$E10/12,($G10-SUM($Q10:BZ10)))) -> 0 | CB10: =IF($D10>=CB$3,0,IF($G10*$E10/12<($G10-SUM($Q10:CA10)),$G10*$E10/12,($G10-SUM($Q10:CA10)))) -> 0 | CC10: =IF($D10>=CC$3,0,IF($G10*$E10/12<($G10-SUM($Q10:CB10)),$G10*$E10/12,($G10-SUM($Q10:CB10)))) -> 0 | CD10: =IF($D10>=CD$3,0,IF($G10*$E10/12<($G10-SUM($Q10:CC10)),$G10*$E10/12,($G10-SUM($Q10:CC10)))) -> 0 | CE10: =IF($D10>=CE$3,0,IF($G10*$E10/12<($G10-SUM($Q10:CD10)),$G10*$E10/12,($G10-SUM($Q10:CD10)))) -> 0 | CF10: =IF($D10>=CF$3,0,IF($G10*$E10/12<($G10-SUM($Q10:CE10)),$G10*$E10/12,($G10-SUM($Q10:CE10)))) -> 0 | CG10: =IF($D10>=CG$3,0,IF($G10*$E10/12<($G10-SUM($Q10:CF10)),$G10*$E10/12,($G10-SUM($Q10:CF10)))) -> 0 | CH10: =IF($D10>=CH$3,0,IF($G10*$E10/12<($G10-SUM($Q10:CG10)),$G10*$E10/12,($G10-SUM($Q10:CG10)))) -> 0 | CI10: =IF($D10>=CI$3,0,IF($G10*$E10/12<($G10-SUM($Q10:CH10)),$G10*$E10/12,($G10-SUM($Q10:CH10)))) -> 0 | CJ10: =IF($D10>=CJ$3,0,IF($G10*$E10/12<($G10-SUM($Q10:CI10)),$G10*$E10/12,($G10-SUM($Q10:CI10)))) -> 0 | CK10: =IF($D10>=CK$3,0,IF($G10*$E10/12<($G10-SUM($Q10:CJ10)),$G10*$E10/12,($G10-SUM($Q10:CJ10)))) -> 0 | CL10: =IF($D10>=CL$3,0,IF($G10*$E10/12<($G10-SUM($Q10:CK10)),$G10*$E10/12,($G10-SUM($Q10:CK10)))) -> 0 | CM10: =IF($D10>=CM$3,0,IF($G10*$E10/12<($G10-SUM($Q10:CL10)),$G10*$E10/12,($G10-SUM($Q10:CL10)))) -> 0 | CN10: =IF($D10>=CN$3,0,IF($G10*$E10/12<($G10-SUM($Q10:CM10)),$G10*$E10/12,($G10-SUM($Q10:CM10)))) -> 0 | CO10: =IF($D10>=CO$3,0,IF($G10*$E10/12<($G10-SUM($Q10:CN10)),$G10*$E10/12,($G10-SUM($Q10:CN10)))) -> 0 | CP10: =IF($D10>=CP$3,0,IF($G10*$E10/12<($G10-SUM($Q10:CO10)),$G10*$E10/12,($G10-SUM($Q10:CO10)))) -> 0 | CQ10: =IF($D10>=CQ$3,0,IF($G10*$E10/12<($G10-SUM($Q10:CP10)),$G10*$E10/12,($G10-SUM($Q10:CP10)))) -> 0 | CR10: =IF($D10>=CR$3,0,IF($G10*$E10/12<($G10-SUM($Q10:CQ10)),$G10*$E10/12,($G10-SUM($Q10:CQ10)))) -> 0 | CS10: =IF($D10>=CS$3,0,IF($G10*$E10/12<($G10-SUM($Q10:CR10)),$G10*$E10/12,($G10-SUM($Q10:CR10)))) -> 0 | CT10: =IF($D10>=CT$3,0,IF($G10*$E10/12<($G10-SUM($Q10:CS10)),$G10*$E10/12,($G10-SUM($Q10:CS10)))) -> 0 | CU10: =IF($D10>=CU$3,0,IF($G10*$E10/12<($G10-SUM($Q10:CT10)),$G10*$E10/12,($G10-SUM($Q10:CT10)))) -> 0 | CV10: =IF($D10>=CV$3,0,IF($G10*$E10/12<($G10-SUM($Q10:CU10)),$G10*$E10/12,($G10-SUM($Q10:CU10)))) -> 0
A11: =IF(D11<EOMONTH($D$2,-12),"Fuera de plazo",IF(D11>BALANCE!$J$3,"Fuera de plazo","")) ->  | B11: Mobiliario | C11: 2000 | D11: 2020-01-31 | E11: 0.1 | F11: 0.21 | G11: =IF(YEAR(D11)<=YEAR($D$2),C11,C11*(1+CONTROL!$H$4)^(YEAR(D11)-YEAR($D$2)))*RIESGO!$C$4 -> 2000 | H11: 420 | I11: 183.3333333 | J11: 200 | K11: 200 | L11: 200 | M11: 200 | N11: 200 | O11: 200 | Q11: 0 | R11: =IF($D11>=R$3,0,IF($G11*$E11/12<($G11-SUM($Q11:Q11)),$G11*$E11/12,($G11-SUM($Q11:Q11)))) -> 16.66666667 | S11: =IF($D11>=S$3,0,IF($G11*$E11/12<($G11-SUM($Q11:R11)),$G11*$E11/12,($G11-SUM($Q11:R11)))) -> 16.66666667 | T11: =IF($D11>=T$3,0,IF($G11*$E11/12<($G11-SUM($Q11:S11)),$G11*$E11/12,($G11-SUM($Q11:S11)))) -> 16.66666667 | U11: =IF($D11>=U$3,0,IF($G11*$E11/12<($G11-SUM($Q11:T11)),$G11*$E11/12,($G11-SUM($Q11:T11)))) -> 16.66666667 | V11: =IF($D11>=V$3,0,IF($G11*$E11/12<($G11-SUM($Q11:U11)),$G11*$E11/12,($G11-SUM($Q11:U11)))) -> 16.66666667 | W11: =IF($D11>=W$3,0,IF($G11*$E11/12<($G11-SUM($Q11:V11)),$G11*$E11/12,($G11-SUM($Q11:V11)))) -> 16.66666667 | X11: =IF($D11>=X$3,0,IF($G11*$E11/12<($G11-SUM($Q11:W11)),$G11*$E11/12,($G11-SUM($Q11:W11)))) -> 16.66666667 | Y11: =IF($D11>=Y$3,0,IF($G11*$E11/12<($G11-SUM($Q11:X11)),$G11*$E11/12,($G11-SUM($Q11:X11)))) -> 16.66666667 | Z11: =IF($D11>=Z$3,0,IF($G11*$E11/12<($G11-SUM($Q11:Y11)),$G11*$E11/12,($G11-SUM($Q11:Y11)))) -> 16.66666667 | AA11: =IF($D11>=AA$3,0,IF($G11*$E11/12<($G11-SUM($Q11:Z11)),$G11*$E11/12,($G11-SUM($Q11:Z11)))) -> 16.66666667 | AB11: =IF($D11>=AB$3,0,IF($G11*$E11/12<($G11-SUM($Q11:AA11)),$G11*$E11/12,($G11-SUM($Q11:AA11)))) -> 16.66666667 | AC11: =IF($D11>=AC$3,0,IF($G11*$E11/12<($G11-SUM($Q11:AB11)),$G11*$E11/12,($G11-SUM($Q11:AB11)))) -> 16.66666667 | AD11: =IF($D11>=AD$3,0,IF($G11*$E11/12<($G11-SUM($Q11:AC11)),$G11*$E11/12,($G11-SUM($Q11:AC11)))) -> 16.66666667 | AE11: =IF($D11>=AE$3,0,IF($G11*$E11/12<($G11-SUM($Q11:AD11)),$G11*$E11/12,($G11-SUM($Q11:AD11)))) -> 16.66666667 | AF11: =IF($D11>=AF$3,0,IF($G11*$E11/12<($G11-SUM($Q11:AE11)),$G11*$E11/12,($G11-SUM($Q11:AE11)))) -> 16.66666667 | AG11: =IF($D11>=AG$3,0,IF($G11*$E11/12<($G11-SUM($Q11:AF11)),$G11*$E11/12,($G11-SUM($Q11:AF11)))) -> 16.66666667 | AH11: =IF($D11>=AH$3,0,IF($G11*$E11/12<($G11-SUM($Q11:AG11)),$G11*$E11/12,($G11-SUM($Q11:AG11)))) -> 16.66666667 | AI11: =IF($D11>=AI$3,0,IF($G11*$E11/12<($G11-SUM($Q11:AH11)),$G11*$E11/12,($G11-SUM($Q11:AH11)))) -> 16.66666667 | AJ11: =IF($D11>=AJ$3,0,IF($G11*$E11/12<($G11-SUM($Q11:AI11)),$G11*$E11/12,($G11-SUM($Q11:AI11)))) -> 16.66666667 | AK11: =IF($D11>=AK$3,0,IF($G11*$E11/12<($G11-SUM($Q11:AJ11)),$G11*$E11/12,($G11-SUM($Q11:AJ11)))) -> 16.66666667 | AL11: =IF($D11>=AL$3,0,IF($G11*$E11/12<($G11-SUM($Q11:AK11)),$G11*$E11/12,($G11-SUM($Q11:AK11)))) -> 16.66666667 | AM11: =IF($D11>=AM$3,0,IF($G11*$E11/12<($G11-SUM($Q11:AL11)),$G11*$E11/12,($G11-SUM($Q11:AL11)))) -> 16.66666667 | AN11: =IF($D11>=AN$3,0,IF($G11*$E11/12<($G11-SUM($Q11:AM11)),$G11*$E11/12,($G11-SUM($Q11:AM11)))) -> 16.66666667 | AO11: =IF($D11>=AO$3,0,IF($G11*$E11/12<($G11-SUM($Q11:AN11)),$G11*$E11/12,($G11-SUM($Q11:AN11)))) -> 16.66666667 | AP11: =IF($D11>=AP$3,0,IF($G11*$E11/12<($G11-SUM($Q11:AO11)),$G11*$E11/12,($G11-SUM($Q11:AO11)))) -> 16.66666667 | AQ11: =IF($D11>=AQ$3,0,IF($G11*$E11/12<($G11-SUM($Q11:AP11)),$G11*$E11/12,($G11-SUM($Q11:AP11)))) -> 16.66666667 | AR11: =IF($D11>=AR$3,0,IF($G11*$E11/12<($G11-SUM($Q11:AQ11)),$G11*$E11/12,($G11-SUM($Q11:AQ11)))) -> 16.66666667 | AS11: =IF($D11>=AS$3,0,IF($G11*$E11/12<($G11-SUM($Q11:AR11)),$G11*$E11/12,($G11-SUM($Q11:AR11)))) -> 16.66666667 | AT11: =IF($D11>=AT$3,0,IF($G11*$E11/12<($G11-SUM($Q11:AS11)),$G11*$E11/12,($G11-SUM($Q11:AS11)))) -> 16.66666667 | AU11: =IF($D11>=AU$3,0,IF($G11*$E11/12<($G11-SUM($Q11:AT11)),$G11*$E11/12,($G11-SUM($Q11:AT11)))) -> 16.66666667 | AV11: =IF($D11>=AV$3,0,IF($G11*$E11/12<($G11-SUM($Q11:AU11)),$G11*$E11/12,($G11-SUM($Q11:AU11)))) -> 16.66666667 | AW11: =IF($D11>=AW$3,0,IF($G11*$E11/12<($G11-SUM($Q11:AV11)),$G11*$E11/12,($G11-SUM($Q11:AV11)))) -> 16.66666667 | AX11: =IF($D11>=AX$3,0,IF($G11*$E11/12<($G11-SUM($Q11:AW11)),$G11*$E11/12,($G11-SUM($Q11:AW11)))) -> 16.66666667 | AY11: =IF($D11>=AY$3,0,IF($G11*$E11/12<($G11-SUM($Q11:AX11)),$G11*$E11/12,($G11-SUM($Q11:AX11)))) -> 16.66666667 | AZ11: =IF($D11>=AZ$3,0,IF($G11*$E11/12<($G11-SUM($Q11:AY11)),$G11*$E11/12,($G11-SUM($Q11:AY11)))) -> 16.66666667 | BA11: =IF($D11>=BA$3,0,IF($G11*$E11/12<($G11-SUM($Q11:AZ11)),$G11*$E11/12,($G11-SUM($Q11:AZ11)))) -> 16.66666667 | BB11: =IF($D11>=BB$3,0,IF($G11*$E11/12<($G11-SUM($Q11:BA11)),$G11*$E11/12,($G11-SUM($Q11:BA11)))) -> 16.66666667 | BC11: =IF($D11>=BC$3,0,IF($G11*$E11/12<($G11-SUM($Q11:BB11)),$G11*$E11/12,($G11-SUM($Q11:BB11)))) -> 16.66666667 | BD11: =IF($D11>=BD$3,0,IF($G11*$E11/12<($G11-SUM($Q11:BC11)),$G11*$E11/12,($G11-SUM($Q11:BC11)))) -> 16.66666667 | BE11: =IF($D11>=BE$3,0,IF($G11*$E11/12<($G11-SUM($Q11:BD11)),$G11*$E11/12,($G11-SUM($Q11:BD11)))) -> 16.66666667 | BF11: =IF($D11>=BF$3,0,IF($G11*$E11/12<($G11-SUM($Q11:BE11)),$G11*$E11/12,($G11-SUM($Q11:BE11)))) -> 16.66666667 | BG11: =IF($D11>=BG$3,0,IF($G11*$E11/12<($G11-SUM($Q11:BF11)),$G11*$E11/12,($G11-SUM($Q11:BF11)))) -> 16.66666667 | BH11: =IF($D11>=BH$3,0,IF($G11*$E11/12<($G11-SUM($Q11:BG11)),$G11*$E11/12,($G11-SUM($Q11:BG11)))) -> 16.66666667 | BI11: =IF($D11>=BI$3,0,IF($G11*$E11/12<($G11-SUM($Q11:BH11)),$G11*$E11/12,($G11-SUM($Q11:BH11)))) -> 16.66666667 | BJ11: =IF($D11>=BJ$3,0,IF($G11*$E11/12<($G11-SUM($Q11:BI11)),$G11*$E11/12,($G11-SUM($Q11:BI11)))) -> 16.66666667 | BK11: =IF($D11>=BK$3,0,IF($G11*$E11/12<($G11-SUM($Q11:BJ11)),$G11*$E11/12,($G11-SUM($Q11:BJ11)))) -> 16.66666667 | BL11: =IF($D11>=BL$3,0,IF($G11*$E11/12<($G11-SUM($Q11:BK11)),$G11*$E11/12,($G11-SUM($Q11:BK11)))) -> 16.66666667 | BM11: =IF($D11>=BM$3,0,IF($G11*$E11/12<($G11-SUM($Q11:BL11)),$G11*$E11/12,($G11-SUM($Q11:BL11)))) -> 16.66666667 | BN11: =IF($D11>=BN$3,0,IF($G11*$E11/12<($G11-SUM($Q11:BM11)),$G11*$E11/12,($G11-SUM($Q11:BM11)))) -> 16.66666667 | BO11: =IF($D11>=BO$3,0,IF($G11*$E11/12<($G11-SUM($Q11:BN11)),$G11*$E11/12,($G11-SUM($Q11:BN11)))) -> 16.66666667 | BP11: =IF($D11>=BP$3,0,IF($G11*$E11/12<($G11-SUM($Q11:BO11)),$G11*$E11/12,($G11-SUM($Q11:BO11)))) -> 16.66666667 | BQ11: =IF($D11>=BQ$3,0,IF($G11*$E11/12<($G11-SUM($Q11:BP11)),$G11*$E11/12,($G11-SUM($Q11:BP11)))) -> 16.66666667 | BR11: =IF($D11>=BR$3,0,IF($G11*$E11/12<($G11-SUM($Q11:BQ11)),$G11*$E11/12,($G11-SUM($Q11:BQ11)))) -> 16.66666667 | BS11: =IF($D11>=BS$3,0,IF($G11*$E11/12<($G11-SUM($Q11:BR11)),$G11*$E11/12,($G11-SUM($Q11:BR11)))) -> 16.66666667 | BT11: =IF($D11>=BT$3,0,IF($G11*$E11/12<($G11-SUM($Q11:BS11)),$G11*$E11/12,($G11-SUM($Q11:BS11)))) -> 16.66666667 | BU11: =IF($D11>=BU$3,0,IF($G11*$E11/12<($G11-SUM($Q11:BT11)),$G11*$E11/12,($G11-SUM($Q11:BT11)))) -> 16.66666667 | BV11: =IF($D11>=BV$3,0,IF($G11*$E11/12<($G11-SUM($Q11:BU11)),$G11*$E11/12,($G11-SUM($Q11:BU11)))) -> 16.66666667 | BW11: =IF($D11>=BW$3,0,IF($G11*$E11/12<($G11-SUM($Q11:BV11)),$G11*$E11/12,($G11-SUM($Q11:BV11)))) -> 16.66666667 | BX11: =IF($D11>=BX$3,0,IF($G11*$E11/12<($G11-SUM($Q11:BW11)),$G11*$E11/12,($G11-SUM($Q11:BW11)))) -> 16.66666667 | BY11: =IF($D11>=BY$3,0,IF($G11*$E11/12<($G11-SUM($Q11:BX11)),$G11*$E11/12,($G11-SUM($Q11:BX11)))) -> 16.66666667 | BZ11: =IF($D11>=BZ$3,0,IF($G11*$E11/12<($G11-SUM($Q11:BY11)),$G11*$E11/12,($G11-SUM($Q11:BY11)))) -> 16.66666667 | CA11: =IF($D11>=CA$3,0,IF($G11*$E11/12<($G11-SUM($Q11:BZ11)),$G11*$E11/12,($G11-SUM($Q11:BZ11)))) -> 16.66666667 | CB11: =IF($D11>=CB$3,0,IF($G11*$E11/12<($G11-SUM($Q11:CA11)),$G11*$E11/12,($G11-SUM($Q11:CA11)))) -> 16.66666667 | CC11: =IF($D11>=CC$3,0,IF($G11*$E11/12<($G11-SUM($Q11:CB11)),$G11*$E11/12,($G11-SUM($Q11:CB11)))) -> 16.66666667 | CD11: =IF($D11>=CD$3,0,IF($G11*$E11/12<($G11-SUM($Q11:CC11)),$G11*$E11/12,($G11-SUM($Q11:CC11)))) -> 16.66666667 | CE11: =IF($D11>=CE$3,0,IF($G11*$E11/12<($G11-SUM($Q11:CD11)),$G11*$E11/12,($G11-SUM($Q11:CD11)))) -> 16.66666667 | CF11: =IF($D11>=CF$3,0,IF($G11*$E11/12<($G11-SUM($Q11:CE11)),$G11*$E11/12,($G11-SUM($Q11:CE11)))) -> 16.66666667 | CG11: =IF($D11>=CG$3,0,IF($G11*$E11/12<($G11-SUM($Q11:CF11)),$G11*$E11/12,($G11-SUM($Q11:CF11)))) -> 16.66666667 | CH11: =IF($D11>=CH$3,0,IF($G11*$E11/12<($G11-SUM($Q11:CG11)),$G11*$E11/12,($G11-SUM($Q11:CG11)))) -> 16.66666667 | CI11: =IF($D11>=CI$3,0,IF($G11*$E11/12<($G11-SUM($Q11:CH11)),$G11*$E11/12,($G11-SUM($Q11:CH11)))) -> 16.66666667 | CJ11: =IF($D11>=CJ$3,0,IF($G11*$E11/12<($G11-SUM($Q11:CI11)),$G11*$E11/12,($G11-SUM($Q11:CI11)))) -> 16.66666667 | CK11: =IF($D11>=CK$3,0,IF($G11*$E11/12<($G11-SUM($Q11:CJ11)),$G11*$E11/12,($G11-SUM($Q11:CJ11)))) -> 16.66666667 | CL11: =IF($D11>=CL$3,0,IF($G11*$E11/12<($G11-SUM($Q11:CK11)),$G11*$E11/12,($G11-SUM($Q11:CK11)))) -> 16.66666667 | CM11: =IF($D11>=CM$3,0,IF($G11*$E11/12<($G11-SUM($Q11:CL11)),$G11*$E11/12,($G11-SUM($Q11:CL11)))) -> 16.66666667 | CN11: =IF($D11>=CN$3,0,IF($G11*$E11/12<($G11-SUM($Q11:CM11)),$G11*$E11/12,($G11-SUM($Q11:CM11)))) -> 16.66666667 | CO11: =IF($D11>=CO$3,0,IF($G11*$E11/12<($G11-SUM($Q11:CN11)),$G11*$E11/12,($G11-SUM($Q11:CN11)))) -> 16.66666667 | CP11: =IF($D11>=CP$3,0,IF($G11*$E11/12<($G11-SUM($Q11:CO11)),$G11*$E11/12,($G11-SUM($Q11:CO11)))) -> 16.66666667 | CQ11: =IF($D11>=CQ$3,0,IF($G11*$E11/12<($G11-SUM($Q11:CP11)),$G11*$E11/12,($G11-SUM($Q11:CP11)))) -> 16.66666667 | CR11: =IF($D11>=CR$3,0,IF($G11*$E11/12<($G11-SUM($Q11:CQ11)),$G11*$E11/12,($G11-SUM($Q11:CQ11)))) -> 16.66666667 | CS11: =IF($D11>=CS$3,0,IF($G11*$E11/12<($G11-SUM($Q11:CR11)),$G11*$E11/12,($G11-SUM($Q11:CR11)))) -> 16.66666667 | CT11: =IF($D11>=CT$3,0,IF($G11*$E11/12<($G11-SUM($Q11:CS11)),$G11*$E11/12,($G11-SUM($Q11:CS11)))) -> 16.66666667 | CU11: =IF($D11>=CU$3,0,IF($G11*$E11/12<($G11-SUM($Q11:CT11)),$G11*$E11/12,($G11-SUM($Q11:CT11)))) -> 16.66666667 | CV11: =IF($D11>=CV$3,0,IF($G11*$E11/12<($G11-SUM($Q11:CU11)),$G11*$E11/12,($G11-SUM($Q11:CU11)))) -> 16.66666667
A12: =IF(D12<EOMONTH($D$2,-12),"Fuera de plazo",IF(D12>BALANCE!$J$3,"Fuera de plazo","")) ->  | B12: Elementos de transporte | C12: 7500 | D12: 2020-01-31 | E12: 0.16 | F12: 0.21 | G12: =IF(YEAR(D12)<=YEAR($D$2),C12,C12*(1+CONTROL!$H$4)^(YEAR(D12)-YEAR($D$2)))*RIESGO!$C$4 -> 7500 | H12: 1575 | I12: 1100 | J12: 1200 | K12: 1200 | L12: 1200 | M12: 1200 | N12: 1200 | O12: 400 | Q12: 0 | R12: =IF($D12>=R$3,0,IF($G12*$E12/12<($G12-SUM($Q12:Q12)),$G12*$E12/12,($G12-SUM($Q12:Q12)))) -> 100 | S12: =IF($D12>=S$3,0,IF($G12*$E12/12<($G12-SUM($Q12:R12)),$G12*$E12/12,($G12-SUM($Q12:R12)))) -> 100 | T12: =IF($D12>=T$3,0,IF($G12*$E12/12<($G12-SUM($Q12:S12)),$G12*$E12/12,($G12-SUM($Q12:S12)))) -> 100 | U12: =IF($D12>=U$3,0,IF($G12*$E12/12<($G12-SUM($Q12:T12)),$G12*$E12/12,($G12-SUM($Q12:T12)))) -> 100 | V12: =IF($D12>=V$3,0,IF($G12*$E12/12<($G12-SUM($Q12:U12)),$G12*$E12/12,($G12-SUM($Q12:U12)))) -> 100 | W12: =IF($D12>=W$3,0,IF($G12*$E12/12<($G12-SUM($Q12:V12)),$G12*$E12/12,($G12-SUM($Q12:V12)))) -> 100 | X12: =IF($D12>=X$3,0,IF($G12*$E12/12<($G12-SUM($Q12:W12)),$G12*$E12/12,($G12-SUM($Q12:W12)))) -> 100 | Y12: =IF($D12>=Y$3,0,IF($G12*$E12/12<($G12-SUM($Q12:X12)),$G12*$E12/12,($G12-SUM($Q12:X12)))) -> 100 | Z12: =IF($D12>=Z$3,0,IF($G12*$E12/12<($G12-SUM($Q12:Y12)),$G12*$E12/12,($G12-SUM($Q12:Y12)))) -> 100 | AA12: =IF($D12>=AA$3,0,IF($G12*$E12/12<($G12-SUM($Q12:Z12)),$G12*$E12/12,($G12-SUM($Q12:Z12)))) -> 100 | AB12: =IF($D12>=AB$3,0,IF($G12*$E12/12<($G12-SUM($Q12:AA12)),$G12*$E12/12,($G12-SUM($Q12:AA12)))) -> 100 | AC12: =IF($D12>=AC$3,0,IF($G12*$E12/12<($G12-SUM($Q12:AB12)),$G12*$E12/12,($G12-SUM($Q12:AB12)))) -> 100 | AD12: =IF($D12>=AD$3,0,IF($G12*$E12/12<($G12-SUM($Q12:AC12)),$G12*$E12/12,($G12-SUM($Q12:AC12)))) -> 100 | AE12: =IF($D12>=AE$3,0,IF($G12*$E12/12<($G12-SUM($Q12:AD12)),$G12*$E12/12,($G12-SUM($Q12:AD12)))) -> 100 | AF12: =IF($D12>=AF$3,0,IF($G12*$E12/12<($G12-SUM($Q12:AE12)),$G12*$E12/12,($G12-SUM($Q12:AE12)))) -> 100 | AG12: =IF($D12>=AG$3,0,IF($G12*$E12/12<($G12-SUM($Q12:AF12)),$G12*$E12/12,($G12-SUM($Q12:AF12)))) -> 100 | AH12: =IF($D12>=AH$3,0,IF($G12*$E12/12<($G12-SUM($Q12:AG12)),$G12*$E12/12,($G12-SUM($Q12:AG12)))) -> 100 | AI12: =IF($D12>=AI$3,0,IF($G12*$E12/12<($G12-SUM($Q12:AH12)),$G12*$E12/12,($G12-SUM($Q12:AH12)))) -> 100 | AJ12: =IF($D12>=AJ$3,0,IF($G12*$E12/12<($G12-SUM($Q12:AI12)),$G12*$E12/12,($G12-SUM($Q12:AI12)))) -> 100 | AK12: =IF($D12>=AK$3,0,IF($G12*$E12/12<($G12-SUM($Q12:AJ12)),$G12*$E12/12,($G12-SUM($Q12:AJ12)))) -> 100 | AL12: =IF($D12>=AL$3,0,IF($G12*$E12/12<($G12-SUM($Q12:AK12)),$G12*$E12/12,($G12-SUM($Q12:AK12)))) -> 100 | AM12: =IF($D12>=AM$3,0,IF($G12*$E12/12<($G12-SUM($Q12:AL12)),$G12*$E12/12,($G12-SUM($Q12:AL12)))) -> 100 | AN12: =IF($D12>=AN$3,0,IF($G12*$E12/12<($G12-SUM($Q12:AM12)),$G12*$E12/12,($G12-SUM($Q12:AM12)))) -> 100 | AO12: =IF($D12>=AO$3,0,IF($G12*$E12/12<($G12-SUM($Q12:AN12)),$G12*$E12/12,($G12-SUM($Q12:AN12)))) -> 100 | AP12: =IF($D12>=AP$3,0,IF($G12*$E12/12<($G12-SUM($Q12:AO12)),$G12*$E12/12,($G12-SUM($Q12:AO12)))) -> 100 | AQ12: =IF($D12>=AQ$3,0,IF($G12*$E12/12<($G12-SUM($Q12:AP12)),$G12*$E12/12,($G12-SUM($Q12:AP12)))) -> 100 | AR12: =IF($D12>=AR$3,0,IF($G12*$E12/12<($G12-SUM($Q12:AQ12)),$G12*$E12/12,($G12-SUM($Q12:AQ12)))) -> 100 | AS12: =IF($D12>=AS$3,0,IF($G12*$E12/12<($G12-SUM($Q12:AR12)),$G12*$E12/12,($G12-SUM($Q12:AR12)))) -> 100 | AT12: =IF($D12>=AT$3,0,IF($G12*$E12/12<($G12-SUM($Q12:AS12)),$G12*$E12/12,($G12-SUM($Q12:AS12)))) -> 100 | AU12: =IF($D12>=AU$3,0,IF($G12*$E12/12<($G12-SUM($Q12:AT12)),$G12*$E12/12,($G12-SUM($Q12:AT12)))) -> 100 | AV12: =IF($D12>=AV$3,0,IF($G12*$E12/12<($G12-SUM($Q12:AU12)),$G12*$E12/12,($G12-SUM($Q12:AU12)))) -> 100 | AW12: =IF($D12>=AW$3,0,IF($G12*$E12/12<($G12-SUM($Q12:AV12)),$G12*$E12/12,($G12-SUM($Q12:AV12)))) -> 100 | AX12: =IF($D12>=AX$3,0,IF($G12*$E12/12<($G12-SUM($Q12:AW12)),$G12*$E12/12,($G12-SUM($Q12:AW12)))) -> 100 | AY12: =IF($D12>=AY$3,0,IF($G12*$E12/12<($G12-SUM($Q12:AX12)),$G12*$E12/12,($G12-SUM($Q12:AX12)))) -> 100 | AZ12: =IF($D12>=AZ$3,0,IF($G12*$E12/12<($G12-SUM($Q12:AY12)),$G12*$E12/12,($G12-SUM($Q12:AY12)))) -> 100 | BA12: =IF($D12>=BA$3,0,IF($G12*$E12/12<($G12-SUM($Q12:AZ12)),$G12*$E12/12,($G12-SUM($Q12:AZ12)))) -> 100 | BB12: =IF($D12>=BB$3,0,IF($G12*$E12/12<($G12-SUM($Q12:BA12)),$G12*$E12/12,($G12-SUM($Q12:BA12)))) -> 100 | BC12: =IF($D12>=BC$3,0,IF($G12*$E12/12<($G12-SUM($Q12:BB12)),$G12*$E12/12,($G12-SUM($Q12:BB12)))) -> 100 | BD12: =IF($D12>=BD$3,0,IF($G12*$E12/12<($G12-SUM($Q12:BC12)),$G12*$E12/12,($G12-SUM($Q12:BC12)))) -> 100 | BE12: =IF($D12>=BE$3,0,IF($G12*$E12/12<($G12-SUM($Q12:BD12)),$G12*$E12/12,($G12-SUM($Q12:BD12)))) -> 100 | BF12: =IF($D12>=BF$3,0,IF($G12*$E12/12<($G12-SUM($Q12:BE12)),$G12*$E12/12,($G12-SUM($Q12:BE12)))) -> 100 | BG12: =IF($D12>=BG$3,0,IF($G12*$E12/12<($G12-SUM($Q12:BF12)),$G12*$E12/12,($G12-SUM($Q12:BF12)))) -> 100 | BH12: =IF($D12>=BH$3,0,IF($G12*$E12/12<($G12-SUM($Q12:BG12)),$G12*$E12/12,($G12-SUM($Q12:BG12)))) -> 100 | BI12: =IF($D12>=BI$3,0,IF($G12*$E12/12<($G12-SUM($Q12:BH12)),$G12*$E12/12,($G12-SUM($Q12:BH12)))) -> 100 | BJ12: =IF($D12>=BJ$3,0,IF($G12*$E12/12<($G12-SUM($Q12:BI12)),$G12*$E12/12,($G12-SUM($Q12:BI12)))) -> 100 | BK12: =IF($D12>=BK$3,0,IF($G12*$E12/12<($G12-SUM($Q12:BJ12)),$G12*$E12/12,($G12-SUM($Q12:BJ12)))) -> 100 | BL12: =IF($D12>=BL$3,0,IF($G12*$E12/12<($G12-SUM($Q12:BK12)),$G12*$E12/12,($G12-SUM($Q12:BK12)))) -> 100 | BM12: =IF($D12>=BM$3,0,IF($G12*$E12/12<($G12-SUM($Q12:BL12)),$G12*$E12/12,($G12-SUM($Q12:BL12)))) -> 100 | BN12: =IF($D12>=BN$3,0,IF($G12*$E12/12<($G12-SUM($Q12:BM12)),$G12*$E12/12,($G12-SUM($Q12:BM12)))) -> 100 | BO12: =IF($D12>=BO$3,0,IF($G12*$E12/12<($G12-SUM($Q12:BN12)),$G12*$E12/12,($G12-SUM($Q12:BN12)))) -> 100 | BP12: =IF($D12>=BP$3,0,IF($G12*$E12/12<($G12-SUM($Q12:BO12)),$G12*$E12/12,($G12-SUM($Q12:BO12)))) -> 100 | BQ12: =IF($D12>=BQ$3,0,IF($G12*$E12/12<($G12-SUM($Q12:BP12)),$G12*$E12/12,($G12-SUM($Q12:BP12)))) -> 100 | BR12: =IF($D12>=BR$3,0,IF($G12*$E12/12<($G12-SUM($Q12:BQ12)),$G12*$E12/12,($G12-SUM($Q12:BQ12)))) -> 100 | BS12: =IF($D12>=BS$3,0,IF($G12*$E12/12<($G12-SUM($Q12:BR12)),$G12*$E12/12,($G12-SUM($Q12:BR12)))) -> 100 | BT12: =IF($D12>=BT$3,0,IF($G12*$E12/12<($G12-SUM($Q12:BS12)),$G12*$E12/12,($G12-SUM($Q12:BS12)))) -> 100 | BU12: =IF($D12>=BU$3,0,IF($G12*$E12/12<($G12-SUM($Q12:BT12)),$G12*$E12/12,($G12-SUM($Q12:BT12)))) -> 100 | BV12: =IF($D12>=BV$3,0,IF($G12*$E12/12<($G12-SUM($Q12:BU12)),$G12*$E12/12,($G12-SUM($Q12:BU12)))) -> 100 | BW12: =IF($D12>=BW$3,0,IF($G12*$E12/12<($G12-SUM($Q12:BV12)),$G12*$E12/12,($G12-SUM($Q12:BV12)))) -> 100 | BX12: =IF($D12>=BX$3,0,IF($G12*$E12/12<($G12-SUM($Q12:BW12)),$G12*$E12/12,($G12-SUM($Q12:BW12)))) -> 100 | BY12: =IF($D12>=BY$3,0,IF($G12*$E12/12<($G12-SUM($Q12:BX12)),$G12*$E12/12,($G12-SUM($Q12:BX12)))) -> 100 | BZ12: =IF($D12>=BZ$3,0,IF($G12*$E12/12<($G12-SUM($Q12:BY12)),$G12*$E12/12,($G12-SUM($Q12:BY12)))) -> 100 | CA12: =IF($D12>=CA$3,0,IF($G12*$E12/12<($G12-SUM($Q12:BZ12)),$G12*$E12/12,($G12-SUM($Q12:BZ12)))) -> 100 | CB12: =IF($D12>=CB$3,0,IF($G12*$E12/12<($G12-SUM($Q12:CA12)),$G12*$E12/12,($G12-SUM($Q12:CA12)))) -> 100 | CC12: =IF($D12>=CC$3,0,IF($G12*$E12/12<($G12-SUM($Q12:CB12)),$G12*$E12/12,($G12-SUM($Q12:CB12)))) -> 100 | CD12: =IF($D12>=CD$3,0,IF($G12*$E12/12<($G12-SUM($Q12:CC12)),$G12*$E12/12,($G12-SUM($Q12:CC12)))) -> 100 | CE12: =IF($D12>=CE$3,0,IF($G12*$E12/12<($G12-SUM($Q12:CD12)),$G12*$E12/12,($G12-SUM($Q12:CD12)))) -> 100 | CF12: =IF($D12>=CF$3,0,IF($G12*$E12/12<($G12-SUM($Q12:CE12)),$G12*$E12/12,($G12-SUM($Q12:CE12)))) -> 100 | CG12: =IF($D12>=CG$3,0,IF($G12*$E12/12<($G12-SUM($Q12:CF12)),$G12*$E12/12,($G12-SUM($Q12:CF12)))) -> 100 | CH12: =IF($D12>=CH$3,0,IF($G12*$E12/12<($G12-SUM($Q12:CG12)),$G12*$E12/12,($G12-SUM($Q12:CG12)))) -> 100 | CI12: =IF($D12>=CI$3,0,IF($G12*$E12/12<($G12-SUM($Q12:CH12)),$G12*$E12/12,($G12-SUM($Q12:CH12)))) -> 100 | CJ12: =IF($D12>=CJ$3,0,IF($G12*$E12/12<($G12-SUM($Q12:CI12)),$G12*$E12/12,($G12-SUM($Q12:CI12)))) -> 100 | CK12: =IF($D12>=CK$3,0,IF($G12*$E12/12<($G12-SUM($Q12:CJ12)),$G12*$E12/12,($G12-SUM($Q12:CJ12)))) -> 100 | CL12: =IF($D12>=CL$3,0,IF($G12*$E12/12<($G12-SUM($Q12:CK12)),$G12*$E12/12,($G12-SUM($Q12:CK12)))) -> 100 | CM12: =IF($D12>=CM$3,0,IF($G12*$E12/12<($G12-SUM($Q12:CL12)),$G12*$E12/12,($G12-SUM($Q12:CL12)))) -> 100 | CN12: =IF($D12>=CN$3,0,IF($G12*$E12/12<($G12-SUM($Q12:CM12)),$G12*$E12/12,($G12-SUM($Q12:CM12)))) -> 100 | CO12: =IF($D12>=CO$3,0,IF($G12*$E12/12<($G12-SUM($Q12:CN12)),$G12*$E12/12,($G12-SUM($Q12:CN12)))) -> 0 | CP12: =IF($D12>=CP$3,0,IF($G12*$E12/12<($G12-SUM($Q12:CO12)),$G12*$E12/12,($G12-SUM($Q12:CO12)))) -> 0 | CQ12: =IF($D12>=CQ$3,0,IF($G12*$E12/12<($G12-SUM($Q12:CP12)),$G12*$E12/12,($G12-SUM($Q12:CP12)))) -> 0 | CR12: =IF($D12>=CR$3,0,IF($G12*$E12/12<($G12-SUM($Q12:CQ12)),$G12*$E12/12,($G12-SUM($Q12:CQ12)))) -> 0 | CS12: =IF($D12>=CS$3,0,IF($G12*$E12/12<($G12-SUM($Q12:CR12)),$G12*$E12/12,($G12-SUM($Q12:CR12)))) -> 0 | CT12: =IF($D12>=CT$3,0,IF($G12*$E12/12<($G12-SUM($Q12:CS12)),$G12*$E12/12,($G12-SUM($Q12:CS12)))) -> 0 | CU12: =IF($D12>=CU$3,0,IF($G12*$E12/12<($G12-SUM($Q12:CT12)),$G12*$E12/12,($G12-SUM($Q12:CT12)))) -> 0 | CV12: =IF($D12>=CV$3,0,IF($G12*$E12/12<($G12-SUM($Q12:CU12)),$G12*$E12/12,($G12-SUM($Q12:CU12)))) -> 0
A13: =IF(D13<EOMONTH($D$2,-12),"Fuera de plazo",IF(D13>BALANCE!$J$3,"Fuera de plazo","")) ->  | B13: Otros | C13: 0 | D13: 2019-02-08 | G13: =IF(YEAR(D13)<=YEAR($D$2),C13,C13*(1+CONTROL!$H$4)^(YEAR(D13)-YEAR($D$2)))*RIESGO!$C$4 -> 0 | H13: 0 | I13: 0 | J13: 0 | K13: 0 | L13: 0 | M13: 0 | N13: 0 | O13: 0 | Q13: 0 | R13: =IF($D13>=R$3,0,IF($G13*$E13/12<($G13-SUM($Q13:Q13)),$G13*$E13/12,($G13-SUM($Q13:Q13)))) -> 0 | S13: =IF($D13>=S$3,0,IF($G13*$E13/12<($G13-SUM($Q13:R13)),$G13*$E13/12,($G13-SUM($Q13:R13)))) -> 0 | T13: =IF($D13>=T$3,0,IF($G13*$E13/12<($G13-SUM($Q13:S13)),$G13*$E13/12,($G13-SUM($Q13:S13)))) -> 0 | U13: =IF($D13>=U$3,0,IF($G13*$E13/12<($G13-SUM($Q13:T13)),$G13*$E13/12,($G13-SUM($Q13:T13)))) -> 0 | V13: =IF($D13>=V$3,0,IF($G13*$E13/12<($G13-SUM($Q13:U13)),$G13*$E13/12,($G13-SUM($Q13:U13)))) -> 0 | W13: =IF($D13>=W$3,0,IF($G13*$E13/12<($G13-SUM($Q13:V13)),$G13*$E13/12,($G13-SUM($Q13:V13)))) -> 0 | X13: =IF($D13>=X$3,0,IF($G13*$E13/12<($G13-SUM($Q13:W13)),$G13*$E13/12,($G13-SUM($Q13:W13)))) -> 0 | Y13: =IF($D13>=Y$3,0,IF($G13*$E13/12<($G13-SUM($Q13:X13)),$G13*$E13/12,($G13-SUM($Q13:X13)))) -> 0 | Z13: =IF($D13>=Z$3,0,IF($G13*$E13/12<($G13-SUM($Q13:Y13)),$G13*$E13/12,($G13-SUM($Q13:Y13)))) -> 0 | AA13: =IF($D13>=AA$3,0,IF($G13*$E13/12<($G13-SUM($Q13:Z13)),$G13*$E13/12,($G13-SUM($Q13:Z13)))) -> 0 | AB13: =IF($D13>=AB$3,0,IF($G13*$E13/12<($G13-SUM($Q13:AA13)),$G13*$E13/12,($G13-SUM($Q13:AA13)))) -> 0 | AC13: =IF($D13>=AC$3,0,IF($G13*$E13/12<($G13-SUM($Q13:AB13)),$G13*$E13/12,($G13-SUM($Q13:AB13)))) -> 0 | AD13: =IF($D13>=AD$3,0,IF($G13*$E13/12<($G13-SUM($Q13:AC13)),$G13*$E13/12,($G13-SUM($Q13:AC13)))) -> 0 | AE13: =IF($D13>=AE$3,0,IF($G13*$E13/12<($G13-SUM($Q13:AD13)),$G13*$E13/12,($G13-SUM($Q13:AD13)))) -> 0 | AF13: =IF($D13>=AF$3,0,IF($G13*$E13/12<($G13-SUM($Q13:AE13)),$G13*$E13/12,($G13-SUM($Q13:AE13)))) -> 0 | AG13: =IF($D13>=AG$3,0,IF($G13*$E13/12<($G13-SUM($Q13:AF13)),$G13*$E13/12,($G13-SUM($Q13:AF13)))) -> 0 | AH13: =IF($D13>=AH$3,0,IF($G13*$E13/12<($G13-SUM($Q13:AG13)),$G13*$E13/12,($G13-SUM($Q13:AG13)))) -> 0 | AI13: =IF($D13>=AI$3,0,IF($G13*$E13/12<($G13-SUM($Q13:AH13)),$G13*$E13/12,($G13-SUM($Q13:AH13)))) -> 0 | AJ13: =IF($D13>=AJ$3,0,IF($G13*$E13/12<($G13-SUM($Q13:AI13)),$G13*$E13/12,($G13-SUM($Q13:AI13)))) -> 0 | AK13: =IF($D13>=AK$3,0,IF($G13*$E13/12<($G13-SUM($Q13:AJ13)),$G13*$E13/12,($G13-SUM($Q13:AJ13)))) -> 0 | AL13: =IF($D13>=AL$3,0,IF($G13*$E13/12<($G13-SUM($Q13:AK13)),$G13*$E13/12,($G13-SUM($Q13:AK13)))) -> 0 | AM13: =IF($D13>=AM$3,0,IF($G13*$E13/12<($G13-SUM($Q13:AL13)),$G13*$E13/12,($G13-SUM($Q13:AL13)))) -> 0 | AN13: =IF($D13>=AN$3,0,IF($G13*$E13/12<($G13-SUM($Q13:AM13)),$G13*$E13/12,($G13-SUM($Q13:AM13)))) -> 0 | AO13: =IF($D13>=AO$3,0,IF($G13*$E13/12<($G13-SUM($Q13:AN13)),$G13*$E13/12,($G13-SUM($Q13:AN13)))) -> 0 | AP13: =IF($D13>=AP$3,0,IF($G13*$E13/12<($G13-SUM($Q13:AO13)),$G13*$E13/12,($G13-SUM($Q13:AO13)))) -> 0 | AQ13: =IF($D13>=AQ$3,0,IF($G13*$E13/12<($G13-SUM($Q13:AP13)),$G13*$E13/12,($G13-SUM($Q13:AP13)))) -> 0 | AR13: =IF($D13>=AR$3,0,IF($G13*$E13/12<($G13-SUM($Q13:AQ13)),$G13*$E13/12,($G13-SUM($Q13:AQ13)))) -> 0 | AS13: =IF($D13>=AS$3,0,IF($G13*$E13/12<($G13-SUM($Q13:AR13)),$G13*$E13/12,($G13-SUM($Q13:AR13)))) -> 0 | AT13: =IF($D13>=AT$3,0,IF($G13*$E13/12<($G13-SUM($Q13:AS13)),$G13*$E13/12,($G13-SUM($Q13:AS13)))) -> 0 | AU13: =IF($D13>=AU$3,0,IF($G13*$E13/12<($G13-SUM($Q13:AT13)),$G13*$E13/12,($G13-SUM($Q13:AT13)))) -> 0 | AV13: =IF($D13>=AV$3,0,IF($G13*$E13/12<($G13-SUM($Q13:AU13)),$G13*$E13/12,($G13-SUM($Q13:AU13)))) -> 0 | AW13: =IF($D13>=AW$3,0,IF($G13*$E13/12<($G13-SUM($Q13:AV13)),$G13*$E13/12,($G13-SUM($Q13:AV13)))) -> 0 | AX13: =IF($D13>=AX$3,0,IF($G13*$E13/12<($G13-SUM($Q13:AW13)),$G13*$E13/12,($G13-SUM($Q13:AW13)))) -> 0 | AY13: =IF($D13>=AY$3,0,IF($G13*$E13/12<($G13-SUM($Q13:AX13)),$G13*$E13/12,($G13-SUM($Q13:AX13)))) -> 0 | AZ13: =IF($D13>=AZ$3,0,IF($G13*$E13/12<($G13-SUM($Q13:AY13)),$G13*$E13/12,($G13-SUM($Q13:AY13)))) -> 0 | BA13: =IF($D13>=BA$3,0,IF($G13*$E13/12<($G13-SUM($Q13:AZ13)),$G13*$E13/12,($G13-SUM($Q13:AZ13)))) -> 0 | BB13: =IF($D13>=BB$3,0,IF($G13*$E13/12<($G13-SUM($Q13:BA13)),$G13*$E13/12,($G13-SUM($Q13:BA13)))) -> 0 | BC13: =IF($D13>=BC$3,0,IF($G13*$E13/12<($G13-SUM($Q13:BB13)),$G13*$E13/12,($G13-SUM($Q13:BB13)))) -> 0 | BD13: =IF($D13>=BD$3,0,IF($G13*$E13/12<($G13-SUM($Q13:BC13)),$G13*$E13/12,($G13-SUM($Q13:BC13)))) -> 0 | BE13: =IF($D13>=BE$3,0,IF($G13*$E13/12<($G13-SUM($Q13:BD13)),$G13*$E13/12,($G13-SUM($Q13:BD13)))) -> 0 | BF13: =IF($D13>=BF$3,0,IF($G13*$E13/12<($G13-SUM($Q13:BE13)),$G13*$E13/12,($G13-SUM($Q13:BE13)))) -> 0 | BG13: =IF($D13>=BG$3,0,IF($G13*$E13/12<($G13-SUM($Q13:BF13)),$G13*$E13/12,($G13-SUM($Q13:BF13)))) -> 0 | BH13: =IF($D13>=BH$3,0,IF($G13*$E13/12<($G13-SUM($Q13:BG13)),$G13*$E13/12,($G13-SUM($Q13:BG13)))) -> 0 | BI13: =IF($D13>=BI$3,0,IF($G13*$E13/12<($G13-SUM($Q13:BH13)),$G13*$E13/12,($G13-SUM($Q13:BH13)))) -> 0 | BJ13: =IF($D13>=BJ$3,0,IF($G13*$E13/12<($G13-SUM($Q13:BI13)),$G13*$E13/12,($G13-SUM($Q13:BI13)))) -> 0 | BK13: =IF($D13>=BK$3,0,IF($G13*$E13/12<($G13-SUM($Q13:BJ13)),$G13*$E13/12,($G13-SUM($Q13:BJ13)))) -> 0 | BL13: =IF($D13>=BL$3,0,IF($G13*$E13/12<($G13-SUM($Q13:BK13)),$G13*$E13/12,($G13-SUM($Q13:BK13)))) -> 0 | BM13: =IF($D13>=BM$3,0,IF($G13*$E13/12<($G13-SUM($Q13:BL13)),$G13*$E13/12,($G13-SUM($Q13:BL13)))) -> 0 | BN13: =IF($D13>=BN$3,0,IF($G13*$E13/12<($G13-SUM($Q13:BM13)),$G13*$E13/12,($G13-SUM($Q13:BM13)))) -> 0 | BO13: =IF($D13>=BO$3,0,IF($G13*$E13/12<($G13-SUM($Q13:BN13)),$G13*$E13/12,($G13-SUM($Q13:BN13)))) -> 0 | BP13: =IF($D13>=BP$3,0,IF($G13*$E13/12<($G13-SUM($Q13:BO13)),$G13*$E13/12,($G13-SUM($Q13:BO13)))) -> 0 | BQ13: =IF($D13>=BQ$3,0,IF($G13*$E13/12<($G13-SUM($Q13:BP13)),$G13*$E13/12,($G13-SUM($Q13:BP13)))) -> 0 | BR13: =IF($D13>=BR$3,0,IF($G13*$E13/12<($G13-SUM($Q13:BQ13)),$G13*$E13/12,($G13-SUM($Q13:BQ13)))) -> 0 | BS13: =IF($D13>=BS$3,0,IF($G13*$E13/12<($G13-SUM($Q13:BR13)),$G13*$E13/12,($G13-SUM($Q13:BR13)))) -> 0 | BT13: =IF($D13>=BT$3,0,IF($G13*$E13/12<($G13-SUM($Q13:BS13)),$G13*$E13/12,($G13-SUM($Q13:BS13)))) -> 0 | BU13: =IF($D13>=BU$3,0,IF($G13*$E13/12<($G13-SUM($Q13:BT13)),$G13*$E13/12,($G13-SUM($Q13:BT13)))) -> 0 | BV13: =IF($D13>=BV$3,0,IF($G13*$E13/12<($G13-SUM($Q13:BU13)),$G13*$E13/12,($G13-SUM($Q13:BU13)))) -> 0 | BW13: =IF($D13>=BW$3,0,IF($G13*$E13/12<($G13-SUM($Q13:BV13)),$G13*$E13/12,($G13-SUM($Q13:BV13)))) -> 0 | BX13: =IF($D13>=BX$3,0,IF($G13*$E13/12<($G13-SUM($Q13:BW13)),$G13*$E13/12,($G13-SUM($Q13:BW13)))) -> 0 | BY13: =IF($D13>=BY$3,0,IF($G13*$E13/12<($G13-SUM($Q13:BX13)),$G13*$E13/12,($G13-SUM($Q13:BX13)))) -> 0 | BZ13: =IF($D13>=BZ$3,0,IF($G13*$E13/12<($G13-SUM($Q13:BY13)),$G13*$E13/12,($G13-SUM($Q13:BY13)))) -> 0 | CA13: =IF($D13>=CA$3,0,IF($G13*$E13/12<($G13-SUM($Q13:BZ13)),$G13*$E13/12,($G13-SUM($Q13:BZ13)))) -> 0 | CB13: =IF($D13>=CB$3,0,IF($G13*$E13/12<($G13-SUM($Q13:CA13)),$G13*$E13/12,($G13-SUM($Q13:CA13)))) -> 0 | CC13: =IF($D13>=CC$3,0,IF($G13*$E13/12<($G13-SUM($Q13:CB13)),$G13*$E13/12,($G13-SUM($Q13:CB13)))) -> 0 | CD13: =IF($D13>=CD$3,0,IF($G13*$E13/12<($G13-SUM($Q13:CC13)),$G13*$E13/12,($G13-SUM($Q13:CC13)))) -> 0 | CE13: =IF($D13>=CE$3,0,IF($G13*$E13/12<($G13-SUM($Q13:CD13)),$G13*$E13/12,($G13-SUM($Q13:CD13)))) -> 0 | CF13: =IF($D13>=CF$3,0,IF($G13*$E13/12<($G13-SUM($Q13:CE13)),$G13*$E13/12,($G13-SUM($Q13:CE13)))) -> 0 | CG13: =IF($D13>=CG$3,0,IF($G13*$E13/12<($G13-SUM($Q13:CF13)),$G13*$E13/12,($G13-SUM($Q13:CF13)))) -> 0 | CH13: =IF($D13>=CH$3,0,IF($G13*$E13/12<($G13-SUM($Q13:CG13)),$G13*$E13/12,($G13-SUM($Q13:CG13)))) -> 0 | CI13: =IF($D13>=CI$3,0,IF($G13*$E13/12<($G13-SUM($Q13:CH13)),$G13*$E13/12,($G13-SUM($Q13:CH13)))) -> 0 | CJ13: =IF($D13>=CJ$3,0,IF($G13*$E13/12<($G13-SUM($Q13:CI13)),$G13*$E13/12,($G13-SUM($Q13:CI13)))) -> 0 | CK13: =IF($D13>=CK$3,0,IF($G13*$E13/12<($G13-SUM($Q13:CJ13)),$G13*$E13/12,($G13-SUM($Q13:CJ13)))) -> 0 | CL13: =IF($D13>=CL$3,0,IF($G13*$E13/12<($G13-SUM($Q13:CK13)),$G13*$E13/12,($G13-SUM($Q13:CK13)))) -> 0 | CM13: =IF($D13>=CM$3,0,IF($G13*$E13/12<($G13-SUM($Q13:CL13)),$G13*$E13/12,($G13-SUM($Q13:CL13)))) -> 0 | CN13: =IF($D13>=CN$3,0,IF($G13*$E13/12<($G13-SUM($Q13:CM13)),$G13*$E13/12,($G13-SUM($Q13:CM13)))) -> 0 | CO13: =IF($D13>=CO$3,0,IF($G13*$E13/12<($G13-SUM($Q13:CN13)),$G13*$E13/12,($G13-SUM($Q13:CN13)))) -> 0 | CP13: =IF($D13>=CP$3,0,IF($G13*$E13/12<($G13-SUM($Q13:CO13)),$G13*$E13/12,($G13-SUM($Q13:CO13)))) -> 0 | CQ13: =IF($D13>=CQ$3,0,IF($G13*$E13/12<($G13-SUM($Q13:CP13)),$G13*$E13/12,($G13-SUM($Q13:CP13)))) -> 0 | CR13: =IF($D13>=CR$3,0,IF($G13*$E13/12<($G13-SUM($Q13:CQ13)),$G13*$E13/12,($G13-SUM($Q13:CQ13)))) -> 0 | CS13: =IF($D13>=CS$3,0,IF($G13*$E13/12<($G13-SUM($Q13:CR13)),$G13*$E13/12,($G13-SUM($Q13:CR13)))) -> 0 | CT13: =IF($D13>=CT$3,0,IF($G13*$E13/12<($G13-SUM($Q13:CS13)),$G13*$E13/12,($G13-SUM($Q13:CS13)))) -> 0 | CU13: =IF($D13>=CU$3,0,IF($G13*$E13/12<($G13-SUM($Q13:CT13)),$G13*$E13/12,($G13-SUM($Q13:CT13)))) -> 0 | CV13: =IF($D13>=CV$3,0,IF($G13*$E13/12<($G13-SUM($Q13:CU13)),$G13*$E13/12,($G13-SUM($Q13:CU13)))) -> 0
A14: =IF(D14<EOMONTH($D$2,-12),"Fuera de plazo",IF(D14>BALANCE!$J$3,"Fuera de plazo","")) ->  | B14: Otros | C14: 0 | D14: 2019-02-09 | G14: =IF(YEAR(D14)<=YEAR($D$2),C14,C14*(1+CONTROL!$H$4)^(YEAR(D14)-YEAR($D$2)))*RIESGO!$C$4 -> 0 | H14: =G14*F14 -> 0 | I14: 0 | J14: 0 | K14: 0 | L14: 0 | M14: 0 | N14: 0 | O14: 0 | Q14: 0 | R14: =IF($D14>=R$3,0,IF($G14*$E14/12<($G14-SUM($Q14:Q14)),$G14*$E14/12,($G14-SUM($Q14:Q14)))) -> 0 | S14: =IF($D14>=S$3,0,IF($G14*$E14/12<($G14-SUM($Q14:R14)),$G14*$E14/12,($G14-SUM($Q14:R14)))) -> 0 | T14: =IF($D14>=T$3,0,IF($G14*$E14/12<($G14-SUM($Q14:S14)),$G14*$E14/12,($G14-SUM($Q14:S14)))) -> 0 | U14: =IF($D14>=U$3,0,IF($G14*$E14/12<($G14-SUM($Q14:T14)),$G14*$E14/12,($G14-SUM($Q14:T14)))) -> 0 | V14: =IF($D14>=V$3,0,IF($G14*$E14/12<($G14-SUM($Q14:U14)),$G14*$E14/12,($G14-SUM($Q14:U14)))) -> 0 | W14: =IF($D14>=W$3,0,IF($G14*$E14/12<($G14-SUM($Q14:V14)),$G14*$E14/12,($G14-SUM($Q14:V14)))) -> 0 | X14: =IF($D14>=X$3,0,IF($G14*$E14/12<($G14-SUM($Q14:W14)),$G14*$E14/12,($G14-SUM($Q14:W14)))) -> 0 | Y14: =IF($D14>=Y$3,0,IF($G14*$E14/12<($G14-SUM($Q14:X14)),$G14*$E14/12,($G14-SUM($Q14:X14)))) -> 0 | Z14: =IF($D14>=Z$3,0,IF($G14*$E14/12<($G14-SUM($Q14:Y14)),$G14*$E14/12,($G14-SUM($Q14:Y14)))) -> 0 | AA14: =IF($D14>=AA$3,0,IF($G14*$E14/12<($G14-SUM($Q14:Z14)),$G14*$E14/12,($G14-SUM($Q14:Z14)))) -> 0 | AB14: =IF($D14>=AB$3,0,IF($G14*$E14/12<($G14-SUM($Q14:AA14)),$G14*$E14/12,($G14-SUM($Q14:AA14)))) -> 0 | AC14: =IF($D14>=AC$3,0,IF($G14*$E14/12<($G14-SUM($Q14:AB14)),$G14*$E14/12,($G14-SUM($Q14:AB14)))) -> 0 | AD14: =IF($D14>=AD$3,0,IF($G14*$E14/12<($G14-SUM($Q14:AC14)),$G14*$E14/12,($G14-SUM($Q14:AC14)))) -> 0 | AE14: =IF($D14>=AE$3,0,IF($G14*$E14/12<($G14-SUM($Q14:AD14)),$G14*$E14/12,($G14-SUM($Q14:AD14)))) -> 0 | AF14: =IF($D14>=AF$3,0,IF($G14*$E14/12<($G14-SUM($Q14:AE14)),$G14*$E14/12,($G14-SUM($Q14:AE14)))) -> 0 | AG14: =IF($D14>=AG$3,0,IF($G14*$E14/12<($G14-SUM($Q14:AF14)),$G14*$E14/12,($G14-SUM($Q14:AF14)))) -> 0 | AH14: =IF($D14>=AH$3,0,IF($G14*$E14/12<($G14-SUM($Q14:AG14)),$G14*$E14/12,($G14-SUM($Q14:AG14)))) -> 0 | AI14: =IF($D14>=AI$3,0,IF($G14*$E14/12<($G14-SUM($Q14:AH14)),$G14*$E14/12,($G14-SUM($Q14:AH14)))) -> 0 | AJ14: =IF($D14>=AJ$3,0,IF($G14*$E14/12<($G14-SUM($Q14:AI14)),$G14*$E14/12,($G14-SUM($Q14:AI14)))) -> 0 | AK14: =IF($D14>=AK$3,0,IF($G14*$E14/12<($G14-SUM($Q14:AJ14)),$G14*$E14/12,($G14-SUM($Q14:AJ14)))) -> 0 | AL14: =IF($D14>=AL$3,0,IF($G14*$E14/12<($G14-SUM($Q14:AK14)),$G14*$E14/12,($G14-SUM($Q14:AK14)))) -> 0 | AM14: =IF($D14>=AM$3,0,IF($G14*$E14/12<($G14-SUM($Q14:AL14)),$G14*$E14/12,($G14-SUM($Q14:AL14)))) -> 0 | AN14: =IF($D14>=AN$3,0,IF($G14*$E14/12<($G14-SUM($Q14:AM14)),$G14*$E14/12,($G14-SUM($Q14:AM14)))) -> 0 | AO14: =IF($D14>=AO$3,0,IF($G14*$E14/12<($G14-SUM($Q14:AN14)),$G14*$E14/12,($G14-SUM($Q14:AN14)))) -> 0 | AP14: =IF($D14>=AP$3,0,IF($G14*$E14/12<($G14-SUM($Q14:AO14)),$G14*$E14/12,($G14-SUM($Q14:AO14)))) -> 0 | AQ14: =IF($D14>=AQ$3,0,IF($G14*$E14/12<($G14-SUM($Q14:AP14)),$G14*$E14/12,($G14-SUM($Q14:AP14)))) -> 0 | AR14: =IF($D14>=AR$3,0,IF($G14*$E14/12<($G14-SUM($Q14:AQ14)),$G14*$E14/12,($G14-SUM($Q14:AQ14)))) -> 0 | AS14: =IF($D14>=AS$3,0,IF($G14*$E14/12<($G14-SUM($Q14:AR14)),$G14*$E14/12,($G14-SUM($Q14:AR14)))) -> 0 | AT14: =IF($D14>=AT$3,0,IF($G14*$E14/12<($G14-SUM($Q14:AS14)),$G14*$E14/12,($G14-SUM($Q14:AS14)))) -> 0 | AU14: =IF($D14>=AU$3,0,IF($G14*$E14/12<($G14-SUM($Q14:AT14)),$G14*$E14/12,($G14-SUM($Q14:AT14)))) -> 0 | AV14: =IF($D14>=AV$3,0,IF($G14*$E14/12<($G14-SUM($Q14:AU14)),$G14*$E14/12,($G14-SUM($Q14:AU14)))) -> 0 | AW14: =IF($D14>=AW$3,0,IF($G14*$E14/12<($G14-SUM($Q14:AV14)),$G14*$E14/12,($G14-SUM($Q14:AV14)))) -> 0 | AX14: =IF($D14>=AX$3,0,IF($G14*$E14/12<($G14-SUM($Q14:AW14)),$G14*$E14/12,($G14-SUM($Q14:AW14)))) -> 0 | AY14: =IF($D14>=AY$3,0,IF($G14*$E14/12<($G14-SUM($Q14:AX14)),$G14*$E14/12,($G14-SUM($Q14:AX14)))) -> 0 | AZ14: =IF($D14>=AZ$3,0,IF($G14*$E14/12<($G14-SUM($Q14:AY14)),$G14*$E14/12,($G14-SUM($Q14:AY14)))) -> 0 | BA14: =IF($D14>=BA$3,0,IF($G14*$E14/12<($G14-SUM($Q14:AZ14)),$G14*$E14/12,($G14-SUM($Q14:AZ14)))) -> 0 | BB14: =IF($D14>=BB$3,0,IF($G14*$E14/12<($G14-SUM($Q14:BA14)),$G14*$E14/12,($G14-SUM($Q14:BA14)))) -> 0 | BC14: =IF($D14>=BC$3,0,IF($G14*$E14/12<($G14-SUM($Q14:BB14)),$G14*$E14/12,($G14-SUM($Q14:BB14)))) -> 0 | BD14: =IF($D14>=BD$3,0,IF($G14*$E14/12<($G14-SUM($Q14:BC14)),$G14*$E14/12,($G14-SUM($Q14:BC14)))) -> 0 | BE14: =IF($D14>=BE$3,0,IF($G14*$E14/12<($G14-SUM($Q14:BD14)),$G14*$E14/12,($G14-SUM($Q14:BD14)))) -> 0 | BF14: =IF($D14>=BF$3,0,IF($G14*$E14/12<($G14-SUM($Q14:BE14)),$G14*$E14/12,($G14-SUM($Q14:BE14)))) -> 0 | BG14: =IF($D14>=BG$3,0,IF($G14*$E14/12<($G14-SUM($Q14:BF14)),$G14*$E14/12,($G14-SUM($Q14:BF14)))) -> 0 | BH14: =IF($D14>=BH$3,0,IF($G14*$E14/12<($G14-SUM($Q14:BG14)),$G14*$E14/12,($G14-SUM($Q14:BG14)))) -> 0 | BI14: =IF($D14>=BI$3,0,IF($G14*$E14/12<($G14-SUM($Q14:BH14)),$G14*$E14/12,($G14-SUM($Q14:BH14)))) -> 0 | BJ14: =IF($D14>=BJ$3,0,IF($G14*$E14/12<($G14-SUM($Q14:BI14)),$G14*$E14/12,($G14-SUM($Q14:BI14)))) -> 0 | BK14: =IF($D14>=BK$3,0,IF($G14*$E14/12<($G14-SUM($Q14:BJ14)),$G14*$E14/12,($G14-SUM($Q14:BJ14)))) -> 0 | BL14: =IF($D14>=BL$3,0,IF($G14*$E14/12<($G14-SUM($Q14:BK14)),$G14*$E14/12,($G14-SUM($Q14:BK14)))) -> 0 | BM14: =IF($D14>=BM$3,0,IF($G14*$E14/12<($G14-SUM($Q14:BL14)),$G14*$E14/12,($G14-SUM($Q14:BL14)))) -> 0 | BN14: =IF($D14>=BN$3,0,IF($G14*$E14/12<($G14-SUM($Q14:BM14)),$G14*$E14/12,($G14-SUM($Q14:BM14)))) -> 0 | BO14: =IF($D14>=BO$3,0,IF($G14*$E14/12<($G14-SUM($Q14:BN14)),$G14*$E14/12,($G14-SUM($Q14:BN14)))) -> 0 | BP14: =IF($D14>=BP$3,0,IF($G14*$E14/12<($G14-SUM($Q14:BO14)),$G14*$E14/12,($G14-SUM($Q14:BO14)))) -> 0 | BQ14: =IF($D14>=BQ$3,0,IF($G14*$E14/12<($G14-SUM($Q14:BP14)),$G14*$E14/12,($G14-SUM($Q14:BP14)))) -> 0 | BR14: =IF($D14>=BR$3,0,IF($G14*$E14/12<($G14-SUM($Q14:BQ14)),$G14*$E14/12,($G14-SUM($Q14:BQ14)))) -> 0 | BS14: =IF($D14>=BS$3,0,IF($G14*$E14/12<($G14-SUM($Q14:BR14)),$G14*$E14/12,($G14-SUM($Q14:BR14)))) -> 0 | BT14: =IF($D14>=BT$3,0,IF($G14*$E14/12<($G14-SUM($Q14:BS14)),$G14*$E14/12,($G14-SUM($Q14:BS14)))) -> 0 | BU14: =IF($D14>=BU$3,0,IF($G14*$E14/12<($G14-SUM($Q14:BT14)),$G14*$E14/12,($G14-SUM($Q14:BT14)))) -> 0 | BV14: =IF($D14>=BV$3,0,IF($G14*$E14/12<($G14-SUM($Q14:BU14)),$G14*$E14/12,($G14-SUM($Q14:BU14)))) -> 0 | BW14: =IF($D14>=BW$3,0,IF($G14*$E14/12<($G14-SUM($Q14:BV14)),$G14*$E14/12,($G14-SUM($Q14:BV14)))) -> 0 | BX14: =IF($D14>=BX$3,0,IF($G14*$E14/12<($G14-SUM($Q14:BW14)),$G14*$E14/12,($G14-SUM($Q14:BW14)))) -> 0 | BY14: =IF($D14>=BY$3,0,IF($G14*$E14/12<($G14-SUM($Q14:BX14)),$G14*$E14/12,($G14-SUM($Q14:BX14)))) -> 0 | BZ14: =IF($D14>=BZ$3,0,IF($G14*$E14/12<($G14-SUM($Q14:BY14)),$G14*$E14/12,($G14-SUM($Q14:BY14)))) -> 0 | CA14: =IF($D14>=CA$3,0,IF($G14*$E14/12<($G14-SUM($Q14:BZ14)),$G14*$E14/12,($G14-SUM($Q14:BZ14)))) -> 0 | CB14: =IF($D14>=CB$3,0,IF($G14*$E14/12<($G14-SUM($Q14:CA14)),$G14*$E14/12,($G14-SUM($Q14:CA14)))) -> 0 | CC14: =IF($D14>=CC$3,0,IF($G14*$E14/12<($G14-SUM($Q14:CB14)),$G14*$E14/12,($G14-SUM($Q14:CB14)))) -> 0 | CD14: =IF($D14>=CD$3,0,IF($G14*$E14/12<($G14-SUM($Q14:CC14)),$G14*$E14/12,($G14-SUM($Q14:CC14)))) -> 0 | CE14: =IF($D14>=CE$3,0,IF($G14*$E14/12<($G14-SUM($Q14:CD14)),$G14*$E14/12,($G14-SUM($Q14:CD14)))) -> 0 | CF14: =IF($D14>=CF$3,0,IF($G14*$E14/12<($G14-SUM($Q14:CE14)),$G14*$E14/12,($G14-SUM($Q14:CE14)))) -> 0 | CG14: =IF($D14>=CG$3,0,IF($G14*$E14/12<($G14-SUM($Q14:CF14)),$G14*$E14/12,($G14-SUM($Q14:CF14)))) -> 0 | CH14: =IF($D14>=CH$3,0,IF($G14*$E14/12<($G14-SUM($Q14:CG14)),$G14*$E14/12,($G14-SUM($Q14:CG14)))) -> 0 | CI14: =IF($D14>=CI$3,0,IF($G14*$E14/12<($G14-SUM($Q14:CH14)),$G14*$E14/12,($G14-SUM($Q14:CH14)))) -> 0 | CJ14: =IF($D14>=CJ$3,0,IF($G14*$E14/12<($G14-SUM($Q14:CI14)),$G14*$E14/12,($G14-SUM($Q14:CI14)))) -> 0 | CK14: =IF($D14>=CK$3,0,IF($G14*$E14/12<($G14-SUM($Q14:CJ14)),$G14*$E14/12,($G14-SUM($Q14:CJ14)))) -> 0 | CL14: =IF($D14>=CL$3,0,IF($G14*$E14/12<($G14-SUM($Q14:CK14)),$G14*$E14/12,($G14-SUM($Q14:CK14)))) -> 0 | CM14: =IF($D14>=CM$3,0,IF($G14*$E14/12<($G14-SUM($Q14:CL14)),$G14*$E14/12,($G14-SUM($Q14:CL14)))) -> 0 | CN14: =IF($D14>=CN$3,0,IF($G14*$E14/12<($G14-SUM($Q14:CM14)),$G14*$E14/12,($G14-SUM($Q14:CM14)))) -> 0 | CO14: =IF($D14>=CO$3,0,IF($G14*$E14/12<($G14-SUM($Q14:CN14)),$G14*$E14/12,($G14-SUM($Q14:CN14)))) -> 0 | CP14: =IF($D14>=CP$3,0,IF($G14*$E14/12<($G14-SUM($Q14:CO14)),$G14*$E14/12,($G14-SUM($Q14:CO14)))) -> 0 | CQ14: =IF($D14>=CQ$3,0,IF($G14*$E14/12<($G14-SUM($Q14:CP14)),$G14*$E14/12,($G14-SUM($Q14:CP14)))) -> 0 | CR14: =IF($D14>=CR$3,0,IF($G14*$E14/12<($G14-SUM($Q14:CQ14)),$G14*$E14/12,($G14-SUM($Q14:CQ14)))) -> 0 | CS14: =IF($D14>=CS$3,0,IF($G14*$E14/12<($G14-SUM($Q14:CR14)),$G14*$E14/12,($G14-SUM($Q14:CR14)))) -> 0 | CT14: =IF($D14>=CT$3,0,IF($G14*$E14/12<($G14-SUM($Q14:CS14)),$G14*$E14/12,($G14-SUM($Q14:CS14)))) -> 0 | CU14: =IF($D14>=CU$3,0,IF($G14*$E14/12<($G14-SUM($Q14:CT14)),$G14*$E14/12,($G14-SUM($Q14:CT14)))) -> 0 | CV14: =IF($D14>=CV$3,0,IF($G14*$E14/12<($G14-SUM($Q14:CU14)),$G14*$E14/12,($G14-SUM($Q14:CU14)))) -> 0
A15: =IF(D15<EOMONTH($D$2,-12),"Fuera de plazo",IF(D15>BALANCE!$J$3,"Fuera de plazo","")) ->  | B15: Otros | C15: 0 | D15: 2019-02-10 | G15: =IF(YEAR(D15)<=YEAR($D$2),C15,C15*(1+CONTROL!$H$4)^(YEAR(D15)-YEAR($D$2)))*RIESGO!$C$4 -> 0 | H15: =G15*F15 -> 0 | I15: 0 | J15: 0 | K15: 0 | L15: 0 | M15: 0 | N15: 0 | O15: 0 | Q15: 0 | R15: =IF($D15>=R$3,0,IF($G15*$E15/12<($G15-SUM($Q15:Q15)),$G15*$E15/12,($G15-SUM($Q15:Q15)))) -> 0 | S15: =IF($D15>=S$3,0,IF($G15*$E15/12<($G15-SUM($Q15:R15)),$G15*$E15/12,($G15-SUM($Q15:R15)))) -> 0 | T15: =IF($D15>=T$3,0,IF($G15*$E15/12<($G15-SUM($Q15:S15)),$G15*$E15/12,($G15-SUM($Q15:S15)))) -> 0 | U15: =IF($D15>=U$3,0,IF($G15*$E15/12<($G15-SUM($Q15:T15)),$G15*$E15/12,($G15-SUM($Q15:T15)))) -> 0 | V15: =IF($D15>=V$3,0,IF($G15*$E15/12<($G15-SUM($Q15:U15)),$G15*$E15/12,($G15-SUM($Q15:U15)))) -> 0 | W15: =IF($D15>=W$3,0,IF($G15*$E15/12<($G15-SUM($Q15:V15)),$G15*$E15/12,($G15-SUM($Q15:V15)))) -> 0 | X15: =IF($D15>=X$3,0,IF($G15*$E15/12<($G15-SUM($Q15:W15)),$G15*$E15/12,($G15-SUM($Q15:W15)))) -> 0 | Y15: =IF($D15>=Y$3,0,IF($G15*$E15/12<($G15-SUM($Q15:X15)),$G15*$E15/12,($G15-SUM($Q15:X15)))) -> 0 | Z15: =IF($D15>=Z$3,0,IF($G15*$E15/12<($G15-SUM($Q15:Y15)),$G15*$E15/12,($G15-SUM($Q15:Y15)))) -> 0 | AA15: =IF($D15>=AA$3,0,IF($G15*$E15/12<($G15-SUM($Q15:Z15)),$G15*$E15/12,($G15-SUM($Q15:Z15)))) -> 0 | AB15: =IF($D15>=AB$3,0,IF($G15*$E15/12<($G15-SUM($Q15:AA15)),$G15*$E15/12,($G15-SUM($Q15:AA15)))) -> 0 | AC15: =IF($D15>=AC$3,0,IF($G15*$E15/12<($G15-SUM($Q15:AB15)),$G15*$E15/12,($G15-SUM($Q15:AB15)))) -> 0 | AD15: =IF($D15>=AD$3,0,IF($G15*$E15/12<($G15-SUM($Q15:AC15)),$G15*$E15/12,($G15-SUM($Q15:AC15)))) -> 0 | AE15: =IF($D15>=AE$3,0,IF($G15*$E15/12<($G15-SUM($Q15:AD15)),$G15*$E15/12,($G15-SUM($Q15:AD15)))) -> 0 | AF15: =IF($D15>=AF$3,0,IF($G15*$E15/12<($G15-SUM($Q15:AE15)),$G15*$E15/12,($G15-SUM($Q15:AE15)))) -> 0 | AG15: =IF($D15>=AG$3,0,IF($G15*$E15/12<($G15-SUM($Q15:AF15)),$G15*$E15/12,($G15-SUM($Q15:AF15)))) -> 0 | AH15: =IF($D15>=AH$3,0,IF($G15*$E15/12<($G15-SUM($Q15:AG15)),$G15*$E15/12,($G15-SUM($Q15:AG15)))) -> 0 | AI15: =IF($D15>=AI$3,0,IF($G15*$E15/12<($G15-SUM($Q15:AH15)),$G15*$E15/12,($G15-SUM($Q15:AH15)))) -> 0 | AJ15: =IF($D15>=AJ$3,0,IF($G15*$E15/12<($G15-SUM($Q15:AI15)),$G15*$E15/12,($G15-SUM($Q15:AI15)))) -> 0 | AK15: =IF($D15>=AK$3,0,IF($G15*$E15/12<($G15-SUM($Q15:AJ15)),$G15*$E15/12,($G15-SUM($Q15:AJ15)))) -> 0 | AL15: =IF($D15>=AL$3,0,IF($G15*$E15/12<($G15-SUM($Q15:AK15)),$G15*$E15/12,($G15-SUM($Q15:AK15)))) -> 0 | AM15: =IF($D15>=AM$3,0,IF($G15*$E15/12<($G15-SUM($Q15:AL15)),$G15*$E15/12,($G15-SUM($Q15:AL15)))) -> 0 | AN15: =IF($D15>=AN$3,0,IF($G15*$E15/12<($G15-SUM($Q15:AM15)),$G15*$E15/12,($G15-SUM($Q15:AM15)))) -> 0 | AO15: =IF($D15>=AO$3,0,IF($G15*$E15/12<($G15-SUM($Q15:AN15)),$G15*$E15/12,($G15-SUM($Q15:AN15)))) -> 0 | AP15: =IF($D15>=AP$3,0,IF($G15*$E15/12<($G15-SUM($Q15:AO15)),$G15*$E15/12,($G15-SUM($Q15:AO15)))) -> 0 | AQ15: =IF($D15>=AQ$3,0,IF($G15*$E15/12<($G15-SUM($Q15:AP15)),$G15*$E15/12,($G15-SUM($Q15:AP15)))) -> 0 | AR15: =IF($D15>=AR$3,0,IF($G15*$E15/12<($G15-SUM($Q15:AQ15)),$G15*$E15/12,($G15-SUM($Q15:AQ15)))) -> 0 | AS15: =IF($D15>=AS$3,0,IF($G15*$E15/12<($G15-SUM($Q15:AR15)),$G15*$E15/12,($G15-SUM($Q15:AR15)))) -> 0 | AT15: =IF($D15>=AT$3,0,IF($G15*$E15/12<($G15-SUM($Q15:AS15)),$G15*$E15/12,($G15-SUM($Q15:AS15)))) -> 0 | AU15: =IF($D15>=AU$3,0,IF($G15*$E15/12<($G15-SUM($Q15:AT15)),$G15*$E15/12,($G15-SUM($Q15:AT15)))) -> 0 | AV15: =IF($D15>=AV$3,0,IF($G15*$E15/12<($G15-SUM($Q15:AU15)),$G15*$E15/12,($G15-SUM($Q15:AU15)))) -> 0 | AW15: =IF($D15>=AW$3,0,IF($G15*$E15/12<($G15-SUM($Q15:AV15)),$G15*$E15/12,($G15-SUM($Q15:AV15)))) -> 0 | AX15: =IF($D15>=AX$3,0,IF($G15*$E15/12<($G15-SUM($Q15:AW15)),$G15*$E15/12,($G15-SUM($Q15:AW15)))) -> 0 | AY15: =IF($D15>=AY$3,0,IF($G15*$E15/12<($G15-SUM($Q15:AX15)),$G15*$E15/12,($G15-SUM($Q15:AX15)))) -> 0 | AZ15: =IF($D15>=AZ$3,0,IF($G15*$E15/12<($G15-SUM($Q15:AY15)),$G15*$E15/12,($G15-SUM($Q15:AY15)))) -> 0 | BA15: =IF($D15>=BA$3,0,IF($G15*$E15/12<($G15-SUM($Q15:AZ15)),$G15*$E15/12,($G15-SUM($Q15:AZ15)))) -> 0 | BB15: =IF($D15>=BB$3,0,IF($G15*$E15/12<($G15-SUM($Q15:BA15)),$G15*$E15/12,($G15-SUM($Q15:BA15)))) -> 0 | BC15: =IF($D15>=BC$3,0,IF($G15*$E15/12<($G15-SUM($Q15:BB15)),$G15*$E15/12,($G15-SUM($Q15:BB15)))) -> 0 | BD15: =IF($D15>=BD$3,0,IF($G15*$E15/12<($G15-SUM($Q15:BC15)),$G15*$E15/12,($G15-SUM($Q15:BC15)))) -> 0 | BE15: =IF($D15>=BE$3,0,IF($G15*$E15/12<($G15-SUM($Q15:BD15)),$G15*$E15/12,($G15-SUM($Q15:BD15)))) -> 0 | BF15: =IF($D15>=BF$3,0,IF($G15*$E15/12<($G15-SUM($Q15:BE15)),$G15*$E15/12,($G15-SUM($Q15:BE15)))) -> 0 | BG15: =IF($D15>=BG$3,0,IF($G15*$E15/12<($G15-SUM($Q15:BF15)),$G15*$E15/12,($G15-SUM($Q15:BF15)))) -> 0 | BH15: =IF($D15>=BH$3,0,IF($G15*$E15/12<($G15-SUM($Q15:BG15)),$G15*$E15/12,($G15-SUM($Q15:BG15)))) -> 0 | BI15: =IF($D15>=BI$3,0,IF($G15*$E15/12<($G15-SUM($Q15:BH15)),$G15*$E15/12,($G15-SUM($Q15:BH15)))) -> 0 | BJ15: =IF($D15>=BJ$3,0,IF($G15*$E15/12<($G15-SUM($Q15:BI15)),$G15*$E15/12,($G15-SUM($Q15:BI15)))) -> 0 | BK15: =IF($D15>=BK$3,0,IF($G15*$E15/12<($G15-SUM($Q15:BJ15)),$G15*$E15/12,($G15-SUM($Q15:BJ15)))) -> 0 | BL15: =IF($D15>=BL$3,0,IF($G15*$E15/12<($G15-SUM($Q15:BK15)),$G15*$E15/12,($G15-SUM($Q15:BK15)))) -> 0 | BM15: =IF($D15>=BM$3,0,IF($G15*$E15/12<($G15-SUM($Q15:BL15)),$G15*$E15/12,($G15-SUM($Q15:BL15)))) -> 0 | BN15: =IF($D15>=BN$3,0,IF($G15*$E15/12<($G15-SUM($Q15:BM15)),$G15*$E15/12,($G15-SUM($Q15:BM15)))) -> 0 | BO15: =IF($D15>=BO$3,0,IF($G15*$E15/12<($G15-SUM($Q15:BN15)),$G15*$E15/12,($G15-SUM($Q15:BN15)))) -> 0 | BP15: =IF($D15>=BP$3,0,IF($G15*$E15/12<($G15-SUM($Q15:BO15)),$G15*$E15/12,($G15-SUM($Q15:BO15)))) -> 0 | BQ15: =IF($D15>=BQ$3,0,IF($G15*$E15/12<($G15-SUM($Q15:BP15)),$G15*$E15/12,($G15-SUM($Q15:BP15)))) -> 0 | BR15: =IF($D15>=BR$3,0,IF($G15*$E15/12<($G15-SUM($Q15:BQ15)),$G15*$E15/12,($G15-SUM($Q15:BQ15)))) -> 0 | BS15: =IF($D15>=BS$3,0,IF($G15*$E15/12<($G15-SUM($Q15:BR15)),$G15*$E15/12,($G15-SUM($Q15:BR15)))) -> 0 | BT15: =IF($D15>=BT$3,0,IF($G15*$E15/12<($G15-SUM($Q15:BS15)),$G15*$E15/12,($G15-SUM($Q15:BS15)))) -> 0 | BU15: =IF($D15>=BU$3,0,IF($G15*$E15/12<($G15-SUM($Q15:BT15)),$G15*$E15/12,($G15-SUM($Q15:BT15)))) -> 0 | BV15: =IF($D15>=BV$3,0,IF($G15*$E15/12<($G15-SUM($Q15:BU15)),$G15*$E15/12,($G15-SUM($Q15:BU15)))) -> 0 | BW15: =IF($D15>=BW$3,0,IF($G15*$E15/12<($G15-SUM($Q15:BV15)),$G15*$E15/12,($G15-SUM($Q15:BV15)))) -> 0 | BX15: =IF($D15>=BX$3,0,IF($G15*$E15/12<($G15-SUM($Q15:BW15)),$G15*$E15/12,($G15-SUM($Q15:BW15)))) -> 0 | BY15: =IF($D15>=BY$3,0,IF($G15*$E15/12<($G15-SUM($Q15:BX15)),$G15*$E15/12,($G15-SUM($Q15:BX15)))) -> 0 | BZ15: =IF($D15>=BZ$3,0,IF($G15*$E15/12<($G15-SUM($Q15:BY15)),$G15*$E15/12,($G15-SUM($Q15:BY15)))) -> 0 | CA15: =IF($D15>=CA$3,0,IF($G15*$E15/12<($G15-SUM($Q15:BZ15)),$G15*$E15/12,($G15-SUM($Q15:BZ15)))) -> 0 | CB15: =IF($D15>=CB$3,0,IF($G15*$E15/12<($G15-SUM($Q15:CA15)),$G15*$E15/12,($G15-SUM($Q15:CA15)))) -> 0 | CC15: =IF($D15>=CC$3,0,IF($G15*$E15/12<($G15-SUM($Q15:CB15)),$G15*$E15/12,($G15-SUM($Q15:CB15)))) -> 0 | CD15: =IF($D15>=CD$3,0,IF($G15*$E15/12<($G15-SUM($Q15:CC15)),$G15*$E15/12,($G15-SUM($Q15:CC15)))) -> 0 | CE15: =IF($D15>=CE$3,0,IF($G15*$E15/12<($G15-SUM($Q15:CD15)),$G15*$E15/12,($G15-SUM($Q15:CD15)))) -> 0 | CF15: =IF($D15>=CF$3,0,IF($G15*$E15/12<($G15-SUM($Q15:CE15)),$G15*$E15/12,($G15-SUM($Q15:CE15)))) -> 0 | CG15: =IF($D15>=CG$3,0,IF($G15*$E15/12<($G15-SUM($Q15:CF15)),$G15*$E15/12,($G15-SUM($Q15:CF15)))) -> 0 | CH15: =IF($D15>=CH$3,0,IF($G15*$E15/12<($G15-SUM($Q15:CG15)),$G15*$E15/12,($G15-SUM($Q15:CG15)))) -> 0 | CI15: =IF($D15>=CI$3,0,IF($G15*$E15/12<($G15-SUM($Q15:CH15)),$G15*$E15/12,($G15-SUM($Q15:CH15)))) -> 0 | CJ15: =IF($D15>=CJ$3,0,IF($G15*$E15/12<($G15-SUM($Q15:CI15)),$G15*$E15/12,($G15-SUM($Q15:CI15)))) -> 0 | CK15: =IF($D15>=CK$3,0,IF($G15*$E15/12<($G15-SUM($Q15:CJ15)),$G15*$E15/12,($G15-SUM($Q15:CJ15)))) -> 0 | CL15: =IF($D15>=CL$3,0,IF($G15*$E15/12<($G15-SUM($Q15:CK15)),$G15*$E15/12,($G15-SUM($Q15:CK15)))) -> 0 | CM15: =IF($D15>=CM$3,0,IF($G15*$E15/12<($G15-SUM($Q15:CL15)),$G15*$E15/12,($G15-SUM($Q15:CL15)))) -> 0 | CN15: =IF($D15>=CN$3,0,IF($G15*$E15/12<($G15-SUM($Q15:CM15)),$G15*$E15/12,($G15-SUM($Q15:CM15)))) -> 0 | CO15: =IF($D15>=CO$3,0,IF($G15*$E15/12<($G15-SUM($Q15:CN15)),$G15*$E15/12,($G15-SUM($Q15:CN15)))) -> 0 | CP15: =IF($D15>=CP$3,0,IF($G15*$E15/12<($G15-SUM($Q15:CO15)),$G15*$E15/12,($G15-SUM($Q15:CO15)))) -> 0 | CQ15: =IF($D15>=CQ$3,0,IF($G15*$E15/12<($G15-SUM($Q15:CP15)),$G15*$E15/12,($G15-SUM($Q15:CP15)))) -> 0 | CR15: =IF($D15>=CR$3,0,IF($G15*$E15/12<($G15-SUM($Q15:CQ15)),$G15*$E15/12,($G15-SUM($Q15:CQ15)))) -> 0 | CS15: =IF($D15>=CS$3,0,IF($G15*$E15/12<($G15-SUM($Q15:CR15)),$G15*$E15/12,($G15-SUM($Q15:CR15)))) -> 0 | CT15: =IF($D15>=CT$3,0,IF($G15*$E15/12<($G15-SUM($Q15:CS15)),$G15*$E15/12,($G15-SUM($Q15:CS15)))) -> 0 | CU15: =IF($D15>=CU$3,0,IF($G15*$E15/12<($G15-SUM($Q15:CT15)),$G15*$E15/12,($G15-SUM($Q15:CT15)))) -> 0 | CV15: =IF($D15>=CV$3,0,IF($G15*$E15/12<($G15-SUM($Q15:CU15)),$G15*$E15/12,($G15-SUM($Q15:CU15)))) -> 0
A16: =IF(D16<EOMONTH($D$2,-12),"Fuera de plazo",IF(D16>BALANCE!$J$3,"Fuera de plazo","")) ->  | B16: Otros | C16: 0 | D16: 2019-02-11 | G16: =IF(YEAR(D16)<=YEAR($D$2),C16,C16*(1+CONTROL!$H$4)^(YEAR(D16)-YEAR($D$2)))*RIESGO!$C$4 -> 0 | H16: =G16*F16 -> 0 | I16: 0 | J16: 0 | K16: 0 | L16: 0 | M16: 0 | N16: 0 | O16: 0 | Q16: 0 | R16: =IF($D16>=R$3,0,IF($G16*$E16/12<($G16-SUM($Q16:Q16)),$G16*$E16/12,($G16-SUM($Q16:Q16)))) -> 0 | S16: =IF($D16>=S$3,0,IF($G16*$E16/12<($G16-SUM($Q16:R16)),$G16*$E16/12,($G16-SUM($Q16:R16)))) -> 0 | T16: =IF($D16>=T$3,0,IF($G16*$E16/12<($G16-SUM($Q16:S16)),$G16*$E16/12,($G16-SUM($Q16:S16)))) -> 0 | U16: =IF($D16>=U$3,0,IF($G16*$E16/12<($G16-SUM($Q16:T16)),$G16*$E16/12,($G16-SUM($Q16:T16)))) -> 0 | V16: =IF($D16>=V$3,0,IF($G16*$E16/12<($G16-SUM($Q16:U16)),$G16*$E16/12,($G16-SUM($Q16:U16)))) -> 0 | W16: =IF($D16>=W$3,0,IF($G16*$E16/12<($G16-SUM($Q16:V16)),$G16*$E16/12,($G16-SUM($Q16:V16)))) -> 0 | X16: =IF($D16>=X$3,0,IF($G16*$E16/12<($G16-SUM($Q16:W16)),$G16*$E16/12,($G16-SUM($Q16:W16)))) -> 0 | Y16: =IF($D16>=Y$3,0,IF($G16*$E16/12<($G16-SUM($Q16:X16)),$G16*$E16/12,($G16-SUM($Q16:X16)))) -> 0 | Z16: =IF($D16>=Z$3,0,IF($G16*$E16/12<($G16-SUM($Q16:Y16)),$G16*$E16/12,($G16-SUM($Q16:Y16)))) -> 0 | AA16: =IF($D16>=AA$3,0,IF($G16*$E16/12<($G16-SUM($Q16:Z16)),$G16*$E16/12,($G16-SUM($Q16:Z16)))) -> 0 | AB16: =IF($D16>=AB$3,0,IF($G16*$E16/12<($G16-SUM($Q16:AA16)),$G16*$E16/12,($G16-SUM($Q16:AA16)))) -> 0 | AC16: =IF($D16>=AC$3,0,IF($G16*$E16/12<($G16-SUM($Q16:AB16)),$G16*$E16/12,($G16-SUM($Q16:AB16)))) -> 0 | AD16: =IF($D16>=AD$3,0,IF($G16*$E16/12<($G16-SUM($Q16:AC16)),$G16*$E16/12,($G16-SUM($Q16:AC16)))) -> 0 | AE16: =IF($D16>=AE$3,0,IF($G16*$E16/12<($G16-SUM($Q16:AD16)),$G16*$E16/12,($G16-SUM($Q16:AD16)))) -> 0 | AF16: =IF($D16>=AF$3,0,IF($G16*$E16/12<($G16-SUM($Q16:AE16)),$G16*$E16/12,($G16-SUM($Q16:AE16)))) -> 0 | AG16: =IF($D16>=AG$3,0,IF($G16*$E16/12<($G16-SUM($Q16:AF16)),$G16*$E16/12,($G16-SUM($Q16:AF16)))) -> 0 | AH16: =IF($D16>=AH$3,0,IF($G16*$E16/12<($G16-SUM($Q16:AG16)),$G16*$E16/12,($G16-SUM($Q16:AG16)))) -> 0 | AI16: =IF($D16>=AI$3,0,IF($G16*$E16/12<($G16-SUM($Q16:AH16)),$G16*$E16/12,($G16-SUM($Q16:AH16)))) -> 0 | AJ16: =IF($D16>=AJ$3,0,IF($G16*$E16/12<($G16-SUM($Q16:AI16)),$G16*$E16/12,($G16-SUM($Q16:AI16)))) -> 0 | AK16: =IF($D16>=AK$3,0,IF($G16*$E16/12<($G16-SUM($Q16:AJ16)),$G16*$E16/12,($G16-SUM($Q16:AJ16)))) -> 0 | AL16: =IF($D16>=AL$3,0,IF($G16*$E16/12<($G16-SUM($Q16:AK16)),$G16*$E16/12,($G16-SUM($Q16:AK16)))) -> 0 | AM16: =IF($D16>=AM$3,0,IF($G16*$E16/12<($G16-SUM($Q16:AL16)),$G16*$E16/12,($G16-SUM($Q16:AL16)))) -> 0 | AN16: =IF($D16>=AN$3,0,IF($G16*$E16/12<($G16-SUM($Q16:AM16)),$G16*$E16/12,($G16-SUM($Q16:AM16)))) -> 0 | AO16: =IF($D16>=AO$3,0,IF($G16*$E16/12<($G16-SUM($Q16:AN16)),$G16*$E16/12,($G16-SUM($Q16:AN16)))) -> 0 | AP16: =IF($D16>=AP$3,0,IF($G16*$E16/12<($G16-SUM($Q16:AO16)),$G16*$E16/12,($G16-SUM($Q16:AO16)))) -> 0 | AQ16: =IF($D16>=AQ$3,0,IF($G16*$E16/12<($G16-SUM($Q16:AP16)),$G16*$E16/12,($G16-SUM($Q16:AP16)))) -> 0 | AR16: =IF($D16>=AR$3,0,IF($G16*$E16/12<($G16-SUM($Q16:AQ16)),$G16*$E16/12,($G16-SUM($Q16:AQ16)))) -> 0 | AS16: =IF($D16>=AS$3,0,IF($G16*$E16/12<($G16-SUM($Q16:AR16)),$G16*$E16/12,($G16-SUM($Q16:AR16)))) -> 0 | AT16: =IF($D16>=AT$3,0,IF($G16*$E16/12<($G16-SUM($Q16:AS16)),$G16*$E16/12,($G16-SUM($Q16:AS16)))) -> 0 | AU16: =IF($D16>=AU$3,0,IF($G16*$E16/12<($G16-SUM($Q16:AT16)),$G16*$E16/12,($G16-SUM($Q16:AT16)))) -> 0 | AV16: =IF($D16>=AV$3,0,IF($G16*$E16/12<($G16-SUM($Q16:AU16)),$G16*$E16/12,($G16-SUM($Q16:AU16)))) -> 0 | AW16: =IF($D16>=AW$3,0,IF($G16*$E16/12<($G16-SUM($Q16:AV16)),$G16*$E16/12,($G16-SUM($Q16:AV16)))) -> 0 | AX16: =IF($D16>=AX$3,0,IF($G16*$E16/12<($G16-SUM($Q16:AW16)),$G16*$E16/12,($G16-SUM($Q16:AW16)))) -> 0 | AY16: =IF($D16>=AY$3,0,IF($G16*$E16/12<($G16-SUM($Q16:AX16)),$G16*$E16/12,($G16-SUM($Q16:AX16)))) -> 0 | AZ16: =IF($D16>=AZ$3,0,IF($G16*$E16/12<($G16-SUM($Q16:AY16)),$G16*$E16/12,($G16-SUM($Q16:AY16)))) -> 0 | BA16: =IF($D16>=BA$3,0,IF($G16*$E16/12<($G16-SUM($Q16:AZ16)),$G16*$E16/12,($G16-SUM($Q16:AZ16)))) -> 0 | BB16: =IF($D16>=BB$3,0,IF($G16*$E16/12<($G16-SUM($Q16:BA16)),$G16*$E16/12,($G16-SUM($Q16:BA16)))) -> 0 | BC16: =IF($D16>=BC$3,0,IF($G16*$E16/12<($G16-SUM($Q16:BB16)),$G16*$E16/12,($G16-SUM($Q16:BB16)))) -> 0 | BD16: =IF($D16>=BD$3,0,IF($G16*$E16/12<($G16-SUM($Q16:BC16)),$G16*$E16/12,($G16-SUM($Q16:BC16)))) -> 0 | BE16: =IF($D16>=BE$3,0,IF($G16*$E16/12<($G16-SUM($Q16:BD16)),$G16*$E16/12,($G16-SUM($Q16:BD16)))) -> 0 | BF16: =IF($D16>=BF$3,0,IF($G16*$E16/12<($G16-SUM($Q16:BE16)),$G16*$E16/12,($G16-SUM($Q16:BE16)))) -> 0 | BG16: =IF($D16>=BG$3,0,IF($G16*$E16/12<($G16-SUM($Q16:BF16)),$G16*$E16/12,($G16-SUM($Q16:BF16)))) -> 0 | BH16: =IF($D16>=BH$3,0,IF($G16*$E16/12<($G16-SUM($Q16:BG16)),$G16*$E16/12,($G16-SUM($Q16:BG16)))) -> 0 | BI16: =IF($D16>=BI$3,0,IF($G16*$E16/12<($G16-SUM($Q16:BH16)),$G16*$E16/12,($G16-SUM($Q16:BH16)))) -> 0 | BJ16: =IF($D16>=BJ$3,0,IF($G16*$E16/12<($G16-SUM($Q16:BI16)),$G16*$E16/12,($G16-SUM($Q16:BI16)))) -> 0 | BK16: =IF($D16>=BK$3,0,IF($G16*$E16/12<($G16-SUM($Q16:BJ16)),$G16*$E16/12,($G16-SUM($Q16:BJ16)))) -> 0 | BL16: =IF($D16>=BL$3,0,IF($G16*$E16/12<($G16-SUM($Q16:BK16)),$G16*$E16/12,($G16-SUM($Q16:BK16)))) -> 0 | BM16: =IF($D16>=BM$3,0,IF($G16*$E16/12<($G16-SUM($Q16:BL16)),$G16*$E16/12,($G16-SUM($Q16:BL16)))) -> 0 | BN16: =IF($D16>=BN$3,0,IF($G16*$E16/12<($G16-SUM($Q16:BM16)),$G16*$E16/12,($G16-SUM($Q16:BM16)))) -> 0 | BO16: =IF($D16>=BO$3,0,IF($G16*$E16/12<($G16-SUM($Q16:BN16)),$G16*$E16/12,($G16-SUM($Q16:BN16)))) -> 0 | BP16: =IF($D16>=BP$3,0,IF($G16*$E16/12<($G16-SUM($Q16:BO16)),$G16*$E16/12,($G16-SUM($Q16:BO16)))) -> 0 | BQ16: =IF($D16>=BQ$3,0,IF($G16*$E16/12<($G16-SUM($Q16:BP16)),$G16*$E16/12,($G16-SUM($Q16:BP16)))) -> 0 | BR16: =IF($D16>=BR$3,0,IF($G16*$E16/12<($G16-SUM($Q16:BQ16)),$G16*$E16/12,($G16-SUM($Q16:BQ16)))) -> 0 | BS16: =IF($D16>=BS$3,0,IF($G16*$E16/12<($G16-SUM($Q16:BR16)),$G16*$E16/12,($G16-SUM($Q16:BR16)))) -> 0 | BT16: =IF($D16>=BT$3,0,IF($G16*$E16/12<($G16-SUM($Q16:BS16)),$G16*$E16/12,($G16-SUM($Q16:BS16)))) -> 0 | BU16: =IF($D16>=BU$3,0,IF($G16*$E16/12<($G16-SUM($Q16:BT16)),$G16*$E16/12,($G16-SUM($Q16:BT16)))) -> 0 | BV16: =IF($D16>=BV$3,0,IF($G16*$E16/12<($G16-SUM($Q16:BU16)),$G16*$E16/12,($G16-SUM($Q16:BU16)))) -> 0 | BW16: =IF($D16>=BW$3,0,IF($G16*$E16/12<($G16-SUM($Q16:BV16)),$G16*$E16/12,($G16-SUM($Q16:BV16)))) -> 0 | BX16: =IF($D16>=BX$3,0,IF($G16*$E16/12<($G16-SUM($Q16:BW16)),$G16*$E16/12,($G16-SUM($Q16:BW16)))) -> 0 | BY16: =IF($D16>=BY$3,0,IF($G16*$E16/12<($G16-SUM($Q16:BX16)),$G16*$E16/12,($G16-SUM($Q16:BX16)))) -> 0 | BZ16: =IF($D16>=BZ$3,0,IF($G16*$E16/12<($G16-SUM($Q16:BY16)),$G16*$E16/12,($G16-SUM($Q16:BY16)))) -> 0 | CA16: =IF($D16>=CA$3,0,IF($G16*$E16/12<($G16-SUM($Q16:BZ16)),$G16*$E16/12,($G16-SUM($Q16:BZ16)))) -> 0 | CB16: =IF($D16>=CB$3,0,IF($G16*$E16/12<($G16-SUM($Q16:CA16)),$G16*$E16/12,($G16-SUM($Q16:CA16)))) -> 0 | CC16: =IF($D16>=CC$3,0,IF($G16*$E16/12<($G16-SUM($Q16:CB16)),$G16*$E16/12,($G16-SUM($Q16:CB16)))) -> 0 | CD16: =IF($D16>=CD$3,0,IF($G16*$E16/12<($G16-SUM($Q16:CC16)),$G16*$E16/12,($G16-SUM($Q16:CC16)))) -> 0 | CE16: =IF($D16>=CE$3,0,IF($G16*$E16/12<($G16-SUM($Q16:CD16)),$G16*$E16/12,($G16-SUM($Q16:CD16)))) -> 0 | CF16: =IF($D16>=CF$3,0,IF($G16*$E16/12<($G16-SUM($Q16:CE16)),$G16*$E16/12,($G16-SUM($Q16:CE16)))) -> 0 | CG16: =IF($D16>=CG$3,0,IF($G16*$E16/12<($G16-SUM($Q16:CF16)),$G16*$E16/12,($G16-SUM($Q16:CF16)))) -> 0 | CH16: =IF($D16>=CH$3,0,IF($G16*$E16/12<($G16-SUM($Q16:CG16)),$G16*$E16/12,($G16-SUM($Q16:CG16)))) -> 0 | CI16: =IF($D16>=CI$3,0,IF($G16*$E16/12<($G16-SUM($Q16:CH16)),$G16*$E16/12,($G16-SUM($Q16:CH16)))) -> 0 | CJ16: =IF($D16>=CJ$3,0,IF($G16*$E16/12<($G16-SUM($Q16:CI16)),$G16*$E16/12,($G16-SUM($Q16:CI16)))) -> 0 | CK16: =IF($D16>=CK$3,0,IF($G16*$E16/12<($G16-SUM($Q16:CJ16)),$G16*$E16/12,($G16-SUM($Q16:CJ16)))) -> 0 | CL16: =IF($D16>=CL$3,0,IF($G16*$E16/12<($G16-SUM($Q16:CK16)),$G16*$E16/12,($G16-SUM($Q16:CK16)))) -> 0 | CM16: =IF($D16>=CM$3,0,IF($G16*$E16/12<($G16-SUM($Q16:CL16)),$G16*$E16/12,($G16-SUM($Q16:CL16)))) -> 0 | CN16: =IF($D16>=CN$3,0,IF($G16*$E16/12<($G16-SUM($Q16:CM16)),$G16*$E16/12,($G16-SUM($Q16:CM16)))) -> 0 | CO16: =IF($D16>=CO$3,0,IF($G16*$E16/12<($G16-SUM($Q16:CN16)),$G16*$E16/12,($G16-SUM($Q16:CN16)))) -> 0 | CP16: =IF($D16>=CP$3,0,IF($G16*$E16/12<($G16-SUM($Q16:CO16)),$G16*$E16/12,($G16-SUM($Q16:CO16)))) -> 0 | CQ16: =IF($D16>=CQ$3,0,IF($G16*$E16/12<($G16-SUM($Q16:CP16)),$G16*$E16/12,($G16-SUM($Q16:CP16)))) -> 0 | CR16: =IF($D16>=CR$3,0,IF($G16*$E16/12<($G16-SUM($Q16:CQ16)),$G16*$E16/12,($G16-SUM($Q16:CQ16)))) -> 0 | CS16: =IF($D16>=CS$3,0,IF($G16*$E16/12<($G16-SUM($Q16:CR16)),$G16*$E16/12,($G16-SUM($Q16:CR16)))) -> 0 | CT16: =IF($D16>=CT$3,0,IF($G16*$E16/12<($G16-SUM($Q16:CS16)),$G16*$E16/12,($G16-SUM($Q16:CS16)))) -> 0 | CU16: =IF($D16>=CU$3,0,IF($G16*$E16/12<($G16-SUM($Q16:CT16)),$G16*$E16/12,($G16-SUM($Q16:CT16)))) -> 0 | CV16: =IF($D16>=CV$3,0,IF($G16*$E16/12<($G16-SUM($Q16:CU16)),$G16*$E16/12,($G16-SUM($Q16:CU16)))) -> 0
A17: =IF(D17<EOMONTH($D$2,-12),"Fuera de plazo",IF(D17>BALANCE!$J$3,"Fuera de plazo","")) ->  | B17: Otros | C17: 0 | D17: 2019-02-12 | G17: =IF(YEAR(D17)<=YEAR($D$2),C17,C17*(1+CONTROL!$H$4)^(YEAR(D17)-YEAR($D$2)))*RIESGO!$C$4 -> 0 | H17: 0 | I17: 0 | J17: 0 | K17: 0 | L17: 0 | M17: 0 | N17: 0 | O17: 0 | Q17: 0 | R17: =IF($D17>=R$3,0,IF($G17*$E17/12<($G17-SUM($Q17:Q17)),$G17*$E17/12,($G17-SUM($Q17:Q17)))) -> 0 | S17: =IF($D17>=S$3,0,IF($G17*$E17/12<($G17-SUM($Q17:R17)),$G17*$E17/12,($G17-SUM($Q17:R17)))) -> 0 | T17: =IF($D17>=T$3,0,IF($G17*$E17/12<($G17-SUM($Q17:S17)),$G17*$E17/12,($G17-SUM($Q17:S17)))) -> 0 | U17: =IF($D17>=U$3,0,IF($G17*$E17/12<($G17-SUM($Q17:T17)),$G17*$E17/12,($G17-SUM($Q17:T17)))) -> 0 | V17: =IF($D17>=V$3,0,IF($G17*$E17/12<($G17-SUM($Q17:U17)),$G17*$E17/12,($G17-SUM($Q17:U17)))) -> 0 | W17: =IF($D17>=W$3,0,IF($G17*$E17/12<($G17-SUM($Q17:V17)),$G17*$E17/12,($G17-SUM($Q17:V17)))) -> 0 | X17: =IF($D17>=X$3,0,IF($G17*$E17/12<($G17-SUM($Q17:W17)),$G17*$E17/12,($G17-SUM($Q17:W17)))) -> 0 | Y17: =IF($D17>=Y$3,0,IF($G17*$E17/12<($G17-SUM($Q17:X17)),$G17*$E17/12,($G17-SUM($Q17:X17)))) -> 0 | Z17: =IF($D17>=Z$3,0,IF($G17*$E17/12<($G17-SUM($Q17:Y17)),$G17*$E17/12,($G17-SUM($Q17:Y17)))) -> 0 | AA17: =IF($D17>=AA$3,0,IF($G17*$E17/12<($G17-SUM($Q17:Z17)),$G17*$E17/12,($G17-SUM($Q17:Z17)))) -> 0 | AB17: =IF($D17>=AB$3,0,IF($G17*$E17/12<($G17-SUM($Q17:AA17)),$G17*$E17/12,($G17-SUM($Q17:AA17)))) -> 0 | AC17: =IF($D17>=AC$3,0,IF($G17*$E17/12<($G17-SUM($Q17:AB17)),$G17*$E17/12,($G17-SUM($Q17:AB17)))) -> 0 | AD17: =IF($D17>=AD$3,0,IF($G17*$E17/12<($G17-SUM($Q17:AC17)),$G17*$E17/12,($G17-SUM($Q17:AC17)))) -> 0 | AE17: =IF($D17>=AE$3,0,IF($G17*$E17/12<($G17-SUM($Q17:AD17)),$G17*$E17/12,($G17-SUM($Q17:AD17)))) -> 0 | AF17: =IF($D17>=AF$3,0,IF($G17*$E17/12<($G17-SUM($Q17:AE17)),$G17*$E17/12,($G17-SUM($Q17:AE17)))) -> 0 | AG17: =IF($D17>=AG$3,0,IF($G17*$E17/12<($G17-SUM($Q17:AF17)),$G17*$E17/12,($G17-SUM($Q17:AF17)))) -> 0 | AH17: =IF($D17>=AH$3,0,IF($G17*$E17/12<($G17-SUM($Q17:AG17)),$G17*$E17/12,($G17-SUM($Q17:AG17)))) -> 0 | AI17: =IF($D17>=AI$3,0,IF($G17*$E17/12<($G17-SUM($Q17:AH17)),$G17*$E17/12,($G17-SUM($Q17:AH17)))) -> 0 | AJ17: =IF($D17>=AJ$3,0,IF($G17*$E17/12<($G17-SUM($Q17:AI17)),$G17*$E17/12,($G17-SUM($Q17:AI17)))) -> 0 | AK17: =IF($D17>=AK$3,0,IF($G17*$E17/12<($G17-SUM($Q17:AJ17)),$G17*$E17/12,($G17-SUM($Q17:AJ17)))) -> 0 | AL17: =IF($D17>=AL$3,0,IF($G17*$E17/12<($G17-SUM($Q17:AK17)),$G17*$E17/12,($G17-SUM($Q17:AK17)))) -> 0 | AM17: =IF($D17>=AM$3,0,IF($G17*$E17/12<($G17-SUM($Q17:AL17)),$G17*$E17/12,($G17-SUM($Q17:AL17)))) -> 0 | AN17: =IF($D17>=AN$3,0,IF($G17*$E17/12<($G17-SUM($Q17:AM17)),$G17*$E17/12,($G17-SUM($Q17:AM17)))) -> 0 | AO17: =IF($D17>=AO$3,0,IF($G17*$E17/12<($G17-SUM($Q17:AN17)),$G17*$E17/12,($G17-SUM($Q17:AN17)))) -> 0 | AP17: =IF($D17>=AP$3,0,IF($G17*$E17/12<($G17-SUM($Q17:AO17)),$G17*$E17/12,($G17-SUM($Q17:AO17)))) -> 0 | AQ17: =IF($D17>=AQ$3,0,IF($G17*$E17/12<($G17-SUM($Q17:AP17)),$G17*$E17/12,($G17-SUM($Q17:AP17)))) -> 0 | AR17: =IF($D17>=AR$3,0,IF($G17*$E17/12<($G17-SUM($Q17:AQ17)),$G17*$E17/12,($G17-SUM($Q17:AQ17)))) -> 0 | AS17: =IF($D17>=AS$3,0,IF($G17*$E17/12<($G17-SUM($Q17:AR17)),$G17*$E17/12,($G17-SUM($Q17:AR17)))) -> 0 | AT17: =IF($D17>=AT$3,0,IF($G17*$E17/12<($G17-SUM($Q17:AS17)),$G17*$E17/12,($G17-SUM($Q17:AS17)))) -> 0 | AU17: =IF($D17>=AU$3,0,IF($G17*$E17/12<($G17-SUM($Q17:AT17)),$G17*$E17/12,($G17-SUM($Q17:AT17)))) -> 0 | AV17: =IF($D17>=AV$3,0,IF($G17*$E17/12<($G17-SUM($Q17:AU17)),$G17*$E17/12,($G17-SUM($Q17:AU17)))) -> 0 | AW17: =IF($D17>=AW$3,0,IF($G17*$E17/12<($G17-SUM($Q17:AV17)),$G17*$E17/12,($G17-SUM($Q17:AV17)))) -> 0 | AX17: =IF($D17>=AX$3,0,IF($G17*$E17/12<($G17-SUM($Q17:AW17)),$G17*$E17/12,($G17-SUM($Q17:AW17)))) -> 0 | AY17: =IF($D17>=AY$3,0,IF($G17*$E17/12<($G17-SUM($Q17:AX17)),$G17*$E17/12,($G17-SUM($Q17:AX17)))) -> 0 | AZ17: =IF($D17>=AZ$3,0,IF($G17*$E17/12<($G17-SUM($Q17:AY17)),$G17*$E17/12,($G17-SUM($Q17:AY17)))) -> 0 | BA17: =IF($D17>=BA$3,0,IF($G17*$E17/12<($G17-SUM($Q17:AZ17)),$G17*$E17/12,($G17-SUM($Q17:AZ17)))) -> 0 | BB17: =IF($D17>=BB$3,0,IF($G17*$E17/12<($G17-SUM($Q17:BA17)),$G17*$E17/12,($G17-SUM($Q17:BA17)))) -> 0 | BC17: =IF($D17>=BC$3,0,IF($G17*$E17/12<($G17-SUM($Q17:BB17)),$G17*$E17/12,($G17-SUM($Q17:BB17)))) -> 0 | BD17: =IF($D17>=BD$3,0,IF($G17*$E17/12<($G17-SUM($Q17:BC17)),$G17*$E17/12,($G17-SUM($Q17:BC17)))) -> 0 | BE17: =IF($D17>=BE$3,0,IF($G17*$E17/12<($G17-SUM($Q17:BD17)),$G17*$E17/12,($G17-SUM($Q17:BD17)))) -> 0 | BF17: =IF($D17>=BF$3,0,IF($G17*$E17/12<($G17-SUM($Q17:BE17)),$G17*$E17/12,($G17-SUM($Q17:BE17)))) -> 0 | BG17: =IF($D17>=BG$3,0,IF($G17*$E17/12<($G17-SUM($Q17:BF17)),$G17*$E17/12,($G17-SUM($Q17:BF17)))) -> 0 | BH17: =IF($D17>=BH$3,0,IF($G17*$E17/12<($G17-SUM($Q17:BG17)),$G17*$E17/12,($G17-SUM($Q17:BG17)))) -> 0 | BI17: =IF($D17>=BI$3,0,IF($G17*$E17/12<($G17-SUM($Q17:BH17)),$G17*$E17/12,($G17-SUM($Q17:BH17)))) -> 0 | BJ17: =IF($D17>=BJ$3,0,IF($G17*$E17/12<($G17-SUM($Q17:BI17)),$G17*$E17/12,($G17-SUM($Q17:BI17)))) -> 0 | BK17: =IF($D17>=BK$3,0,IF($G17*$E17/12<($G17-SUM($Q17:BJ17)),$G17*$E17/12,($G17-SUM($Q17:BJ17)))) -> 0 | BL17: =IF($D17>=BL$3,0,IF($G17*$E17/12<($G17-SUM($Q17:BK17)),$G17*$E17/12,($G17-SUM($Q17:BK17)))) -> 0 | BM17: =IF($D17>=BM$3,0,IF($G17*$E17/12<($G17-SUM($Q17:BL17)),$G17*$E17/12,($G17-SUM($Q17:BL17)))) -> 0 | BN17: =IF($D17>=BN$3,0,IF($G17*$E17/12<($G17-SUM($Q17:BM17)),$G17*$E17/12,($G17-SUM($Q17:BM17)))) -> 0 | BO17: =IF($D17>=BO$3,0,IF($G17*$E17/12<($G17-SUM($Q17:BN17)),$G17*$E17/12,($G17-SUM($Q17:BN17)))) -> 0 | BP17: =IF($D17>=BP$3,0,IF($G17*$E17/12<($G17-SUM($Q17:BO17)),$G17*$E17/12,($G17-SUM($Q17:BO17)))) -> 0 | BQ17: =IF($D17>=BQ$3,0,IF($G17*$E17/12<($G17-SUM($Q17:BP17)),$G17*$E17/12,($G17-SUM($Q17:BP17)))) -> 0 | BR17: =IF($D17>=BR$3,0,IF($G17*$E17/12<($G17-SUM($Q17:BQ17)),$G17*$E17/12,($G17-SUM($Q17:BQ17)))) -> 0 | BS17: =IF($D17>=BS$3,0,IF($G17*$E17/12<($G17-SUM($Q17:BR17)),$G17*$E17/12,($G17-SUM($Q17:BR17)))) -> 0 | BT17: =IF($D17>=BT$3,0,IF($G17*$E17/12<($G17-SUM($Q17:BS17)),$G17*$E17/12,($G17-SUM($Q17:BS17)))) -> 0 | BU17: =IF($D17>=BU$3,0,IF($G17*$E17/12<($G17-SUM($Q17:BT17)),$G17*$E17/12,($G17-SUM($Q17:BT17)))) -> 0 | BV17: =IF($D17>=BV$3,0,IF($G17*$E17/12<($G17-SUM($Q17:BU17)),$G17*$E17/12,($G17-SUM($Q17:BU17)))) -> 0 | BW17: =IF($D17>=BW$3,0,IF($G17*$E17/12<($G17-SUM($Q17:BV17)),$G17*$E17/12,($G17-SUM($Q17:BV17)))) -> 0 | BX17: =IF($D17>=BX$3,0,IF($G17*$E17/12<($G17-SUM($Q17:BW17)),$G17*$E17/12,($G17-SUM($Q17:BW17)))) -> 0 | BY17: =IF($D17>=BY$3,0,IF($G17*$E17/12<($G17-SUM($Q17:BX17)),$G17*$E17/12,($G17-SUM($Q17:BX17)))) -> 0 | BZ17: =IF($D17>=BZ$3,0,IF($G17*$E17/12<($G17-SUM($Q17:BY17)),$G17*$E17/12,($G17-SUM($Q17:BY17)))) -> 0 | CA17: =IF($D17>=CA$3,0,IF($G17*$E17/12<($G17-SUM($Q17:BZ17)),$G17*$E17/12,($G17-SUM($Q17:BZ17)))) -> 0 | CB17: =IF($D17>=CB$3,0,IF($G17*$E17/12<($G17-SUM($Q17:CA17)),$G17*$E17/12,($G17-SUM($Q17:CA17)))) -> 0 | CC17: =IF($D17>=CC$3,0,IF($G17*$E17/12<($G17-SUM($Q17:CB17)),$G17*$E17/12,($G17-SUM($Q17:CB17)))) -> 0 | CD17: =IF($D17>=CD$3,0,IF($G17*$E17/12<($G17-SUM($Q17:CC17)),$G17*$E17/12,($G17-SUM($Q17:CC17)))) -> 0 | CE17: =IF($D17>=CE$3,0,IF($G17*$E17/12<($G17-SUM($Q17:CD17)),$G17*$E17/12,($G17-SUM($Q17:CD17)))) -> 0 | CF17: =IF($D17>=CF$3,0,IF($G17*$E17/12<($G17-SUM($Q17:CE17)),$G17*$E17/12,($G17-SUM($Q17:CE17)))) -> 0 | CG17: =IF($D17>=CG$3,0,IF($G17*$E17/12<($G17-SUM($Q17:CF17)),$G17*$E17/12,($G17-SUM($Q17:CF17)))) -> 0 | CH17: =IF($D17>=CH$3,0,IF($G17*$E17/12<($G17-SUM($Q17:CG17)),$G17*$E17/12,($G17-SUM($Q17:CG17)))) -> 0 | CI17: =IF($D17>=CI$3,0,IF($G17*$E17/12<($G17-SUM($Q17:CH17)),$G17*$E17/12,($G17-SUM($Q17:CH17)))) -> 0 | CJ17: =IF($D17>=CJ$3,0,IF($G17*$E17/12<($G17-SUM($Q17:CI17)),$G17*$E17/12,($G17-SUM($Q17:CI17)))) -> 0 | CK17: =IF($D17>=CK$3,0,IF($G17*$E17/12<($G17-SUM($Q17:CJ17)),$G17*$E17/12,($G17-SUM($Q17:CJ17)))) -> 0 | CL17: =IF($D17>=CL$3,0,IF($G17*$E17/12<($G17-SUM($Q17:CK17)),$G17*$E17/12,($G17-SUM($Q17:CK17)))) -> 0 | CM17: =IF($D17>=CM$3,0,IF($G17*$E17/12<($G17-SUM($Q17:CL17)),$G17*$E17/12,($G17-SUM($Q17:CL17)))) -> 0 | CN17: =IF($D17>=CN$3,0,IF($G17*$E17/12<($G17-SUM($Q17:CM17)),$G17*$E17/12,($G17-SUM($Q17:CM17)))) -> 0 | CO17: =IF($D17>=CO$3,0,IF($G17*$E17/12<($G17-SUM($Q17:CN17)),$G17*$E17/12,($G17-SUM($Q17:CN17)))) -> 0 | CP17: =IF($D17>=CP$3,0,IF($G17*$E17/12<($G17-SUM($Q17:CO17)),$G17*$E17/12,($G17-SUM($Q17:CO17)))) -> 0 | CQ17: =IF($D17>=CQ$3,0,IF($G17*$E17/12<($G17-SUM($Q17:CP17)),$G17*$E17/12,($G17-SUM($Q17:CP17)))) -> 0 | CR17: =IF($D17>=CR$3,0,IF($G17*$E17/12<($G17-SUM($Q17:CQ17)),$G17*$E17/12,($G17-SUM($Q17:CQ17)))) -> 0 | CS17: =IF($D17>=CS$3,0,IF($G17*$E17/12<($G17-SUM($Q17:CR17)),$G17*$E17/12,($G17-SUM($Q17:CR17)))) -> 0 | CT17: =IF($D17>=CT$3,0,IF($G17*$E17/12<($G17-SUM($Q17:CS17)),$G17*$E17/12,($G17-SUM($Q17:CS17)))) -> 0 | CU17: =IF($D17>=CU$3,0,IF($G17*$E17/12<($G17-SUM($Q17:CT17)),$G17*$E17/12,($G17-SUM($Q17:CT17)))) -> 0 | CV17: =IF($D17>=CV$3,0,IF($G17*$E17/12<($G17-SUM($Q17:CU17)),$G17*$E17/12,($G17-SUM($Q17:CU17)))) -> 0
A18: =IF(D18<EOMONTH($D$2,-12),"Fuera de plazo",IF(D18>BALANCE!$J$3,"Fuera de plazo","")) ->  | B18: Otros | C18: 0 | D18: 2019-02-13 | G18: =IF(YEAR(D18)<=YEAR($D$2),C18,C18*(1+CONTROL!$H$4)^(YEAR(D18)-YEAR($D$2)))*RIESGO!$C$4 -> 0 | H18: =G18*F18 -> 0 | I18: 0 | J18: 0 | K18: 0 | L18: 0 | M18: 0 | N18: 0 | O18: 0 | Q18: 0 | R18: =IF($D18>=R$3,0,IF($G18*$E18/12<($G18-SUM($Q18:Q18)),$G18*$E18/12,($G18-SUM($Q18:Q18)))) -> 0 | S18: =IF($D18>=S$3,0,IF($G18*$E18/12<($G18-SUM($Q18:R18)),$G18*$E18/12,($G18-SUM($Q18:R18)))) -> 0 | T18: =IF($D18>=T$3,0,IF($G18*$E18/12<($G18-SUM($Q18:S18)),$G18*$E18/12,($G18-SUM($Q18:S18)))) -> 0 | U18: =IF($D18>=U$3,0,IF($G18*$E18/12<($G18-SUM($Q18:T18)),$G18*$E18/12,($G18-SUM($Q18:T18)))) -> 0 | V18: =IF($D18>=V$3,0,IF($G18*$E18/12<($G18-SUM($Q18:U18)),$G18*$E18/12,($G18-SUM($Q18:U18)))) -> 0 | W18: =IF($D18>=W$3,0,IF($G18*$E18/12<($G18-SUM($Q18:V18)),$G18*$E18/12,($G18-SUM($Q18:V18)))) -> 0 | X18: =IF($D18>=X$3,0,IF($G18*$E18/12<($G18-SUM($Q18:W18)),$G18*$E18/12,($G18-SUM($Q18:W18)))) -> 0 | Y18: =IF($D18>=Y$3,0,IF($G18*$E18/12<($G18-SUM($Q18:X18)),$G18*$E18/12,($G18-SUM($Q18:X18)))) -> 0 | Z18: =IF($D18>=Z$3,0,IF($G18*$E18/12<($G18-SUM($Q18:Y18)),$G18*$E18/12,($G18-SUM($Q18:Y18)))) -> 0 | AA18: =IF($D18>=AA$3,0,IF($G18*$E18/12<($G18-SUM($Q18:Z18)),$G18*$E18/12,($G18-SUM($Q18:Z18)))) -> 0 | AB18: =IF($D18>=AB$3,0,IF($G18*$E18/12<($G18-SUM($Q18:AA18)),$G18*$E18/12,($G18-SUM($Q18:AA18)))) -> 0 | AC18: =IF($D18>=AC$3,0,IF($G18*$E18/12<($G18-SUM($Q18:AB18)),$G18*$E18/12,($G18-SUM($Q18:AB18)))) -> 0 | AD18: =IF($D18>=AD$3,0,IF($G18*$E18/12<($G18-SUM($Q18:AC18)),$G18*$E18/12,($G18-SUM($Q18:AC18)))) -> 0 | AE18: =IF($D18>=AE$3,0,IF($G18*$E18/12<($G18-SUM($Q18:AD18)),$G18*$E18/12,($G18-SUM($Q18:AD18)))) -> 0 | AF18: =IF($D18>=AF$3,0,IF($G18*$E18/12<($G18-SUM($Q18:AE18)),$G18*$E18/12,($G18-SUM($Q18:AE18)))) -> 0 | AG18: =IF($D18>=AG$3,0,IF($G18*$E18/12<($G18-SUM($Q18:AF18)),$G18*$E18/12,($G18-SUM($Q18:AF18)))) -> 0 | AH18: =IF($D18>=AH$3,0,IF($G18*$E18/12<($G18-SUM($Q18:AG18)),$G18*$E18/12,($G18-SUM($Q18:AG18)))) -> 0 | AI18: =IF($D18>=AI$3,0,IF($G18*$E18/12<($G18-SUM($Q18:AH18)),$G18*$E18/12,($G18-SUM($Q18:AH18)))) -> 0 | AJ18: =IF($D18>=AJ$3,0,IF($G18*$E18/12<($G18-SUM($Q18:AI18)),$G18*$E18/12,($G18-SUM($Q18:AI18)))) -> 0 | AK18: =IF($D18>=AK$3,0,IF($G18*$E18/12<($G18-SUM($Q18:AJ18)),$G18*$E18/12,($G18-SUM($Q18:AJ18)))) -> 0 | AL18: =IF($D18>=AL$3,0,IF($G18*$E18/12<($G18-SUM($Q18:AK18)),$G18*$E18/12,($G18-SUM($Q18:AK18)))) -> 0 | AM18: =IF($D18>=AM$3,0,IF($G18*$E18/12<($G18-SUM($Q18:AL18)),$G18*$E18/12,($G18-SUM($Q18:AL18)))) -> 0 | AN18: =IF($D18>=AN$3,0,IF($G18*$E18/12<($G18-SUM($Q18:AM18)),$G18*$E18/12,($G18-SUM($Q18:AM18)))) -> 0 | AO18: =IF($D18>=AO$3,0,IF($G18*$E18/12<($G18-SUM($Q18:AN18)),$G18*$E18/12,($G18-SUM($Q18:AN18)))) -> 0 | AP18: =IF($D18>=AP$3,0,IF($G18*$E18/12<($G18-SUM($Q18:AO18)),$G18*$E18/12,($G18-SUM($Q18:AO18)))) -> 0 | AQ18: =IF($D18>=AQ$3,0,IF($G18*$E18/12<($G18-SUM($Q18:AP18)),$G18*$E18/12,($G18-SUM($Q18:AP18)))) -> 0 | AR18: =IF($D18>=AR$3,0,IF($G18*$E18/12<($G18-SUM($Q18:AQ18)),$G18*$E18/12,($G18-SUM($Q18:AQ18)))) -> 0 | AS18: =IF($D18>=AS$3,0,IF($G18*$E18/12<($G18-SUM($Q18:AR18)),$G18*$E18/12,($G18-SUM($Q18:AR18)))) -> 0 | AT18: =IF($D18>=AT$3,0,IF($G18*$E18/12<($G18-SUM($Q18:AS18)),$G18*$E18/12,($G18-SUM($Q18:AS18)))) -> 0 | AU18: =IF($D18>=AU$3,0,IF($G18*$E18/12<($G18-SUM($Q18:AT18)),$G18*$E18/12,($G18-SUM($Q18:AT18)))) -> 0 | AV18: =IF($D18>=AV$3,0,IF($G18*$E18/12<($G18-SUM($Q18:AU18)),$G18*$E18/12,($G18-SUM($Q18:AU18)))) -> 0 | AW18: =IF($D18>=AW$3,0,IF($G18*$E18/12<($G18-SUM($Q18:AV18)),$G18*$E18/12,($G18-SUM($Q18:AV18)))) -> 0 | AX18: =IF($D18>=AX$3,0,IF($G18*$E18/12<($G18-SUM($Q18:AW18)),$G18*$E18/12,($G18-SUM($Q18:AW18)))) -> 0 | AY18: =IF($D18>=AY$3,0,IF($G18*$E18/12<($G18-SUM($Q18:AX18)),$G18*$E18/12,($G18-SUM($Q18:AX18)))) -> 0 | AZ18: =IF($D18>=AZ$3,0,IF($G18*$E18/12<($G18-SUM($Q18:AY18)),$G18*$E18/12,($G18-SUM($Q18:AY18)))) -> 0 | BA18: =IF($D18>=BA$3,0,IF($G18*$E18/12<($G18-SUM($Q18:AZ18)),$G18*$E18/12,($G18-SUM($Q18:AZ18)))) -> 0 | BB18: =IF($D18>=BB$3,0,IF($G18*$E18/12<($G18-SUM($Q18:BA18)),$G18*$E18/12,($G18-SUM($Q18:BA18)))) -> 0 | BC18: =IF($D18>=BC$3,0,IF($G18*$E18/12<($G18-SUM($Q18:BB18)),$G18*$E18/12,($G18-SUM($Q18:BB18)))) -> 0 | BD18: =IF($D18>=BD$3,0,IF($G18*$E18/12<($G18-SUM($Q18:BC18)),$G18*$E18/12,($G18-SUM($Q18:BC18)))) -> 0 | BE18: =IF($D18>=BE$3,0,IF($G18*$E18/12<($G18-SUM($Q18:BD18)),$G18*$E18/12,($G18-SUM($Q18:BD18)))) -> 0 | BF18: =IF($D18>=BF$3,0,IF($G18*$E18/12<($G18-SUM($Q18:BE18)),$G18*$E18/12,($G18-SUM($Q18:BE18)))) -> 0 | BG18: =IF($D18>=BG$3,0,IF($G18*$E18/12<($G18-SUM($Q18:BF18)),$G18*$E18/12,($G18-SUM($Q18:BF18)))) -> 0 | BH18: =IF($D18>=BH$3,0,IF($G18*$E18/12<($G18-SUM($Q18:BG18)),$G18*$E18/12,($G18-SUM($Q18:BG18)))) -> 0 | BI18: =IF($D18>=BI$3,0,IF($G18*$E18/12<($G18-SUM($Q18:BH18)),$G18*$E18/12,($G18-SUM($Q18:BH18)))) -> 0 | BJ18: =IF($D18>=BJ$3,0,IF($G18*$E18/12<($G18-SUM($Q18:BI18)),$G18*$E18/12,($G18-SUM($Q18:BI18)))) -> 0 | BK18: =IF($D18>=BK$3,0,IF($G18*$E18/12<($G18-SUM($Q18:BJ18)),$G18*$E18/12,($G18-SUM($Q18:BJ18)))) -> 0 | BL18: =IF($D18>=BL$3,0,IF($G18*$E18/12<($G18-SUM($Q18:BK18)),$G18*$E18/12,($G18-SUM($Q18:BK18)))) -> 0 | BM18: =IF($D18>=BM$3,0,IF($G18*$E18/12<($G18-SUM($Q18:BL18)),$G18*$E18/12,($G18-SUM($Q18:BL18)))) -> 0 | BN18: =IF($D18>=BN$3,0,IF($G18*$E18/12<($G18-SUM($Q18:BM18)),$G18*$E18/12,($G18-SUM($Q18:BM18)))) -> 0 | BO18: =IF($D18>=BO$3,0,IF($G18*$E18/12<($G18-SUM($Q18:BN18)),$G18*$E18/12,($G18-SUM($Q18:BN18)))) -> 0 | BP18: =IF($D18>=BP$3,0,IF($G18*$E18/12<($G18-SUM($Q18:BO18)),$G18*$E18/12,($G18-SUM($Q18:BO18)))) -> 0 | BQ18: =IF($D18>=BQ$3,0,IF($G18*$E18/12<($G18-SUM($Q18:BP18)),$G18*$E18/12,($G18-SUM($Q18:BP18)))) -> 0 | BR18: =IF($D18>=BR$3,0,IF($G18*$E18/12<($G18-SUM($Q18:BQ18)),$G18*$E18/12,($G18-SUM($Q18:BQ18)))) -> 0 | BS18: =IF($D18>=BS$3,0,IF($G18*$E18/12<($G18-SUM($Q18:BR18)),$G18*$E18/12,($G18-SUM($Q18:BR18)))) -> 0 | BT18: =IF($D18>=BT$3,0,IF($G18*$E18/12<($G18-SUM($Q18:BS18)),$G18*$E18/12,($G18-SUM($Q18:BS18)))) -> 0 | BU18: =IF($D18>=BU$3,0,IF($G18*$E18/12<($G18-SUM($Q18:BT18)),$G18*$E18/12,($G18-SUM($Q18:BT18)))) -> 0 | BV18: =IF($D18>=BV$3,0,IF($G18*$E18/12<($G18-SUM($Q18:BU18)),$G18*$E18/12,($G18-SUM($Q18:BU18)))) -> 0 | BW18: =IF($D18>=BW$3,0,IF($G18*$E18/12<($G18-SUM($Q18:BV18)),$G18*$E18/12,($G18-SUM($Q18:BV18)))) -> 0 | BX18: =IF($D18>=BX$3,0,IF($G18*$E18/12<($G18-SUM($Q18:BW18)),$G18*$E18/12,($G18-SUM($Q18:BW18)))) -> 0 | BY18: =IF($D18>=BY$3,0,IF($G18*$E18/12<($G18-SUM($Q18:BX18)),$G18*$E18/12,($G18-SUM($Q18:BX18)))) -> 0 | BZ18: =IF($D18>=BZ$3,0,IF($G18*$E18/12<($G18-SUM($Q18:BY18)),$G18*$E18/12,($G18-SUM($Q18:BY18)))) -> 0 | CA18: =IF($D18>=CA$3,0,IF($G18*$E18/12<($G18-SUM($Q18:BZ18)),$G18*$E18/12,($G18-SUM($Q18:BZ18)))) -> 0 | CB18: =IF($D18>=CB$3,0,IF($G18*$E18/12<($G18-SUM($Q18:CA18)),$G18*$E18/12,($G18-SUM($Q18:CA18)))) -> 0 | CC18: =IF($D18>=CC$3,0,IF($G18*$E18/12<($G18-SUM($Q18:CB18)),$G18*$E18/12,($G18-SUM($Q18:CB18)))) -> 0 | CD18: =IF($D18>=CD$3,0,IF($G18*$E18/12<($G18-SUM($Q18:CC18)),$G18*$E18/12,($G18-SUM($Q18:CC18)))) -> 0 | CE18: =IF($D18>=CE$3,0,IF($G18*$E18/12<($G18-SUM($Q18:CD18)),$G18*$E18/12,($G18-SUM($Q18:CD18)))) -> 0 | CF18: =IF($D18>=CF$3,0,IF($G18*$E18/12<($G18-SUM($Q18:CE18)),$G18*$E18/12,($G18-SUM($Q18:CE18)))) -> 0 | CG18: =IF($D18>=CG$3,0,IF($G18*$E18/12<($G18-SUM($Q18:CF18)),$G18*$E18/12,($G18-SUM($Q18:CF18)))) -> 0 | CH18: =IF($D18>=CH$3,0,IF($G18*$E18/12<($G18-SUM($Q18:CG18)),$G18*$E18/12,($G18-SUM($Q18:CG18)))) -> 0 | CI18: =IF($D18>=CI$3,0,IF($G18*$E18/12<($G18-SUM($Q18:CH18)),$G18*$E18/12,($G18-SUM($Q18:CH18)))) -> 0 | CJ18: =IF($D18>=CJ$3,0,IF($G18*$E18/12<($G18-SUM($Q18:CI18)),$G18*$E18/12,($G18-SUM($Q18:CI18)))) -> 0 | CK18: =IF($D18>=CK$3,0,IF($G18*$E18/12<($G18-SUM($Q18:CJ18)),$G18*$E18/12,($G18-SUM($Q18:CJ18)))) -> 0 | CL18: =IF($D18>=CL$3,0,IF($G18*$E18/12<($G18-SUM($Q18:CK18)),$G18*$E18/12,($G18-SUM($Q18:CK18)))) -> 0 | CM18: =IF($D18>=CM$3,0,IF($G18*$E18/12<($G18-SUM($Q18:CL18)),$G18*$E18/12,($G18-SUM($Q18:CL18)))) -> 0 | CN18: =IF($D18>=CN$3,0,IF($G18*$E18/12<($G18-SUM($Q18:CM18)),$G18*$E18/12,($G18-SUM($Q18:CM18)))) -> 0 | CO18: =IF($D18>=CO$3,0,IF($G18*$E18/12<($G18-SUM($Q18:CN18)),$G18*$E18/12,($G18-SUM($Q18:CN18)))) -> 0 | CP18: =IF($D18>=CP$3,0,IF($G18*$E18/12<($G18-SUM($Q18:CO18)),$G18*$E18/12,($G18-SUM($Q18:CO18)))) -> 0 | CQ18: =IF($D18>=CQ$3,0,IF($G18*$E18/12<($G18-SUM($Q18:CP18)),$G18*$E18/12,($G18-SUM($Q18:CP18)))) -> 0 | CR18: =IF($D18>=CR$3,0,IF($G18*$E18/12<($G18-SUM($Q18:CQ18)),$G18*$E18/12,($G18-SUM($Q18:CQ18)))) -> 0 | CS18: =IF($D18>=CS$3,0,IF($G18*$E18/12<($G18-SUM($Q18:CR18)),$G18*$E18/12,($G18-SUM($Q18:CR18)))) -> 0 | CT18: =IF($D18>=CT$3,0,IF($G18*$E18/12<($G18-SUM($Q18:CS18)),$G18*$E18/12,($G18-SUM($Q18:CS18)))) -> 0 | CU18: =IF($D18>=CU$3,0,IF($G18*$E18/12<($G18-SUM($Q18:CT18)),$G18*$E18/12,($G18-SUM($Q18:CT18)))) -> 0 | CV18: =IF($D18>=CV$3,0,IF($G18*$E18/12<($G18-SUM($Q18:CU18)),$G18*$E18/12,($G18-SUM($Q18:CU18)))) -> 0
A19: =IF(D19<EOMONTH($D$2,-12),"Fuera de plazo",IF(D19>BALANCE!$J$3,"Fuera de plazo","")) ->  | B19: Otros | C19: 0 | D19: 2019-02-14 | G19: =IF(YEAR(D19)<=YEAR($D$2),C19,C19*(1+CONTROL!$H$4)^(YEAR(D19)-YEAR($D$2)))*RIESGO!$C$4 -> 0 | H19: =G19*F19 -> 0 | I19: 0 | J19: 0 | K19: 0 | L19: 0 | M19: 0 | N19: 0 | O19: 0 | Q19: 0 | R19: =IF($D19>=R$3,0,IF($G19*$E19/12<($G19-SUM($Q19:Q19)),$G19*$E19/12,($G19-SUM($Q19:Q19)))) -> 0 | S19: =IF($D19>=S$3,0,IF($G19*$E19/12<($G19-SUM($Q19:R19)),$G19*$E19/12,($G19-SUM($Q19:R19)))) -> 0 | T19: =IF($D19>=T$3,0,IF($G19*$E19/12<($G19-SUM($Q19:S19)),$G19*$E19/12,($G19-SUM($Q19:S19)))) -> 0 | U19: =IF($D19>=U$3,0,IF($G19*$E19/12<($G19-SUM($Q19:T19)),$G19*$E19/12,($G19-SUM($Q19:T19)))) -> 0 | V19: =IF($D19>=V$3,0,IF($G19*$E19/12<($G19-SUM($Q19:U19)),$G19*$E19/12,($G19-SUM($Q19:U19)))) -> 0 | W19: =IF($D19>=W$3,0,IF($G19*$E19/12<($G19-SUM($Q19:V19)),$G19*$E19/12,($G19-SUM($Q19:V19)))) -> 0 | X19: =IF($D19>=X$3,0,IF($G19*$E19/12<($G19-SUM($Q19:W19)),$G19*$E19/12,($G19-SUM($Q19:W19)))) -> 0 | Y19: =IF($D19>=Y$3,0,IF($G19*$E19/12<($G19-SUM($Q19:X19)),$G19*$E19/12,($G19-SUM($Q19:X19)))) -> 0 | Z19: =IF($D19>=Z$3,0,IF($G19*$E19/12<($G19-SUM($Q19:Y19)),$G19*$E19/12,($G19-SUM($Q19:Y19)))) -> 0 | AA19: =IF($D19>=AA$3,0,IF($G19*$E19/12<($G19-SUM($Q19:Z19)),$G19*$E19/12,($G19-SUM($Q19:Z19)))) -> 0 | AB19: =IF($D19>=AB$3,0,IF($G19*$E19/12<($G19-SUM($Q19:AA19)),$G19*$E19/12,($G19-SUM($Q19:AA19)))) -> 0 | AC19: =IF($D19>=AC$3,0,IF($G19*$E19/12<($G19-SUM($Q19:AB19)),$G19*$E19/12,($G19-SUM($Q19:AB19)))) -> 0 | AD19: =IF($D19>=AD$3,0,IF($G19*$E19/12<($G19-SUM($Q19:AC19)),$G19*$E19/12,($G19-SUM($Q19:AC19)))) -> 0 | AE19: =IF($D19>=AE$3,0,IF($G19*$E19/12<($G19-SUM($Q19:AD19)),$G19*$E19/12,($G19-SUM($Q19:AD19)))) -> 0 | AF19: =IF($D19>=AF$3,0,IF($G19*$E19/12<($G19-SUM($Q19:AE19)),$G19*$E19/12,($G19-SUM($Q19:AE19)))) -> 0 | AG19: =IF($D19>=AG$3,0,IF($G19*$E19/12<($G19-SUM($Q19:AF19)),$G19*$E19/12,($G19-SUM($Q19:AF19)))) -> 0 | AH19: =IF($D19>=AH$3,0,IF($G19*$E19/12<($G19-SUM($Q19:AG19)),$G19*$E19/12,($G19-SUM($Q19:AG19)))) -> 0 | AI19: =IF($D19>=AI$3,0,IF($G19*$E19/12<($G19-SUM($Q19:AH19)),$G19*$E19/12,($G19-SUM($Q19:AH19)))) -> 0 | AJ19: =IF($D19>=AJ$3,0,IF($G19*$E19/12<($G19-SUM($Q19:AI19)),$G19*$E19/12,($G19-SUM($Q19:AI19)))) -> 0 | AK19: =IF($D19>=AK$3,0,IF($G19*$E19/12<($G19-SUM($Q19:AJ19)),$G19*$E19/12,($G19-SUM($Q19:AJ19)))) -> 0 | AL19: =IF($D19>=AL$3,0,IF($G19*$E19/12<($G19-SUM($Q19:AK19)),$G19*$E19/12,($G19-SUM($Q19:AK19)))) -> 0 | AM19: =IF($D19>=AM$3,0,IF($G19*$E19/12<($G19-SUM($Q19:AL19)),$G19*$E19/12,($G19-SUM($Q19:AL19)))) -> 0 | AN19: =IF($D19>=AN$3,0,IF($G19*$E19/12<($G19-SUM($Q19:AM19)),$G19*$E19/12,($G19-SUM($Q19:AM19)))) -> 0 | AO19: =IF($D19>=AO$3,0,IF($G19*$E19/12<($G19-SUM($Q19:AN19)),$G19*$E19/12,($G19-SUM($Q19:AN19)))) -> 0 | AP19: =IF($D19>=AP$3,0,IF($G19*$E19/12<($G19-SUM($Q19:AO19)),$G19*$E19/12,($G19-SUM($Q19:AO19)))) -> 0 | AQ19: =IF($D19>=AQ$3,0,IF($G19*$E19/12<($G19-SUM($Q19:AP19)),$G19*$E19/12,($G19-SUM($Q19:AP19)))) -> 0 | AR19: =IF($D19>=AR$3,0,IF($G19*$E19/12<($G19-SUM($Q19:AQ19)),$G19*$E19/12,($G19-SUM($Q19:AQ19)))) -> 0 | AS19: =IF($D19>=AS$3,0,IF($G19*$E19/12<($G19-SUM($Q19:AR19)),$G19*$E19/12,($G19-SUM($Q19:AR19)))) -> 0 | AT19: =IF($D19>=AT$3,0,IF($G19*$E19/12<($G19-SUM($Q19:AS19)),$G19*$E19/12,($G19-SUM($Q19:AS19)))) -> 0 | AU19: =IF($D19>=AU$3,0,IF($G19*$E19/12<($G19-SUM($Q19:AT19)),$G19*$E19/12,($G19-SUM($Q19:AT19)))) -> 0 | AV19: =IF($D19>=AV$3,0,IF($G19*$E19/12<($G19-SUM($Q19:AU19)),$G19*$E19/12,($G19-SUM($Q19:AU19)))) -> 0 | AW19: =IF($D19>=AW$3,0,IF($G19*$E19/12<($G19-SUM($Q19:AV19)),$G19*$E19/12,($G19-SUM($Q19:AV19)))) -> 0 | AX19: =IF($D19>=AX$3,0,IF($G19*$E19/12<($G19-SUM($Q19:AW19)),$G19*$E19/12,($G19-SUM($Q19:AW19)))) -> 0 | AY19: =IF($D19>=AY$3,0,IF($G19*$E19/12<($G19-SUM($Q19:AX19)),$G19*$E19/12,($G19-SUM($Q19:AX19)))) -> 0 | AZ19: =IF($D19>=AZ$3,0,IF($G19*$E19/12<($G19-SUM($Q19:AY19)),$G19*$E19/12,($G19-SUM($Q19:AY19)))) -> 0 | BA19: =IF($D19>=BA$3,0,IF($G19*$E19/12<($G19-SUM($Q19:AZ19)),$G19*$E19/12,($G19-SUM($Q19:AZ19)))) -> 0 | BB19: =IF($D19>=BB$3,0,IF($G19*$E19/12<($G19-SUM($Q19:BA19)),$G19*$E19/12,($G19-SUM($Q19:BA19)))) -> 0 | BC19: =IF($D19>=BC$3,0,IF($G19*$E19/12<($G19-SUM($Q19:BB19)),$G19*$E19/12,($G19-SUM($Q19:BB19)))) -> 0 | BD19: =IF($D19>=BD$3,0,IF($G19*$E19/12<($G19-SUM($Q19:BC19)),$G19*$E19/12,($G19-SUM($Q19:BC19)))) -> 0 | BE19: =IF($D19>=BE$3,0,IF($G19*$E19/12<($G19-SUM($Q19:BD19)),$G19*$E19/12,($G19-SUM($Q19:BD19)))) -> 0 | BF19: =IF($D19>=BF$3,0,IF($G19*$E19/12<($G19-SUM($Q19:BE19)),$G19*$E19/12,($G19-SUM($Q19:BE19)))) -> 0 | BG19: =IF($D19>=BG$3,0,IF($G19*$E19/12<($G19-SUM($Q19:BF19)),$G19*$E19/12,($G19-SUM($Q19:BF19)))) -> 0 | BH19: =IF($D19>=BH$3,0,IF($G19*$E19/12<($G19-SUM($Q19:BG19)),$G19*$E19/12,($G19-SUM($Q19:BG19)))) -> 0 | BI19: =IF($D19>=BI$3,0,IF($G19*$E19/12<($G19-SUM($Q19:BH19)),$G19*$E19/12,($G19-SUM($Q19:BH19)))) -> 0 | BJ19: =IF($D19>=BJ$3,0,IF($G19*$E19/12<($G19-SUM($Q19:BI19)),$G19*$E19/12,($G19-SUM($Q19:BI19)))) -> 0 | BK19: =IF($D19>=BK$3,0,IF($G19*$E19/12<($G19-SUM($Q19:BJ19)),$G19*$E19/12,($G19-SUM($Q19:BJ19)))) -> 0 | BL19: =IF($D19>=BL$3,0,IF($G19*$E19/12<($G19-SUM($Q19:BK19)),$G19*$E19/12,($G19-SUM($Q19:BK19)))) -> 0 | BM19: =IF($D19>=BM$3,0,IF($G19*$E19/12<($G19-SUM($Q19:BL19)),$G19*$E19/12,($G19-SUM($Q19:BL19)))) -> 0 | BN19: =IF($D19>=BN$3,0,IF($G19*$E19/12<($G19-SUM($Q19:BM19)),$G19*$E19/12,($G19-SUM($Q19:BM19)))) -> 0 | BO19: =IF($D19>=BO$3,0,IF($G19*$E19/12<($G19-SUM($Q19:BN19)),$G19*$E19/12,($G19-SUM($Q19:BN19)))) -> 0 | BP19: =IF($D19>=BP$3,0,IF($G19*$E19/12<($G19-SUM($Q19:BO19)),$G19*$E19/12,($G19-SUM($Q19:BO19)))) -> 0 | BQ19: =IF($D19>=BQ$3,0,IF($G19*$E19/12<($G19-SUM($Q19:BP19)),$G19*$E19/12,($G19-SUM($Q19:BP19)))) -> 0 | BR19: =IF($D19>=BR$3,0,IF($G19*$E19/12<($G19-SUM($Q19:BQ19)),$G19*$E19/12,($G19-SUM($Q19:BQ19)))) -> 0 | BS19: =IF($D19>=BS$3,0,IF($G19*$E19/12<($G19-SUM($Q19:BR19)),$G19*$E19/12,($G19-SUM($Q19:BR19)))) -> 0 | BT19: =IF($D19>=BT$3,0,IF($G19*$E19/12<($G19-SUM($Q19:BS19)),$G19*$E19/12,($G19-SUM($Q19:BS19)))) -> 0 | BU19: =IF($D19>=BU$3,0,IF($G19*$E19/12<($G19-SUM($Q19:BT19)),$G19*$E19/12,($G19-SUM($Q19:BT19)))) -> 0 | BV19: =IF($D19>=BV$3,0,IF($G19*$E19/12<($G19-SUM($Q19:BU19)),$G19*$E19/12,($G19-SUM($Q19:BU19)))) -> 0 | BW19: =IF($D19>=BW$3,0,IF($G19*$E19/12<($G19-SUM($Q19:BV19)),$G19*$E19/12,($G19-SUM($Q19:BV19)))) -> 0 | BX19: =IF($D19>=BX$3,0,IF($G19*$E19/12<($G19-SUM($Q19:BW19)),$G19*$E19/12,($G19-SUM($Q19:BW19)))) -> 0 | BY19: =IF($D19>=BY$3,0,IF($G19*$E19/12<($G19-SUM($Q19:BX19)),$G19*$E19/12,($G19-SUM($Q19:BX19)))) -> 0 | BZ19: =IF($D19>=BZ$3,0,IF($G19*$E19/12<($G19-SUM($Q19:BY19)),$G19*$E19/12,($G19-SUM($Q19:BY19)))) -> 0 | CA19: =IF($D19>=CA$3,0,IF($G19*$E19/12<($G19-SUM($Q19:BZ19)),$G19*$E19/12,($G19-SUM($Q19:BZ19)))) -> 0 | CB19: =IF($D19>=CB$3,0,IF($G19*$E19/12<($G19-SUM($Q19:CA19)),$G19*$E19/12,($G19-SUM($Q19:CA19)))) -> 0 | CC19: =IF($D19>=CC$3,0,IF($G19*$E19/12<($G19-SUM($Q19:CB19)),$G19*$E19/12,($G19-SUM($Q19:CB19)))) -> 0 | CD19: =IF($D19>=CD$3,0,IF($G19*$E19/12<($G19-SUM($Q19:CC19)),$G19*$E19/12,($G19-SUM($Q19:CC19)))) -> 0 | CE19: =IF($D19>=CE$3,0,IF($G19*$E19/12<($G19-SUM($Q19:CD19)),$G19*$E19/12,($G19-SUM($Q19:CD19)))) -> 0 | CF19: =IF($D19>=CF$3,0,IF($G19*$E19/12<($G19-SUM($Q19:CE19)),$G19*$E19/12,($G19-SUM($Q19:CE19)))) -> 0 | CG19: =IF($D19>=CG$3,0,IF($G19*$E19/12<($G19-SUM($Q19:CF19)),$G19*$E19/12,($G19-SUM($Q19:CF19)))) -> 0 | CH19: =IF($D19>=CH$3,0,IF($G19*$E19/12<($G19-SUM($Q19:CG19)),$G19*$E19/12,($G19-SUM($Q19:CG19)))) -> 0 | CI19: =IF($D19>=CI$3,0,IF($G19*$E19/12<($G19-SUM($Q19:CH19)),$G19*$E19/12,($G19-SUM($Q19:CH19)))) -> 0 | CJ19: =IF($D19>=CJ$3,0,IF($G19*$E19/12<($G19-SUM($Q19:CI19)),$G19*$E19/12,($G19-SUM($Q19:CI19)))) -> 0 | CK19: =IF($D19>=CK$3,0,IF($G19*$E19/12<($G19-SUM($Q19:CJ19)),$G19*$E19/12,($G19-SUM($Q19:CJ19)))) -> 0 | CL19: =IF($D19>=CL$3,0,IF($G19*$E19/12<($G19-SUM($Q19:CK19)),$G19*$E19/12,($G19-SUM($Q19:CK19)))) -> 0 | CM19: =IF($D19>=CM$3,0,IF($G19*$E19/12<($G19-SUM($Q19:CL19)),$G19*$E19/12,($G19-SUM($Q19:CL19)))) -> 0 | CN19: =IF($D19>=CN$3,0,IF($G19*$E19/12<($G19-SUM($Q19:CM19)),$G19*$E19/12,($G19-SUM($Q19:CM19)))) -> 0 | CO19: =IF($D19>=CO$3,0,IF($G19*$E19/12<($G19-SUM($Q19:CN19)),$G19*$E19/12,($G19-SUM($Q19:CN19)))) -> 0 | CP19: =IF($D19>=CP$3,0,IF($G19*$E19/12<($G19-SUM($Q19:CO19)),$G19*$E19/12,($G19-SUM($Q19:CO19)))) -> 0 | CQ19: =IF($D19>=CQ$3,0,IF($G19*$E19/12<($G19-SUM($Q19:CP19)),$G19*$E19/12,($G19-SUM($Q19:CP19)))) -> 0 | CR19: =IF($D19>=CR$3,0,IF($G19*$E19/12<($G19-SUM($Q19:CQ19)),$G19*$E19/12,($G19-SUM($Q19:CQ19)))) -> 0 | CS19: =IF($D19>=CS$3,0,IF($G19*$E19/12<($G19-SUM($Q19:CR19)),$G19*$E19/12,($G19-SUM($Q19:CR19)))) -> 0 | CT19: =IF($D19>=CT$3,0,IF($G19*$E19/12<($G19-SUM($Q19:CS19)),$G19*$E19/12,($G19-SUM($Q19:CS19)))) -> 0 | CU19: =IF($D19>=CU$3,0,IF($G19*$E19/12<($G19-SUM($Q19:CT19)),$G19*$E19/12,($G19-SUM($Q19:CT19)))) -> 0 | CV19: =IF($D19>=CV$3,0,IF($G19*$E19/12<($G19-SUM($Q19:CU19)),$G19*$E19/12,($G19-SUM($Q19:CU19)))) -> 0
A20: =IF(D20<EOMONTH($D$2,-12),"Fuera de plazo",IF(D20>BALANCE!$J$3,"Fuera de plazo","")) ->  | B20: Otros | C20: 0 | D20: 2019-02-15 | G20: =IF(YEAR(D20)<=YEAR($D$2),C20,C20*(1+CONTROL!$H$4)^(YEAR(D20)-YEAR($D$2)))*RIESGO!$C$4 -> 0 | H20: 0 | I20: 0 | J20: 0 | K20: 0 | L20: 0 | M20: 0 | N20: 0 | O20: 0 | Q20: 0 | R20: =IF($D20>=R$3,0,IF($G20*$E20/12<($G20-SUM($Q20:Q20)),$G20*$E20/12,($G20-SUM($Q20:Q20)))) -> 0 | S20: =IF($D20>=S$3,0,IF($G20*$E20/12<($G20-SUM($Q20:R20)),$G20*$E20/12,($G20-SUM($Q20:R20)))) -> 0 | T20: =IF($D20>=T$3,0,IF($G20*$E20/12<($G20-SUM($Q20:S20)),$G20*$E20/12,($G20-SUM($Q20:S20)))) -> 0 | U20: =IF($D20>=U$3,0,IF($G20*$E20/12<($G20-SUM($Q20:T20)),$G20*$E20/12,($G20-SUM($Q20:T20)))) -> 0 | V20: =IF($D20>=V$3,0,IF($G20*$E20/12<($G20-SUM($Q20:U20)),$G20*$E20/12,($G20-SUM($Q20:U20)))) -> 0 | W20: =IF($D20>=W$3,0,IF($G20*$E20/12<($G20-SUM($Q20:V20)),$G20*$E20/12,($G20-SUM($Q20:V20)))) -> 0 | X20: =IF($D20>=X$3,0,IF($G20*$E20/12<($G20-SUM($Q20:W20)),$G20*$E20/12,($G20-SUM($Q20:W20)))) -> 0 | Y20: =IF($D20>=Y$3,0,IF($G20*$E20/12<($G20-SUM($Q20:X20)),$G20*$E20/12,($G20-SUM($Q20:X20)))) -> 0 | Z20: =IF($D20>=Z$3,0,IF($G20*$E20/12<($G20-SUM($Q20:Y20)),$G20*$E20/12,($G20-SUM($Q20:Y20)))) -> 0 | AA20: =IF($D20>=AA$3,0,IF($G20*$E20/12<($G20-SUM($Q20:Z20)),$G20*$E20/12,($G20-SUM($Q20:Z20)))) -> 0 | AB20: =IF($D20>=AB$3,0,IF($G20*$E20/12<($G20-SUM($Q20:AA20)),$G20*$E20/12,($G20-SUM($Q20:AA20)))) -> 0 | AC20: =IF($D20>=AC$3,0,IF($G20*$E20/12<($G20-SUM($Q20:AB20)),$G20*$E20/12,($G20-SUM($Q20:AB20)))) -> 0 | AD20: =IF($D20>=AD$3,0,IF($G20*$E20/12<($G20-SUM($Q20:AC20)),$G20*$E20/12,($G20-SUM($Q20:AC20)))) -> 0 | AE20: =IF($D20>=AE$3,0,IF($G20*$E20/12<($G20-SUM($Q20:AD20)),$G20*$E20/12,($G20-SUM($Q20:AD20)))) -> 0 | AF20: =IF($D20>=AF$3,0,IF($G20*$E20/12<($G20-SUM($Q20:AE20)),$G20*$E20/12,($G20-SUM($Q20:AE20)))) -> 0 | AG20: =IF($D20>=AG$3,0,IF($G20*$E20/12<($G20-SUM($Q20:AF20)),$G20*$E20/12,($G20-SUM($Q20:AF20)))) -> 0 | AH20: =IF($D20>=AH$3,0,IF($G20*$E20/12<($G20-SUM($Q20:AG20)),$G20*$E20/12,($G20-SUM($Q20:AG20)))) -> 0 | AI20: =IF($D20>=AI$3,0,IF($G20*$E20/12<($G20-SUM($Q20:AH20)),$G20*$E20/12,($G20-SUM($Q20:AH20)))) -> 0 | AJ20: =IF($D20>=AJ$3,0,IF($G20*$E20/12<($G20-SUM($Q20:AI20)),$G20*$E20/12,($G20-SUM($Q20:AI20)))) -> 0 | AK20: =IF($D20>=AK$3,0,IF($G20*$E20/12<($G20-SUM($Q20:AJ20)),$G20*$E20/12,($G20-SUM($Q20:AJ20)))) -> 0 | AL20: =IF($D20>=AL$3,0,IF($G20*$E20/12<($G20-SUM($Q20:AK20)),$G20*$E20/12,($G20-SUM($Q20:AK20)))) -> 0 | AM20: =IF($D20>=AM$3,0,IF($G20*$E20/12<($G20-SUM($Q20:AL20)),$G20*$E20/12,($G20-SUM($Q20:AL20)))) -> 0 | AN20: =IF($D20>=AN$3,0,IF($G20*$E20/12<($G20-SUM($Q20:AM20)),$G20*$E20/12,($G20-SUM($Q20:AM20)))) -> 0 | AO20: =IF($D20>=AO$3,0,IF($G20*$E20/12<($G20-SUM($Q20:AN20)),$G20*$E20/12,($G20-SUM($Q20:AN20)))) -> 0 | AP20: =IF($D20>=AP$3,0,IF($G20*$E20/12<($G20-SUM($Q20:AO20)),$G20*$E20/12,($G20-SUM($Q20:AO20)))) -> 0 | AQ20: =IF($D20>=AQ$3,0,IF($G20*$E20/12<($G20-SUM($Q20:AP20)),$G20*$E20/12,($G20-SUM($Q20:AP20)))) -> 0 | AR20: =IF($D20>=AR$3,0,IF($G20*$E20/12<($G20-SUM($Q20:AQ20)),$G20*$E20/12,($G20-SUM($Q20:AQ20)))) -> 0 | AS20: =IF($D20>=AS$3,0,IF($G20*$E20/12<($G20-SUM($Q20:AR20)),$G20*$E20/12,($G20-SUM($Q20:AR20)))) -> 0 | AT20: =IF($D20>=AT$3,0,IF($G20*$E20/12<($G20-SUM($Q20:AS20)),$G20*$E20/12,($G20-SUM($Q20:AS20)))) -> 0 | AU20: =IF($D20>=AU$3,0,IF($G20*$E20/12<($G20-SUM($Q20:AT20)),$G20*$E20/12,($G20-SUM($Q20:AT20)))) -> 0 | AV20: =IF($D20>=AV$3,0,IF($G20*$E20/12<($G20-SUM($Q20:AU20)),$G20*$E20/12,($G20-SUM($Q20:AU20)))) -> 0 | AW20: =IF($D20>=AW$3,0,IF($G20*$E20/12<($G20-SUM($Q20:AV20)),$G20*$E20/12,($G20-SUM($Q20:AV20)))) -> 0 | AX20: =IF($D20>=AX$3,0,IF($G20*$E20/12<($G20-SUM($Q20:AW20)),$G20*$E20/12,($G20-SUM($Q20:AW20)))) -> 0 | AY20: =IF($D20>=AY$3,0,IF($G20*$E20/12<($G20-SUM($Q20:AX20)),$G20*$E20/12,($G20-SUM($Q20:AX20)))) -> 0 | AZ20: =IF($D20>=AZ$3,0,IF($G20*$E20/12<($G20-SUM($Q20:AY20)),$G20*$E20/12,($G20-SUM($Q20:AY20)))) -> 0 | BA20: =IF($D20>=BA$3,0,IF($G20*$E20/12<($G20-SUM($Q20:AZ20)),$G20*$E20/12,($G20-SUM($Q20:AZ20)))) -> 0 | BB20: =IF($D20>=BB$3,0,IF($G20*$E20/12<($G20-SUM($Q20:BA20)),$G20*$E20/12,($G20-SUM($Q20:BA20)))) -> 0 | BC20: =IF($D20>=BC$3,0,IF($G20*$E20/12<($G20-SUM($Q20:BB20)),$G20*$E20/12,($G20-SUM($Q20:BB20)))) -> 0 | BD20: =IF($D20>=BD$3,0,IF($G20*$E20/12<($G20-SUM($Q20:BC20)),$G20*$E20/12,($G20-SUM($Q20:BC20)))) -> 0 | BE20: =IF($D20>=BE$3,0,IF($G20*$E20/12<($G20-SUM($Q20:BD20)),$G20*$E20/12,($G20-SUM($Q20:BD20)))) -> 0 | BF20: =IF($D20>=BF$3,0,IF($G20*$E20/12<($G20-SUM($Q20:BE20)),$G20*$E20/12,($G20-SUM($Q20:BE20)))) -> 0 | BG20: =IF($D20>=BG$3,0,IF($G20*$E20/12<($G20-SUM($Q20:BF20)),$G20*$E20/12,($G20-SUM($Q20:BF20)))) -> 0 | BH20: =IF($D20>=BH$3,0,IF($G20*$E20/12<($G20-SUM($Q20:BG20)),$G20*$E20/12,($G20-SUM($Q20:BG20)))) -> 0 | BI20: =IF($D20>=BI$3,0,IF($G20*$E20/12<($G20-SUM($Q20:BH20)),$G20*$E20/12,($G20-SUM($Q20:BH20)))) -> 0 | BJ20: =IF($D20>=BJ$3,0,IF($G20*$E20/12<($G20-SUM($Q20:BI20)),$G20*$E20/12,($G20-SUM($Q20:BI20)))) -> 0 | BK20: =IF($D20>=BK$3,0,IF($G20*$E20/12<($G20-SUM($Q20:BJ20)),$G20*$E20/12,($G20-SUM($Q20:BJ20)))) -> 0 | BL20: =IF($D20>=BL$3,0,IF($G20*$E20/12<($G20-SUM($Q20:BK20)),$G20*$E20/12,($G20-SUM($Q20:BK20)))) -> 0 | BM20: =IF($D20>=BM$3,0,IF($G20*$E20/12<($G20-SUM($Q20:BL20)),$G20*$E20/12,($G20-SUM($Q20:BL20)))) -> 0 | BN20: =IF($D20>=BN$3,0,IF($G20*$E20/12<($G20-SUM($Q20:BM20)),$G20*$E20/12,($G20-SUM($Q20:BM20)))) -> 0 | BO20: =IF($D20>=BO$3,0,IF($G20*$E20/12<($G20-SUM($Q20:BN20)),$G20*$E20/12,($G20-SUM($Q20:BN20)))) -> 0 | BP20: =IF($D20>=BP$3,0,IF($G20*$E20/12<($G20-SUM($Q20:BO20)),$G20*$E20/12,($G20-SUM($Q20:BO20)))) -> 0 | BQ20: =IF($D20>=BQ$3,0,IF($G20*$E20/12<($G20-SUM($Q20:BP20)),$G20*$E20/12,($G20-SUM($Q20:BP20)))) -> 0 | BR20: =IF($D20>=BR$3,0,IF($G20*$E20/12<($G20-SUM($Q20:BQ20)),$G20*$E20/12,($G20-SUM($Q20:BQ20)))) -> 0 | BS20: =IF($D20>=BS$3,0,IF($G20*$E20/12<($G20-SUM($Q20:BR20)),$G20*$E20/12,($G20-SUM($Q20:BR20)))) -> 0 | BT20: =IF($D20>=BT$3,0,IF($G20*$E20/12<($G20-SUM($Q20:BS20)),$G20*$E20/12,($G20-SUM($Q20:BS20)))) -> 0 | BU20: =IF($D20>=BU$3,0,IF($G20*$E20/12<($G20-SUM($Q20:BT20)),$G20*$E20/12,($G20-SUM($Q20:BT20)))) -> 0 | BV20: =IF($D20>=BV$3,0,IF($G20*$E20/12<($G20-SUM($Q20:BU20)),$G20*$E20/12,($G20-SUM($Q20:BU20)))) -> 0 | BW20: =IF($D20>=BW$3,0,IF($G20*$E20/12<($G20-SUM($Q20:BV20)),$G20*$E20/12,($G20-SUM($Q20:BV20)))) -> 0 | BX20: =IF($D20>=BX$3,0,IF($G20*$E20/12<($G20-SUM($Q20:BW20)),$G20*$E20/12,($G20-SUM($Q20:BW20)))) -> 0 | BY20: =IF($D20>=BY$3,0,IF($G20*$E20/12<($G20-SUM($Q20:BX20)),$G20*$E20/12,($G20-SUM($Q20:BX20)))) -> 0 | BZ20: =IF($D20>=BZ$3,0,IF($G20*$E20/12<($G20-SUM($Q20:BY20)),$G20*$E20/12,($G20-SUM($Q20:BY20)))) -> 0 | CA20: =IF($D20>=CA$3,0,IF($G20*$E20/12<($G20-SUM($Q20:BZ20)),$G20*$E20/12,($G20-SUM($Q20:BZ20)))) -> 0 | CB20: =IF($D20>=CB$3,0,IF($G20*$E20/12<($G20-SUM($Q20:CA20)),$G20*$E20/12,($G20-SUM($Q20:CA20)))) -> 0 | CC20: =IF($D20>=CC$3,0,IF($G20*$E20/12<($G20-SUM($Q20:CB20)),$G20*$E20/12,($G20-SUM($Q20:CB20)))) -> 0 | CD20: =IF($D20>=CD$3,0,IF($G20*$E20/12<($G20-SUM($Q20:CC20)),$G20*$E20/12,($G20-SUM($Q20:CC20)))) -> 0 | CE20: =IF($D20>=CE$3,0,IF($G20*$E20/12<($G20-SUM($Q20:CD20)),$G20*$E20/12,($G20-SUM($Q20:CD20)))) -> 0 | CF20: =IF($D20>=CF$3,0,IF($G20*$E20/12<($G20-SUM($Q20:CE20)),$G20*$E20/12,($G20-SUM($Q20:CE20)))) -> 0 | CG20: =IF($D20>=CG$3,0,IF($G20*$E20/12<($G20-SUM($Q20:CF20)),$G20*$E20/12,($G20-SUM($Q20:CF20)))) -> 0 | CH20: =IF($D20>=CH$3,0,IF($G20*$E20/12<($G20-SUM($Q20:CG20)),$G20*$E20/12,($G20-SUM($Q20:CG20)))) -> 0 | CI20: =IF($D20>=CI$3,0,IF($G20*$E20/12<($G20-SUM($Q20:CH20)),$G20*$E20/12,($G20-SUM($Q20:CH20)))) -> 0 | CJ20: =IF($D20>=CJ$3,0,IF($G20*$E20/12<($G20-SUM($Q20:CI20)),$G20*$E20/12,($G20-SUM($Q20:CI20)))) -> 0 | CK20: =IF($D20>=CK$3,0,IF($G20*$E20/12<($G20-SUM($Q20:CJ20)),$G20*$E20/12,($G20-SUM($Q20:CJ20)))) -> 0 | CL20: =IF($D20>=CL$3,0,IF($G20*$E20/12<($G20-SUM($Q20:CK20)),$G20*$E20/12,($G20-SUM($Q20:CK20)))) -> 0 | CM20: =IF($D20>=CM$3,0,IF($G20*$E20/12<($G20-SUM($Q20:CL20)),$G20*$E20/12,($G20-SUM($Q20:CL20)))) -> 0 | CN20: =IF($D20>=CN$3,0,IF($G20*$E20/12<($G20-SUM($Q20:CM20)),$G20*$E20/12,($G20-SUM($Q20:CM20)))) -> 0 | CO20: =IF($D20>=CO$3,0,IF($G20*$E20/12<($G20-SUM($Q20:CN20)),$G20*$E20/12,($G20-SUM($Q20:CN20)))) -> 0 | CP20: =IF($D20>=CP$3,0,IF($G20*$E20/12<($G20-SUM($Q20:CO20)),$G20*$E20/12,($G20-SUM($Q20:CO20)))) -> 0 | CQ20: =IF($D20>=CQ$3,0,IF($G20*$E20/12<($G20-SUM($Q20:CP20)),$G20*$E20/12,($G20-SUM($Q20:CP20)))) -> 0 | CR20: =IF($D20>=CR$3,0,IF($G20*$E20/12<($G20-SUM($Q20:CQ20)),$G20*$E20/12,($G20-SUM($Q20:CQ20)))) -> 0 | CS20: =IF($D20>=CS$3,0,IF($G20*$E20/12<($G20-SUM($Q20:CR20)),$G20*$E20/12,($G20-SUM($Q20:CR20)))) -> 0 | CT20: =IF($D20>=CT$3,0,IF($G20*$E20/12<($G20-SUM($Q20:CS20)),$G20*$E20/12,($G20-SUM($Q20:CS20)))) -> 0 | CU20: =IF($D20>=CU$3,0,IF($G20*$E20/12<($G20-SUM($Q20:CT20)),$G20*$E20/12,($G20-SUM($Q20:CT20)))) -> 0 | CV20: =IF($D20>=CV$3,0,IF($G20*$E20/12<($G20-SUM($Q20:CU20)),$G20*$E20/12,($G20-SUM($Q20:CU20)))) -> 0
B21: INMOVILIZADO INTANGIBLE
A22: =IF(D22<EOMONTH($D$2,-12),"Fuera de plazo",IF(D22>BALANCE!$J$3,"Fuera de plazo","")) ->  | B22: Creacion Sociedad | C22: 0 | D22: 2019-02-28 | G22: =IF(YEAR(D22)<=YEAR($D$2),C22,C22*(1+CONTROL!$H$4)^(YEAR(D22)-YEAR($D$2)))*RIESGO!$C$4 -> 0 | H22: =G22*F22 -> 0 | I22: =SUMIF($Q$2:$CV$2,I$3,$Q22:$CV22) -> 0 | J22: 0 | K22: 0 | L22: 0 | M22: 0 | N22: 0 | O22: 0 | Q22: 0 | R22: =IF($D22>=R$3,0,IF($G22*$E22/12<($G22-SUM($Q22:Q22)),$G22*$E22/12,($G22-SUM($Q22:Q22)))) -> 0 | S22: =IF($D22>=S$3,0,IF($G22*$E22/12<($G22-SUM($Q22:R22)),$G22*$E22/12,($G22-SUM($Q22:R22)))) -> 0 | T22: =IF($D22>=T$3,0,IF($G22*$E22/12<($G22-SUM($Q22:S22)),$G22*$E22/12,($G22-SUM($Q22:S22)))) -> 0 | U22: =IF($D22>=U$3,0,IF($G22*$E22/12<($G22-SUM($Q22:T22)),$G22*$E22/12,($G22-SUM($Q22:T22)))) -> 0 | V22: =IF($D22>=V$3,0,IF($G22*$E22/12<($G22-SUM($Q22:U22)),$G22*$E22/12,($G22-SUM($Q22:U22)))) -> 0 | W22: =IF($D22>=W$3,0,IF($G22*$E22/12<($G22-SUM($Q22:V22)),$G22*$E22/12,($G22-SUM($Q22:V22)))) -> 0 | X22: =IF($D22>=X$3,0,IF($G22*$E22/12<($G22-SUM($Q22:W22)),$G22*$E22/12,($G22-SUM($Q22:W22)))) -> 0 | Y22: =IF($D22>=Y$3,0,IF($G22*$E22/12<($G22-SUM($Q22:X22)),$G22*$E22/12,($G22-SUM($Q22:X22)))) -> 0 | Z22: =IF($D22>=Z$3,0,IF($G22*$E22/12<($G22-SUM($Q22:Y22)),$G22*$E22/12,($G22-SUM($Q22:Y22)))) -> 0 | AA22: =IF($D22>=AA$3,0,IF($G22*$E22/12<($G22-SUM($Q22:Z22)),$G22*$E22/12,($G22-SUM($Q22:Z22)))) -> 0 | AB22: =IF($D22>=AB$3,0,IF($G22*$E22/12<($G22-SUM($Q22:AA22)),$G22*$E22/12,($G22-SUM($Q22:AA22)))) -> 0 | AC22: =IF($D22>=AC$3,0,IF($G22*$E22/12<($G22-SUM($Q22:AB22)),$G22*$E22/12,($G22-SUM($Q22:AB22)))) -> 0 | AD22: =IF($D22>=AD$3,0,IF($G22*$E22/12<($G22-SUM($Q22:AC22)),$G22*$E22/12,($G22-SUM($Q22:AC22)))) -> 0 | AE22: =IF($D22>=AE$3,0,IF($G22*$E22/12<($G22-SUM($Q22:AD22)),$G22*$E22/12,($G22-SUM($Q22:AD22)))) -> 0 | AF22: =IF($D22>=AF$3,0,IF($G22*$E22/12<($G22-SUM($Q22:AE22)),$G22*$E22/12,($G22-SUM($Q22:AE22)))) -> 0 | AG22: =IF($D22>=AG$3,0,IF($G22*$E22/12<($G22-SUM($Q22:AF22)),$G22*$E22/12,($G22-SUM($Q22:AF22)))) -> 0 | AH22: =IF($D22>=AH$3,0,IF($G22*$E22/12<($G22-SUM($Q22:AG22)),$G22*$E22/12,($G22-SUM($Q22:AG22)))) -> 0 | AI22: =IF($D22>=AI$3,0,IF($G22*$E22/12<($G22-SUM($Q22:AH22)),$G22*$E22/12,($G22-SUM($Q22:AH22)))) -> 0 | AJ22: =IF($D22>=AJ$3,0,IF($G22*$E22/12<($G22-SUM($Q22:AI22)),$G22*$E22/12,($G22-SUM($Q22:AI22)))) -> 0 | AK22: =IF($D22>=AK$3,0,IF($G22*$E22/12<($G22-SUM($Q22:AJ22)),$G22*$E22/12,($G22-SUM($Q22:AJ22)))) -> 0 | AL22: =IF($D22>=AL$3,0,IF($G22*$E22/12<($G22-SUM($Q22:AK22)),$G22*$E22/12,($G22-SUM($Q22:AK22)))) -> 0 | AM22: =IF($D22>=AM$3,0,IF($G22*$E22/12<($G22-SUM($Q22:AL22)),$G22*$E22/12,($G22-SUM($Q22:AL22)))) -> 0 | AN22: =IF($D22>=AN$3,0,IF($G22*$E22/12<($G22-SUM($Q22:AM22)),$G22*$E22/12,($G22-SUM($Q22:AM22)))) -> 0 | AO22: =IF($D22>=AO$3,0,IF($G22*$E22/12<($G22-SUM($Q22:AN22)),$G22*$E22/12,($G22-SUM($Q22:AN22)))) -> 0 | AP22: =IF($D22>=AP$3,0,IF($G22*$E22/12<($G22-SUM($Q22:AO22)),$G22*$E22/12,($G22-SUM($Q22:AO22)))) -> 0 | AQ22: =IF($D22>=AQ$3,0,IF($G22*$E22/12<($G22-SUM($Q22:AP22)),$G22*$E22/12,($G22-SUM($Q22:AP22)))) -> 0 | AR22: =IF($D22>=AR$3,0,IF($G22*$E22/12<($G22-SUM($Q22:AQ22)),$G22*$E22/12,($G22-SUM($Q22:AQ22)))) -> 0 | AS22: =IF($D22>=AS$3,0,IF($G22*$E22/12<($G22-SUM($Q22:AR22)),$G22*$E22/12,($G22-SUM($Q22:AR22)))) -> 0 | AT22: =IF($D22>=AT$3,0,IF($G22*$E22/12<($G22-SUM($Q22:AS22)),$G22*$E22/12,($G22-SUM($Q22:AS22)))) -> 0 | AU22: =IF($D22>=AU$3,0,IF($G22*$E22/12<($G22-SUM($Q22:AT22)),$G22*$E22/12,($G22-SUM($Q22:AT22)))) -> 0 | AV22: =IF($D22>=AV$3,0,IF($G22*$E22/12<($G22-SUM($Q22:AU22)),$G22*$E22/12,($G22-SUM($Q22:AU22)))) -> 0 | AW22: =IF($D22>=AW$3,0,IF($G22*$E22/12<($G22-SUM($Q22:AV22)),$G22*$E22/12,($G22-SUM($Q22:AV22)))) -> 0 | AX22: =IF($D22>=AX$3,0,IF($G22*$E22/12<($G22-SUM($Q22:AW22)),$G22*$E22/12,($G22-SUM($Q22:AW22)))) -> 0 | AY22: =IF($D22>=AY$3,0,IF($G22*$E22/12<($G22-SUM($Q22:AX22)),$G22*$E22/12,($G22-SUM($Q22:AX22)))) -> 0 | AZ22: =IF($D22>=AZ$3,0,IF($G22*$E22/12<($G22-SUM($Q22:AY22)),$G22*$E22/12,($G22-SUM($Q22:AY22)))) -> 0 | BA22: =IF($D22>=BA$3,0,IF($G22*$E22/12<($G22-SUM($Q22:AZ22)),$G22*$E22/12,($G22-SUM($Q22:AZ22)))) -> 0 | BB22: =IF($D22>=BB$3,0,IF($G22*$E22/12<($G22-SUM($Q22:BA22)),$G22*$E22/12,($G22-SUM($Q22:BA22)))) -> 0 | BC22: =IF($D22>=BC$3,0,IF($G22*$E22/12<($G22-SUM($Q22:BB22)),$G22*$E22/12,($G22-SUM($Q22:BB22)))) -> 0 | BD22: =IF($D22>=BD$3,0,IF($G22*$E22/12<($G22-SUM($Q22:BC22)),$G22*$E22/12,($G22-SUM($Q22:BC22)))) -> 0 | BE22: =IF($D22>=BE$3,0,IF($G22*$E22/12<($G22-SUM($Q22:BD22)),$G22*$E22/12,($G22-SUM($Q22:BD22)))) -> 0 | BF22: =IF($D22>=BF$3,0,IF($G22*$E22/12<($G22-SUM($Q22:BE22)),$G22*$E22/12,($G22-SUM($Q22:BE22)))) -> 0 | BG22: =IF($D22>=BG$3,0,IF($G22*$E22/12<($G22-SUM($Q22:BF22)),$G22*$E22/12,($G22-SUM($Q22:BF22)))) -> 0 | BH22: =IF($D22>=BH$3,0,IF($G22*$E22/12<($G22-SUM($Q22:BG22)),$G22*$E22/12,($G22-SUM($Q22:BG22)))) -> 0 | BI22: =IF($D22>=BI$3,0,IF($G22*$E22/12<($G22-SUM($Q22:BH22)),$G22*$E22/12,($G22-SUM($Q22:BH22)))) -> 0 | BJ22: =IF($D22>=BJ$3,0,IF($G22*$E22/12<($G22-SUM($Q22:BI22)),$G22*$E22/12,($G22-SUM($Q22:BI22)))) -> 0 | BK22: =IF($D22>=BK$3,0,IF($G22*$E22/12<($G22-SUM($Q22:BJ22)),$G22*$E22/12,($G22-SUM($Q22:BJ22)))) -> 0 | BL22: =IF($D22>=BL$3,0,IF($G22*$E22/12<($G22-SUM($Q22:BK22)),$G22*$E22/12,($G22-SUM($Q22:BK22)))) -> 0 | BM22: =IF($D22>=BM$3,0,IF($G22*$E22/12<($G22-SUM($Q22:BL22)),$G22*$E22/12,($G22-SUM($Q22:BL22)))) -> 0 | BN22: =IF($D22>=BN$3,0,IF($G22*$E22/12<($G22-SUM($Q22:BM22)),$G22*$E22/12,($G22-SUM($Q22:BM22)))) -> 0 | BO22: =IF($D22>=BO$3,0,IF($G22*$E22/12<($G22-SUM($Q22:BN22)),$G22*$E22/12,($G22-SUM($Q22:BN22)))) -> 0 | BP22: =IF($D22>=BP$3,0,IF($G22*$E22/12<($G22-SUM($Q22:BO22)),$G22*$E22/12,($G22-SUM($Q22:BO22)))) -> 0 | BQ22: =IF($D22>=BQ$3,0,IF($G22*$E22/12<($G22-SUM($Q22:BP22)),$G22*$E22/12,($G22-SUM($Q22:BP22)))) -> 0 | BR22: =IF($D22>=BR$3,0,IF($G22*$E22/12<($G22-SUM($Q22:BQ22)),$G22*$E22/12,($G22-SUM($Q22:BQ22)))) -> 0 | BS22: =IF($D22>=BS$3,0,IF($G22*$E22/12<($G22-SUM($Q22:BR22)),$G22*$E22/12,($G22-SUM($Q22:BR22)))) -> 0 | BT22: =IF($D22>=BT$3,0,IF($G22*$E22/12<($G22-SUM($Q22:BS22)),$G22*$E22/12,($G22-SUM($Q22:BS22)))) -> 0 | BU22: =IF($D22>=BU$3,0,IF($G22*$E22/12<($G22-SUM($Q22:BT22)),$G22*$E22/12,($G22-SUM($Q22:BT22)))) -> 0 | BV22: =IF($D22>=BV$3,0,IF($G22*$E22/12<($G22-SUM($Q22:BU22)),$G22*$E22/12,($G22-SUM($Q22:BU22)))) -> 0 | BW22: =IF($D22>=BW$3,0,IF($G22*$E22/12<($G22-SUM($Q22:BV22)),$G22*$E22/12,($G22-SUM($Q22:BV22)))) -> 0 | BX22: =IF($D22>=BX$3,0,IF($G22*$E22/12<($G22-SUM($Q22:BW22)),$G22*$E22/12,($G22-SUM($Q22:BW22)))) -> 0 | BY22: =IF($D22>=BY$3,0,IF($G22*$E22/12<($G22-SUM($Q22:BX22)),$G22*$E22/12,($G22-SUM($Q22:BX22)))) -> 0 | BZ22: =IF($D22>=BZ$3,0,IF($G22*$E22/12<($G22-SUM($Q22:BY22)),$G22*$E22/12,($G22-SUM($Q22:BY22)))) -> 0 | CA22: =IF($D22>=CA$3,0,IF($G22*$E22/12<($G22-SUM($Q22:BZ22)),$G22*$E22/12,($G22-SUM($Q22:BZ22)))) -> 0 | CB22: =IF($D22>=CB$3,0,IF($G22*$E22/12<($G22-SUM($Q22:CA22)),$G22*$E22/12,($G22-SUM($Q22:CA22)))) -> 0 | CC22: =IF($D22>=CC$3,0,IF($G22*$E22/12<($G22-SUM($Q22:CB22)),$G22*$E22/12,($G22-SUM($Q22:CB22)))) -> 0 | CD22: =IF($D22>=CD$3,0,IF($G22*$E22/12<($G22-SUM($Q22:CC22)),$G22*$E22/12,($G22-SUM($Q22:CC22)))) -> 0 | CE22: =IF($D22>=CE$3,0,IF($G22*$E22/12<($G22-SUM($Q22:CD22)),$G22*$E22/12,($G22-SUM($Q22:CD22)))) -> 0 | CF22: =IF($D22>=CF$3,0,IF($G22*$E22/12<($G22-SUM($Q22:CE22)),$G22*$E22/12,($G22-SUM($Q22:CE22)))) -> 0 | CG22: =IF($D22>=CG$3,0,IF($G22*$E22/12<($G22-SUM($Q22:CF22)),$G22*$E22/12,($G22-SUM($Q22:CF22)))) -> 0 | CH22: =IF($D22>=CH$3,0,IF($G22*$E22/12<($G22-SUM($Q22:CG22)),$G22*$E22/12,($G22-SUM($Q22:CG22)))) -> 0 | CI22: =IF($D22>=CI$3,0,IF($G22*$E22/12<($G22-SUM($Q22:CH22)),$G22*$E22/12,($G22-SUM($Q22:CH22)))) -> 0 | CJ22: =IF($D22>=CJ$3,0,IF($G22*$E22/12<($G22-SUM($Q22:CI22)),$G22*$E22/12,($G22-SUM($Q22:CI22)))) -> 0 | CK22: =IF($D22>=CK$3,0,IF($G22*$E22/12<($G22-SUM($Q22:CJ22)),$G22*$E22/12,($G22-SUM($Q22:CJ22)))) -> 0 | CL22: =IF($D22>=CL$3,0,IF($G22*$E22/12<($G22-SUM($Q22:CK22)),$G22*$E22/12,($G22-SUM($Q22:CK22)))) -> 0 | CM22: =IF($D22>=CM$3,0,IF($G22*$E22/12<($G22-SUM($Q22:CL22)),$G22*$E22/12,($G22-SUM($Q22:CL22)))) -> 0 | CN22: =IF($D22>=CN$3,0,IF($G22*$E22/12<($G22-SUM($Q22:CM22)),$G22*$E22/12,($G22-SUM($Q22:CM22)))) -> 0 | CO22: =IF($D22>=CO$3,0,IF($G22*$E22/12<($G22-SUM($Q22:CN22)),$G22*$E22/12,($G22-SUM($Q22:CN22)))) -> 0 | CP22: =IF($D22>=CP$3,0,IF($G22*$E22/12<($G22-SUM($Q22:CO22)),$G22*$E22/12,($G22-SUM($Q22:CO22)))) -> 0 | CQ22: =IF($D22>=CQ$3,0,IF($G22*$E22/12<($G22-SUM($Q22:CP22)),$G22*$E22/12,($G22-SUM($Q22:CP22)))) -> 0 | CR22: =IF($D22>=CR$3,0,IF($G22*$E22/12<($G22-SUM($Q22:CQ22)),$G22*$E22/12,($G22-SUM($Q22:CQ22)))) -> 0 | CS22: =IF($D22>=CS$3,0,IF($G22*$E22/12<($G22-SUM($Q22:CR22)),$G22*$E22/12,($G22-SUM($Q22:CR22)))) -> 0 | CT22: =IF($D22>=CT$3,0,IF($G22*$E22/12<($G22-SUM($Q22:CS22)),$G22*$E22/12,($G22-SUM($Q22:CS22)))) -> 0 | CU22: =IF($D22>=CU$3,0,IF($G22*$E22/12<($G22-SUM($Q22:CT22)),$G22*$E22/12,($G22-SUM($Q22:CT22)))) -> 0 | CV22: =IF($D22>=CV$3,0,IF($G22*$E22/12<($G22-SUM($Q22:CU22)),$G22*$E22/12,($G22-SUM($Q22:CU22)))) -> 0
A23: =IF(D23<EOMONTH($D$2,-12),"Fuera de plazo",IF(D23>BALANCE!$J$3,"Fuera de plazo","")) ->  | B23: Aplicaciones Informáticas | C23: 1000 | D23: 2020-01-31 | E23: 0.33 | F23: 0.21 | G23: =IF(YEAR(D23)<=YEAR($D$2),C23,C23*(1+CONTROL!$H$4)^(YEAR(D23)-YEAR($D$2)))*RIESGO!$C$4 -> 1000 | H23: 210 | I23: 302.5 | J23: 330 | K23: 330 | L23: 37.5 | M23: 0 | N23: 0 | O23: 0 | Q23: 0 | R23: =IF($D23>=R$3,0,IF($G23*$E23/12<($G23-SUM($Q23:Q23)),$G23*$E23/12,($G23-SUM($Q23:Q23)))) -> 27.5 | S23: =IF($D23>=S$3,0,IF($G23*$E23/12<($G23-SUM($Q23:R23)),$G23*$E23/12,($G23-SUM($Q23:R23)))) -> 27.5 | T23: =IF($D23>=T$3,0,IF($G23*$E23/12<($G23-SUM($Q23:S23)),$G23*$E23/12,($G23-SUM($Q23:S23)))) -> 27.5 | U23: =IF($D23>=U$3,0,IF($G23*$E23/12<($G23-SUM($Q23:T23)),$G23*$E23/12,($G23-SUM($Q23:T23)))) -> 27.5 | V23: =IF($D23>=V$3,0,IF($G23*$E23/12<($G23-SUM($Q23:U23)),$G23*$E23/12,($G23-SUM($Q23:U23)))) -> 27.5 | W23: =IF($D23>=W$3,0,IF($G23*$E23/12<($G23-SUM($Q23:V23)),$G23*$E23/12,($G23-SUM($Q23:V23)))) -> 27.5 | X23: =IF($D23>=X$3,0,IF($G23*$E23/12<($G23-SUM($Q23:W23)),$G23*$E23/12,($G23-SUM($Q23:W23)))) -> 27.5 | Y23: =IF($D23>=Y$3,0,IF($G23*$E23/12<($G23-SUM($Q23:X23)),$G23*$E23/12,($G23-SUM($Q23:X23)))) -> 27.5 | Z23: =IF($D23>=Z$3,0,IF($G23*$E23/12<($G23-SUM($Q23:Y23)),$G23*$E23/12,($G23-SUM($Q23:Y23)))) -> 27.5 | AA23: =IF($D23>=AA$3,0,IF($G23*$E23/12<($G23-SUM($Q23:Z23)),$G23*$E23/12,($G23-SUM($Q23:Z23)))) -> 27.5 | AB23: =IF($D23>=AB$3,0,IF($G23*$E23/12<($G23-SUM($Q23:AA23)),$G23*$E23/12,($G23-SUM($Q23:AA23)))) -> 27.5 | AC23: =IF($D23>=AC$3,0,IF($G23*$E23/12<($G23-SUM($Q23:AB23)),$G23*$E23/12,($G23-SUM($Q23:AB23)))) -> 27.5 | AD23: =IF($D23>=AD$3,0,IF($G23*$E23/12<($G23-SUM($Q23:AC23)),$G23*$E23/12,($G23-SUM($Q23:AC23)))) -> 27.5 | AE23: =IF($D23>=AE$3,0,IF($G23*$E23/12<($G23-SUM($Q23:AD23)),$G23*$E23/12,($G23-SUM($Q23:AD23)))) -> 27.5 | AF23: =IF($D23>=AF$3,0,IF($G23*$E23/12<($G23-SUM($Q23:AE23)),$G23*$E23/12,($G23-SUM($Q23:AE23)))) -> 27.5 | AG23: =IF($D23>=AG$3,0,IF($G23*$E23/12<($G23-SUM($Q23:AF23)),$G23*$E23/12,($G23-SUM($Q23:AF23)))) -> 27.5 | AH23: =IF($D23>=AH$3,0,IF($G23*$E23/12<($G23-SUM($Q23:AG23)),$G23*$E23/12,($G23-SUM($Q23:AG23)))) -> 27.5 | AI23: =IF($D23>=AI$3,0,IF($G23*$E23/12<($G23-SUM($Q23:AH23)),$G23*$E23/12,($G23-SUM($Q23:AH23)))) -> 27.5 | AJ23: =IF($D23>=AJ$3,0,IF($G23*$E23/12<($G23-SUM($Q23:AI23)),$G23*$E23/12,($G23-SUM($Q23:AI23)))) -> 27.5 | AK23: =IF($D23>=AK$3,0,IF($G23*$E23/12<($G23-SUM($Q23:AJ23)),$G23*$E23/12,($G23-SUM($Q23:AJ23)))) -> 27.5 | AL23: =IF($D23>=AL$3,0,IF($G23*$E23/12<($G23-SUM($Q23:AK23)),$G23*$E23/12,($G23-SUM($Q23:AK23)))) -> 27.5 | AM23: =IF($D23>=AM$3,0,IF($G23*$E23/12<($G23-SUM($Q23:AL23)),$G23*$E23/12,($G23-SUM($Q23:AL23)))) -> 27.5 | AN23: =IF($D23>=AN$3,0,IF($G23*$E23/12<($G23-SUM($Q23:AM23)),$G23*$E23/12,($G23-SUM($Q23:AM23)))) -> 27.5 | AO23: =IF($D23>=AO$3,0,IF($G23*$E23/12<($G23-SUM($Q23:AN23)),$G23*$E23/12,($G23-SUM($Q23:AN23)))) -> 27.5 | AP23: =IF($D23>=AP$3,0,IF($G23*$E23/12<($G23-SUM($Q23:AO23)),$G23*$E23/12,($G23-SUM($Q23:AO23)))) -> 27.5 | AQ23: =IF($D23>=AQ$3,0,IF($G23*$E23/12<($G23-SUM($Q23:AP23)),$G23*$E23/12,($G23-SUM($Q23:AP23)))) -> 27.5 | AR23: =IF($D23>=AR$3,0,IF($G23*$E23/12<($G23-SUM($Q23:AQ23)),$G23*$E23/12,($G23-SUM($Q23:AQ23)))) -> 27.5 | AS23: =IF($D23>=AS$3,0,IF($G23*$E23/12<($G23-SUM($Q23:AR23)),$G23*$E23/12,($G23-SUM($Q23:AR23)))) -> 27.5 | AT23: =IF($D23>=AT$3,0,IF($G23*$E23/12<($G23-SUM($Q23:AS23)),$G23*$E23/12,($G23-SUM($Q23:AS23)))) -> 27.5 | AU23: =IF($D23>=AU$3,0,IF($G23*$E23/12<($G23-SUM($Q23:AT23)),$G23*$E23/12,($G23-SUM($Q23:AT23)))) -> 27.5 | AV23: =IF($D23>=AV$3,0,IF($G23*$E23/12<($G23-SUM($Q23:AU23)),$G23*$E23/12,($G23-SUM($Q23:AU23)))) -> 27.5 | AW23: =IF($D23>=AW$3,0,IF($G23*$E23/12<($G23-SUM($Q23:AV23)),$G23*$E23/12,($G23-SUM($Q23:AV23)))) -> 27.5 | AX23: =IF($D23>=AX$3,0,IF($G23*$E23/12<($G23-SUM($Q23:AW23)),$G23*$E23/12,($G23-SUM($Q23:AW23)))) -> 27.5 | AY23: =IF($D23>=AY$3,0,IF($G23*$E23/12<($G23-SUM($Q23:AX23)),$G23*$E23/12,($G23-SUM($Q23:AX23)))) -> 27.5 | AZ23: =IF($D23>=AZ$3,0,IF($G23*$E23/12<($G23-SUM($Q23:AY23)),$G23*$E23/12,($G23-SUM($Q23:AY23)))) -> 27.5 | BA23: =IF($D23>=BA$3,0,IF($G23*$E23/12<($G23-SUM($Q23:AZ23)),$G23*$E23/12,($G23-SUM($Q23:AZ23)))) -> 27.5 | BB23: =IF($D23>=BB$3,0,IF($G23*$E23/12<($G23-SUM($Q23:BA23)),$G23*$E23/12,($G23-SUM($Q23:BA23)))) -> 10 | BC23: =IF($D23>=BC$3,0,IF($G23*$E23/12<($G23-SUM($Q23:BB23)),$G23*$E23/12,($G23-SUM($Q23:BB23)))) -> 0 | BD23: =IF($D23>=BD$3,0,IF($G23*$E23/12<($G23-SUM($Q23:BC23)),$G23*$E23/12,($G23-SUM($Q23:BC23)))) -> 0 | BE23: =IF($D23>=BE$3,0,IF($G23*$E23/12<($G23-SUM($Q23:BD23)),$G23*$E23/12,($G23-SUM($Q23:BD23)))) -> 0 | BF23: =IF($D23>=BF$3,0,IF($G23*$E23/12<($G23-SUM($Q23:BE23)),$G23*$E23/12,($G23-SUM($Q23:BE23)))) -> 0 | BG23: =IF($D23>=BG$3,0,IF($G23*$E23/12<($G23-SUM($Q23:BF23)),$G23*$E23/12,($G23-SUM($Q23:BF23)))) -> 0 | BH23: =IF($D23>=BH$3,0,IF($G23*$E23/12<($G23-SUM($Q23:BG23)),$G23*$E23/12,($G23-SUM($Q23:BG23)))) -> 0 | BI23: =IF($D23>=BI$3,0,IF($G23*$E23/12<($G23-SUM($Q23:BH23)),$G23*$E23/12,($G23-SUM($Q23:BH23)))) -> 0 | BJ23: =IF($D23>=BJ$3,0,IF($G23*$E23/12<($G23-SUM($Q23:BI23)),$G23*$E23/12,($G23-SUM($Q23:BI23)))) -> 0 | BK23: =IF($D23>=BK$3,0,IF($G23*$E23/12<($G23-SUM($Q23:BJ23)),$G23*$E23/12,($G23-SUM($Q23:BJ23)))) -> 0 | BL23: =IF($D23>=BL$3,0,IF($G23*$E23/12<($G23-SUM($Q23:BK23)),$G23*$E23/12,($G23-SUM($Q23:BK23)))) -> 0 | BM23: =IF($D23>=BM$3,0,IF($G23*$E23/12<($G23-SUM($Q23:BL23)),$G23*$E23/12,($G23-SUM($Q23:BL23)))) -> 0 | BN23: =IF($D23>=BN$3,0,IF($G23*$E23/12<($G23-SUM($Q23:BM23)),$G23*$E23/12,($G23-SUM($Q23:BM23)))) -> 0 | BO23: =IF($D23>=BO$3,0,IF($G23*$E23/12<($G23-SUM($Q23:BN23)),$G23*$E23/12,($G23-SUM($Q23:BN23)))) -> 0 | BP23: =IF($D23>=BP$3,0,IF($G23*$E23/12<($G23-SUM($Q23:BO23)),$G23*$E23/12,($G23-SUM($Q23:BO23)))) -> 0 | BQ23: =IF($D23>=BQ$3,0,IF($G23*$E23/12<($G23-SUM($Q23:BP23)),$G23*$E23/12,($G23-SUM($Q23:BP23)))) -> 0 | BR23: =IF($D23>=BR$3,0,IF($G23*$E23/12<($G23-SUM($Q23:BQ23)),$G23*$E23/12,($G23-SUM($Q23:BQ23)))) -> 0 | BS23: =IF($D23>=BS$3,0,IF($G23*$E23/12<($G23-SUM($Q23:BR23)),$G23*$E23/12,($G23-SUM($Q23:BR23)))) -> 0 | BT23: =IF($D23>=BT$3,0,IF($G23*$E23/12<($G23-SUM($Q23:BS23)),$G23*$E23/12,($G23-SUM($Q23:BS23)))) -> 0 | BU23: =IF($D23>=BU$3,0,IF($G23*$E23/12<($G23-SUM($Q23:BT23)),$G23*$E23/12,($G23-SUM($Q23:BT23)))) -> 0 | BV23: =IF($D23>=BV$3,0,IF($G23*$E23/12<($G23-SUM($Q23:BU23)),$G23*$E23/12,($G23-SUM($Q23:BU23)))) -> 0 | BW23: =IF($D23>=BW$3,0,IF($G23*$E23/12<($G23-SUM($Q23:BV23)),$G23*$E23/12,($G23-SUM($Q23:BV23)))) -> 0 | BX23: =IF($D23>=BX$3,0,IF($G23*$E23/12<($G23-SUM($Q23:BW23)),$G23*$E23/12,($G23-SUM($Q23:BW23)))) -> 0 | BY23: =IF($D23>=BY$3,0,IF($G23*$E23/12<($G23-SUM($Q23:BX23)),$G23*$E23/12,($G23-SUM($Q23:BX23)))) -> 0 | BZ23: =IF($D23>=BZ$3,0,IF($G23*$E23/12<($G23-SUM($Q23:BY23)),$G23*$E23/12,($G23-SUM($Q23:BY23)))) -> 0 | CA23: =IF($D23>=CA$3,0,IF($G23*$E23/12<($G23-SUM($Q23:BZ23)),$G23*$E23/12,($G23-SUM($Q23:BZ23)))) -> 0 | CB23: =IF($D23>=CB$3,0,IF($G23*$E23/12<($G23-SUM($Q23:CA23)),$G23*$E23/12,($G23-SUM($Q23:CA23)))) -> 0 | CC23: =IF($D23>=CC$3,0,IF($G23*$E23/12<($G23-SUM($Q23:CB23)),$G23*$E23/12,($G23-SUM($Q23:CB23)))) -> 0 | CD23: =IF($D23>=CD$3,0,IF($G23*$E23/12<($G23-SUM($Q23:CC23)),$G23*$E23/12,($G23-SUM($Q23:CC23)))) -> 0 | CE23: =IF($D23>=CE$3,0,IF($G23*$E23/12<($G23-SUM($Q23:CD23)),$G23*$E23/12,($G23-SUM($Q23:CD23)))) -> 0 | CF23: =IF($D23>=CF$3,0,IF($G23*$E23/12<($G23-SUM($Q23:CE23)),$G23*$E23/12,($G23-SUM($Q23:CE23)))) -> 0 | CG23: =IF($D23>=CG$3,0,IF($G23*$E23/12<($G23-SUM($Q23:CF23)),$G23*$E23/12,($G23-SUM($Q23:CF23)))) -> 0 | CH23: =IF($D23>=CH$3,0,IF($G23*$E23/12<($G23-SUM($Q23:CG23)),$G23*$E23/12,($G23-SUM($Q23:CG23)))) -> 0 | CI23: =IF($D23>=CI$3,0,IF($G23*$E23/12<($G23-SUM($Q23:CH23)),$G23*$E23/12,($G23-SUM($Q23:CH23)))) -> 0 | CJ23: =IF($D23>=CJ$3,0,IF($G23*$E23/12<($G23-SUM($Q23:CI23)),$G23*$E23/12,($G23-SUM($Q23:CI23)))) -> 0 | CK23: =IF($D23>=CK$3,0,IF($G23*$E23/12<($G23-SUM($Q23:CJ23)),$G23*$E23/12,($G23-SUM($Q23:CJ23)))) -> 0 | CL23: =IF($D23>=CL$3,0,IF($G23*$E23/12<($G23-SUM($Q23:CK23)),$G23*$E23/12,($G23-SUM($Q23:CK23)))) -> 0 | CM23: =IF($D23>=CM$3,0,IF($G23*$E23/12<($G23-SUM($Q23:CL23)),$G23*$E23/12,($G23-SUM($Q23:CL23)))) -> 0 | CN23: =IF($D23>=CN$3,0,IF($G23*$E23/12<($G23-SUM($Q23:CM23)),$G23*$E23/12,($G23-SUM($Q23:CM23)))) -> 0 | CO23: =IF($D23>=CO$3,0,IF($G23*$E23/12<($G23-SUM($Q23:CN23)),$G23*$E23/12,($G23-SUM($Q23:CN23)))) -> 0 | CP23: =IF($D23>=CP$3,0,IF($G23*$E23/12<($G23-SUM($Q23:CO23)),$G23*$E23/12,($G23-SUM($Q23:CO23)))) -> 0 | CQ23: =IF($D23>=CQ$3,0,IF($G23*$E23/12<($G23-SUM($Q23:CP23)),$G23*$E23/12,($G23-SUM($Q23:CP23)))) -> 0 | CR23: =IF($D23>=CR$3,0,IF($G23*$E23/12<($G23-SUM($Q23:CQ23)),$G23*$E23/12,($G23-SUM($Q23:CQ23)))) -> 0 | CS23: =IF($D23>=CS$3,0,IF($G23*$E23/12<($G23-SUM($Q23:CR23)),$G23*$E23/12,($G23-SUM($Q23:CR23)))) -> 0 | CT23: =IF($D23>=CT$3,0,IF($G23*$E23/12<($G23-SUM($Q23:CS23)),$G23*$E23/12,($G23-SUM($Q23:CS23)))) -> 0 | CU23: =IF($D23>=CU$3,0,IF($G23*$E23/12<($G23-SUM($Q23:CT23)),$G23*$E23/12,($G23-SUM($Q23:CT23)))) -> 0 | CV23: =IF($D23>=CV$3,0,IF($G23*$E23/12<($G23-SUM($Q23:CU23)),$G23*$E23/12,($G23-SUM($Q23:CU23)))) -> 0
A24: =IF(D24<EOMONTH($D$2,-12),"Fuera de plazo",IF(D24>BALANCE!$J$3,"Fuera de plazo","")) ->  | B24: Otros | C24: 0 | D24: 2019-03-02 | G24: =IF(YEAR(D24)<=YEAR($D$2),C24,C24*(1+CONTROL!$H$4)^(YEAR(D24)-YEAR($D$2)))*RIESGO!$C$4 -> 0 | H24: 0 | I24: 0 | J24: 0 | K24: 0 | L24: 0 | M24: 0 | N24: 0 | O24: 0 | Q24: 0 | R24: =IF($D24>=R$3,0,IF($G24*$E24/12<($G24-SUM($Q24:Q24)),$G24*$E24/12,($G24-SUM($Q24:Q24)))) -> 0 | S24: =IF($D24>=S$3,0,IF($G24*$E24/12<($G24-SUM($Q24:R24)),$G24*$E24/12,($G24-SUM($Q24:R24)))) -> 0 | T24: =IF($D24>=T$3,0,IF($G24*$E24/12<($G24-SUM($Q24:S24)),$G24*$E24/12,($G24-SUM($Q24:S24)))) -> 0 | U24: =IF($D24>=U$3,0,IF($G24*$E24/12<($G24-SUM($Q24:T24)),$G24*$E24/12,($G24-SUM($Q24:T24)))) -> 0 | V24: =IF($D24>=V$3,0,IF($G24*$E24/12<($G24-SUM($Q24:U24)),$G24*$E24/12,($G24-SUM($Q24:U24)))) -> 0 | W24: =IF($D24>=W$3,0,IF($G24*$E24/12<($G24-SUM($Q24:V24)),$G24*$E24/12,($G24-SUM($Q24:V24)))) -> 0 | X24: =IF($D24>=X$3,0,IF($G24*$E24/12<($G24-SUM($Q24:W24)),$G24*$E24/12,($G24-SUM($Q24:W24)))) -> 0 | Y24: =IF($D24>=Y$3,0,IF($G24*$E24/12<($G24-SUM($Q24:X24)),$G24*$E24/12,($G24-SUM($Q24:X24)))) -> 0 | Z24: =IF($D24>=Z$3,0,IF($G24*$E24/12<($G24-SUM($Q24:Y24)),$G24*$E24/12,($G24-SUM($Q24:Y24)))) -> 0 | AA24: =IF($D24>=AA$3,0,IF($G24*$E24/12<($G24-SUM($Q24:Z24)),$G24*$E24/12,($G24-SUM($Q24:Z24)))) -> 0 | AB24: =IF($D24>=AB$3,0,IF($G24*$E24/12<($G24-SUM($Q24:AA24)),$G24*$E24/12,($G24-SUM($Q24:AA24)))) -> 0 | AC24: =IF($D24>=AC$3,0,IF($G24*$E24/12<($G24-SUM($Q24:AB24)),$G24*$E24/12,($G24-SUM($Q24:AB24)))) -> 0 | AD24: =IF($D24>=AD$3,0,IF($G24*$E24/12<($G24-SUM($Q24:AC24)),$G24*$E24/12,($G24-SUM($Q24:AC24)))) -> 0 | AE24: =IF($D24>=AE$3,0,IF($G24*$E24/12<($G24-SUM($Q24:AD24)),$G24*$E24/12,($G24-SUM($Q24:AD24)))) -> 0 | AF24: =IF($D24>=AF$3,0,IF($G24*$E24/12<($G24-SUM($Q24:AE24)),$G24*$E24/12,($G24-SUM($Q24:AE24)))) -> 0 | AG24: =IF($D24>=AG$3,0,IF($G24*$E24/12<($G24-SUM($Q24:AF24)),$G24*$E24/12,($G24-SUM($Q24:AF24)))) -> 0 | AH24: =IF($D24>=AH$3,0,IF($G24*$E24/12<($G24-SUM($Q24:AG24)),$G24*$E24/12,($G24-SUM($Q24:AG24)))) -> 0 | AI24: =IF($D24>=AI$3,0,IF($G24*$E24/12<($G24-SUM($Q24:AH24)),$G24*$E24/12,($G24-SUM($Q24:AH24)))) -> 0 | AJ24: =IF($D24>=AJ$3,0,IF($G24*$E24/12<($G24-SUM($Q24:AI24)),$G24*$E24/12,($G24-SUM($Q24:AI24)))) -> 0 | AK24: =IF($D24>=AK$3,0,IF($G24*$E24/12<($G24-SUM($Q24:AJ24)),$G24*$E24/12,($G24-SUM($Q24:AJ24)))) -> 0 | AL24: =IF($D24>=AL$3,0,IF($G24*$E24/12<($G24-SUM($Q24:AK24)),$G24*$E24/12,($G24-SUM($Q24:AK24)))) -> 0 | AM24: =IF($D24>=AM$3,0,IF($G24*$E24/12<($G24-SUM($Q24:AL24)),$G24*$E24/12,($G24-SUM($Q24:AL24)))) -> 0 | AN24: =IF($D24>=AN$3,0,IF($G24*$E24/12<($G24-SUM($Q24:AM24)),$G24*$E24/12,($G24-SUM($Q24:AM24)))) -> 0 | AO24: =IF($D24>=AO$3,0,IF($G24*$E24/12<($G24-SUM($Q24:AN24)),$G24*$E24/12,($G24-SUM($Q24:AN24)))) -> 0 | AP24: =IF($D24>=AP$3,0,IF($G24*$E24/12<($G24-SUM($Q24:AO24)),$G24*$E24/12,($G24-SUM($Q24:AO24)))) -> 0 | AQ24: =IF($D24>=AQ$3,0,IF($G24*$E24/12<($G24-SUM($Q24:AP24)),$G24*$E24/12,($G24-SUM($Q24:AP24)))) -> 0 | AR24: =IF($D24>=AR$3,0,IF($G24*$E24/12<($G24-SUM($Q24:AQ24)),$G24*$E24/12,($G24-SUM($Q24:AQ24)))) -> 0 | AS24: =IF($D24>=AS$3,0,IF($G24*$E24/12<($G24-SUM($Q24:AR24)),$G24*$E24/12,($G24-SUM($Q24:AR24)))) -> 0 | AT24: =IF($D24>=AT$3,0,IF($G24*$E24/12<($G24-SUM($Q24:AS24)),$G24*$E24/12,($G24-SUM($Q24:AS24)))) -> 0 | AU24: =IF($D24>=AU$3,0,IF($G24*$E24/12<($G24-SUM($Q24:AT24)),$G24*$E24/12,($G24-SUM($Q24:AT24)))) -> 0 | AV24: =IF($D24>=AV$3,0,IF($G24*$E24/12<($G24-SUM($Q24:AU24)),$G24*$E24/12,($G24-SUM($Q24:AU24)))) -> 0 | AW24: =IF($D24>=AW$3,0,IF($G24*$E24/12<($G24-SUM($Q24:AV24)),$G24*$E24/12,($G24-SUM($Q24:AV24)))) -> 0 | AX24: =IF($D24>=AX$3,0,IF($G24*$E24/12<($G24-SUM($Q24:AW24)),$G24*$E24/12,($G24-SUM($Q24:AW24)))) -> 0 | AY24: =IF($D24>=AY$3,0,IF($G24*$E24/12<($G24-SUM($Q24:AX24)),$G24*$E24/12,($G24-SUM($Q24:AX24)))) -> 0 | AZ24: =IF($D24>=AZ$3,0,IF($G24*$E24/12<($G24-SUM($Q24:AY24)),$G24*$E24/12,($G24-SUM($Q24:AY24)))) -> 0 | BA24: =IF($D24>=BA$3,0,IF($G24*$E24/12<($G24-SUM($Q24:AZ24)),$G24*$E24/12,($G24-SUM($Q24:AZ24)))) -> 0 | BB24: =IF($D24>=BB$3,0,IF($G24*$E24/12<($G24-SUM($Q24:BA24)),$G24*$E24/12,($G24-SUM($Q24:BA24)))) -> 0 | BC24: =IF($D24>=BC$3,0,IF($G24*$E24/12<($G24-SUM($Q24:BB24)),$G24*$E24/12,($G24-SUM($Q24:BB24)))) -> 0 | BD24: =IF($D24>=BD$3,0,IF($G24*$E24/12<($G24-SUM($Q24:BC24)),$G24*$E24/12,($G24-SUM($Q24:BC24)))) -> 0 | BE24: =IF($D24>=BE$3,0,IF($G24*$E24/12<($G24-SUM($Q24:BD24)),$G24*$E24/12,($G24-SUM($Q24:BD24)))) -> 0 | BF24: =IF($D24>=BF$3,0,IF($G24*$E24/12<($G24-SUM($Q24:BE24)),$G24*$E24/12,($G24-SUM($Q24:BE24)))) -> 0 | BG24: =IF($D24>=BG$3,0,IF($G24*$E24/12<($G24-SUM($Q24:BF24)),$G24*$E24/12,($G24-SUM($Q24:BF24)))) -> 0 | BH24: =IF($D24>=BH$3,0,IF($G24*$E24/12<($G24-SUM($Q24:BG24)),$G24*$E24/12,($G24-SUM($Q24:BG24)))) -> 0 | BI24: =IF($D24>=BI$3,0,IF($G24*$E24/12<($G24-SUM($Q24:BH24)),$G24*$E24/12,($G24-SUM($Q24:BH24)))) -> 0 | BJ24: =IF($D24>=BJ$3,0,IF($G24*$E24/12<($G24-SUM($Q24:BI24)),$G24*$E24/12,($G24-SUM($Q24:BI24)))) -> 0 | BK24: =IF($D24>=BK$3,0,IF($G24*$E24/12<($G24-SUM($Q24:BJ24)),$G24*$E24/12,($G24-SUM($Q24:BJ24)))) -> 0 | BL24: =IF($D24>=BL$3,0,IF($G24*$E24/12<($G24-SUM($Q24:BK24)),$G24*$E24/12,($G24-SUM($Q24:BK24)))) -> 0 | BM24: =IF($D24>=BM$3,0,IF($G24*$E24/12<($G24-SUM($Q24:BL24)),$G24*$E24/12,($G24-SUM($Q24:BL24)))) -> 0 | BN24: =IF($D24>=BN$3,0,IF($G24*$E24/12<($G24-SUM($Q24:BM24)),$G24*$E24/12,($G24-SUM($Q24:BM24)))) -> 0 | BO24: =IF($D24>=BO$3,0,IF($G24*$E24/12<($G24-SUM($Q24:BN24)),$G24*$E24/12,($G24-SUM($Q24:BN24)))) -> 0 | BP24: =IF($D24>=BP$3,0,IF($G24*$E24/12<($G24-SUM($Q24:BO24)),$G24*$E24/12,($G24-SUM($Q24:BO24)))) -> 0 | BQ24: =IF($D24>=BQ$3,0,IF($G24*$E24/12<($G24-SUM($Q24:BP24)),$G24*$E24/12,($G24-SUM($Q24:BP24)))) -> 0 | BR24: =IF($D24>=BR$3,0,IF($G24*$E24/12<($G24-SUM($Q24:BQ24)),$G24*$E24/12,($G24-SUM($Q24:BQ24)))) -> 0 | BS24: =IF($D24>=BS$3,0,IF($G24*$E24/12<($G24-SUM($Q24:BR24)),$G24*$E24/12,($G24-SUM($Q24:BR24)))) -> 0 | BT24: =IF($D24>=BT$3,0,IF($G24*$E24/12<($G24-SUM($Q24:BS24)),$G24*$E24/12,($G24-SUM($Q24:BS24)))) -> 0 | BU24: =IF($D24>=BU$3,0,IF($G24*$E24/12<($G24-SUM($Q24:BT24)),$G24*$E24/12,($G24-SUM($Q24:BT24)))) -> 0 | BV24: =IF($D24>=BV$3,0,IF($G24*$E24/12<($G24-SUM($Q24:BU24)),$G24*$E24/12,($G24-SUM($Q24:BU24)))) -> 0 | BW24: =IF($D24>=BW$3,0,IF($G24*$E24/12<($G24-SUM($Q24:BV24)),$G24*$E24/12,($G24-SUM($Q24:BV24)))) -> 0 | BX24: =IF($D24>=BX$3,0,IF($G24*$E24/12<($G24-SUM($Q24:BW24)),$G24*$E24/12,($G24-SUM($Q24:BW24)))) -> 0 | BY24: =IF($D24>=BY$3,0,IF($G24*$E24/12<($G24-SUM($Q24:BX24)),$G24*$E24/12,($G24-SUM($Q24:BX24)))) -> 0 | BZ24: =IF($D24>=BZ$3,0,IF($G24*$E24/12<($G24-SUM($Q24:BY24)),$G24*$E24/12,($G24-SUM($Q24:BY24)))) -> 0 | CA24: =IF($D24>=CA$3,0,IF($G24*$E24/12<($G24-SUM($Q24:BZ24)),$G24*$E24/12,($G24-SUM($Q24:BZ24)))) -> 0 | CB24: =IF($D24>=CB$3,0,IF($G24*$E24/12<($G24-SUM($Q24:CA24)),$G24*$E24/12,($G24-SUM($Q24:CA24)))) -> 0 | CC24: =IF($D24>=CC$3,0,IF($G24*$E24/12<($G24-SUM($Q24:CB24)),$G24*$E24/12,($G24-SUM($Q24:CB24)))) -> 0 | CD24: =IF($D24>=CD$3,0,IF($G24*$E24/12<($G24-SUM($Q24:CC24)),$G24*$E24/12,($G24-SUM($Q24:CC24)))) -> 0 | CE24: =IF($D24>=CE$3,0,IF($G24*$E24/12<($G24-SUM($Q24:CD24)),$G24*$E24/12,($G24-SUM($Q24:CD24)))) -> 0 | CF24: =IF($D24>=CF$3,0,IF($G24*$E24/12<($G24-SUM($Q24:CE24)),$G24*$E24/12,($G24-SUM($Q24:CE24)))) -> 0 | CG24: =IF($D24>=CG$3,0,IF($G24*$E24/12<($G24-SUM($Q24:CF24)),$G24*$E24/12,($G24-SUM($Q24:CF24)))) -> 0 | CH24: =IF($D24>=CH$3,0,IF($G24*$E24/12<($G24-SUM($Q24:CG24)),$G24*$E24/12,($G24-SUM($Q24:CG24)))) -> 0 | CI24: =IF($D24>=CI$3,0,IF($G24*$E24/12<($G24-SUM($Q24:CH24)),$G24*$E24/12,($G24-SUM($Q24:CH24)))) -> 0 | CJ24: =IF($D24>=CJ$3,0,IF($G24*$E24/12<($G24-SUM($Q24:CI24)),$G24*$E24/12,($G24-SUM($Q24:CI24)))) -> 0 | CK24: =IF($D24>=CK$3,0,IF($G24*$E24/12<($G24-SUM($Q24:CJ24)),$G24*$E24/12,($G24-SUM($Q24:CJ24)))) -> 0 | CL24: =IF($D24>=CL$3,0,IF($G24*$E24/12<($G24-SUM($Q24:CK24)),$G24*$E24/12,($G24-SUM($Q24:CK24)))) -> 0 | CM24: =IF($D24>=CM$3,0,IF($G24*$E24/12<($G24-SUM($Q24:CL24)),$G24*$E24/12,($G24-SUM($Q24:CL24)))) -> 0 | CN24: =IF($D24>=CN$3,0,IF($G24*$E24/12<($G24-SUM($Q24:CM24)),$G24*$E24/12,($G24-SUM($Q24:CM24)))) -> 0 | CO24: =IF($D24>=CO$3,0,IF($G24*$E24/12<($G24-SUM($Q24:CN24)),$G24*$E24/12,($G24-SUM($Q24:CN24)))) -> 0 | CP24: =IF($D24>=CP$3,0,IF($G24*$E24/12<($G24-SUM($Q24:CO24)),$G24*$E24/12,($G24-SUM($Q24:CO24)))) -> 0 | CQ24: =IF($D24>=CQ$3,0,IF($G24*$E24/12<($G24-SUM($Q24:CP24)),$G24*$E24/12,($G24-SUM($Q24:CP24)))) -> 0 | CR24: =IF($D24>=CR$3,0,IF($G24*$E24/12<($G24-SUM($Q24:CQ24)),$G24*$E24/12,($G24-SUM($Q24:CQ24)))) -> 0 | CS24: =IF($D24>=CS$3,0,IF($G24*$E24/12<($G24-SUM($Q24:CR24)),$G24*$E24/12,($G24-SUM($Q24:CR24)))) -> 0 | CT24: =IF($D24>=CT$3,0,IF($G24*$E24/12<($G24-SUM($Q24:CS24)),$G24*$E24/12,($G24-SUM($Q24:CS24)))) -> 0 | CU24: =IF($D24>=CU$3,0,IF($G24*$E24/12<($G24-SUM($Q24:CT24)),$G24*$E24/12,($G24-SUM($Q24:CT24)))) -> 0 | CV24: =IF($D24>=CV$3,0,IF($G24*$E24/12<($G24-SUM($Q24:CU24)),$G24*$E24/12,($G24-SUM($Q24:CU24)))) -> 0
A25: =IF(D25<EOMONTH($D$2,-12),"Fuera de plazo",IF(D25>BALANCE!$J$3,"Fuera de plazo","")) ->  | B25: Otros | C25: 0 | D25: 2019-03-03 | G25: =IF(YEAR(D25)<=YEAR($D$2),C25,C25*(1+CONTROL!$H$4)^(YEAR(D25)-YEAR($D$2)))*RIESGO!$C$4 -> 0 | H25: 0 | I25: 0 | J25: 0 | K25: 0 | L25: 0 | M25: 0 | N25: 0 | O25: 0 | Q25: 0 | R25: =IF($D25>=R$3,0,IF($G25*$E25/12<($G25-SUM($Q25:Q25)),$G25*$E25/12,($G25-SUM($Q25:Q25)))) -> 0 | S25: =IF($D25>=S$3,0,IF($G25*$E25/12<($G25-SUM($Q25:R25)),$G25*$E25/12,($G25-SUM($Q25:R25)))) -> 0 | T25: =IF($D25>=T$3,0,IF($G25*$E25/12<($G25-SUM($Q25:S25)),$G25*$E25/12,($G25-SUM($Q25:S25)))) -> 0 | U25: =IF($D25>=U$3,0,IF($G25*$E25/12<($G25-SUM($Q25:T25)),$G25*$E25/12,($G25-SUM($Q25:T25)))) -> 0 | V25: =IF($D25>=V$3,0,IF($G25*$E25/12<($G25-SUM($Q25:U25)),$G25*$E25/12,($G25-SUM($Q25:U25)))) -> 0 | W25: =IF($D25>=W$3,0,IF($G25*$E25/12<($G25-SUM($Q25:V25)),$G25*$E25/12,($G25-SUM($Q25:V25)))) -> 0 | X25: =IF($D25>=X$3,0,IF($G25*$E25/12<($G25-SUM($Q25:W25)),$G25*$E25/12,($G25-SUM($Q25:W25)))) -> 0 | Y25: =IF($D25>=Y$3,0,IF($G25*$E25/12<($G25-SUM($Q25:X25)),$G25*$E25/12,($G25-SUM($Q25:X25)))) -> 0 | Z25: =IF($D25>=Z$3,0,IF($G25*$E25/12<($G25-SUM($Q25:Y25)),$G25*$E25/12,($G25-SUM($Q25:Y25)))) -> 0 | AA25: =IF($D25>=AA$3,0,IF($G25*$E25/12<($G25-SUM($Q25:Z25)),$G25*$E25/12,($G25-SUM($Q25:Z25)))) -> 0 | AB25: =IF($D25>=AB$3,0,IF($G25*$E25/12<($G25-SUM($Q25:AA25)),$G25*$E25/12,($G25-SUM($Q25:AA25)))) -> 0 | AC25: =IF($D25>=AC$3,0,IF($G25*$E25/12<($G25-SUM($Q25:AB25)),$G25*$E25/12,($G25-SUM($Q25:AB25)))) -> 0 | AD25: =IF($D25>=AD$3,0,IF($G25*$E25/12<($G25-SUM($Q25:AC25)),$G25*$E25/12,($G25-SUM($Q25:AC25)))) -> 0 | AE25: =IF($D25>=AE$3,0,IF($G25*$E25/12<($G25-SUM($Q25:AD25)),$G25*$E25/12,($G25-SUM($Q25:AD25)))) -> 0 | AF25: =IF($D25>=AF$3,0,IF($G25*$E25/12<($G25-SUM($Q25:AE25)),$G25*$E25/12,($G25-SUM($Q25:AE25)))) -> 0 | AG25: =IF($D25>=AG$3,0,IF($G25*$E25/12<($G25-SUM($Q25:AF25)),$G25*$E25/12,($G25-SUM($Q25:AF25)))) -> 0 | AH25: =IF($D25>=AH$3,0,IF($G25*$E25/12<($G25-SUM($Q25:AG25)),$G25*$E25/12,($G25-SUM($Q25:AG25)))) -> 0 | AI25: =IF($D25>=AI$3,0,IF($G25*$E25/12<($G25-SUM($Q25:AH25)),$G25*$E25/12,($G25-SUM($Q25:AH25)))) -> 0 | AJ25: =IF($D25>=AJ$3,0,IF($G25*$E25/12<($G25-SUM($Q25:AI25)),$G25*$E25/12,($G25-SUM($Q25:AI25)))) -> 0 | AK25: =IF($D25>=AK$3,0,IF($G25*$E25/12<($G25-SUM($Q25:AJ25)),$G25*$E25/12,($G25-SUM($Q25:AJ25)))) -> 0 | AL25: =IF($D25>=AL$3,0,IF($G25*$E25/12<($G25-SUM($Q25:AK25)),$G25*$E25/12,($G25-SUM($Q25:AK25)))) -> 0 | AM25: =IF($D25>=AM$3,0,IF($G25*$E25/12<($G25-SUM($Q25:AL25)),$G25*$E25/12,($G25-SUM($Q25:AL25)))) -> 0 | AN25: =IF($D25>=AN$3,0,IF($G25*$E25/12<($G25-SUM($Q25:AM25)),$G25*$E25/12,($G25-SUM($Q25:AM25)))) -> 0 | AO25: =IF($D25>=AO$3,0,IF($G25*$E25/12<($G25-SUM($Q25:AN25)),$G25*$E25/12,($G25-SUM($Q25:AN25)))) -> 0 | AP25: =IF($D25>=AP$3,0,IF($G25*$E25/12<($G25-SUM($Q25:AO25)),$G25*$E25/12,($G25-SUM($Q25:AO25)))) -> 0 | AQ25: =IF($D25>=AQ$3,0,IF($G25*$E25/12<($G25-SUM($Q25:AP25)),$G25*$E25/12,($G25-SUM($Q25:AP25)))) -> 0 | AR25: =IF($D25>=AR$3,0,IF($G25*$E25/12<($G25-SUM($Q25:AQ25)),$G25*$E25/12,($G25-SUM($Q25:AQ25)))) -> 0 | AS25: =IF($D25>=AS$3,0,IF($G25*$E25/12<($G25-SUM($Q25:AR25)),$G25*$E25/12,($G25-SUM($Q25:AR25)))) -> 0 | AT25: =IF($D25>=AT$3,0,IF($G25*$E25/12<($G25-SUM($Q25:AS25)),$G25*$E25/12,($G25-SUM($Q25:AS25)))) -> 0 | AU25: =IF($D25>=AU$3,0,IF($G25*$E25/12<($G25-SUM($Q25:AT25)),$G25*$E25/12,($G25-SUM($Q25:AT25)))) -> 0 | AV25: =IF($D25>=AV$3,0,IF($G25*$E25/12<($G25-SUM($Q25:AU25)),$G25*$E25/12,($G25-SUM($Q25:AU25)))) -> 0 | AW25: =IF($D25>=AW$3,0,IF($G25*$E25/12<($G25-SUM($Q25:AV25)),$G25*$E25/12,($G25-SUM($Q25:AV25)))) -> 0 | AX25: =IF($D25>=AX$3,0,IF($G25*$E25/12<($G25-SUM($Q25:AW25)),$G25*$E25/12,($G25-SUM($Q25:AW25)))) -> 0 | AY25: =IF($D25>=AY$3,0,IF($G25*$E25/12<($G25-SUM($Q25:AX25)),$G25*$E25/12,($G25-SUM($Q25:AX25)))) -> 0 | AZ25: =IF($D25>=AZ$3,0,IF($G25*$E25/12<($G25-SUM($Q25:AY25)),$G25*$E25/12,($G25-SUM($Q25:AY25)))) -> 0 | BA25: =IF($D25>=BA$3,0,IF($G25*$E25/12<($G25-SUM($Q25:AZ25)),$G25*$E25/12,($G25-SUM($Q25:AZ25)))) -> 0 | BB25: =IF($D25>=BB$3,0,IF($G25*$E25/12<($G25-SUM($Q25:BA25)),$G25*$E25/12,($G25-SUM($Q25:BA25)))) -> 0 | BC25: =IF($D25>=BC$3,0,IF($G25*$E25/12<($G25-SUM($Q25:BB25)),$G25*$E25/12,($G25-SUM($Q25:BB25)))) -> 0 | BD25: =IF($D25>=BD$3,0,IF($G25*$E25/12<($G25-SUM($Q25:BC25)),$G25*$E25/12,($G25-SUM($Q25:BC25)))) -> 0 | BE25: =IF($D25>=BE$3,0,IF($G25*$E25/12<($G25-SUM($Q25:BD25)),$G25*$E25/12,($G25-SUM($Q25:BD25)))) -> 0 | BF25: =IF($D25>=BF$3,0,IF($G25*$E25/12<($G25-SUM($Q25:BE25)),$G25*$E25/12,($G25-SUM($Q25:BE25)))) -> 0 | BG25: =IF($D25>=BG$3,0,IF($G25*$E25/12<($G25-SUM($Q25:BF25)),$G25*$E25/12,($G25-SUM($Q25:BF25)))) -> 0 | BH25: =IF($D25>=BH$3,0,IF($G25*$E25/12<($G25-SUM($Q25:BG25)),$G25*$E25/12,($G25-SUM($Q25:BG25)))) -> 0 | BI25: =IF($D25>=BI$3,0,IF($G25*$E25/12<($G25-SUM($Q25:BH25)),$G25*$E25/12,($G25-SUM($Q25:BH25)))) -> 0 | BJ25: =IF($D25>=BJ$3,0,IF($G25*$E25/12<($G25-SUM($Q25:BI25)),$G25*$E25/12,($G25-SUM($Q25:BI25)))) -> 0 | BK25: =IF($D25>=BK$3,0,IF($G25*$E25/12<($G25-SUM($Q25:BJ25)),$G25*$E25/12,($G25-SUM($Q25:BJ25)))) -> 0 | BL25: =IF($D25>=BL$3,0,IF($G25*$E25/12<($G25-SUM($Q25:BK25)),$G25*$E25/12,($G25-SUM($Q25:BK25)))) -> 0 | BM25: =IF($D25>=BM$3,0,IF($G25*$E25/12<($G25-SUM($Q25:BL25)),$G25*$E25/12,($G25-SUM($Q25:BL25)))) -> 0 | BN25: =IF($D25>=BN$3,0,IF($G25*$E25/12<($G25-SUM($Q25:BM25)),$G25*$E25/12,($G25-SUM($Q25:BM25)))) -> 0 | BO25: =IF($D25>=BO$3,0,IF($G25*$E25/12<($G25-SUM($Q25:BN25)),$G25*$E25/12,($G25-SUM($Q25:BN25)))) -> 0 | BP25: =IF($D25>=BP$3,0,IF($G25*$E25/12<($G25-SUM($Q25:BO25)),$G25*$E25/12,($G25-SUM($Q25:BO25)))) -> 0 | BQ25: =IF($D25>=BQ$3,0,IF($G25*$E25/12<($G25-SUM($Q25:BP25)),$G25*$E25/12,($G25-SUM($Q25:BP25)))) -> 0 | BR25: =IF($D25>=BR$3,0,IF($G25*$E25/12<($G25-SUM($Q25:BQ25)),$G25*$E25/12,($G25-SUM($Q25:BQ25)))) -> 0 | BS25: =IF($D25>=BS$3,0,IF($G25*$E25/12<($G25-SUM($Q25:BR25)),$G25*$E25/12,($G25-SUM($Q25:BR25)))) -> 0 | BT25: =IF($D25>=BT$3,0,IF($G25*$E25/12<($G25-SUM($Q25:BS25)),$G25*$E25/12,($G25-SUM($Q25:BS25)))) -> 0 | BU25: =IF($D25>=BU$3,0,IF($G25*$E25/12<($G25-SUM($Q25:BT25)),$G25*$E25/12,($G25-SUM($Q25:BT25)))) -> 0 | BV25: =IF($D25>=BV$3,0,IF($G25*$E25/12<($G25-SUM($Q25:BU25)),$G25*$E25/12,($G25-SUM($Q25:BU25)))) -> 0 | BW25: =IF($D25>=BW$3,0,IF($G25*$E25/12<($G25-SUM($Q25:BV25)),$G25*$E25/12,($G25-SUM($Q25:BV25)))) -> 0 | BX25: =IF($D25>=BX$3,0,IF($G25*$E25/12<($G25-SUM($Q25:BW25)),$G25*$E25/12,($G25-SUM($Q25:BW25)))) -> 0 | BY25: =IF($D25>=BY$3,0,IF($G25*$E25/12<($G25-SUM($Q25:BX25)),$G25*$E25/12,($G25-SUM($Q25:BX25)))) -> 0 | BZ25: =IF($D25>=BZ$3,0,IF($G25*$E25/12<($G25-SUM($Q25:BY25)),$G25*$E25/12,($G25-SUM($Q25:BY25)))) -> 0 | CA25: =IF($D25>=CA$3,0,IF($G25*$E25/12<($G25-SUM($Q25:BZ25)),$G25*$E25/12,($G25-SUM($Q25:BZ25)))) -> 0 | CB25: =IF($D25>=CB$3,0,IF($G25*$E25/12<($G25-SUM($Q25:CA25)),$G25*$E25/12,($G25-SUM($Q25:CA25)))) -> 0 | CC25: =IF($D25>=CC$3,0,IF($G25*$E25/12<($G25-SUM($Q25:CB25)),$G25*$E25/12,($G25-SUM($Q25:CB25)))) -> 0 | CD25: =IF($D25>=CD$3,0,IF($G25*$E25/12<($G25-SUM($Q25:CC25)),$G25*$E25/12,($G25-SUM($Q25:CC25)))) -> 0 | CE25: =IF($D25>=CE$3,0,IF($G25*$E25/12<($G25-SUM($Q25:CD25)),$G25*$E25/12,($G25-SUM($Q25:CD25)))) -> 0 | CF25: =IF($D25>=CF$3,0,IF($G25*$E25/12<($G25-SUM($Q25:CE25)),$G25*$E25/12,($G25-SUM($Q25:CE25)))) -> 0 | CG25: =IF($D25>=CG$3,0,IF($G25*$E25/12<($G25-SUM($Q25:CF25)),$G25*$E25/12,($G25-SUM($Q25:CF25)))) -> 0 | CH25: =IF($D25>=CH$3,0,IF($G25*$E25/12<($G25-SUM($Q25:CG25)),$G25*$E25/12,($G25-SUM($Q25:CG25)))) -> 0 | CI25: =IF($D25>=CI$3,0,IF($G25*$E25/12<($G25-SUM($Q25:CH25)),$G25*$E25/12,($G25-SUM($Q25:CH25)))) -> 0 | CJ25: =IF($D25>=CJ$3,0,IF($G25*$E25/12<($G25-SUM($Q25:CI25)),$G25*$E25/12,($G25-SUM($Q25:CI25)))) -> 0 | CK25: =IF($D25>=CK$3,0,IF($G25*$E25/12<($G25-SUM($Q25:CJ25)),$G25*$E25/12,($G25-SUM($Q25:CJ25)))) -> 0 | CL25: =IF($D25>=CL$3,0,IF($G25*$E25/12<($G25-SUM($Q25:CK25)),$G25*$E25/12,($G25-SUM($Q25:CK25)))) -> 0 | CM25: =IF($D25>=CM$3,0,IF($G25*$E25/12<($G25-SUM($Q25:CL25)),$G25*$E25/12,($G25-SUM($Q25:CL25)))) -> 0 | CN25: =IF($D25>=CN$3,0,IF($G25*$E25/12<($G25-SUM($Q25:CM25)),$G25*$E25/12,($G25-SUM($Q25:CM25)))) -> 0 | CO25: =IF($D25>=CO$3,0,IF($G25*$E25/12<($G25-SUM($Q25:CN25)),$G25*$E25/12,($G25-SUM($Q25:CN25)))) -> 0 | CP25: =IF($D25>=CP$3,0,IF($G25*$E25/12<($G25-SUM($Q25:CO25)),$G25*$E25/12,($G25-SUM($Q25:CO25)))) -> 0 | CQ25: =IF($D25>=CQ$3,0,IF($G25*$E25/12<($G25-SUM($Q25:CP25)),$G25*$E25/12,($G25-SUM($Q25:CP25)))) -> 0 | CR25: =IF($D25>=CR$3,0,IF($G25*$E25/12<($G25-SUM($Q25:CQ25)),$G25*$E25/12,($G25-SUM($Q25:CQ25)))) -> 0 | CS25: =IF($D25>=CS$3,0,IF($G25*$E25/12<($G25-SUM($Q25:CR25)),$G25*$E25/12,($G25-SUM($Q25:CR25)))) -> 0 | CT25: =IF($D25>=CT$3,0,IF($G25*$E25/12<($G25-SUM($Q25:CS25)),$G25*$E25/12,($G25-SUM($Q25:CS25)))) -> 0 | CU25: =IF($D25>=CU$3,0,IF($G25*$E25/12<($G25-SUM($Q25:CT25)),$G25*$E25/12,($G25-SUM($Q25:CT25)))) -> 0 | CV25: =IF($D25>=CV$3,0,IF($G25*$E25/12<($G25-SUM($Q25:CU25)),$G25*$E25/12,($G25-SUM($Q25:CU25)))) -> 0
A26: =IF(D26<EOMONTH($D$2,-12),"Fuera de plazo",IF(D26>BALANCE!$J$3,"Fuera de plazo","")) ->  | B26: Otros | C26: 0 | D26: 2019-03-04 | G26: =IF(YEAR(D26)<=YEAR($D$2),C26,C26*(1+CONTROL!$H$4)^(YEAR(D26)-YEAR($D$2)))*RIESGO!$C$4 -> 0 | H26: 0 | I26: 0 | J26: 0 | K26: 0 | L26: 0 | M26: 0 | N26: 0 | O26: 0 | Q26: 0 | R26: =IF($D26>=R$3,0,IF($G26*$E26/12<($G26-SUM($Q26:Q26)),$G26*$E26/12,($G26-SUM($Q26:Q26)))) -> 0 | S26: =IF($D26>=S$3,0,IF($G26*$E26/12<($G26-SUM($Q26:R26)),$G26*$E26/12,($G26-SUM($Q26:R26)))) -> 0 | T26: =IF($D26>=T$3,0,IF($G26*$E26/12<($G26-SUM($Q26:S26)),$G26*$E26/12,($G26-SUM($Q26:S26)))) -> 0 | U26: =IF($D26>=U$3,0,IF($G26*$E26/12<($G26-SUM($Q26:T26)),$G26*$E26/12,($G26-SUM($Q26:T26)))) -> 0 | V26: =IF($D26>=V$3,0,IF($G26*$E26/12<($G26-SUM($Q26:U26)),$G26*$E26/12,($G26-SUM($Q26:U26)))) -> 0 | W26: =IF($D26>=W$3,0,IF($G26*$E26/12<($G26-SUM($Q26:V26)),$G26*$E26/12,($G26-SUM($Q26:V26)))) -> 0 | X26: =IF($D26>=X$3,0,IF($G26*$E26/12<($G26-SUM($Q26:W26)),$G26*$E26/12,($G26-SUM($Q26:W26)))) -> 0 | Y26: =IF($D26>=Y$3,0,IF($G26*$E26/12<($G26-SUM($Q26:X26)),$G26*$E26/12,($G26-SUM($Q26:X26)))) -> 0 | Z26: =IF($D26>=Z$3,0,IF($G26*$E26/12<($G26-SUM($Q26:Y26)),$G26*$E26/12,($G26-SUM($Q26:Y26)))) -> 0 | AA26: =IF($D26>=AA$3,0,IF($G26*$E26/12<($G26-SUM($Q26:Z26)),$G26*$E26/12,($G26-SUM($Q26:Z26)))) -> 0 | AB26: =IF($D26>=AB$3,0,IF($G26*$E26/12<($G26-SUM($Q26:AA26)),$G26*$E26/12,($G26-SUM($Q26:AA26)))) -> 0 | AC26: =IF($D26>=AC$3,0,IF($G26*$E26/12<($G26-SUM($Q26:AB26)),$G26*$E26/12,($G26-SUM($Q26:AB26)))) -> 0 | AD26: =IF($D26>=AD$3,0,IF($G26*$E26/12<($G26-SUM($Q26:AC26)),$G26*$E26/12,($G26-SUM($Q26:AC26)))) -> 0 | AE26: =IF($D26>=AE$3,0,IF($G26*$E26/12<($G26-SUM($Q26:AD26)),$G26*$E26/12,($G26-SUM($Q26:AD26)))) -> 0 | AF26: =IF($D26>=AF$3,0,IF($G26*$E26/12<($G26-SUM($Q26:AE26)),$G26*$E26/12,($G26-SUM($Q26:AE26)))) -> 0 | AG26: =IF($D26>=AG$3,0,IF($G26*$E26/12<($G26-SUM($Q26:AF26)),$G26*$E26/12,($G26-SUM($Q26:AF26)))) -> 0 | AH26: =IF($D26>=AH$3,0,IF($G26*$E26/12<($G26-SUM($Q26:AG26)),$G26*$E26/12,($G26-SUM($Q26:AG26)))) -> 0 | AI26: =IF($D26>=AI$3,0,IF($G26*$E26/12<($G26-SUM($Q26:AH26)),$G26*$E26/12,($G26-SUM($Q26:AH26)))) -> 0 | AJ26: =IF($D26>=AJ$3,0,IF($G26*$E26/12<($G26-SUM($Q26:AI26)),$G26*$E26/12,($G26-SUM($Q26:AI26)))) -> 0 | AK26: =IF($D26>=AK$3,0,IF($G26*$E26/12<($G26-SUM($Q26:AJ26)),$G26*$E26/12,($G26-SUM($Q26:AJ26)))) -> 0 | AL26: =IF($D26>=AL$3,0,IF($G26*$E26/12<($G26-SUM($Q26:AK26)),$G26*$E26/12,($G26-SUM($Q26:AK26)))) -> 0 | AM26: =IF($D26>=AM$3,0,IF($G26*$E26/12<($G26-SUM($Q26:AL26)),$G26*$E26/12,($G26-SUM($Q26:AL26)))) -> 0 | AN26: =IF($D26>=AN$3,0,IF($G26*$E26/12<($G26-SUM($Q26:AM26)),$G26*$E26/12,($G26-SUM($Q26:AM26)))) -> 0 | AO26: =IF($D26>=AO$3,0,IF($G26*$E26/12<($G26-SUM($Q26:AN26)),$G26*$E26/12,($G26-SUM($Q26:AN26)))) -> 0 | AP26: =IF($D26>=AP$3,0,IF($G26*$E26/12<($G26-SUM($Q26:AO26)),$G26*$E26/12,($G26-SUM($Q26:AO26)))) -> 0 | AQ26: =IF($D26>=AQ$3,0,IF($G26*$E26/12<($G26-SUM($Q26:AP26)),$G26*$E26/12,($G26-SUM($Q26:AP26)))) -> 0 | AR26: =IF($D26>=AR$3,0,IF($G26*$E26/12<($G26-SUM($Q26:AQ26)),$G26*$E26/12,($G26-SUM($Q26:AQ26)))) -> 0 | AS26: =IF($D26>=AS$3,0,IF($G26*$E26/12<($G26-SUM($Q26:AR26)),$G26*$E26/12,($G26-SUM($Q26:AR26)))) -> 0 | AT26: =IF($D26>=AT$3,0,IF($G26*$E26/12<($G26-SUM($Q26:AS26)),$G26*$E26/12,($G26-SUM($Q26:AS26)))) -> 0 | AU26: =IF($D26>=AU$3,0,IF($G26*$E26/12<($G26-SUM($Q26:AT26)),$G26*$E26/12,($G26-SUM($Q26:AT26)))) -> 0 | AV26: =IF($D26>=AV$3,0,IF($G26*$E26/12<($G26-SUM($Q26:AU26)),$G26*$E26/12,($G26-SUM($Q26:AU26)))) -> 0 | AW26: =IF($D26>=AW$3,0,IF($G26*$E26/12<($G26-SUM($Q26:AV26)),$G26*$E26/12,($G26-SUM($Q26:AV26)))) -> 0 | AX26: =IF($D26>=AX$3,0,IF($G26*$E26/12<($G26-SUM($Q26:AW26)),$G26*$E26/12,($G26-SUM($Q26:AW26)))) -> 0 | AY26: =IF($D26>=AY$3,0,IF($G26*$E26/12<($G26-SUM($Q26:AX26)),$G26*$E26/12,($G26-SUM($Q26:AX26)))) -> 0 | AZ26: =IF($D26>=AZ$3,0,IF($G26*$E26/12<($G26-SUM($Q26:AY26)),$G26*$E26/12,($G26-SUM($Q26:AY26)))) -> 0 | BA26: =IF($D26>=BA$3,0,IF($G26*$E26/12<($G26-SUM($Q26:AZ26)),$G26*$E26/12,($G26-SUM($Q26:AZ26)))) -> 0 | BB26: =IF($D26>=BB$3,0,IF($G26*$E26/12<($G26-SUM($Q26:BA26)),$G26*$E26/12,($G26-SUM($Q26:BA26)))) -> 0 | BC26: =IF($D26>=BC$3,0,IF($G26*$E26/12<($G26-SUM($Q26:BB26)),$G26*$E26/12,($G26-SUM($Q26:BB26)))) -> 0 | BD26: =IF($D26>=BD$3,0,IF($G26*$E26/12<($G26-SUM($Q26:BC26)),$G26*$E26/12,($G26-SUM($Q26:BC26)))) -> 0 | BE26: =IF($D26>=BE$3,0,IF($G26*$E26/12<($G26-SUM($Q26:BD26)),$G26*$E26/12,($G26-SUM($Q26:BD26)))) -> 0 | BF26: =IF($D26>=BF$3,0,IF($G26*$E26/12<($G26-SUM($Q26:BE26)),$G26*$E26/12,($G26-SUM($Q26:BE26)))) -> 0 | BG26: =IF($D26>=BG$3,0,IF($G26*$E26/12<($G26-SUM($Q26:BF26)),$G26*$E26/12,($G26-SUM($Q26:BF26)))) -> 0 | BH26: =IF($D26>=BH$3,0,IF($G26*$E26/12<($G26-SUM($Q26:BG26)),$G26*$E26/12,($G26-SUM($Q26:BG26)))) -> 0 | BI26: =IF($D26>=BI$3,0,IF($G26*$E26/12<($G26-SUM($Q26:BH26)),$G26*$E26/12,($G26-SUM($Q26:BH26)))) -> 0 | BJ26: =IF($D26>=BJ$3,0,IF($G26*$E26/12<($G26-SUM($Q26:BI26)),$G26*$E26/12,($G26-SUM($Q26:BI26)))) -> 0 | BK26: =IF($D26>=BK$3,0,IF($G26*$E26/12<($G26-SUM($Q26:BJ26)),$G26*$E26/12,($G26-SUM($Q26:BJ26)))) -> 0 | BL26: =IF($D26>=BL$3,0,IF($G26*$E26/12<($G26-SUM($Q26:BK26)),$G26*$E26/12,($G26-SUM($Q26:BK26)))) -> 0 | BM26: =IF($D26>=BM$3,0,IF($G26*$E26/12<($G26-SUM($Q26:BL26)),$G26*$E26/12,($G26-SUM($Q26:BL26)))) -> 0 | BN26: =IF($D26>=BN$3,0,IF($G26*$E26/12<($G26-SUM($Q26:BM26)),$G26*$E26/12,($G26-SUM($Q26:BM26)))) -> 0 | BO26: =IF($D26>=BO$3,0,IF($G26*$E26/12<($G26-SUM($Q26:BN26)),$G26*$E26/12,($G26-SUM($Q26:BN26)))) -> 0 | BP26: =IF($D26>=BP$3,0,IF($G26*$E26/12<($G26-SUM($Q26:BO26)),$G26*$E26/12,($G26-SUM($Q26:BO26)))) -> 0 | BQ26: =IF($D26>=BQ$3,0,IF($G26*$E26/12<($G26-SUM($Q26:BP26)),$G26*$E26/12,($G26-SUM($Q26:BP26)))) -> 0 | BR26: =IF($D26>=BR$3,0,IF($G26*$E26/12<($G26-SUM($Q26:BQ26)),$G26*$E26/12,($G26-SUM($Q26:BQ26)))) -> 0 | BS26: =IF($D26>=BS$3,0,IF($G26*$E26/12<($G26-SUM($Q26:BR26)),$G26*$E26/12,($G26-SUM($Q26:BR26)))) -> 0 | BT26: =IF($D26>=BT$3,0,IF($G26*$E26/12<($G26-SUM($Q26:BS26)),$G26*$E26/12,($G26-SUM($Q26:BS26)))) -> 0 | BU26: =IF($D26>=BU$3,0,IF($G26*$E26/12<($G26-SUM($Q26:BT26)),$G26*$E26/12,($G26-SUM($Q26:BT26)))) -> 0 | BV26: =IF($D26>=BV$3,0,IF($G26*$E26/12<($G26-SUM($Q26:BU26)),$G26*$E26/12,($G26-SUM($Q26:BU26)))) -> 0 | BW26: =IF($D26>=BW$3,0,IF($G26*$E26/12<($G26-SUM($Q26:BV26)),$G26*$E26/12,($G26-SUM($Q26:BV26)))) -> 0 | BX26: =IF($D26>=BX$3,0,IF($G26*$E26/12<($G26-SUM($Q26:BW26)),$G26*$E26/12,($G26-SUM($Q26:BW26)))) -> 0 | BY26: =IF($D26>=BY$3,0,IF($G26*$E26/12<($G26-SUM($Q26:BX26)),$G26*$E26/12,($G26-SUM($Q26:BX26)))) -> 0 | BZ26: =IF($D26>=BZ$3,0,IF($G26*$E26/12<($G26-SUM($Q26:BY26)),$G26*$E26/12,($G26-SUM($Q26:BY26)))) -> 0 | CA26: =IF($D26>=CA$3,0,IF($G26*$E26/12<($G26-SUM($Q26:BZ26)),$G26*$E26/12,($G26-SUM($Q26:BZ26)))) -> 0 | CB26: =IF($D26>=CB$3,0,IF($G26*$E26/12<($G26-SUM($Q26:CA26)),$G26*$E26/12,($G26-SUM($Q26:CA26)))) -> 0 | CC26: =IF($D26>=CC$3,0,IF($G26*$E26/12<($G26-SUM($Q26:CB26)),$G26*$E26/12,($G26-SUM($Q26:CB26)))) -> 0 | CD26: =IF($D26>=CD$3,0,IF($G26*$E26/12<($G26-SUM($Q26:CC26)),$G26*$E26/12,($G26-SUM($Q26:CC26)))) -> 0 | CE26: =IF($D26>=CE$3,0,IF($G26*$E26/12<($G26-SUM($Q26:CD26)),$G26*$E26/12,($G26-SUM($Q26:CD26)))) -> 0 | CF26: =IF($D26>=CF$3,0,IF($G26*$E26/12<($G26-SUM($Q26:CE26)),$G26*$E26/12,($G26-SUM($Q26:CE26)))) -> 0 | CG26: =IF($D26>=CG$3,0,IF($G26*$E26/12<($G26-SUM($Q26:CF26)),$G26*$E26/12,($G26-SUM($Q26:CF26)))) -> 0 | CH26: =IF($D26>=CH$3,0,IF($G26*$E26/12<($G26-SUM($Q26:CG26)),$G26*$E26/12,($G26-SUM($Q26:CG26)))) -> 0 | CI26: =IF($D26>=CI$3,0,IF($G26*$E26/12<($G26-SUM($Q26:CH26)),$G26*$E26/12,($G26-SUM($Q26:CH26)))) -> 0 | CJ26: =IF($D26>=CJ$3,0,IF($G26*$E26/12<($G26-SUM($Q26:CI26)),$G26*$E26/12,($G26-SUM($Q26:CI26)))) -> 0 | CK26: =IF($D26>=CK$3,0,IF($G26*$E26/12<($G26-SUM($Q26:CJ26)),$G26*$E26/12,($G26-SUM($Q26:CJ26)))) -> 0 | CL26: =IF($D26>=CL$3,0,IF($G26*$E26/12<($G26-SUM($Q26:CK26)),$G26*$E26/12,($G26-SUM($Q26:CK26)))) -> 0 | CM26: =IF($D26>=CM$3,0,IF($G26*$E26/12<($G26-SUM($Q26:CL26)),$G26*$E26/12,($G26-SUM($Q26:CL26)))) -> 0 | CN26: =IF($D26>=CN$3,0,IF($G26*$E26/12<($G26-SUM($Q26:CM26)),$G26*$E26/12,($G26-SUM($Q26:CM26)))) -> 0 | CO26: =IF($D26>=CO$3,0,IF($G26*$E26/12<($G26-SUM($Q26:CN26)),$G26*$E26/12,($G26-SUM($Q26:CN26)))) -> 0 | CP26: =IF($D26>=CP$3,0,IF($G26*$E26/12<($G26-SUM($Q26:CO26)),$G26*$E26/12,($G26-SUM($Q26:CO26)))) -> 0 | CQ26: =IF($D26>=CQ$3,0,IF($G26*$E26/12<($G26-SUM($Q26:CP26)),$G26*$E26/12,($G26-SUM($Q26:CP26)))) -> 0 | CR26: =IF($D26>=CR$3,0,IF($G26*$E26/12<($G26-SUM($Q26:CQ26)),$G26*$E26/12,($G26-SUM($Q26:CQ26)))) -> 0 | CS26: =IF($D26>=CS$3,0,IF($G26*$E26/12<($G26-SUM($Q26:CR26)),$G26*$E26/12,($G26-SUM($Q26:CR26)))) -> 0 | CT26: =IF($D26>=CT$3,0,IF($G26*$E26/12<($G26-SUM($Q26:CS26)),$G26*$E26/12,($G26-SUM($Q26:CS26)))) -> 0 | CU26: =IF($D26>=CU$3,0,IF($G26*$E26/12<($G26-SUM($Q26:CT26)),$G26*$E26/12,($G26-SUM($Q26:CT26)))) -> 0 | CV26: =IF($D26>=CV$3,0,IF($G26*$E26/12<($G26-SUM($Q26:CU26)),$G26*$E26/12,($G26-SUM($Q26:CU26)))) -> 0
A27: =IF(D27<EOMONTH($D$2,-12),"Fuera de plazo",IF(D27>BALANCE!$J$3,"Fuera de plazo","")) ->  | B27: Otros | C27: 0 | D27: 2019-03-05 | G27: =IF(YEAR(D27)<=YEAR($D$2),C27,C27*(1+CONTROL!$H$4)^(YEAR(D27)-YEAR($D$2)))*RIESGO!$C$4 -> 0 | H27: 0 | I27: 0 | J27: 0 | K27: 0 | L27: 0 | M27: 0 | N27: 0 | O27: 0 | Q27: 0 | R27: =IF($D27>=R$3,0,IF($G27*$E27/12<($G27-SUM($Q27:Q27)),$G27*$E27/12,($G27-SUM($Q27:Q27)))) -> 0 | S27: =IF($D27>=S$3,0,IF($G27*$E27/12<($G27-SUM($Q27:R27)),$G27*$E27/12,($G27-SUM($Q27:R27)))) -> 0 | T27: =IF($D27>=T$3,0,IF($G27*$E27/12<($G27-SUM($Q27:S27)),$G27*$E27/12,($G27-SUM($Q27:S27)))) -> 0 | U27: =IF($D27>=U$3,0,IF($G27*$E27/12<($G27-SUM($Q27:T27)),$G27*$E27/12,($G27-SUM($Q27:T27)))) -> 0 | V27: =IF($D27>=V$3,0,IF($G27*$E27/12<($G27-SUM($Q27:U27)),$G27*$E27/12,($G27-SUM($Q27:U27)))) -> 0 | W27: =IF($D27>=W$3,0,IF($G27*$E27/12<($G27-SUM($Q27:V27)),$G27*$E27/12,($G27-SUM($Q27:V27)))) -> 0 | X27: =IF($D27>=X$3,0,IF($G27*$E27/12<($G27-SUM($Q27:W27)),$G27*$E27/12,($G27-SUM($Q27:W27)))) -> 0 | Y27: =IF($D27>=Y$3,0,IF($G27*$E27/12<($G27-SUM($Q27:X27)),$G27*$E27/12,($G27-SUM($Q27:X27)))) -> 0 | Z27: =IF($D27>=Z$3,0,IF($G27*$E27/12<($G27-SUM($Q27:Y27)),$G27*$E27/12,($G27-SUM($Q27:Y27)))) -> 0 | AA27: =IF($D27>=AA$3,0,IF($G27*$E27/12<($G27-SUM($Q27:Z27)),$G27*$E27/12,($G27-SUM($Q27:Z27)))) -> 0 | AB27: =IF($D27>=AB$3,0,IF($G27*$E27/12<($G27-SUM($Q27:AA27)),$G27*$E27/12,($G27-SUM($Q27:AA27)))) -> 0 | AC27: =IF($D27>=AC$3,0,IF($G27*$E27/12<($G27-SUM($Q27:AB27)),$G27*$E27/12,($G27-SUM($Q27:AB27)))) -> 0 | AD27: =IF($D27>=AD$3,0,IF($G27*$E27/12<($G27-SUM($Q27:AC27)),$G27*$E27/12,($G27-SUM($Q27:AC27)))) -> 0 | AE27: =IF($D27>=AE$3,0,IF($G27*$E27/12<($G27-SUM($Q27:AD27)),$G27*$E27/12,($G27-SUM($Q27:AD27)))) -> 0 | AF27: =IF($D27>=AF$3,0,IF($G27*$E27/12<($G27-SUM($Q27:AE27)),$G27*$E27/12,($G27-SUM($Q27:AE27)))) -> 0 | AG27: =IF($D27>=AG$3,0,IF($G27*$E27/12<($G27-SUM($Q27:AF27)),$G27*$E27/12,($G27-SUM($Q27:AF27)))) -> 0 | AH27: =IF($D27>=AH$3,0,IF($G27*$E27/12<($G27-SUM($Q27:AG27)),$G27*$E27/12,($G27-SUM($Q27:AG27)))) -> 0 | AI27: =IF($D27>=AI$3,0,IF($G27*$E27/12<($G27-SUM($Q27:AH27)),$G27*$E27/12,($G27-SUM($Q27:AH27)))) -> 0 | AJ27: =IF($D27>=AJ$3,0,IF($G27*$E27/12<($G27-SUM($Q27:AI27)),$G27*$E27/12,($G27-SUM($Q27:AI27)))) -> 0 | AK27: =IF($D27>=AK$3,0,IF($G27*$E27/12<($G27-SUM($Q27:AJ27)),$G27*$E27/12,($G27-SUM($Q27:AJ27)))) -> 0 | AL27: =IF($D27>=AL$3,0,IF($G27*$E27/12<($G27-SUM($Q27:AK27)),$G27*$E27/12,($G27-SUM($Q27:AK27)))) -> 0 | AM27: =IF($D27>=AM$3,0,IF($G27*$E27/12<($G27-SUM($Q27:AL27)),$G27*$E27/12,($G27-SUM($Q27:AL27)))) -> 0 | AN27: =IF($D27>=AN$3,0,IF($G27*$E27/12<($G27-SUM($Q27:AM27)),$G27*$E27/12,($G27-SUM($Q27:AM27)))) -> 0 | AO27: =IF($D27>=AO$3,0,IF($G27*$E27/12<($G27-SUM($Q27:AN27)),$G27*$E27/12,($G27-SUM($Q27:AN27)))) -> 0 | AP27: =IF($D27>=AP$3,0,IF($G27*$E27/12<($G27-SUM($Q27:AO27)),$G27*$E27/12,($G27-SUM($Q27:AO27)))) -> 0 | AQ27: =IF($D27>=AQ$3,0,IF($G27*$E27/12<($G27-SUM($Q27:AP27)),$G27*$E27/12,($G27-SUM($Q27:AP27)))) -> 0 | AR27: =IF($D27>=AR$3,0,IF($G27*$E27/12<($G27-SUM($Q27:AQ27)),$G27*$E27/12,($G27-SUM($Q27:AQ27)))) -> 0 | AS27: =IF($D27>=AS$3,0,IF($G27*$E27/12<($G27-SUM($Q27:AR27)),$G27*$E27/12,($G27-SUM($Q27:AR27)))) -> 0 | AT27: =IF($D27>=AT$3,0,IF($G27*$E27/12<($G27-SUM($Q27:AS27)),$G27*$E27/12,($G27-SUM($Q27:AS27)))) -> 0 | AU27: =IF($D27>=AU$3,0,IF($G27*$E27/12<($G27-SUM($Q27:AT27)),$G27*$E27/12,($G27-SUM($Q27:AT27)))) -> 0 | AV27: =IF($D27>=AV$3,0,IF($G27*$E27/12<($G27-SUM($Q27:AU27)),$G27*$E27/12,($G27-SUM($Q27:AU27)))) -> 0 | AW27: =IF($D27>=AW$3,0,IF($G27*$E27/12<($G27-SUM($Q27:AV27)),$G27*$E27/12,($G27-SUM($Q27:AV27)))) -> 0 | AX27: =IF($D27>=AX$3,0,IF($G27*$E27/12<($G27-SUM($Q27:AW27)),$G27*$E27/12,($G27-SUM($Q27:AW27)))) -> 0 | AY27: =IF($D27>=AY$3,0,IF($G27*$E27/12<($G27-SUM($Q27:AX27)),$G27*$E27/12,($G27-SUM($Q27:AX27)))) -> 0 | AZ27: =IF($D27>=AZ$3,0,IF($G27*$E27/12<($G27-SUM($Q27:AY27)),$G27*$E27/12,($G27-SUM($Q27:AY27)))) -> 0 | BA27: =IF($D27>=BA$3,0,IF($G27*$E27/12<($G27-SUM($Q27:AZ27)),$G27*$E27/12,($G27-SUM($Q27:AZ27)))) -> 0 | BB27: =IF($D27>=BB$3,0,IF($G27*$E27/12<($G27-SUM($Q27:BA27)),$G27*$E27/12,($G27-SUM($Q27:BA27)))) -> 0 | BC27: =IF($D27>=BC$3,0,IF($G27*$E27/12<($G27-SUM($Q27:BB27)),$G27*$E27/12,($G27-SUM($Q27:BB27)))) -> 0 | BD27: =IF($D27>=BD$3,0,IF($G27*$E27/12<($G27-SUM($Q27:BC27)),$G27*$E27/12,($G27-SUM($Q27:BC27)))) -> 0 | BE27: =IF($D27>=BE$3,0,IF($G27*$E27/12<($G27-SUM($Q27:BD27)),$G27*$E27/12,($G27-SUM($Q27:BD27)))) -> 0 | BF27: =IF($D27>=BF$3,0,IF($G27*$E27/12<($G27-SUM($Q27:BE27)),$G27*$E27/12,($G27-SUM($Q27:BE27)))) -> 0 | BG27: =IF($D27>=BG$3,0,IF($G27*$E27/12<($G27-SUM($Q27:BF27)),$G27*$E27/12,($G27-SUM($Q27:BF27)))) -> 0 | BH27: =IF($D27>=BH$3,0,IF($G27*$E27/12<($G27-SUM($Q27:BG27)),$G27*$E27/12,($G27-SUM($Q27:BG27)))) -> 0 | BI27: =IF($D27>=BI$3,0,IF($G27*$E27/12<($G27-SUM($Q27:BH27)),$G27*$E27/12,($G27-SUM($Q27:BH27)))) -> 0 | BJ27: =IF($D27>=BJ$3,0,IF($G27*$E27/12<($G27-SUM($Q27:BI27)),$G27*$E27/12,($G27-SUM($Q27:BI27)))) -> 0 | BK27: =IF($D27>=BK$3,0,IF($G27*$E27/12<($G27-SUM($Q27:BJ27)),$G27*$E27/12,($G27-SUM($Q27:BJ27)))) -> 0 | BL27: =IF($D27>=BL$3,0,IF($G27*$E27/12<($G27-SUM($Q27:BK27)),$G27*$E27/12,($G27-SUM($Q27:BK27)))) -> 0 | BM27: =IF($D27>=BM$3,0,IF($G27*$E27/12<($G27-SUM($Q27:BL27)),$G27*$E27/12,($G27-SUM($Q27:BL27)))) -> 0 | BN27: =IF($D27>=BN$3,0,IF($G27*$E27/12<($G27-SUM($Q27:BM27)),$G27*$E27/12,($G27-SUM($Q27:BM27)))) -> 0 | BO27: =IF($D27>=BO$3,0,IF($G27*$E27/12<($G27-SUM($Q27:BN27)),$G27*$E27/12,($G27-SUM($Q27:BN27)))) -> 0 | BP27: =IF($D27>=BP$3,0,IF($G27*$E27/12<($G27-SUM($Q27:BO27)),$G27*$E27/12,($G27-SUM($Q27:BO27)))) -> 0 | BQ27: =IF($D27>=BQ$3,0,IF($G27*$E27/12<($G27-SUM($Q27:BP27)),$G27*$E27/12,($G27-SUM($Q27:BP27)))) -> 0 | BR27: =IF($D27>=BR$3,0,IF($G27*$E27/12<($G27-SUM($Q27:BQ27)),$G27*$E27/12,($G27-SUM($Q27:BQ27)))) -> 0 | BS27: =IF($D27>=BS$3,0,IF($G27*$E27/12<($G27-SUM($Q27:BR27)),$G27*$E27/12,($G27-SUM($Q27:BR27)))) -> 0 | BT27: =IF($D27>=BT$3,0,IF($G27*$E27/12<($G27-SUM($Q27:BS27)),$G27*$E27/12,($G27-SUM($Q27:BS27)))) -> 0 | BU27: =IF($D27>=BU$3,0,IF($G27*$E27/12<($G27-SUM($Q27:BT27)),$G27*$E27/12,($G27-SUM($Q27:BT27)))) -> 0 | BV27: =IF($D27>=BV$3,0,IF($G27*$E27/12<($G27-SUM($Q27:BU27)),$G27*$E27/12,($G27-SUM($Q27:BU27)))) -> 0 | BW27: =IF($D27>=BW$3,0,IF($G27*$E27/12<($G27-SUM($Q27:BV27)),$G27*$E27/12,($G27-SUM($Q27:BV27)))) -> 0 | BX27: =IF($D27>=BX$3,0,IF($G27*$E27/12<($G27-SUM($Q27:BW27)),$G27*$E27/12,($G27-SUM($Q27:BW27)))) -> 0 | BY27: =IF($D27>=BY$3,0,IF($G27*$E27/12<($G27-SUM($Q27:BX27)),$G27*$E27/12,($G27-SUM($Q27:BX27)))) -> 0 | BZ27: =IF($D27>=BZ$3,0,IF($G27*$E27/12<($G27-SUM($Q27:BY27)),$G27*$E27/12,($G27-SUM($Q27:BY27)))) -> 0 | CA27: =IF($D27>=CA$3,0,IF($G27*$E27/12<($G27-SUM($Q27:BZ27)),$G27*$E27/12,($G27-SUM($Q27:BZ27)))) -> 0 | CB27: =IF($D27>=CB$3,0,IF($G27*$E27/12<($G27-SUM($Q27:CA27)),$G27*$E27/12,($G27-SUM($Q27:CA27)))) -> 0 | CC27: =IF($D27>=CC$3,0,IF($G27*$E27/12<($G27-SUM($Q27:CB27)),$G27*$E27/12,($G27-SUM($Q27:CB27)))) -> 0 | CD27: =IF($D27>=CD$3,0,IF($G27*$E27/12<($G27-SUM($Q27:CC27)),$G27*$E27/12,($G27-SUM($Q27:CC27)))) -> 0 | CE27: =IF($D27>=CE$3,0,IF($G27*$E27/12<($G27-SUM($Q27:CD27)),$G27*$E27/12,($G27-SUM($Q27:CD27)))) -> 0 | CF27: =IF($D27>=CF$3,0,IF($G27*$E27/12<($G27-SUM($Q27:CE27)),$G27*$E27/12,($G27-SUM($Q27:CE27)))) -> 0 | CG27: =IF($D27>=CG$3,0,IF($G27*$E27/12<($G27-SUM($Q27:CF27)),$G27*$E27/12,($G27-SUM($Q27:CF27)))) -> 0 | CH27: =IF($D27>=CH$3,0,IF($G27*$E27/12<($G27-SUM($Q27:CG27)),$G27*$E27/12,($G27-SUM($Q27:CG27)))) -> 0 | CI27: =IF($D27>=CI$3,0,IF($G27*$E27/12<($G27-SUM($Q27:CH27)),$G27*$E27/12,($G27-SUM($Q27:CH27)))) -> 0 | CJ27: =IF($D27>=CJ$3,0,IF($G27*$E27/12<($G27-SUM($Q27:CI27)),$G27*$E27/12,($G27-SUM($Q27:CI27)))) -> 0 | CK27: =IF($D27>=CK$3,0,IF($G27*$E27/12<($G27-SUM($Q27:CJ27)),$G27*$E27/12,($G27-SUM($Q27:CJ27)))) -> 0 | CL27: =IF($D27>=CL$3,0,IF($G27*$E27/12<($G27-SUM($Q27:CK27)),$G27*$E27/12,($G27-SUM($Q27:CK27)))) -> 0 | CM27: =IF($D27>=CM$3,0,IF($G27*$E27/12<($G27-SUM($Q27:CL27)),$G27*$E27/12,($G27-SUM($Q27:CL27)))) -> 0 | CN27: =IF($D27>=CN$3,0,IF($G27*$E27/12<($G27-SUM($Q27:CM27)),$G27*$E27/12,($G27-SUM($Q27:CM27)))) -> 0 | CO27: =IF($D27>=CO$3,0,IF($G27*$E27/12<($G27-SUM($Q27:CN27)),$G27*$E27/12,($G27-SUM($Q27:CN27)))) -> 0 | CP27: =IF($D27>=CP$3,0,IF($G27*$E27/12<($G27-SUM($Q27:CO27)),$G27*$E27/12,($G27-SUM($Q27:CO27)))) -> 0 | CQ27: =IF($D27>=CQ$3,0,IF($G27*$E27/12<($G27-SUM($Q27:CP27)),$G27*$E27/12,($G27-SUM($Q27:CP27)))) -> 0 | CR27: =IF($D27>=CR$3,0,IF($G27*$E27/12<($G27-SUM($Q27:CQ27)),$G27*$E27/12,($G27-SUM($Q27:CQ27)))) -> 0 | CS27: =IF($D27>=CS$3,0,IF($G27*$E27/12<($G27-SUM($Q27:CR27)),$G27*$E27/12,($G27-SUM($Q27:CR27)))) -> 0 | CT27: =IF($D27>=CT$3,0,IF($G27*$E27/12<($G27-SUM($Q27:CS27)),$G27*$E27/12,($G27-SUM($Q27:CS27)))) -> 0 | CU27: =IF($D27>=CU$3,0,IF($G27*$E27/12<($G27-SUM($Q27:CT27)),$G27*$E27/12,($G27-SUM($Q27:CT27)))) -> 0 | CV27: =IF($D27>=CV$3,0,IF($G27*$E27/12<($G27-SUM($Q27:CU27)),$G27*$E27/12,($G27-SUM($Q27:CU27)))) -> 0
B29: Gastos de Apertura | C29: 3006 | G29: =C29*RIESGO!C4 -> 3006
H31: Amortización Inmovilizado Material | I31: =SUM(I6:I20) -> 1283.333333 | J31: =SUM(J6:J20) -> 1400 | K31: 1400 | L31: 1400 | M31: 1400 | N31: 1400 | O31: 600 | Q31: =SUM(Q6:Q20) -> 0 | R31: =SUM(R6:R20) -> 116.6666667 | S31: 116.6666667 | T31: 116.6666667 | U31: 116.6666667 | V31: 116.6666667 | W31: 116.6666667 | X31: 116.6666667 | Y31: 116.6666667 | Z31: 116.6666667 | AA31: 116.6666667 | AB31: 116.6666667 | AC31: 116.6666667 | AD31: 116.6666667 | AE31: 116.6666667 | AF31: 116.6666667 | AG31: 116.6666667 | AH31: 116.6666667 | AI31: 116.6666667 | AJ31: 116.6666667 | AK31: 116.6666667 | AL31: 116.6666667 | AM31: 116.6666667 | AN31: 116.6666667 | AO31: 116.6666667 | AP31: 116.6666667 | AQ31: 116.6666667 | AR31: 116.6666667 | AS31: 116.6666667 | AT31: 116.6666667 | AU31: 116.6666667 | AV31: 116.6666667 | AW31: 116.6666667 | AX31: 116.6666667 | AY31: 116.6666667 | AZ31: 116.6666667 | BA31: 116.6666667 | BB31: 116.6666667 | BC31: 116.6666667 | BD31: 116.6666667 | BE31: 116.6666667 | BF31: 116.6666667 | BG31: 116.6666667 | BH31: 116.6666667 | BI31: 116.6666667 | BJ31: 116.6666667 | BK31: 116.6666667 | BL31: 116.6666667 | BM31: 116.6666667 | BN31: 116.6666667 | BO31: 116.6666667 | BP31: 116.6666667 | BQ31: 116.6666667 | BR31: 116.6666667 | BS31: 116.6666667 | BT31: 116.6666667 | BU31: 116.6666667 | BV31: 116.6666667 | BW31: 116.6666667 | BX31: 116.6666667 | BY31: 116.6666667 | BZ31: 116.6666667 | CA31: 116.6666667 | CB31: 116.6666667 | CC31: 116.6666667 | CD31: =SUM(CD6:CD20) -> 116.6666667 | CE31: 116.6666667 | CF31: 116.6666667 | CG31: 116.6666667 | CH31: 116.6666667 | CI31: 116.6666667 | CJ31: 116.6666667 | CK31: 116.6666667 | CL31: 116.6666667 | CM31: 116.6666667 | CN31: 116.6666667 | CO31: 16.66666667 | CP31: 16.66666667 | CQ31: 16.66666667 | CR31: 16.66666667 | CS31: 16.66666667 | CT31: 16.66666667 | CU31: 16.66666667 | CV31: 16.66666667
H32: Amortización Inmovilizado Intangible | I32: =SUM(I22:I27) -> 302.5 | J32: =SUM(J22:J27) -> 330 | K32: 330 | L32: 37.5 | M32: 0 | N32: 0 | O32: 0 | Q32: =SUM(Q22:Q27) -> 0 | R32: =SUM(R22:R27) -> 27.5 | S32: 27.5 | T32: 27.5 | U32: 27.5 | V32: 27.5 | W32: 27.5 | X32: 27.5 | Y32: 27.5 | Z32: 27.5 | AA32: 27.5 | AB32: 27.5 | AC32: 27.5 | AD32: 27.5 | AE32: 27.5 | AF32: 27.5 | AG32: 27.5 | AH32: 27.5 | AI32: 27.5 | AJ32: 27.5 | AK32: 27.5 | AL32: 27.5 | AM32: 27.5 | AN32: 27.5 | AO32: 27.5 | AP32: 27.5 | AQ32: 27.5 | AR32: 27.5 | AS32: 27.5 | AT32: 27.5 | AU32: 27.5 | AV32: 27.5 | AW32: 27.5 | AX32: 27.5 | AY32: 27.5 | AZ32: 27.5 | BA32: 27.5 | BB32: 10 | BC32: 0 | BD32: 0 | BE32: 0 | BF32: 0 | BG32: 0 | BH32: 0 | BI32: 0 | BJ32: 0 | BK32: 0 | BL32: 0 | BM32: 0 | BN32: 0 | BO32: 0 | BP32: 0 | BQ32: 0 | BR32: 0 | BS32: 0 | BT32: 0 | BU32: 0 | BV32: 0 | BW32: 0 | BX32: 0 | BY32: 0 | BZ32: 0 | CA32: 0 | CB32: 0 | CC32: 0 | CD32: =SUM(CD22:CD27) -> 0 | CE32: 0 | CF32: 0 | CG32: 0 | CH32: 0 | CI32: 0 | CJ32: 0 | CK32: 0 | CL32: 0 | CM32: 0 | CN32: 0 | CO32: 0 | CP32: 0 | CQ32: 0 | CR32: 0 | CS32: 0 | CT32: 0 | CU32: 0 | CV32: 0
H33: Amortización | I33: =SUM(I31:I32) -> 1585.833333 | J33: 1730 | K33: 1730 | L33: 1437.5 | M33: 1400 | N33: 1400 | O33: 600 | Q33: =SUM(Q31:Q32) -> 0 | R33: 144.1666667 | S33: 144.1666667 | T33: 144.1666667 | U33: 144.1666667 | V33: 144.1666667 | W33: 144.1666667 | X33: 144.1666667 | Y33: 144.1666667 | Z33: 144.1666667 | AA33: 144.1666667 | AB33: 144.1666667 | AC33: 144.1666667 | AD33: 144.1666667 | AE33: 144.1666667 | AF33: 144.1666667 | AG33: 144.1666667 | AH33: 144.1666667 | AI33: 144.1666667 | AJ33: 144.1666667 | AK33: 144.1666667 | AL33: 144.1666667 | AM33: 144.1666667 | AN33: 144.1666667 | AO33: 144.1666667 | AP33: 144.1666667 | AQ33: 144.1666667 | AR33: 144.1666667 | AS33: 144.1666667 | AT33: 144.1666667 | AU33: 144.1666667 | AV33: 144.1666667 | AW33: =SUM(AW31:AW32) -> 144.1666667 | AX33: 144.1666667 | AY33: 144.1666667 | AZ33: 144.1666667 | BA33: 144.1666667 | BB33: 126.6666667 | BC33: 116.6666667 | BD33: 116.6666667 | BE33: 116.6666667 | BF33: 116.6666667 | BG33: 116.6666667 | BH33: 116.6666667 | BI33: 116.6666667 | BJ33: 116.6666667 | BK33: 116.6666667 | BL33: 116.6666667 | BM33: 116.6666667 | BN33: 116.6666667 | BO33: 116.6666667 | BP33: 116.6666667 | BQ33: 116.6666667 | BR33: 116.6666667 | BS33: 116.6666667 | BT33: 116.6666667 | BU33: 116.6666667 | BV33: 116.6666667 | BW33: 116.6666667 | BX33: 116.6666667 | BY33: 116.6666667 | BZ33: 116.6666667 | CA33: 116.6666667 | CB33: 116.6666667 | CC33: =SUM(CC31:CC32) -> 116.6666667 | CD33: 116.6666667 | CE33: 116.6666667 | CF33: 116.6666667 | CG33: 116.6666667 | CH33: 116.6666667 | CI33: 116.6666667 | CJ33: 116.6666667 | CK33: 116.6666667 | CL33: 116.6666667 | CM33: 116.6666667 | CN33: 116.6666667 | CO33: 16.66666667 | CP33: 16.66666667 | CQ33: 16.66666667 | CR33: 16.66666667 | CS33: 16.66666667 | CT33: 16.66666667 | CU33: 16.66666667 | CV33: 16.66666667
D35: RESUMEN ANUAL DE INVERSIONES | S35: RESUMEN MENSUAL DE INVERSIONES
Q36: =YEAR(Q37) -> 2019 | R36: 2019 | S36: 2019 | T36: 2019 | U36: 2019 | V36: 2019 | W36: 2019 | X36: 2019 | Y36: 2019 | Z36: 2019 | AA36: 2019 | AB36: 2019 | AC36: 2020 | AD36: 2020 | AE36: 2020 | AF36: 2020 | AG36: 2020 | AH36: 2020 | AI36: 2020 | AJ36: 2020 | AK36: 2020 | AL36: 2020 | AM36: 2020 | AN36: 2020 | AO36: 2021 | AP36: 2021 | AQ36: 2021 | AR36: 2021 | AS36: 2021 | AT36: 2021 | AU36: 2021 | AV36: 2021 | AW36: 2021 | AX36: 2021 | AY36: 2021 | AZ36: 2021 | BA36: 2022 | BB36: 2022 | BC36: 2022 | BD36: 2022 | BE36: 2022 | BF36: 2022 | BG36: 2022 | BH36: 2022 | BI36: 2022 | BJ36: 2022 | BK36: 2022 | BL36: 2022 | BM36: 2023 | BN36: 2023 | BO36: 2023 | BP36: 2023 | BQ36: 2023 | BR36: 2023 | BS36: 2023 | BT36: 2023 | BU36: 2023 | BV36: 2023 | BW36: 2023 | BX36: 2023 | BY36: 2024 | BZ36: 2024 | CA36: 2024 | CB36: 2024 | CC36: =YEAR(CC37) -> 2024 | CD36: 2024 | CE36: 2024 | CF36: 2024 | CG36: 2024 | CH36: 2024 | CI36: 2024 | CJ36: 2024 | CK36: 2025 | CL36: 2025 | CM36: 2025 | CN36: 2025 | CO36: 2025 | CP36: 2025 | CQ36: 2025 | CR36: 2025 | CS36: 2025 | CT36: 2025 | CU36: 2025 | CV36: 2025 | CW36: 2026 | CX36: 2026 | CY36: 2026 | CZ36: 2026 | DA36: 2026 | DB36: 2026 | DC36: 2026 | DD36: 2026 | DE36: 2026 | DF36: 2026 | DG36: 2026 | DH36: =YEAR(DH37) -> 2026
C37: =I3-1 -> 2019 | D37: =C37+1 -> 2020 | E37: 2021 | F37: 2022 | G37: 2023 | H37: 2024 | I37: 2025 | J37: 2026 | Q37: =EOMONTH(R37,-1) -> 2019-01-31 | R37: 2019-02-28 | S37: 2019-03-31 | T37: 2019-04-30 | U37: 2019-05-31 | V37: 2019-06-30 | W37: 2019-07-31 | X37: 2019-08-31 | Y37: 2019-09-30 | Z37: 2019-10-31 | AA37: 2019-11-30 | AB37: =EOMONTH(AC37,-1) -> 2019-12-31 | AC37: =D2 -> 2020-01-31 | AD37: =EOMONTH(AC37,1) -> 2020-02-29 | AE37: =EOMONTH(AD37,1) -> 2020-03-31 | AF37: 2020-04-30 | AG37: 2020-05-31 | AH37: 2020-06-30 | AI37: 2020-07-31 | AJ37: 2020-08-31 | AK37: 2020-09-30 | AL37: 2020-10-31 | AM37: 2020-11-30 | AN37: 2020-12-31 | AO37: 2021-01-31 | AP37: 2021-02-28 | AQ37: 2021-03-31 | AR37: 2021-04-30 | AS37: 2021-05-31 | AT37: 2021-06-30 | AU37: 2021-07-31 | AV37: 2021-08-31 | AW37: 2021-09-30 | AX37: 2021-10-31 | AY37: 2021-11-30 | AZ37: 2021-12-31 | BA37: 2022-01-31 | BB37: 2022-02-28 | BC37: 2022-03-31 | BD37: 2022-04-30 | BE37: 2022-05-31 | BF37: 2022-06-30 | BG37: 2022-07-31 | BH37: 2022-08-31 | BI37: 2022-09-30 | BJ37: 2022-10-31 | BK37: 2022-11-30 | BL37: 2022-12-31 | BM37: 2023-01-31 | BN37: 2023-02-28 | BO37: 2023-03-31 | BP37: 2023-04-30 | BQ37: 2023-05-31 | BR37: 2023-06-30 | BS37: 2023-07-31 | BT37: 2023-08-31 | BU37: 2023-09-30 | BV37: 2023-10-31 | BW37: 2023-11-30 | BX37: 2023-12-31 | BY37: 2024-01-31 | BZ37: 2024-02-29 | CA37: 2024-03-31 | CB37: 2024-04-30 | CC37: 2024-05-31 | CD37: 2024-06-30 | CE37: 2024-07-31 | CF37: 2024-08-31 | CG37: 2024-09-30 | CH37: 2024-10-31 | CI37: 2024-11-30 | CJ37: 2024-12-31 | CK37: 2025-01-31 | CL37: 2025-02-28 | CM37: 2025-03-31 | CN37: 2025-04-30 | CO37: 2025-05-31 | CP37: 2025-06-30 | CQ37: =EOMONTH(CP37,1) -> 2025-07-31 | CR37: 2025-08-31 | CS37: 2025-09-30 | CT37: 2025-10-31 | CU37: 2025-11-30 | CV37: 2025-12-31 | CW37: 2026-01-31 | CX37: 2026-02-28 | CY37: 2026-03-31 | CZ37: 2026-04-30 | DA37: 2026-05-31 | DB37: 2026-06-30 | DC37: 2026-07-31 | DD37: 2026-08-31 | DE37: 2026-09-30 | DF37: 2026-10-31 | DG37: 2026-11-30 | DH37: 2026-12-31
B38: Inmovilizado Material | C38: =SUMIF($Q$36:$DH$36,C$37,$Q38:$DH38) -> 0 | D38: =SUMIF($Q$36:$DH$36,D$37,$Q38:$DH38) -> 9500 | E38: 0 | F38: 0 | G38: 0 | H38: 0 | I38: 0 | J38: 0 | P38: Inmovilizado Material | Q38: =SUMIF($D$5:$D$20,Q37,$G$5:$G$20) -> 0 | R38: 0 | S38: 0 | T38: 0 | U38: 0 | V38: 0 | W38: 0 | X38: 0 | Y38: 0 | Z38: 0 | AA38: 0 | AB38: 0 | AC38: =SUMIF($D$5:$D$20,AC37,$G$5:$G$20) -> 9500 | AD38: 0 | AE38: 0 | AF38: 0 | AG38: 0 | AH38: 0 | AI38: 0 | AJ38: 0 | AK38: 0 | AL38: 0 | AM38: 0 | AN38: 0 | AO38: 0 | AP38: 0 | AQ38: 0 | AR38: 0 | AS38: 0 | AT38: 0 | AU38: 0 | AV38: 0 | AW38: =SUMIF($D$5:$D$20,AW37,$G$5:$G$20) -> 0 | AX38: 0 | AY38: 0 | AZ38: 0 | BA38: 0 | BB38: 0 | BC38: 0 | BD38: 0 | BE38: 0 | BF38: 0 | BG38: 0 | BH38: 0 | BI38: 0 | BJ38: 0 | BK38: 0 | BL38: 0 | BM38: 0 | BN38: 0 | BO38: 0 | BP38: 0 | BQ38: 0 | BR38: 0 | BS38: 0 | BT38: 0 | BU38: 0 | BV38: 0 | BW38: 0 | BX38: 0 | BY38: 0 | BZ38: 0 | CA38: 0 | CB38: 0 | CC38: =SUMIF($D$5:$D$20,CC37,$G$5:$G$20) -> 0 | CD38: 0 | CE38: 0 | CF38: 0 | CG38: 0 | CH38: 0 | CI38: 0 | CJ38: 0 | CK38: 0 | CL38: 0 | CM38: 0 | CN38: 0 | CO38: 0 | CP38: 0 | CQ38: 0 | CR38: 0 | CS38: 0 | CT38: 0 | CU38: 0 | CV38: 0 | CW38: 0 | CX38: 0 | CY38: 0 | CZ38: 0 | DA38: 0 | DB38: 0 | DC38: 0 | DD38: 0 | DE38: 0 | DF38: 0 | DG38: 0 | DH38: 0
B39: Inmovilizado Intangible | C39: 0 | D39: 1000 | E39: 0 | F39: 0 | G39: 0 | H39: 0 | I39: 0 | J39: 0 | P39: Inmovilizado Intangible | Q39: =SUMIF($D$22:$D$27,Q37,$G$22:$G$27) -> 0 | R39: =SUMIF($D$22:$D$27,R37,$G$22:$G$27) -> 0 | S39: 0 | T39: 0 | U39: 0 | V39: 0 | W39: 0 | X39: 0 | Y39: 0 | Z39: 0 | AA39: 0 | AB39: 0 | AC39: 1000 | AD39: 0 | AE39: 0 | AF39: 0 | AG39: 0 | AH39: 0 | AI39: 0 | AJ39: 0 | AK39: 0 | AL39: 0 | AM39: 0 | AN39: 0 | AO39: 0 | AP39: 0 | AQ39: 0 | AR39: 0 | AS39: 0 | AT39: 0 | AU39: 0 | AV39: 0 | AW39: =SUMIF($D$22:$D$27,AW37,$G$22:$G$27) -> 0 | AX39: 0 | AY39: 0 | AZ39: 0 | BA39: 0 | BB39: 0 | BC39: 0 | BD39: 0 | BE39: 0 | BF39: 0 | BG39: 0 | BH39: 0 | BI39: 0 | BJ39: 0 | BK39: 0 | BL39: 0 | BM39: 0 | BN39: 0 | BO39: 0 | BP39: 0 | BQ39: 0 | BR39: 0 | BS39: 0 | BT39: 0 | BU39: 0 | BV39: 0 | BW39: 0 | BX39: 0 | BY39: 0 | BZ39: 0 | CA39: 0 | CB39: 0 | CC39: =SUMIF($D$22:$D$27,CC37,$G$22:$G$27) -> 0 | CD39: 0 | CE39: 0 | CF39: 0 | CG39: 0 | CH39: 0 | CI39: 0 | CJ39: 0 | CK39: 0 | CL39: 0 | CM39: 0 | CN39: 0 | CO39: 0 | CP39: 0 | CQ39: 0 | CR39: 0 | CS39: 0 | CT39: 0 | CU39: 0 | CV39: 0 | CW39: 0 | CX39: 0 | CY39: 0 | CZ39: 0 | DA39: 0 | DB39: 0 | DC39: 0 | DD39: 0 | DE39: 0 | DF39: 0 | DG39: 0 | DH39: 0
B40: TOTAL | C40: =SUM(C38:C39) -> 0 | D40: 10500 | E40: 0 | F40: 0 | G40: 0 | H40: 0 | I40: 0 | J40: 0 | P40: TOTAL | Q40: =SUM(Q38:Q39) -> 0 | R40: 0 | S40: 0 | T40: 0 | U40: 0 | V40: 0 | W40: 0 | X40: 0 | Y40: 0 | Z40: 0 | AA40: 0 | AB40: 0 | AC40: 10500 | AD40: 0 | AE40: 0 | AF40: 0 | AG40: 0 | AH40: 0 | AI40: 0 | AJ40: 0 | AK40: 0 | AL40: 0 | AM40: 0 | AN40: 0 | AO40: 0 | AP40: 0 | AQ40: 0 | AR40: 0 | AS40: 0 | AT40: 0 | AU40: 0 | AV40: 0 | AW40: =SUM(AW38:AW39) -> 0 | AX40: 0 | AY40: 0 | AZ40: 0 | BA40: 0 | BB40: 0 | BC40: 0 | BD40: 0 | BE40: 0 | BF40: 0 | BG40: 0 | BH40: 0 | BI40: 0 | BJ40: 0 | BK40: 0 | BL40: 0 | BM40: 0 | BN40: 0 | BO40: 0 | BP40: 0 | BQ40: 0 | BR40: 0 | BS40: 0 | BT40: 0 | BU40: 0 | BV40: 0 | BW40: 0 | BX40: 0 | BY40: 0 | BZ40: 0 | CA40: 0 | CB40: 0 | CC40: =SUM(CC38:CC39) -> 0 | CD40: 0 | CE40: 0 | CF40: 0 | CG40: 0 | CH40: 0 | CI40: 0 | CJ40: 0 | CK40: 0 | CL40: 0 | CM40: 0 | CN40: 0 | CO40: 0 | CP40: 0 | CQ40: 0 | CR40: 0 | CS40: 0 | CT40: 0 | CU40: 0 | CV40: 0 | CW40: 0 | CX40: 0 | CY40: 0 | CZ40: 0 | DA40: 0 | DB40: 0 | DC40: 0 | DD40: 0 | DE40: 0 | DF40: 0 | DG40: 0 | DH40: 0
B42: IVA | C42: =SUMIF($Q$36:$DH$36,C$37,$Q42:$DH42) -> 0 | D42: 2205 | E42: 0 | F42: 0 | G42: 0 | H42: 0 | I42: 0 | J42: 0 | P42: IVA | Q42: =SUMIF(INV!$D$5:$D$27,Q37,INV!$H$5:$H$27) -> 0 | R42: =SUMIF(INV!$D$5:$D$27,R37,INV!$H$5:$H$27) -> 0 | S42: =SUMIF(INV!$D$5:$D$27,S37,INV!$H$5:$H$27) -> 0 | T42: =SUMIF(INV!$D$5:$D$27,T37,INV!$H$5:$H$27) -> 0 | U42: =SUMIF(INV!$D$5:$D$27,U37,INV!$H$5:$H$27) -> 0 | V42: =SUMIF(INV!$D$5:$D$27,V37,INV!$H$5:$H$27) -> 0 | W42: =SUMIF(INV!$D$5:$D$27,W37,INV!$H$5:$H$27) -> 0 | X42: =SUMIF(INV!$D$5:$D$27,X37,INV!$H$5:$H$27) -> 0 | Y42: =SUMIF(INV!$D$5:$D$27,Y37,INV!$H$5:$H$27) -> 0 | Z42: =SUMIF(INV!$D$5:$D$27,Z37,INV!$H$5:$H$27) -> 0 | AA42: =SUMIF(INV!$D$5:$D$27,AA37,INV!$H$5:$H$27) -> 0 | AB42: =SUMIF(INV!$D$5:$D$27,AB37,INV!$H$5:$H$27) -> 0 | AC42: =SUMIF(INV!$D$5:$D$27,AC37,INV!$H$5:$H$27) -> 2205 | AD42: =SUMIF(INV!$D$5:$D$27,AD37,INV!$H$5:$H$27) -> 0 | AE42: =SUMIF(INV!$D$5:$D$27,AE37,INV!$H$5:$H$27) -> 0 | AF42: =SUMIF(INV!$D$5:$D$27,AF37,INV!$H$5:$H$27) -> 0 | AG42: =SUMIF(INV!$D$5:$D$27,AG37,INV!$H$5:$H$27) -> 0 | AH42: =SUMIF(INV!$D$5:$D$27,AH37,INV!$H$5:$H$27) -> 0 | AI42: =SUMIF(INV!$D$5:$D$27,AI37,INV!$H$5:$H$27) -> 0 | AJ42: =SUMIF(INV!$D$5:$D$27,AJ37,INV!$H$5:$H$27) -> 0 | AK42: =SUMIF(INV!$D$5:$D$27,AK37,INV!$H$5:$H$27) -> 0 | AL42: =SUMIF(INV!$D$5:$D$27,AL37,INV!$H$5:$H$27) -> 0 | AM42: =SUMIF(INV!$D$5:$D$27,AM37,INV!$H$5:$H$27) -> 0 | AN42: =SUMIF(INV!$D$5:$D$27,AN37,INV!$H$5:$H$27) -> 0 | AO42: =SUMIF(INV!$D$5:$D$27,AO37,INV!$H$5:$H$27) -> 0 | AP42: =SUMIF(INV!$D$5:$D$27,AP37,INV!$H$5:$H$27) -> 0 | AQ42: =SUMIF(INV!$D$5:$D$27,AQ37,INV!$H$5:$H$27) -> 0 | AR42: =SUMIF(INV!$D$5:$D$27,AR37,INV!$H$5:$H$27) -> 0 | AS42: =SUMIF(INV!$D$5:$D$27,AS37,INV!$H$5:$H$27) -> 0 | AT42: =SUMIF(INV!$D$5:$D$27,AT37,INV!$H$5:$H$27) -> 0 | AU42: =SUMIF(INV!$D$5:$D$27,AU37,INV!$H$5:$H$27) -> 0 | AV42: =SUMIF(INV!$D$5:$D$27,AV37,INV!$H$5:$H$27) -> 0 | AW42: =SUMIF(INV!$D$5:$D$27,AW37,INV!$H$5:$H$27) -> 0 | AX42: =SUMIF(INV!$D$5:$D$27,AX37,INV!$H$5:$H$27) -> 0 | AY42: =SUMIF(INV!$D$5:$D$27,AY37,INV!$H$5:$H$27) -> 0 | AZ42: =SUMIF(INV!$D$5:$D$27,AZ37,INV!$H$5:$H$27) -> 0 | BA42: =SUMIF(INV!$D$5:$D$27,BA37,INV!$H$5:$H$27) -> 0 | BB42: =SUMIF(INV!$D$5:$D$27,BB37,INV!$H$5:$H$27) -> 0 | BC42: =SUMIF(INV!$D$5:$D$27,BC37,INV!$H$5:$H$27) -> 0 | BD42: =SUMIF(INV!$D$5:$D$27,BD37,INV!$H$5:$H$27) -> 0 | BE42: =SUMIF(INV!$D$5:$D$27,BE37,INV!$H$5:$H$27) -> 0 | BF42: =SUMIF(INV!$D$5:$D$27,BF37,INV!$H$5:$H$27) -> 0 | BG42: =SUMIF(INV!$D$5:$D$27,BG37,INV!$H$5:$H$27) -> 0 | BH42: =SUMIF(INV!$D$5:$D$27,BH37,INV!$H$5:$H$27) -> 0 | BI42: =SUMIF(INV!$D$5:$D$27,BI37,INV!$H$5:$H$27) -> 0 | BJ42: =SUMIF(INV!$D$5:$D$27,BJ37,INV!$H$5:$H$27) -> 0 | BK42: =SUMIF(INV!$D$5:$D$27,BK37,INV!$H$5:$H$27) -> 0 | BL42: =SUMIF(INV!$D$5:$D$27,BL37,INV!$H$5:$H$27) -> 0 | BM42: =SUMIF(INV!$D$5:$D$27,BM37,INV!$H$5:$H$27) -> 0 | BN42: =SUMIF(INV!$D$5:$D$27,BN37,INV!$H$5:$H$27) -> 0 | BO42: =SUMIF(INV!$D$5:$D$27,BO37,INV!$H$5:$H$27) -> 0 | BP42: =SUMIF(INV!$D$5:$D$27,BP37,INV!$H$5:$H$27) -> 0 | BQ42: =SUMIF(INV!$D$5:$D$27,BQ37,INV!$H$5:$H$27) -> 0 | BR42: =SUMIF(INV!$D$5:$D$27,BR37,INV!$H$5:$H$27) -> 0 | BS42: =SUMIF(INV!$D$5:$D$27,BS37,INV!$H$5:$H$27) -> 0 | BT42: =SUMIF(INV!$D$5:$D$27,BT37,INV!$H$5:$H$27) -> 0 | BU42: =SUMIF(INV!$D$5:$D$27,BU37,INV!$H$5:$H$27) -> 0 | BV42: =SUMIF(INV!$D$5:$D$27,BV37,INV!$H$5:$H$27) -> 0 | BW42: =SUMIF(INV!$D$5:$D$27,BW37,INV!$H$5:$H$27) -> 0 | BX42: =SUMIF(INV!$D$5:$D$27,BX37,INV!$H$5:$H$27) -> 0 | BY42: =SUMIF(INV!$D$5:$D$27,BY37,INV!$H$5:$H$27) -> 0 | BZ42: =SUMIF(INV!$D$5:$D$27,BZ37,INV!$H$5:$H$27) -> 0 | CA42: =SUMIF(INV!$D$5:$D$27,CA37,INV!$H$5:$H$27) -> 0 | CB42: =SUMIF(INV!$D$5:$D$27,CB37,INV!$H$5:$H$27) -> 0 | CC42: =SUMIF(INV!$D$5:$D$27,CC37,INV!$H$5:$H$27) -> 0 | CD42: =SUMIF(INV!$D$5:$D$27,CD37,INV!$H$5:$H$27) -> 0 | CE42: =SUMIF(INV!$D$5:$D$27,CE37,INV!$H$5:$H$27) -> 0 | CF42: =SUMIF(INV!$D$5:$D$27,CF37,INV!$H$5:$H$27) -> 0 | CG42: =SUMIF(INV!$D$5:$D$27,CG37,INV!$H$5:$H$27) -> 0 | CH42: =SUMIF(INV!$D$5:$D$27,CH37,INV!$H$5:$H$27) -> 0 | CI42: =SUMIF(INV!$D$5:$D$27,CI37,INV!$H$5:$H$27) -> 0 | CJ42: =SUMIF(INV!$D$5:$D$27,CJ37,INV!$H$5:$H$27) -> 0 | CK42: =SUMIF(INV!$D$5:$D$27,CK37,INV!$H$5:$H$27) -> 0 | CL42: =SUMIF(INV!$D$5:$D$27,CL37,INV!$H$5:$H$27) -> 0 | CM42: =SUMIF(INV!$D$5:$D$27,CM37,INV!$H$5:$H$27) -> 0 | CN42: =SUMIF(INV!$D$5:$D$27,CN37,INV!$H$5:$H$27) -> 0 | CO42: =SUMIF(INV!$D$5:$D$27,CO37,INV!$H$5:$H$27) -> 0 | CP42: =SUMIF(INV!$D$5:$D$27,CP37,INV!$H$5:$H$27) -> 0 | CQ42: =SUMIF(INV!$D$5:$D$27,CQ37,INV!$H$5:$H$27) -> 0 | CR42: =SUMIF(INV!$D$5:$D$27,CR37,INV!$H$5:$H$27) -> 0 | CS42: =SUMIF(INV!$D$5:$D$27,CS37,INV!$H$5:$H$27) -> 0 | CT42: =SUMIF(INV!$D$5:$D$27,CT37,INV!$H$5:$H$27) -> 0 | CU42: =SUMIF(INV!$D$5:$D$27,CU37,INV!$H$5:$H$27) -> 0 | CV42: =SUMIF(INV!$D$5:$D$27,CV37,INV!$H$5:$H$27) -> 0 | CW42: =SUMIF(INV!$D$5:$D$27,CW37,INV!$H$5:$H$27) -> 0 | CX42: =SUMIF(INV!$D$5:$D$27,CX37,INV!$H$5:$H$27) -> 0 | CY42: =SUMIF(INV!$D$5:$D$27,CY37,INV!$H$5:$H$27) -> 0 | CZ42: =SUMIF(INV!$D$5:$D$27,CZ37,INV!$H$5:$H$27) -> 0 | DA42: =SUMIF(INV!$D$5:$D$27,DA37,INV!$H$5:$H$27) -> 0 | DB42: =SUMIF(INV!$D$5:$D$27,DB37,INV!$H$5:$H$27) -> 0 | DC42: =SUMIF(INV!$D$5:$D$27,DC37,INV!$H$5:$H$27) -> 0 | DD42: =SUMIF(INV!$D$5:$D$27,DD37,INV!$H$5:$H$27) -> 0 | DE42: =SUMIF(INV!$D$5:$D$27,DE37,INV!$H$5:$H$27) -> 0 | DF42: =SUMIF(INV!$D$5:$D$27,DF37,INV!$H$5:$H$27) -> 0 | DG42: =SUMIF(INV!$D$5:$D$27,DG37,INV!$H$5:$H$27) -> 0 | DH42: =SUMIF(INV!$D$5:$D$27,DH37,INV!$H$5:$H$27) -> 0

Sheet FIN
B1: =CONTROL!C2 -> Proyecto Ejemplo | C1: =INV!B1 -> Modelo O.K, VAN = 6.379.160
C3: DETERMINACIÓN DE NECESIDADES INICIALES Y FINANCIACIÓN
G4: % Inicial | H4: Cuantía | I4: % Real | J4: Coste
C5: Concepto | D5: Cuantía | F5: Recursos Propios | G5: =CONTROL!C6 -> 0 | H5: =CEILING(D9*G5,CONTROL!C5) -> 0 | I5: =H5/$D$9 -> 0 | J5: =CONTROL!C4*RIESGO!C9 -> 0.1
C6: Inmovilizado Inicial | D6: =BALANCE!C8 -> 0 | F6: Subvención | G6: =CONTROL!C7 -> 0.1 | H6: =MIN(D9*G6,D9-H5) -> 1032.381463 | I6: =H6/$D$9 -> 0.1
C7: Fondo Maniobra Inicial | D7: =BALANCE!C35+INV!G29 -> 10323.81463 | F7: Deuda 1 | G7: =CONTROL!C8 -> 0.9 | H7: =MIN(D9*G7,D9-H5-H6) -> 9291.433171 | I7: 0.9 | J7: =CONTROL!C14*RIESGO!C9 -> 0.0675
C8: Financiación Extra | D8: =IF(CONTROL!C19="1 año",IF('CTA.RES'!C10<0,-'CTA.RES'!C10,0),IF(CONTROL!C19="2 años",IF('CTA.RES'!C10<0,-'CTA.RES'!C10,0)+IF('CTA.RES'!D10<0,-'CTA.RES'!D10,0),0)) -> 0 | F8: Deuda 2 | G8: =CONTROL!C9 -> 0 | H8: =MIN(D9*G8,D9-H5-H6-H7) -> 0 | I8: 0 | J8: =CONTROL!D14*RIESGO!C9 -> 0
C9: Necesidad Total Inicial | D9: =SUM(D6:D8) -> 10323.81463 | F9: Deuda 3 (Flotante) | G9: =CONTROL!C10 -> 0 | H9: =D9-H5-H6-H7-H8 -> 0 | I9: 0 | J9: =CONTROL!E20*RIESGO!C9 -> 0
F10: Total | G10: =SUM(G5:G9) -> 1 | H10: =SUM(H5:H9) -> 10323.81463 | I10: =SUM(I5:I9) -> 1 | J10: =I5*J5+(I7*J7+I8*J8+I9*J9)*(1-CONTROL!H8) -> 0.042525
C13: CÁLCULO DEL CCMP | D13: =CONTROL!E2 -> 2020 | E13: =D13+1 -> 2021 | F13: 2022 | G13: 2023 | H13: 2024 | I13: 2025 | J13: 2026
C14: Recursos Propios Medios | D14: =SUMIF(BALANCE!$X$2:$DC$2,FIN!D13,BALANCE!$X$20:$DC$20)/COUNTIF(BALANCE!$X$2:$DC$2,FIN!D13) -> 28705.40511 | E14: =SUMIF(BALANCE!$X$2:$DC$2,FIN!E13,BALANCE!$X$20:$DC$20)/COUNTIF(BALANCE!$X$2:$DC$2,FIN!E13) -> 142614.7054 | F14: =SUMIF(BALANCE!$X$2:$DC$2,FIN!F13,BALANCE!$X$20:$DC$20)/COUNTIF(BALANCE!$X$2:$DC$2,FIN!F13) -> 232252.7044 | G14: =SUMIF(BALANCE!$X$2:$DC$2,FIN!G13,BALANCE!$X$20:$DC$20)/COUNTIF(BALANCE!$X$2:$DC$2,FIN!G13) -> 410178.8057 | H14: =SUMIF(BALANCE!$X$2:$DC$2,FIN!H13,BALANCE!$X$20:$DC$20)/COUNTIF(BALANCE!$X$2:$DC$2,FIN!H13) -> 721128.3144 | I14: =SUMIF(BALANCE!$X$2:$DC$2,FIN!I13,BALANCE!$X$20:$DC$20)/COUNTIF(BALANCE!$X$2:$DC$2,FIN!I13) -> 1231444.893 | J14: =SUMIF(BALANCE!$X$2:$DC$2,FIN!J13,BALANCE!$X$20:$DC$20)/COUNTIF(BALANCE!$X$2:$DC$2,FIN!J13) -> 2043628.421
C15: Deuda Media | D15: =SUMIF(BALANCE!$X$2:$DC$2,FIN!D13,BALANCE!$X$25:$DC$25)/COUNTIF(BALANCE!$X$2:$DC$2,FIN!D13) -> 6884.668388 | E15: =SUMIF(BALANCE!$X$2:$DC$2,FIN!E13,BALANCE!$X$25:$DC$25)/COUNTIF(BALANCE!$X$2:$DC$2,FIN!E13) -> 2227.668332 | F15: =SUMIF(BALANCE!$X$2:$DC$2,FIN!F13,BALANCE!$X$25:$DC$25)/COUNTIF(BALANCE!$X$2:$DC$2,FIN!F13) -> 0 | G15: =SUMIF(BALANCE!$X$2:$DC$2,FIN!G13,BALANCE!$X$25:$DC$25)/COUNTIF(BALANCE!$X$2:$DC$2,FIN!G13) -> 0 | H15: =SUMIF(BALANCE!$X$2:$DC$2,FIN!H13,BALANCE!$X$25:$DC$25)/COUNTIF(BALANCE!$X$2:$DC$2,FIN!H13) -> 0 | I15: =SUMIF(BALANCE!$X$2:$DC$2,FIN!I13,BALANCE!$X$25:$DC$25)/COUNTIF(BALANCE!$X$2:$DC$2,FIN!I13) -> 0 | J15: =SUMIF(BALANCE!$X$2:$DC$2,FIN!J13,BALANCE!$X$25:$DC$25)/COUNTIF(BALANCE!$X$2:$DC$2,FIN!J13) -> 0
C16: Subvención Media | D16: =SUMIF(BALANCE!$X$2:$DC$2,FIN!D13,BALANCE!$X$21:$DC$21)/COUNTIF(BALANCE!$X$2:$DC$2,FIN!D13) -> 473.1748374 | E16: =SUMIF(BALANCE!$X$2:$DC$2,FIN!E13,BALANCE!$X$21:$DC$21)/COUNTIF(BALANCE!$X$2:$DC$2,FIN!E13) -> 0 | F16: =SUMIF(BALANCE!$X$2:$DC$2,FIN!F13,BALANCE!$X$21:$DC$21)/COUNTIF(BALANCE!$X$2:$DC$2,FIN!F13) -> 0 | G16: =SUMIF(BALANCE!$X$2:$DC$2,FIN!G13,BALANCE!$X$21:$DC$21)/COUNTIF(BALANCE!$X$2:$DC$2,FIN!G13) -> 0 | H16: =SUMIF(BALANCE!$X$2:$DC$2,FIN!H13,BALANCE!$X$21:$DC$21)/COUNTIF(BALANCE!$X$2:$DC$2,FIN!H13) -> 0 | I16: =SUMIF(BALANCE!$X$2:$DC$2,FIN!I13,BALANCE!$X$21:$DC$21)/COUNTIF(BALANCE!$X$2:$DC$2,FIN!I13) -> 0 | J16: =SUMIF(BALANCE!$X$2:$DC$2,FIN!J13,BALANCE!$X$21:$DC$21)/COUNTIF(BALANCE!$X$2:$DC$2,FIN!J13) -> 0
C17: Coste Recursos Propios | D17: =J5*(13-Mes_Ini)/12 -> 0.1 | E17: =$J$5 -> 0.1 | F17: =$J$5 -> 0.1 | G17: 0.1 | H17: 0.1 | I17: 0.1 | J17: 0.1
C18: Coste Deuda | D18: =IFERROR(('CTA.RES'!C12-SUM(BALANCE!L24:W24)*J9/12)*(1-'CTA.RES'!C20)/D15,0) -> 0.06398822774 | E18: =IFERROR('CTA.RES'!D12*(1-'CTA.RES'!D20)/E15,0) -> 0.05573776218 | F18: =IFERROR('CTA.RES'!E12*(1-'CTA.RES'!E20)/F15,0) -> 0 | G18: =IFERROR('CTA.RES'!F12*(1-'CTA.RES'!F20)/G15,0) -> 0 | H18: =IFERROR('CTA.RES'!G12*(1-'CTA.RES'!G20)/H15,0) -> 0 | I18: =IFERROR('CTA.RES'!H12*(1-'CTA.RES'!H20)/I15,0) -> 0 | J18: =IFERROR('CTA.RES'!I12*(1-'CTA.RES'!I20)/J15,0) -> 0
C19: CCMP | D19: =IFERROR(D17*D14/(D14+D15+D16)+D18*D15/(D14+D15+D16),D17) -> 0.0918130893 | E19: =IFERROR(E17*E14/(E14+E15+E16)+E18*E15/(E14+E15+E16),E17) -> 0.09931924904 | F19: 0.1 | G19: 0.1 | H19: 0.1 | I19: 0.1 | J19: 0.1
C20: CCMP Promedio | D20: =AVERAGE(D19:J19) -> 0.09873319119
C22: CUADROS AMORTIZACIÓN DEUDAS INICIALES
C24: DEUDA 1 | D24: =CONTROL!C12 -> Francés
C25: Cuantía | D25: =H7 -> 9291.433171 | E25: Pagos anuales | F25: =CONTROL!C15 -> 12
C26: Años | D26: =CONTROL!C13 -> 2 | E26: Periodos Totales | F26: =F25*D26 -> 24
C27: Tipo de Interés | D27: =J7 -> 0.0675 | E27: Periodos Carencia | F27: =F25*CONTROL!C16 -> 0
C28: Tipo Interés Periódico | D28: =D27/F25 -> 0.005625 | E28: Comisiones | F28: =CONTROL!C17*FIN!D25 -> 139.3714976
C30: =C53 -> 2019-12-31 | D30: =EOMONTH(C30,12/$F$25) -> 2020-01-31 | E30: 2020-02-29 | F30: 2020-03-31 | G30: 2020-04-30 | H30: 2020-05-31 | I30: 2020-06-30 | J30: 2020-07-31 | K30: 2020-08-31 | L30: 2020-09-30 | M30: 2020-10-31 | N30: 2020-11-30 | O30: 2020-12-31 | P30: 2021-01-31 | Q30: 2021-02-28 | R30: 2021-03-31 | S30: 2021-04-30 | T30: 2021-05-31 | U30: 2021-06-30 | V30: 2021-07-31 | W30: 2021-08-31 | X30: 2021-09-30 | Y30: 2021-10-31 | Z30: 2021-11-30 | AA30: 2021-12-31 | AB30: 2022-01-31 | AC30: 2022-02-28 | AD30: 2022-03-31 | AE30: 2022-04-30 | AF30: 2022-05-31 | AG30: 2022-06-30 | AH30: 2022-07-31 | AI30: 2022-08-31 | AJ30: =EOMONTH(AI30,12/$F$25) -> 2022-09-30 | AK30: 2022-10-31 | AL30: 2022-11-30 | AM30: 2022-12-31 | AN30: 2023-01-31 | AO30: 2023-02-28 | AP30: 2023-03-31 | AQ30: 2023-04-30 | AR30: 2023-05-31 | AS30: 2023-06-30 | AT30: 2023-07-31 | AU30: 2023-08-31 | AV30: 2023-09-30 | AW30: 2023-10-31 | AX30: 2023-11-30 | AY30: 2023-12-31 | AZ30: 2024-01-31 | BA30: 2024-02-29 | BB30: 2024-03-31 | BC30: 2024-04-30 | BD30: 2024-05-31 | BE30: 2024-06-30 | BF30: 2024-07-31 | BG30: 2024-08-31 | BH30: 2024-09-30 | BI30: 2024-10-31 | BJ30: 2024-11-30 | BK30: 2024-12-31 | BL30: 2025-01-31 | BM30: 2025-02-28 | BN30: 2025-03-31 | BO30: 2025-04-30 | BP30: =EOMONTH(BO30,12/$F$25) -> 2025-05-31 | BQ30: 2025-06-30 | BR30: 2025-07-31 | BS30: 2025-08-31 | BT30: 2025-09-30 | BU30: 2025-10-31 | BV30: 2025-11-30 | BW30: 2025-12-31 | BX30: 2026-01-31 | BY30: 2026-02-28 | BZ30: 2026-03-31 | CA30: 2026-04-30 | CB30: 2026-05-31 | CC30: 2026-06-30 | CD30: 2026-07-31 | CE30: 2026-08-31 | CF30: 2026-09-30 | CG30: 2026-10-31 | CH30: 2026-11-30 | CI30: 2026-12-31
B31: Periodo | D31: 1 | E31: 2 | F31: 3 | G31: 4 | H31: 5 | I31: 6 | J31: 7 | K31: 8 | L31: 9 | M31: 10 | N31: 11 | O31: 12 | P31: 13 | Q31: 14 | R31: 15 | S31: 16 | T31: 17 | U31: 18 | V31: 19 | W31: 20 | X31: 21 | Y31: 22 | Z31: 23 | AA31: 24 | AB31: 25 | AC31: 26 | AD31: 27 | AE31: 28 | AF31: 29 | AG31: 30 | AH31: 31 | AI31: 32 | AJ31: 33 | AK31: 34 | AL31: 35 | AM31: 36 | AN31: 37 | AO31: 38 | AP31: 39 | AQ31: 40 | AR31: 41 | AS31: 42 | AT31: 43 | AU31: 44 | AV31: 45 | AW31: 46 | AX31: 47 | AY31: 48 | AZ31: 49 | BA31: 50 | BB31: 51 | BC31: 52 | BD31: 53 | BE31: 54 | BF31: 55 | BG31: 56 | BH31: 57 | BI31: 58 | BJ31: 59 | BK31: 60 | BL31: 61 | BM31: 62 | BN31: 63 | BO31: 64 | BP31: 65 | BQ31: 66 | BR31: 67 | BS31: 68 | BT31: 69 | BU31: 70 | BV31: 71 | BW31: 72 | BX31: 73 | BY31: 74 | BZ31: 75 | CA31: 76 | CB31: 77 | CC31: 78 | CD31: 79 | CE31: 80 | CF31: 81 | CG31: 82 | CH31: 83 | CI31: 84
B32: Capital Pendiente | C32: =H7 -> 9291.433171 | D32: =C32-D33 -> 8928.748308 | E32: 8564.023341 | F32: 8197.246797 | G32: 7828.407135 | H32: 7457.49275 | I32: 7084.491971 | J32: 6709.393063 | K32: 6332.184223 | L32: 5952.853584 | M32: 5571.38921 | N32: 5187.779099 | O32: 4802.011181 | P32: 4414.073318 | Q32: 4023.953305 | R32: 3631.638867 | S32: 3237.11766 | T32: 2840.377271 | U32: 2441.405218 | V32: 2040.188947 | W32: 1636.715834 | X32: 1230.973185 | Y32: 822.9482339 | Z32: 412.6281422 | AA32: -2.387423592e-12 | AB32: -2.387423592e-12 | AC32: -2.387423592e-12 | AD32: -2.387423592e-12 | AE32: -2.387423592e-12 | AF32: -2.387423592e-12 | AG32: -2.387423592e-12 | AH32: -2.387423592e-12 | AI32: -2.387423592e-12 | AJ32: =AI32-AJ33 -> -2.387423592e-12 | AK32: -2.387423592e-12 | AL32: -2.387423592e-12 | AM32: -2.387423592e-12 | AN32: -2.387423592e-12 | AO32: -2.387423592e-12 | AP32: -2.387423592e-12 | AQ32: =AP32-AQ33 -> -2.387423592e-12 | AR32: -2.387423592e-12 | AS32: -2.387423592e-12 | AT32: -2.387423592e-12 | AU32: -2.387423592e-12 | AV32: -2.387423592e-12 | AW32: -2.387423592e-12 | AX32: -2.387423592e-12 | AY32: -2.387423592e-12 | AZ32: -2.387423592e-12 | BA32: -2.387423592e-12 | BB32: -2.387423592e-12 | BC32: -2.387423592e-12 | BD32: -2.387423592e-12 | BE32: -2.387423592e-12 | BF32: -2.387423592e-12 | BG32: -2.387423592e-12 | BH32: -2.387423592e-12 | BI32: -2.387423592e-12 | BJ32: -2.387423592e-12 | BK32: -2.387423592e-12 | BL32: -2.387423592e-12 | BM32: -2.387423592e-12 | BN32: -2.387423592e-12 | BO32: -2.387423592e-12 | BP32: =BO32-BP33 -> -2.387423592e-12 | BQ32: -2.387423592e-12 | BR32: -2.387423592e-12 | BS32: -2.387423592e-12 | BT32: -2.387423592e-12 | BU32: -2.387423592e-12 | BV32: -2.387423592e-12 | BW32: -2.387423592e-12 | BX32: -2.387423592e-12 | BY32: -2.387423592e-12 | BZ32: -2.387423592e-12 | CA32: -2.387423592e-12 | CB32: -2.387423592e-12 | CC32: -2.387423592e-12 | CD32: -2.387423592e-12 | CE32: -2.387423592e-12 | CF32: -2.387423592e-12 | CG32: -2.387423592e-12 | CH32: -2.387423592e-12 | CI32: -2.387423592e-12
B33: Amortización | D33: =IF(D31<=$F$27,0,IF(D31>$F$26,0,IF($D$24="Francés",-PPMT($D$28,D31-$F$27,$F$26-$F$27,$D$25),$D$25/($F$26-$F$27)))) -> 362.6848639 | E33: 364.7249663 | F33: 366.7765442 | G33: 368.8396623 | H33: 370.9143854 | I33: 373.0007788 | J33: 375.0989082 | K33: 377.2088395 | L33: 379.3306392 | M33: 381.4643741 | N33: 383.6101112 | O33: 385.7679181 | P33: 387.9378626 | Q33: 390.1200131 | R33: 392.3144381 | S33: 394.5212069 | T33: 396.7403887 | U33: 398.9720533 | V33: 401.2162711 | W33: 403.4731127 | X33: 405.7426489 | Y33: 408.0249513 | Z33: 410.3200917 | AA33: 412.6281422 | AB33: 0 | AC33: 0 | AD33: 0 | AE33: 0 | AF33: 0 | AG33: 0 | AH33: 0 | AI33: 0 | AJ33: =IF(AJ31<=$F$27,0,IF(AJ31>$F$26,0,IF($D$24="Francés",-PPMT($D$28,AJ31-$F$27,$F$26-$F$27,$D$25),$D$25/($F$26-$F$27)))) -> 0 | AK33: 0 | AL33: 0 | AM33: 0 | AN33: 0 | AO33: 0 | AP33: 0 | AQ33: 0 | AR33: 0 | AS33: 0 | AT33: 0 | AU33: 0 | AV33: 0 | AW33: 0 | AX33: 0 | AY33: 0 | AZ33: 0 | BA33: 0 | BB33: 0 | BC33: 0 | BD33: 0 | BE33: 0 | BF33: 0 | BG33: 0 | BH33: 0 | BI33: 0 | BJ33: 0 | BK33: 0 | BL33: 0 | BM33: 0 | BN33: 0 | BO33: 0 | BP33: =IF(BP31<=$F$27,0,IF(BP31>$F$26,0,IF($D$24="Francés",-PPMT($D$28,BP31-$F$27,$F$26-$F$27,$D$25),$D$25/($F$26-$F$27)))) -> 0 | BQ33: 0 | BR33: 0 | BS33: 0 | BT33: 0 | BU33: 0 | BV33: 0 | BW33: 0 | BX33: 0 | BY33: 0 | BZ33: 0 | CA33: 0 | CB33: 0 | CC33: 0 | CD33: 0 | CE33: 0 | CF33: 0 | CG33: 0 | CH33: 0 | CI33: 0
B34: Intereses | D34: =$D$28*C32 -> 52.26431159 | E34: 50.22420923 | F34: 48.1726313 | G34: 46.10951323 | H34: 44.03479013 | I34: 41.94839672 | J34: 39.85026734 | K34: 37.74033598 | L34: 35.61853626 | M34: 33.48480141 | N34: 31.33906431 | O34: 29.18125743 | P34: 27.01131289 | Q34: 24.82916241 | R34: 22.63473734 | S34: 20.42796863 | T34: 18.20878684 | U34: 15.97712215 | V34: 13.73290435 | W34: 11.47606283 | X34: 9.206526567 | Y34: 6.924224167 | Z34: 4.629083815 | AA34: 2.3210333 | AB34: -1.342925771e-14 | AC34: -1.342925771e-14 | AD34: -1.342925771e-14 | AE34: -1.342925771e-14 | AF34: -1.342925771e-14 | AG34: -1.342925771e-14 | AH34: -1.342925771e-14 | AI34: -1.342925771e-14 | AJ34: =$D$28*AI32 -> -1.342925771e-14 | AK34: -1.342925771e-14 | AL34: -1.342925771e-14 | AM34: -1.342925771e-14 | AN34: -1.342925771e-14 | AO34: -1.342925771e-14 | AP34: -1.342925771e-14 | AQ34: -1.342925771e-14 | AR34: -1.342925771e-14 | AS34: -1.342925771e-14 | AT34: -1.342925771e-14 | AU34: -1.342925771e-14 | AV34: -1.342925771e-14 | AW34: -1.342925771e-14 | AX34: -1.342925771e-14 | AY34: -1.342925771e-14 | AZ34: -1.342925771e-14 | BA34: -1.342925771e-14 | BB34: -1.342925771e-14 | BC34: -1.342925771e-14 | BD34: -1.342925771e-14 | BE34: -1.342925771e-14 | BF34: -1.342925771e-14 | BG34: -1.342925771e-14 | BH34: -1.342925771e-14 | BI34: -1.342925771e-14 | BJ34: -1.342925771e-14 | BK34: -1.342925771e-14 | BL34: -1.342925771e-14 | BM34: -1.342925771e-14 | BN34: -1.342925771e-14 | BO34: -1.342925771e-14 | BP34: =$D$28*BO32 -> -1.342925771e-14 | BQ34: -1.342925771e-14 | BR34: -1.342925771e-14 | BS34: -1.342925771e-14 | BT34: -1.342925771e-14 | BU34: -1.342925771e-14 | BV34: -1.342925771e-14 | BW34: -1.342925771e-14 | BX34: -1.342925771e-14 | BY34: -1.342925771e-14 | BZ34: -1.342925771e-14 | CA34: -1.342925771e-14 | CB34: -1.342925771e-14 | CC34: -1.342925771e-14 | CD34: -1.342925771e-14 | CE34: -1.342925771e-14 | CF34: -1.342925771e-14 | CG34: -1.342925771e-14 | CH34: -1.342925771e-14 | CI34: -1.342925771e-14
B35: Cuota | D35: =D33+D34 -> 414.9491755 | E35: =E33+E34 -> 414.9491755 | F35: 414.9491755 | G35: 414.9491755 | H35: 414.9491755 | I35: 414.9491755 | J35: 414.9491755 | K35: 414.9491755 | L35: 414.9491755 | M35: 414.9491755 | N35: 414.9491755 | O35: 414.9491755 | P35: 414.9491755 | Q35: 414.9491755 | R35: 414.9491755 | S35: 414.9491755 | T35: 414.9491755 | U35: 414.9491755 | V35: 414.9491755 | W35: 414.9491755 | X35: 414.9491755 | Y35: 414.9491755 | Z35: 414.9491755 | AA35: 414.9491755 | AB35: -1.342925771e-14 | AC35: -1.342925771e-14 | AD35: -1.342925771e-14 | AE35: -1.342925771e-14 | AF35: -1.342925771e-14 | AG35: -1.342925771e-14 | AH35: -1.342925771e-14 | AI35: -1.342925771e-14 | AJ35: -1.342925771e-14 | AK35: -1.342925771e-14 | AL35: -1.342925771e-14 | AM35: -1.342925771e-14 | AN35: -1.342925771e-14 | AO35: -1.342925771e-14 | AP35: -1.342925771e-14 | AQ35: -1.342925771e-14 | AR35: -1.342925771e-14 | AS35: -1.342925771e-14 | AT35: -1.342925771e-14 | AU35: -1.342925771e-14 | AV35: -1.342925771e-14 | AW35: -1.342925771e-14 | AX35: -1.342925771e-14 | AY35: -1.342925771e-14 | AZ35: -1.342925771e-14 | BA35: -1.342925771e-14 | BB35: -1.342925771e-14 | BC35: -1.342925771e-14 | BD35: -1.342925771e-14 | BE35: -1.342925771e-14 | BF35: -1.342925771e-14 | BG35: -1.342925771e-14 | BH35: -1.342925771e-14 | BI35: -1.342925771e-14 | BJ35: -1.342925771e-14 | BK35: -1.342925771e-14 | BL35: -1.342925771e-14 | BM35: -1.342925771e-14 | BN35: -1.342925771e-14 | BO35: -1.342925771e-14 | BP35: -1.342925771e-14 | BQ35: =BQ33+BQ34 -> -1.342925771e-14 | BR35: -1.342925771e-14 | BS35: -1.342925771e-14 | BT35: -1.342925771e-14 | BU35: -1.342925771e-14 | BV35: -1.342925771e-14 | BW35: -1.342925771e-14 | BX35: -1.342925771e-14 | BY35: -1.342925771e-14 | BZ35: -1.342925771e-14 | CA35: -1.342925771e-14 | CB35: -1.342925771e-14 | CC35: -1.342925771e-14 | CD35: -1.342925771e-14 | CE35: -1.342925771e-14 | CF35: -1.342925771e-14 | CG35: -1.342925771e-14 | CH35: -1.342925771e-14 | CI35: -1.342925771e-14
C37: DEUDA 2 | D37: =CONTROL!D12 -> 0
C38: Cuantía | D38: =H8 -> 0 | E38: Pagos anuales | F38: =CONTROL!D15 -> 0
C39: Años | D39: =CONTROL!D13 -> 0 | E39: Periodos Totales | F39: =F38*D39 -> 0
C40: Tipo de Interés | D40: =J8 -> 0 | E40: Periodos Carencia | F40: =F38*CONTROL!D16 -> 0
C41: Tipo Interés Periódico | D41: =D40/F38 ->  | E41: Comisiones | F41: =CONTROL!D17*FIN!D38 -> 0
C43: =C30 -> 2019-12-31 | D43: =EOMONTH(C43,12/$F$38) ->  | AJ43: =EOMONTH(AI43,12/$F$38) ->  | BP43: =EOMONTH(BO43,12/$F$38) -> 
B44: Periodo | D44: 1 | E44: 2 | F44: 3 | G44: 4 | H44: 5 | I44: 6 | J44: 7 | K44: 8 | L44: 9 | M44: 10 | N44: 11 | O44: 12 | P44: 13 | Q44: 14 | R44: 15 | S44: 16 | T44: 17 | U44: 18 | V44: 19 | W44: 20 | X44: 21 | Y44: 22 | Z44: 23 | AA44: 24 | AB44: 25 | AC44: 26 | AD44: 27 | AE44: 28 | AF44: 29 | AG44: 30 | AH44: 31 | AI44: 32 | AJ44: 33 | AK44: 34 | AL44: 35 | AM44: 36 | AN44: 37 | AO44: 38 | AP44: 39 | AQ44: 40 | AR44: 41 | AS44: 42 | AT44: 43 | AU44: 44 | AV44: 45 | AW44: 46 | AX44: 47 | AY44: 48 | AZ44: 49 | BA44: 50 | BB44: 51 | BC44: 52 | BD44: 53 | BE44: 54 | BF44: 55 | BG44: 56 | BH44: 57 | BI44: 58 | BJ44: 59 | BK44: 60 | BL44: 61 | BM44: 62 | BN44: 63 | BO44: 64 | BP44: 65 | BQ44: 66 | BR44: 67 | BS44: 68 | BT44: 69 | BU44: 70 | BV44: 71 | BW44: 72 | BX44: 73 | BY44: 74 | BZ44: 75 | CA44: 76 | CB44: 77 | CC44: 78 | CD44: 79 | CE44: 80 | CF44: 81 | CG44: 82 | CH44: 83 | CI44: 84
B45: Capital Pendiente | C45: =D38 -> 0 | D45: =C45-D46 -> 0 | E45: =D45-E46 -> 0 | F45: 0 | G45: 0 | H45: 0 | I45: 0 | J45: 0 | K45: 0 | L45: 0 | M45: 0 | N45: 0 | O45: 0 | P45: 0 | Q45: 0 | R45: 0 | S45: 0 | T45: 0 | U45: 0 | V45: 0 | W45: 0 | X45: 0 | Y45: 0 | Z45: 0 | AA45: 0 | AB45: 0 | AC45: 0 | AD45: 0 | AE45: 0 | AF45: 0 | AG45: 0 | AH45: 0 | AI45: 0 | AJ45: 0 | AK45: 0 | AL45: 0 | AM45: 0 | AN45: 0 | AO45: 0 | AP45: 0 | AQ45: 0 | AR45: 0 | AS45: 0 | AT45: 0 | AU45: 0 | AV45: 0 | AW45: 0 | AX45: 0 | AY45: 0 | AZ45: =AY45-AZ46 -> 0 | BA45: 0 | BB45: 0 | BC45: 0 | BD45: 0 | BE45: 0 | BF45: 0 | BG45: 0 | BH45: 0 | BI45: 0 | BJ45: 0 | BK45: 0 | BL45: 0 | BM45: 0 | BN45: 0 | BO45: 0 | BP45: 0 | BQ45: 0 | BR45: 0 | BS45: 0 | BT45: 0 | BU45: 0 | BV45: 0 | BW45: 0 | BX45: 0 | BY45: 0 | BZ45: 0 | CA45: 0 | CB45: 0 | CC45: 0 | CD45: 0 | CE45: 0 | CF45: 0 | CG45: 0 | CH45: 0 | CI45: 0
B46: Amortización | D46: =IF(D44<=$F$40,0,IF(D44>$F$39,0,IF($D$37="Francés",-PPMT($D$41,D44-$F$40,$F$39-$F$40,$D$38),$D$38/($F$39-$F$40)))) -> 0 | E46: 0 | F46: 0 | G46: 0 | H46: 0 | I46: 0 | J46: 0 | K46: 0 | L46: 0 | M46: 0 | N46: 0 | O46: 0 | P46: 0 | Q46: 0 | R46: 0 | S46: 0 | T46: 0 | U46: 0 | V46: 0 | W46: 0 | X46: 0 | Y46: 0 | Z46: 0 | AA46: 0 | AB46: 0 | AC46: 0 | AD46: 0 | AE46: 0 | AF46: 0 | AG46: 0 | AH46: 0 | AI46: 0 | AJ46: =IF(AJ44<=$F$40,0,IF(AJ44>$F$39,0,IF($D$37="Francés",-PPMT($D$41,AJ44-$F$40,$F$39-$F$40,$D$38),$D$38/($F$39-$F$40)))) -> 0 | AK46: 0 | AL46: 0 | AM46: 0 | AN46: 0 | AO46: 0 | AP46: 0 | AQ46: 0 | AR46: 0 | AS46: 0 | AT46: 0 | AU46: 0 | AV46: 0 | AW46: 0 | AX46: 0 | AY46: 0 | AZ46: 0 | BA46: 0 | BB46: 0 | BC46: 0 | BD46: 0 | BE46: 0 | BF46: 0 | BG46: 0 | BH46: 0 | BI46: 0 | BJ46: 0 | BK46: 0 | BL46: 0 | BM46: 0 | BN46: 0 | BO46: 0 | BP46: =IF(BP44<=$F$40,0,IF(BP44>$F$39,0,IF($D$37="Francés",-PPMT($D$41,BP44-$F$40,$F$39-$F$40,$D$38),$D$38/($F$39-$F$40)))) -> 0 | BQ46: 0 | BR46: 0 | BS46: 0 | BT46: 0 | BU46: 0 | BV46: 0 | BW46: 0 | BX46: 0 | BY46: 0 | BZ46: 0 | CA46: 0 | CB46: 0 | CC46: 0 | CD46: 0 | CE46: 0 | CF46: 0 | CG46: 0 | CH46: 0 | CI46: 0
B47: Intereses | D47: =$D$41*C45 ->  | AJ47: =$D$41*AI45 ->  | BP47: =$D$41*BO45 -> 
B48: Cuota | D48: =D46+D47 ->  | E48: =E46+E47 ->  | BQ48: =BQ46+BQ47 -> 
C51: CUADRO RESUMEN DEUDA INICIAL, MENSUAL
D52: =INCO!N1 -> 2020 | E52: =INCO!O1 -> 2020 | F52: =INCO!P1 -> 2020 | G52: =INCO!Q1 -> 2020 | H52: =INCO!R1 -> 2020 | I52: =INCO!S1 -> 2020 | J52: =INCO!T1 -> 2020 | K52: =INCO!U1 -> 2020 | L52: =INCO!V1 -> 2020 | M52: =INCO!W1 -> 2020 | N52: =INCO!X1 -> 2020 | O52: =INCO!Y1 -> 2020 | P52: =INCO!Z1 -> 2021 | Q52: =INCO!AA1 -> 2021 | R52: =INCO!AB1 -> 2021 | S52: =INCO!AC1 -> 2021 | T52: =INCO!AD1 -> 2021 | U52: =INCO!AE1 -> 2021 | V52: =INCO!AF1 -> 2021 | W52: =INCO!AG1 -> 2021 | X52: =INCO!AH1 -> 2021 | Y52: =INCO!AI1 -> 2021 | Z52: =INCO!AJ1 -> 2021 | AA52: =INCO!AK1 -> 2021 | AB52: =INCO!AL1 -> 2022 | AC52: =INCO!AM1 -> 2022 | AD52: =INCO!AN1 -> 2022 | AE52: =INCO!AO1 -> 2022 | AF52: =INCO!AP1 -> 2022 | AG52: =INCO!AQ1 -> 2022 | AH52: =INCO!AR1 -> 2022 | AI52: =INCO!AS1 -> 2022 | AJ52: =INCO!AT1 -> 2022 | AK52: =INCO!AU1 -> 2022 | AL52: =INCO!AV1 -> 2022 | AM52: =INCO!AW1 -> 2022 | AN52: =INCO!AX1 -> 2023 | AO52: =INCO!AY1 -> 2023 | AP52: =INCO!AZ1 -> 2023 | AQ52: =INCO!BA1 -> 2023 | AR52: =INCO!BB1 -> 2023 | AS52: =INCO!BC1 -> 2023 | AT52: =INCO!BD1 -> 2023 | AU52: =INCO!BE1 -> 2023 | AV52: =INCO!BF1 -> 2023 | AW52: =INCO!BG1 -> 2023 | AX52: =INCO!BH1 -> 2023 | AY52: =INCO!BI1 -> 2023 | AZ52: =INCO!BJ1 -> 2024 | BA52: =INCO!BK1 -> 2024 | BB52: =INCO!BL1 -> 2024 | BC52: =INCO!BM1 -> 2024 | BD52: =INCO!BN1 -> 2024 | BE52: =INCO!BO1 -> 2024 | BF52: =INCO!BP1 -> 2024 | BG52: =INCO!BQ1 -> 2024 | BH52: =INCO!BR1 -> 2024 | BI52: =INCO!BS1 -> 2024 | BJ52: =INCO!BT1 -> 2024 | BK52: =INCO!BU1 -> 2024 | BL52: =INCO!BV1 -> 2025 | BM52: =INCO!BW1 -> 2025 | BN52: =INCO!BX1 -> 2025 | BO52: =INCO!BY1 -> 2025 | BP52: =INCO!BZ1 -> 2025 | BQ52: =INCO!CA1 -> 2025 | BR52: =INCO!CB1 -> 2025 | BS52: =INCO!CC1 -> 2025 | BT52: =INCO!CD1 -> 2025 | BU52: =INCO!CE1 -> 2025 | BV52: =INCO!CF1 -> 2025 | BW52: =INCO!CG1 -> 2025 | BX52: =INCO!CH1 -> 2026 | BY52: =INCO!CI1 -> 2026 | BZ52: =INCO!CJ1 -> 2026 | CA52: =INCO!CK1 -> 2026 | CB52: =INCO!CL1 -> 2026 | CC52: =INCO!CM1 -> 2026 | CD52: =INCO!CN1 -> 2026 | CE52: =INCO!CO1 -> 2026 | CF52: =INCO!CP1 -> 2026 | CG52: =INCO!CQ1 -> 2026 | CH52: =INCO!CR1 -> 2026 | CI52: =INCO!CS1 -> 2026
C53: =EOMONTH(D53,-1) -> 2019-12-31 | D53: =CONTROL!H2 -> 2020-01-31 | E53: =EOMONTH(D53,1) -> 2020-02-29 | F53: =EOMONTH(E53,1) -> 2020-03-31 | G53: 2020-04-30 | H53: 2020-05-31 | I53: 2020-06-30 | J53: 2020-07-31 | K53: 2020-08-31 | L53: 2020-09-30 | M53: 2020-10-31 | N53: 2020-11-30 | O53: 2020-12-31 | P53: 2021-01-31 | Q53: 2021-02-28 | R53: 2021-03-31 | S53: 2021-04-30 | T53: 2021-05-31 | U53: 2021-06-30 | V53: 2021-07-31 | W53: 2021-08-31 | X53: 2021-09-30 | Y53: 2021-10-31 | Z53: 2021-11-30 | AA53: 2021-12-31 | AB53: 2022-01-31 | AC53: 2022-02-28 | AD53: 2022-03-31 | AE53: 2022-04-30 | AF53: 2022-05-31 | AG53: 2022-06-30 | AH53: 2022-07-31 | AI53: 2022-08-31 | AJ53: 2022-09-30 | AK53: 2022-10-31 | AL53: 2022-11-30 | AM53: 2022-12-31 | AN53: 2023-01-31 | AO53: 2023-02-28 | AP53: 2023-03-31 | AQ53: 2023-04-30 | AR53: 2023-05-31 | AS53: 2023-06-30 | AT53: 2023-07-31 | AU53: 2023-08-31 | AV53: 2023-09-30 | AW53: 2023-10-31 | AX53: 2023-11-30 | AY53: 2023-12-31 | AZ53: 2024-01-31 | BA53: 2024-02-29 | BB53: 2024-03-31 | BC53: 2024-04-30 | BD53: 2024-05-31 | BE53: 2024-06-30 | BF53: 2024-07-31 | BG53: 2024-08-31 | BH53: 2024-09-30 | BI53: 2024-10-31 | BJ53: 2024-11-30 | BK53: 2024-12-31 | BL53: 2025-01-31 | BM53: 2025-02-28 | BN53: 2025-03-31 | BO53: 2025-04-30 | BP53: 2025-05-31 | BQ53: 2025-06-30 | BR53: =EOMONTH(BQ53,1) -> 2025-07-31 | BS53: 2025-08-31 | BT53: 2025-09-30 | BU53: 2025-10-31 | BV53: 2025-11-30 | BW53: 2025-12-31 | BX53: 2026-01-31 | BY53: 2026-02-28 | BZ53: 2026-03-31 | CA53: 2026-04-30 | CB53: 2026-05-31 | CC53: 2026-06-30 | CD53: 2026-07-31 | CE53: 2026-08-31 | CF53: 2026-09-30 | CG53: 2026-10-31 | CH53: 2026-11-30 | CI53: 2026-12-31
B54: Capital Pendiente | C54: =LOOKUP(C53,$C$30:$CI$30,$C$32:$CI$32)+LOOKUP(C53,$C$43:$CI$43,$C$45:$CI$45) -> 9291.433171 | D54: 8928.748308 | E54: 8564.023341 | F54: 8197.246797 | G54: 7828.407135 | H54: 7457.49275 | I54: 7084.491971 | J54: 6709.393063 | K54: 6332.184223 | L54: 5952.853584 | M54: 5571.38921 | N54: 5187.779099 | O54: 4802.011181 | P54: 4414.073318 | Q54: 4023.953305 | R54: 3631.638867 | S54: 3237.11766 | T54: 2840.377271 | U54: 2441.405218 | V54: 2040.188947 | W54: 1636.715834 | X54: 1230.973185 | Y54: 822.9482339 | Z54: 412.6281422 | AA54: -2.387423592e-12 | AB54: -2.387423592e-12 | AC54: -2.387423592e-12 | AD54: -2.387423592e-12 | AE54: -2.387423592e-12 | AF54: -2.387423592e-12 | AG54: -2.387423592e-12 | AH54: -2.387423592e-12 | AI54: =LOOKUP(AI53,$C$30:$CI$30,$C$32:$CI$32)+LOOKUP(AI53,$C$43:$CI$43,$C$45:$CI$45) -> -2.387423592e-12 | AJ54: -2.387423592e-12 | AK54: -2.387423592e-12 | AL54: -2.387423592e-12 | AM54: -2.387423592e-12 | AN54: -2.387423592e-12 | AO54: -2.387423592e-12 | AP54: -2.387423592e-12 | AQ54: -2.387423592e-12 | AR54: -2.387423592e-12 | AS54: -2.387423592e-12 | AT54: -2.387423592e-12 | AU54: -2.387423592e-12 | AV54: -2.387423592e-12 | AW54: -2.387423592e-12 | AX54: -2.387423592e-12 | AY54: -2.387423592e-12 | AZ54: -2.387423592e-12 | BA54: -2.387423592e-12 | BB54: -2.387423592e-12 | BC54: -2.387423592e-12 | BD54: -2.387423592e-12 | BE54: -2.387423592e-12 | BF54: -2.387423592e-12 | BG54: -2.387423592e-12 | BH54: -2.387423592e-12 | BI54: -2.387423592e-12 | BJ54: -2.387423592e-12 | BK54: -2.387423592e-12 | BL54: -2.387423592e-12 | BM54: -2.387423592e-12 | BN54: -2.387423592e-12 | BO54: =LOOKUP(BO53,$C$30:$CI$30,$C$32:$CI$32)+LOOKUP(BO53,$C$43:$CI$43,$C$45:$CI$45) -> -2.387423592e-12 | BP54: -2.387423592e-12 | BQ54: -2.387423592e-12 | BR54: -2.387423592e-12 | BS54: -2.387423592e-12 | BT54: -2.387423592e-12 | BU54: -2.387423592e-12 | BV54: -2.387423592e-12 | BW54: -2.387423592e-12 | BX54: -2.387423592e-12 | BY54: -2.387423592e-12 | BZ54: -2.387423592e-12 | CA54: -2.387423592e-12 | CB54: -2.387423592e-12 | CC54: -2.387423592e-12 | CD54: -2.387423592e-12 | CE54: -2.387423592e-12 | CF54: -2.387423592e-12 | CG54: -2.387423592e-12 | CH54: -2.387423592e-12 | CI54: -2.387423592e-12
B55: Amortización | D55: =SUMIF($D$30:$CI$30,D$53,$D33:$CI33)+SUMIF($D$43:$CI$43,D$53,$D46:$CI46) -> 362.6848639 | E55: 364.7249663 | F55: 366.7765442 | G55: 368.8396623 | H55: 370.9143854 | I55: 373.0007788 | J55: 375.0989082 | K55: 377.2088395 | L55: 379.3306392 | M55: 381.4643741 | N55: 383.6101112 | O55: 385.7679181 | P55: 387.9378626 | Q55: 390.1200131 | R55: 392.3144381 | S55: 394.5212069 | T55: 396.7403887 | U55: 398.9720533 | V55: 401.2162711 | W55: 403.4731127 | X55: 405.7426489 | Y55: 408.0249513 | Z55: 410.3200917 | AA55: 412.6281422 | AB55: 0 | AC55: 0 | AD55: 0 | AE55: 0 | AF55: 0 | AG55: 0 | AH55: 0 | AI55: 0 | AJ55: =SUMIF($D$30:$CI$30,AJ$53,$D33:$CI33)+SUMIF($D$43:$CI$43,AJ$53,$D46:$CI46) -> 0 | AK55: 0 | AL55: 0 | AM55: 0 | AN55: 0 | AO55: 0 | AP55: 0 | AQ55: 0 | AR55: 0 | AS55: 0 | AT55: 0 | AU55: 0 | AV55: 0 | AW55: 0 | AX55: 0 | AY55: 0 | AZ55: 0 | BA55: 0 | BB55: 0 | BC55: 0 | BD55: 0 | BE55: 0 | BF55: 0 | BG55: 0 | BH55: 0 | BI55: 0 | BJ55: 0 | BK55: 0 | BL55: 0 | BM55: 0 | BN55: 0 | BO55: 0 | BP55: =SUMIF($D$30:$CI$30,BP$53,$D33:$CI33)+SUMIF($D$43:$CI$43,BP$53,$D46:$CI46) -> 0 | BQ55: 0 | BR55: 0 | BS55: 0 | BT55: 0 | BU55: 0 | BV55: 0 | BW55: 0 | BX55: 0 | BY55: 0 | BZ55: 0 | CA55: 0 | CB55: 0 | CC55: 0 | CD55: 0 | CE55: 0 | CF55: 0 | CG55: 0 | CH55: 0 | CI55: 0
B56: Intereses | D56: =SUMIF($D$30:$CI$30,D$53,$D34:$CI34)+SUMIF($D$43:$CI$43,D$53,$D47:$CI47) -> 52.26431159 | E56: 50.22420923 | F56: 48.1726313 | G56: 46.10951323 | H56: 44.03479013 | I56: 41.94839672 | J56: 39.85026734 | K56: 37.74033598 | L56: 35.61853626 | M56: 33.48480141 | N56: 31.33906431 | O56: 29.18125743 | P56: 27.01131289 | Q56: 24.82916241 | R56: 22.63473734 | S56: 20.42796863 | T56: 18.20878684 | U56: 15.97712215 | V56: 13.73290435 | W56: 11.47606283 | X56: 9.206526567 | Y56: 6.924224167 | Z56: 4.629083815 | AA56: 2.3210333 | AB56: -1.342925771e-14 | AC56: -1.342925771e-14 | AD56: -1.342925771e-14 | AE56: -1.342925771e-14 | AF56: -1.342925771e-14 | AG56: -1.342925771e-14 | AH56: -1.342925771e-14 | AI56: -1.342925771e-14 | AJ56: =SUMIF($D$30:$CI$30,AJ$53,$D34:$CI34)+SUMIF($D$43:$CI$43,AJ$53,$D47:$CI47) -> -1.342925771e-14 | AK56: -1.342925771e-14 | AL56: -1.342925771e-14 | AM56: -1.342925771e-14 | AN56: -1.342925771e-14 | AO56: -1.342925771e-14 | AP56: -1.342925771e-14 | AQ56: -1.342925771e-14 | AR56: -1.342925771e-14 | AS56: -1.342925771e-14 | AT56: -1.342925771e-14 | AU56: -1.342925771e-14 | AV56: -1.342925771e-14 | AW56: -1.342925771e-14 | AX56: -1.342925771e-14 | AY56: -1.342925771e-14 | AZ56: -1.342925771e-14 | BA56: -1.342925771e-14 | BB56: -1.342925771e-14 | BC56: -1.342925771e-14 | BD56: -1.342925771e-14 | BE56: -1.342925771e-14 | BF56: -1.342925771e-14 | BG56: -1.342925771e-14 | BH56: -1.342925771e-14 | BI56: -1.342925771e-14 | BJ56: -1.342925771e-14 | BK56: -1.342925771e-14 | BL56: -1.342925771e-14 | BM56: -1.342925771e-14 | BN56: -1.342925771e-14 | BO56: -1.342925771e-14 | BP56: =SUMIF($D$30:$CI$30,BP$53,$D34:$CI34)+SUMIF($D$43:$CI$43,BP$53,$D47:$CI47) -> -1.342925771e-14 | BQ56: -1.342925771e-14 | BR56: -1.342925771e-14 | BS56: -1.342925771e-14 | BT56: -1.342925771e-14 | BU56: -1.342925771e-14 | BV56: -1.342925771e-14 | BW56: -1.342925771e-14 | BX56: -1.342925771e-14 | BY56: -1.342925771e-14 | BZ56: -1.342925771e-14 | CA56: -1.342925771e-14 | CB56: -1.342925771e-14 | CC56: -1.342925771e-14 | CD56: -1.342925771e-14 | CE56: -1.342925771e-14 | CF56: -1.342925771e-14 | CG56: -1.342925771e-14 | CH56: -1.342925771e-14 | CI56: -1.342925771e-14
B57: Cuota | D57: =D55+D56 -> 414.9491755 | E57: =E55+E56 -> 414.9491755 | F57: 414.9491755 | G57: 414.9491755 | H57: 414.9491755 | I57: 414.9491755 | J57: 414.9491755 | K57: 414.9491755 | L57: 414.9491755 | M57: 414.9491755 | N57: 414.9491755 | O57: 414.9491755 | P57: 414.9491755 | Q57: 414.9491755 | R57: 414.9491755 | S57: 414.9491755 | T57: 414.9491755 | U57: 414.9491755 | V57: 414.9491755 | W57: 414.9491755 | X57: 414.9491755 | Y57: 414.9491755 | Z57: 414.9491755 | AA57: 414.9491755 | AB57: -1.342925771e-14 | AC57: -1.342925771e-14 | AD57: -1.342925771e-14 | AE57: -1.342925771e-14 | AF57: -1.342925771e-14 | AG57: -1.342925771e-14 | AH57: -1.342925771e-14 | AI57: -1.342925771e-14 | AJ57: -1.342925771e-14 | AK57: -1.342925771e-14 | AL57: -1.342925771e-14 | AM57: -1.342925771e-14 | AN57: -1.342925771e-14 | AO57: -1.342925771e-14 | AP57: -1.342925771e-14 | AQ57: -1.342925771e-14 | AR57: -1.342925771e-14 | AS57: -1.342925771e-14 | AT57: -1.342925771e-14 | AU57: -1.342925771e-14 | AV57: -1.342925771e-14 | AW57: -1.342925771e-14 | AX57: -1.342925771e-14 | AY57: -1.342925771e-14 | AZ57: -1.342925771e-14 | BA57: -1.342925771e-14 | BB57: -1.342925771e-14 | BC57: -1.342925771e-14 | BD57: -1.342925771e-14 | BE57: -1.342925771e-14 | BF57: -1.342925771e-14 | BG57: -1.342925771e-14 | BH57: -1.342925771e-14 | BI57: -1.342925771e-14 | BJ57: -1.342925771e-14 | BK57: -1.342925771e-14 | BL57: -1.342925771e-14 | BM57: -1.342925771e-14 | BN57: -1.342925771e-14 | BO57: -1.342925771e-14 | BP57: -1.342925771e-14 | BQ57: =BQ55+BQ56 -> -1.342925771e-14 | BR57: -1.342925771e-14 | BS57: -1.342925771e-14 | BT57: -1.342925771e-14 | BU57: -1.342925771e-14 | BV57: -1.342925771e-14 | BW57: -1.342925771e-14 | BX57: -1.342925771e-14 | BY57: -1.342925771e-14 | BZ57: -1.342925771e-14 | CA57: -1.342925771e-14 | CB57: -1.342925771e-14 | CC57: -1.342925771e-14 | CD57: -1.342925771e-14 | CE57: -1.342925771e-14 | CF57: -1.342925771e-14 | CG57: -1.342925771e-14 | CH57: -1.342925771e-14 | CI57: -1.342925771e-14
B58: Comisiones | C58: =F28+F41 -> 139.3714976
C60: CUADRO RESUMEN DEUDA INICIAL, ANUAL
C61: =C53 -> 2019-12-31 | D61: =D13 -> 2020 | E61: 2021 | F61: 2022 | G61: 2023 | H61: 2024 | I61: 2025 | J61: 2026
B62: Capital Pendiente | C62: =C54 -> 9291.433171 | D62: =C62-D63 -> 4802.011181 | E62: =D62-E63 -> 0 | F62: 0 | G62: 0 | H62: 0 | I62: 0 | J62: 0
B63: Amortización | D63: =SUMIF($D$52:$CI$52,D$61,$D55:$CI55) -> 4489.421991 | E63: 4802.011181 | F63: 0 | G63: 0 | H63: 0 | I63: 0 | J63: 0
B64: Intereses | D64: 489.9681149 | E64: 177.3789253 | F64: -1.611510925e-13 | G64: -1.611510925e-13 | H64: -1.611510925e-13 | I64: -1.611510925e-13 | J64: -1.611510925e-13
B65: Cuota | D65: =D64+D63 -> 4979.390106 | E65: =E64+E63 -> 4979.390106 | F65: -1.611510925e-13 | G65: -1.611510925e-13 | H65: -1.611510925e-13 | I65: -1.611510925e-13 | J65: -1.611510925e-13

Sheet INCO
B1: =INV!B1 -> Modelo O.K, VAN = 6.379.160 | C1: =CONTROL!C2 -> Proyecto Ejemplo | N1: =YEAR(N2) -> 2020 | O1: 2020 | P1: 2020 | Q1: 2020 | R1: 2020 | S1: 2020 | T1: 2020 | U1: 2020 | V1: 2020 | W1: 2020 | X1: 2020 | Y1: 2020 | Z1: 2021 | AA1: 2021 | AB1: 2021 | AC1: 2021 | AD1: 2021 | AE1: 2021 | AF1: 2021 | AG1: 2021 | AH1: 2021 | AI1: 2021 | AJ1: 2021 | AK1: 2021 | AL1: 2022 | AM1: 2022 | AN1: 2022 | AO1: 2022 | AP1: 2022 | AQ1: 2022 | AR1: 2022 | AS1: 2022 | AT1: =YEAR(AT2) -> 2022 | AU1: 2022 | AV1: 2022 | AW1: 2022 | AX1: 2023 | AY1: 2023 | AZ1: 2023 | BA1: 2023 | BB1: 2023 | BC1: 2023 | BD1: 2023 | BE1: 2023 | BF1: 2023 | BG1: 2023 | BH1: 2023 | BI1: 2023 | BJ1: 2024 | BK1: 2024 | BL1: 2024 | BM1: 2024 | BN1: 2024 | BO1: 2024 | BP1: 2024 | BQ1: 2024 | BR1: 2024 | BS1: 2024 | BT1: 2024 | BU1: 2024 | BV1: 2025 | BW1: 2025 | BX1: 2025 | BY1: 2025 | BZ1: =YEAR(BZ2) -> 2025 | CA1: 2025 | CB1: 2025 | CC1: 2025 | CD1: 2025 | CE1: 2025 | CF1: 2025 | CG1: 2025 | CH1: 2026 | CI1: 2026 | CJ1: 2026 | CK1: 2026 | CL1: 2026 | CM1: 2026 | CN1: 2026 | CO1: 2026 | CP1: 2026 | CQ1: 2026 | CR1: 2026 | CS1: 2026
N2: =CONTROL!H2 -> 2020-01-31 | O2: =EOMONTH(N2,1) -> 2020-02-29 | P2: =EOMONTH(O2,1) -> 2020-03-31 | Q2: 2020-04-30 | R2: 2020-05-31 | S2: 2020-06-30 | T2: 2020-07-31 | U2: 2020-08-31 | V2: 2020-09-30 | W2: 2020-10-31 | X2: 2020-11-30 | Y2: 2020-12-31 | Z2: 2021-01-31 | AA2: 2021-02-28 | AB2: 2021-03-31 | AC2: 2021-04-30 | AD2: 2021-05-31 | AE2: 2021-06-30 | AF2: 2021-07-31 | AG2: 2021-08-31 | AH2: 2021-09-30 | AI2: 2021-10-31 | AJ2: 2021-11-30 | AK2: 2021-12-31 | AL2: 2022-01-31 | AM2: 2022-02-28 | AN2: 2022-03-31 | AO2: 2022-04-30 | AP2: 2022-05-31 | AQ2: 2022-06-30 | AR2: 2022-07-31 | AS2: 2022-08-31 | AT2: 2022-09-30 | AU2: 2022-10-31 | AV2: 2022-11-30 | AW2: 2022-12-31 | AX2: 2023-01-31 | AY2: 2023-02-28 | AZ2: 2023-03-31 | BA2: 2023-04-30 | BB2: 2023-05-31 | BC2: 2023-06-30 | BD2: 2023-07-31 | BE2: 2023-08-31 | BF2: 2023-09-30 | BG2: 2023-10-31 | BH2: 2023-11-30 | BI2: 2023-12-31 | BJ2: 2024-01-31 | BK2: 2024-02-29 | BL2: 2024-03-31 | BM2: 2024-04-30 | BN2: 2024-05-31 | BO2: 2024-06-30 | BP2: 2024-07-31 | BQ2: 2024-08-31 | BR2: 2024-09-30 | BS2: 2024-10-31 | BT2: 2024-11-30 | BU2: 2024-12-31 | BV2: 2025-01-31 | BW2: 2025-02-28 | BX2: 2025-03-31 | BY2: 2025-04-30 | BZ2: 2025-05-31 | CA2: 2025-06-30 | CB2: =EOMONTH(CA2,1) -> 2025-07-31 | CC2: 2025-08-31 | CD2: 2025-09-30 | CE2: 2025-10-31 | CF2: 2025-11-30 | CG2: 2025-12-31 | CH2: 2026-01-31 | CI2: 2026-02-28 | CJ2: 2026-03-31 | CK2: 2026-04-30 | CL2: 2026-05-31 | CM2: 2026-06-30 | CN2: 2026-07-31 | CO2: 2026-08-31 | CP2: 2026-09-30 | CQ2: 2026-10-31 | CR2: 2026-11-30 | CS2: 2026-12-31
M3: Mensualización Libre Ventas | N3: 0.02 | O3: 0.04 | P3: 0.05 | Q3: 0.05 | R3: 0.05 | S3: 0.07 | T3: 0.07 | U3: 0.1 | V3: 0.1 | W3: 0.15 | X3: 0.15 | Y3: 0.15 | Z3: 0.07 | AA3: 0.07 | AB3: 0.07 | AC3: 0.07 | AD3: 0.07 | AE3: 0.08 | AF3: 0.08 | AG3: 0.09 | AH3: 0.1 | AI3: 0.1 | AJ3: 0.1 | AK3: 0.1 | AL3: =Z3 -> 0.07 | AM3: =AA3 -> 0.07 | AN3: 0.07 | AO3: 0.07 | AP3: 0.07 | AQ3: 0.08 | AR3: 0.08 | AS3: 0.09 | AT3: 0.1 | AU3: 0.1 | AV3: 0.1 | AW3: 0.1 | AX3: 0.07 | AY3: 0.07 | AZ3: 0.07 | BA3: 0.07 | BB3: 0.07 | BC3: 0.08 | BD3: 0.08 | BE3: 0.09 | BF3: 0.1 | BG3: 0.1 | BH3: 0.1 | BI3: 0.1 | BJ3: 0.07 | BK3: 0.07 | BL3: 0.07 | BM3: 0.07 | BN3: 0.07 | BO3: 0.08 | BP3: 0.08 | BQ3: 0.09 | BR3: 0.1 | BS3: 0.1 | BT3: 0.1 | BU3: 0.1 | BV3: 0.07 | BW3: 0.07 | BX3: 0.07 | BY3: 0.07 | BZ3: 0.07 | CA3: 0.08 | CB3: 0.08 | CC3: 0.09 | CD3: 0.1 | CE3: 0.1 | CF3: 0.1 | CG3: 0.1 | CH3: 0.07 | CI3: 0.07 | CJ3: 0.07 | CK3: 0.07 | CL3: 0.07 | CM3: 0.08 | CN3: 0.08 | CO3: 0.09 | CP3: =CD3 -> 0.1 | CQ3: 0.1 | CR3: 0.1 | CS3: 0.1
B4: Mensualización | C4: =CONTROL!H17 -> Libre | D4: =CONTROL!E2 -> 2020 | E4: =D4+1 -> 2021 | F4: 2022 | G4: 2023 | H4: 2024 | I4: 2025 | J4: =I4+1 -> 2026 | K4: =J4+1 -> 2027 | M4: Mensualización Libre Costes Fijos | N4: 0.0833 | O4: 0.0833 | P4: 0.0833 | Q4: 0.0833 | R4: 0.0833 | S4: 0.0833 | T4: 0.0833 | U4: 0.0833 | V4: 0.0833 | W4: 0.0833 | X4: 0.0833 | Y4: 0.0837 | Z4: 0.0833 | AA4: 0.0833 | AB4: 0.0833 | AC4: 0.0833 | AD4: 0.0833 | AE4: 0.0833 | AF4: 0.0833 | AG4: 0.0833 | AH4: 0.0833 | AI4: 0.0833 | AJ4: 0.0833 | AK4: 0.0837 | AL4: =Z4 -> 0.0833 | AM4: 0.0833 | AN4: 0.0833 | AO4: 0.0833 | AP4: 0.0833 | AQ4: 0.0833 | AR4: 0.0833 | AS4: 0.0833 | AT4: 0.0833 | AU4: 0.0833 | AV4: 0.0833 | AW4: 0.0837 | AX4: 0.0833 | AY4: 0.0833 | AZ4: 0.0833 | BA4: 0.0833 | BB4: 0.0833 | BC4: 0.0833 | BD4: 0.0833 | BE4: 0.0833 | BF4: 0.0833 | BG4: 0.0833 | BH4: 0.0833 | BI4: 0.0837 | BJ4: 0.0833 | BK4: 0.0833 | BL4: 0.0833 | BM4: 0.0833 | BN4: 0.0833 | BO4: 0.0833 | BP4: 0.0833 | BQ4: 0.0833 | BR4: 0.0833 | BS4: 0.0833 | BT4: 0.0833 | BU4: 0.0837 | BV4: 0.0833 | BW4: 0.0833 | BX4: 0.0833 | BY4: 0.0833 | BZ4: 0.0833 | CA4: 0.0833 | CB4: 0.0833 | CC4: 0.0833 | CD4: 0.0833 | CE4: 0.0833 | CF4: 0.0833 | CG4: 0.0837 | CH4: 0.0833 | CI4: 0.0833 | CJ4: 0.0833 | CK4: 0.0833 | CL4: 0.0833 | CM4: 0.0833 | CN4: 0.0833 | CO4: 0.0833 | CP4: 0.0833 | CQ4: 0.0833 | CR4: 0.0833 | CS4: 0.0837
M5: Mensualización Ventas | N5: =IF($C$4="Automática",IF(YEAR(N2)=$D$11,1/(13-Mes_Ini),1/12),N3) -> 0.02 | O5: 0.04 | P5: 0.05 | Q5: 0.05 | R5: 0.05 | S5: 0.07 | T5: 0.07 | U5: 0.1 | V5: 0.1 | W5: 0.15 | X5: 0.15 | Y5: 0.15 | Z5: 0.07 | AA5: 0.07 | AB5: 0.07 | AC5: 0.07 | AD5: 0.07 | AE5: 0.08 | AF5: 0.08 | AG5: 0.09 | AH5: 0.1 | AI5: 0.1 | AJ5: 0.1 | AK5: 0.1 | AL5: 0.07 | AM5: 0.07 | AN5: 0.07 | AO5: 0.07 | AP5: 0.07 | AQ5: 0.08 | AR5: 0.08 | AS5: 0.09 | AT5: =IF($C$4="Automática",IF(YEAR(AT2)=$D$11,1/(13-Mes_Ini),1/12),AT3) -> 0.1 | AU5: 0.1 | AV5: 0.1 | AW5: 0.1 | AX5: 0.07 | AY5: 0.07 | AZ5: 0.07 | BA5: 0.07 | BB5: 0.07 | BC5: 0.08 | BD5: 0.08 | BE5: 0.09 | BF5: 0.1 | BG5: 0.1 | BH5: 0.1 | BI5: 0.1 | BJ5: 0.07 | BK5: 0.07 | BL5: 0.07 | BM5: 0.07 | BN5: 0.07 | BO5: 0.08 | BP5: 0.08 | BQ5: 0.09 | BR5: 0.1 | BS5: 0.1 | BT5: 0.1 | BU5: 0.1 | BV5: 0.07 | BW5: 0.07 | BX5: 0.07 | BY5: 0.07 | BZ5: =IF($C$4="Automática",IF(YEAR(BZ2)=$D$11,1/(13-Mes_Ini),1/12),BZ3) -> 0.07 | CA5: 0.08 | CB5: 0.08 | CC5: 0.09 | CD5: 0.1 | CE5: 0.1 | CF5: 0.1 | CG5: 0.1 | CH5: 0.07 | CI5: 0.07 | CJ5: 0.07 | CK5: 0.07 | CL5: 0.07 | CM5: 0.08 | CN5: 0.08 | CO5: 0.09 | CP5: 0.1 | CQ5: 0.1 | CR5: 0.1 | CS5: 0.1
C6: Dato base | M6: Mensualización Costes Fijos | N6: =IF($C$4="Automática",IF(YEAR(N2)=$D$11,1/(13-Mes_Ini),1/12),N4) -> 0.0833 | O6: 0.0833 | P6: 0.0833 | Q6: 0.0833 | R6: 0.0833 | S6: 0.0833 | T6: 0.0833 | U6: 0.0833 | V6: 0.0833 | W6: 0.0833 | X6: 0.0833 | Y6: 0.0837 | Z6: 0.0833 | AA6: 0.0833 | AB6: 0.0833 | AC6: 0.0833 | AD6: 0.0833 | AE6: 0.0833 | AF6: 0.0833 | AG6: 0.0833 | AH6: 0.0833 | AI6: 0.0833 | AJ6: 0.0833 | AK6: 0.0837 | AL6: 0.0833 | AM6: 0.0833 | AN6: 0.0833 | AO6: 0.0833 | AP6: 0.0833 | AQ6: 0.0833 | AR6: 0.0833 | AS6: 0.0833 | AT6: =IF($C$4="Automática",IF(YEAR(AT2)=$D$11,1/(13-Mes_Ini),1/12),AT4) -> 0.0833 | AU6: 0.0833 | AV6: 0.0833 | AW6: 0.0837 | AX6: 0.0833 | AY6: 0.0833 | AZ6: 0.0833 | BA6: 0.0833 | BB6: 0.0833 | BC6: 0.0833 | BD6: 0.0833 | BE6: 0.0833 | BF6: 0.0833 | BG6: 0.0833 | BH6: 0.0833 | BI6: 0.0837 | BJ6: 0.0833 | BK6: 0.0833 | BL6: 0.0833 | BM6: 0.0833 | BN6: 0.0833 | BO6: 0.0833 | BP6: 0.0833 | BQ6: 0.0833 | BR6: 0.0833 | BS6: 0.0833 | BT6: 0.0833 | BU6: 0.0837 | BV6: 0.0833 | BW6: 0.0833 | BX6: 0.0833 | BY6: 0.0833 | BZ6: =IF($C$4="Automática",IF(YEAR(BZ2)=$D$11,1/(13-Mes_Ini),1/12),BZ4) -> 0.0833 | CA6: 0.0833 | CB6: 0.0833 | CC6: 0.0833 | CD6: 0.0833 | CE6: 0.0833 | CF6: 0.0833 | CG6: 0.0837 | CH6: 0.0833 | CI6: 0.0833 | CJ6: 0.0833 | CK6: 0.0833 | CL6: 0.0833 | CM6: 0.0833 | CN6: 0.0833 | CO6: 0.0833 | CP6: 0.0833 | CQ6: 0.0833 | CR6: 0.0833 | CS6: 0.0837
B7: IPC | C7: =CONTROL!H4 -> 0 | E7: =$C$7 -> 0 | F7: =$C$7 -> 0 | G7: 0 | H7: 0 | I7: 0 | J7: 0 | K7: 0 | N7: =D4 -> 2020 | O7: =N7+1 -> 2021 | P7: 2022 | Q7: 2023 | R7: 2024 | S7: 2025 | T7: 2026
B8: IPC Ingresos | C8: =CONTROL!H5 -> 0 | D8: 1 | E8: =D8*(1+E7*$C$8) -> 1 | F8: 1 | G8: 1 | H8: 1 | I8: 1 | J8: 1 | K8: 1 | N8: =SUMIF($N$1:$CS$1,N$7,$N5:$CS5) -> 1 | O8: 1 | P8: 1 | Q8: 1 | R8: 1 | S8: 1 | T8: 1
B9: IPC Costes | C9: =CONTROL!H6 -> 0 | D9: 1 | E9: =D9*(1+E7*$C$9) -> 1 | F9: 1 | G9: 1 | H9: 1 | I9: 1 | J9: 1 | K9: 1 | N9: 1 | O9: 1 | P9: 1 | Q9: 1 | R9: 1 | S9: 1 | T9: 1
N10: =IF(OR(N8<>1,O8<>1,P8<>1,Q8<>1,R8<>1,S8<>1,T8<>1),"Estacionalidad de ventas incorrecta","") ->  | O10: =IF(OR(N9<>1,O9<>1,P9<>1,Q9<>1,R9<>1,S9<>1,T9<>1),"Estacionalidad de costes fijos incorrecta","") -> 
B11: AÑO | C11: Dato base | D11: =D4 -> 2020 | E11: 2021 | F11: 2022 | G11: 2023 | H11: 2024 | I11: 2025 | J11: 2026 | K11: 2027 | N11: =N2 -> 2020-01-31 | O11: 2020-02-29 | P11: 2020-03-31 | Q11: 2020-04-30 | R11: 2020-05-31 | S11: 2020-06-30 | T11: 2020-07-31 | U11: 2020-08-31 | V11: 2020-09-30 | W11: 2020-10-31 | X11: 2020-11-30 | Y11: 2020-12-31 | Z11: 2021-01-31 | AA11: 2021-02-28 | AB11: 2021-03-31 | AC11: 2021-04-30 | AD11: 2021-05-31 | AE11: 2021-06-30 | AF11: 2021-07-31 | AG11: 2021-08-31 | AH11: 2021-09-30 | AI11: 2021-10-31 | AJ11: 2021-11-30 | AK11: 2021-12-31 | AL11: 2022-01-31 | AM11: 2022-02-28 | AN11: 2022-03-31 | AO11: 2022-04-30 | AP11: 2022-05-31 | AQ11: 2022-06-30 | AR11: 2022-07-31 | AS11: 2022-08-31 | AT11: =AT2 -> 2022-09-30 | AU11: 2022-10-31 | AV11: 2022-11-30 | AW11: 2022-12-31 | AX11: 2023-01-31 | AY11: 2023-02-28 | AZ11: 2023-03-31 | BA11: 2023-04-30 | BB11: 2023-05-31 | BC11: 2023-06-30 | BD11: 2023-07-31 | BE11: 2023-08-31 | BF11: 2023-09-30 | BG11: 2023-10-31 | BH11: 2023-11-30 | BI11: 2023-12-31 | BJ11: 2024-01-31 | BK11: 2024-02-29 | BL11: 2024-03-31 | BM11: 2024-04-30 | BN11: 2024-05-31 | BO11: 2024-06-30 | BP11: 2024-07-31 | BQ11: 2024-08-31 | BR11: 2024-09-30 | BS11: 2024-10-31 | BT11: 2024-11-30 | BU11: 2024-12-31 | BV11: 2025-01-31 | BW11: 2025-02-28 | BX11: 2025-03-31 | BY11: 2025-04-30 | BZ11: =BZ2 -> 2025-05-31 | CA11: 2025-06-30 | CB11: 2025-07-31 | CC11: 2025-08-31 | CD11: 2025-09-30 | CE11: 2025-10-31 | CF11: 2025-11-30 | CG11: 2025-12-31 | CH11: 2026-01-31 | CI11: 2026-02-28 | CJ11: 2026-03-31 | CK11: 2026-04-30 | CL11: 2026-05-31 | CM11: 2026-06-30 | CN11: 2026-07-31 | CO11: 2026-08-31 | CP11: 2026-09-30 | CQ11: 2026-10-31 | CR11: 2026-11-30 | CS11: 2026-12-31
B12: =CONTROL!C24 -> Línea A
B13: Ingresos | C13: =CONTROL!C25 -> 2020 | D13: =D15*D14 -> 560640 | E13: 616704 | F13: 709209.6 | G13: 851051.52 | H13: 1063814.4 | I13: 1382958.72 | J13: 1866994.272 | K13: =K15*K14 -> 1866994.272 | N13: =N$5*INDEX($D13:$K13,1,N$1-$D$11+1) -> 11212.8 | O13: =O$5*INDEX($D13:$K13,1,O$1-$D$11+1) -> 22425.6 | P13: 28032 | Q13: 28032 | R13: 28032 | S13: 39244.8 | T13: 39244.8 | U13: 56064 | V13: 56064 | W13: 84096 | X13: 84096 | Y13: 84096 | Z13: 43169.28 | AA13: 43169.28 | AB13: 43169.28 | AC13: 43169.28 | AD13: 43169.28 | AE13: 49336.32 | AF13: 49336.32 | AG13: 55503.36 | AH13: 61670.4 | AI13: 61670.4 | AJ13: 61670.4 | AK13: 61670.4 | AL13: 49644.672 | AM13: 49644.672 | AN13: 49644.672 | AO13: 49644.672 | AP13: 49644.672 | AQ13: 56736.768 | AR13: 56736.768 | AS13: 63828.864 | AT13: 70920.96 | AU13: 70920.96 | AV13: 70920.96 | AW13: 70920.96 | AX13: 59573.6064 | AY13: 59573.6064 | AZ13: 59573.6064 | BA13: 59573.6064 | BB13: 59573.6064 | BC13: 68084.1216 | BD13: 68084.1216 | BE13: 76594.6368 | BF13: 85105.152 | BG13: 85105.152 | BH13: 85105.152 | BI13: 85105.152 | BJ13: 74467.008 | BK13: 74467.008 | BL13: 74467.008 | BM13: 74467.008 | BN13: 74467.008 | BO13: 85105.152 | BP13: 85105.152 | BQ13: 95743.296 | BR13: 106381.44 | BS13: 106381.44 | BT13: 106381.44 | BU13: 106381.44 | BV13: 96807.1104 | BW13: 96807.1104 | BX13: 96807.1104 | BY13: 96807.1104 | BZ13: 96807.1104 | CA13: =CA$5*INDEX($D13:$K13,1,CA$1-$D$11+1) -> 110636.6976 | CB13: 110636.6976 | CC13: 124466.2848 | CD13: 138295.872 | CE13: 138295.872 | CF13: 138295.872 | CG13: 138295.872 | CH13: 130689.599 | CI13: 130689.599 | CJ13: 130689.599 | CK13: 130689.599 | CL13: 130689.599 | CM13: 149359.5418 | CN13: 149359.5418 | CO13: 168029.4845 | CP13: 186699.4272 | CQ13: 186699.4272 | CR13: 186699.4272 | CS13: 186699.4272
B14: Precio | C14: =CONTROL!C26*RIESGO!C6 -> 4 | D14: =$C14*D$8 -> 4 | E14: 4 | F14: 4 | G14: 4 | H14: 4 | I14: 4 | J14: 4 | K14: 4
B15: Unidades | C15: =CONTROL!C27*RIESGO!C5 -> 140160 | D15: =IF(D$11<$C13,0,IF(D$11=$C13,$C15,C15*(1+D17))) -> 140160 | E15: 154176 | F15: =IF(F$11<$C13,0,IF(F$11=$C13,$C15,E15*(1+F17))) -> 177302.4 | G15: =IF(G$11<$C13,0,IF(G$11=$C13,$C15,F15*(1+G17))) -> 212762.88 | H15: =IF(H$11<$C13,0,IF(H$11=$C13,$C15,G15*(1+H17))) -> 265953.6 | I15: =IF(I$11<$C13,0,IF(I$11=$C13,$C15,H15*(1+I17))) -> 345739.68 | J15: =IF(J$11<$C13,0,IF(J$11=$C13,$C15,I15*(1+J17))) -> 466748.568 | K15: =IF(K$11<$C13,0,IF(K$11=$C13,$C15,J15*(1+K17))) -> 466748.568
B16: Crecimiento | E16: =TRANSPOSE(CONTROL!C29:C34)*RIESGO!$C$10 -> 0.1 | F16: 0.15 | G16: 0.2 | H16: 0.25 | I16: 0.3 | J16: 0.35 | K16: =CONTROL!$C$23*RIESGO!$C$10 -> 0
E17: =IF(D15=0,0,E16) -> 0.1 | F17: =IF(E15=0,0,F16) -> 0.15 | G17: 0.2 | H17: 0.25 | I17: 0.3 | J17: 0.35 | K17: =K16 -> 0
B18: =CONTROL!D24 -> Línea B
B19: Ingresos | C19: =CONTROL!D25 -> 0 | D19: =D21*D20 -> 0 | E19: 0 | F19: 0 | G19: 0 | H19: 0 | I19: 0 | J19: 0 | K19: =K21*K20 -> 0 | N19: =N$5*INDEX($D19:$K19,1,N$1-$D$11+1) -> 0 | O19: =O$5*INDEX($D19:$K19,1,O$1-$D$11+1) -> 0 | P19: =P$5*INDEX($D19:$K19,1,P$1-$D$11+1) -> 0 | Q19: 0 | R19: 0 | S19: 0 | T19: 0 | U19: 0 | V19: 0 | W19: 0 | X19: 0 | Y19: 0 | Z19: 0 | AA19: 0 | AB19: 0 | AC19: 0 | AD19: 0 | AE19: 0 | AF19: 0 | AG19: 0 | AH19: 0 | AI19: 0 | AJ19: 0 | AK19: 0 | AL19: 0 | AM19: 0 | AN19: 0 | AO19: 0 | AP19: 0 | AQ19: 0 | AR19: 0 | AS19: 0 | AT19: 0 | AU19: 0 | AV19: 0 | AW19: 0 | AX19: 0 | AY19: 0 | AZ19: 0 | BA19: 0 | BB19: 0 | BC19: 0 | BD19: 0 | BE19: 0 | BF19: 0 | BG19: 0 | BH19: 0 | BI19: 0 | BJ19: 0 | BK19: 0 | BL19: 0 | BM19: 0 | BN19: 0 | BO19: 0 | BP19: 0 | BQ19: 0 | BR19: 0 | BS19: 0 | BT19: 0 | BU19: 0 | BV19: 0 | BW19: 0 | BX19: 0 | BY19: 0 | BZ19: 0 | CA19: 0 | CB19: =CB$5*INDEX($D19:$K19,1,CB$1-$D$11+1) -> 0 | CC19: 0 | CD19: 0 | CE19: 0 | CF19: 0 | CG19: 0 | CH19: 0 | CI19: 0 | CJ19: 0 | CK19: 0 | CL19: 0 | CM19: 0 | CN19: 0 | CO19: 0 | CP19: 0 | CQ19: 0 | CR19: 0 | CS19: 0
B20: Precio | C20: =CONTROL!D26*RIESGO!C6 -> 0 | D20: =$C20*D$8 -> 0 | E20: 0 | F20: 0 | G20: 0 | H20: 0 | I20: 0 | J20: 0 | K20: 0
B21: Unidades | C21: =CONTROL!D27*RIESGO!C5 -> 0 | D21: =IF(D$11<$C19,0,IF(D$11=$C19,$C21,C21*(1+D23))) -> 0 | E21: 0 | F21: 0 | G21: 0 | H21: 0 | I21: 0 | J21: 0 | K21: 0
B22: Crecimiento | E22: =TRANSPOSE(CONTROL!D29:D34)*RIESGO!$C$10 -> 0 | F22: 0 | G22: 0 | H22: 0 | I22: 0 | J22: 0 | K22: =CONTROL!$C$23*RIESGO!$C$10 -> 0
E23: =IF(D21=0,0,E22) -> 0 | F23: =IF(E21=0,0,F22) -> 0 | G23: 0 | H23: 0 | I23: 0 | J23: 0 | K23: =K22 -> 0
B24: =CONTROL!E24 -> Línea C
B25: Ingresos | C25: =CONTROL!E25 -> 0 | D25: =D26*D27 -> 0 | E25: 0 | F25: 0 | G25: 0 | H25: 0 | I25: 0 | J25: 0 | K25: =K26*K27 -> 0 | N25: =N$5*INDEX($D25:$K25,1,N$1-$D$11+1) -> 0 | O25: =O$5*INDEX($D25:$K25,1,O$1-$D$11+1) -> 0 | P25: 0 | Q25: 0 | R25: 0 | S25: 0 | T25: 0 | U25: 0 | V25: 0 | W25: 0 | X25: 0 | Y25: 0 | Z25: 0 | AA25: 0 | AB25: 0 | AC25: 0 | AD25: 0 | AE25: 0 | AF25: 0 | AG25: 0 | AH25: 0 | AI25: 0 | AJ25: 0 | AK25: 0 | AL25: 0 | AM25: 0 | AN25: 0 | AO25: 0 | AP25: 0 | AQ25: 0 | AR25: 0 | AS25: 0 | AT25: 0 | AU25: 0 | AV25: 0 | AW25: 0 | AX25: 0 | AY25: 0 | AZ25: 0 | BA25: 0 | BB25: 0 | BC25: 0 | BD25: 0 | BE25: 0 | BF25: 0 | BG25: 0 | BH25: 0 | BI25: 0 | BJ25: 0 | BK25: 0 | BL25: 0 | BM25: 0 | BN25: 0 | BO25: 0 | BP25: 0 | BQ25: 0 | BR25: 0 | BS25: 0 | BT25: 0 | BU25: 0 | BV25: 0 | BW25: 0 | BX25: 0 | BY25: 0 | BZ25: 0 | CA25: =CA$5*INDEX($D25:$K25,1,CA$1-$D$11+1) -> 0 | CB25: 0 | CC25: 0 | CD25: 0 | CE25: 0 | CF25: 0 | CG25: 0 | CH25: 0 | CI25: 0 | CJ25: 0 | CK25: 0 | CL25: 0 | CM25: 0 | CN25: 0 | CO25: 0 | CP25: 0 | CQ25: 0 | CR25: 0 | CS25: 0
B26: Precio | C26: =CONTROL!E26*RIESGO!C6 -> 0 | D26: =$C26*D$8 -> 0 | E26: 0 | F26: 0 | G26: 0 | H26: 0 | I26: 0 | J26: 0 | K26: 0
B27: Unidades | C27: =CONTROL!E27*RIESGO!C5 -> 0 | D27: =IF(D$11<$C25,0,IF(D$11=$C25,$C27,C27*(1+D29))) -> 0 | E27: 0 | F27: 0 | G27: 0 | H27: 0 | I27: 0 | J27: 0 | K27: 0
B28: Crecimiento | E28: =TRANSPOSE(CONTROL!E29:E34)*RIESGO!$C$10 -> 0 | F28: 0 | G28: 0 | H28: 0 | I28: 0 | J28: 0 | K28: =CONTROL!$C$23*RIESGO!$C$10 -> 0
E29: =IF(D27=0,0,E28) -> 0 | F29: =IF(E27=0,0,F28) -> 0 | G29: =IF(F27=0,0,G28) -> 0 | H29: =IF(G27=0,0,H28) -> 0 | I29: =IF(H27=0,0,I28) -> 0 | J29: =IF(I27=0,0,J28) -> 0 | K29: =K28 -> 0
B30: =CONTROL!F24 -> Línea D
B31: Ingresos | C31: =CONTROL!F25 -> 0 | D31: =D32*D33 -> 0 | E31: 0 | F31: 0 | G31: 0 | H31: 0 | I31: 0 | J31: 0 | K31: =K32*K33 -> 0 | N31: =N$5*INDEX($D31:$K31,1,N$1-$D$11+1) -> 0 | O31: =O$5*INDEX($D31:$K31,1,O$1-$D$11+1) -> 0 | P31: 0 | Q31: =Q$5*INDEX($D31:$K31,1,Q$1-$D$11+1) -> 0 | R31: =R$5*INDEX($D31:$K31,1,R$1-$D$11+1) -> 0 | S31: 0 | T31: 0 | U31: 0 | V31: 0 | W31: 0 | X31: 0 | Y31: 0 | Z31: 0 | AA31: 0 | AB31: 0 | AC31: 0 | AD31: 0 | AE31: 0 | AF31: 0 | AG31: 0 | AH31: 0 | AI31: 0 | AJ31: 0 | AK31: 0 | AL31: 0 | AM31: 0 | AN31: 0 | AO31: 0 | AP31: 0 | AQ31: 0 | AR31: 0 | AS31: 0 | AT31: 0 | AU31: 0 | AV31: 0 | AW31: 0 | AX31: 0 | AY31: 0 | AZ31: 0 | BA31: 0 | BB31: 0 | BC31: 0 | BD31: 0 | BE31: 0 | BF31: 0 | BG31: 0 | BH31: 0 | BI31: 0 | BJ31: 0 | BK31: 0 | BL31: 0 | BM31: 0 | BN31: 0 | BO31: 0 | BP31: 0 | BQ31: 0 | BR31: 0 | BS31: 0 | BT31: 0 | BU31: 0 | BV31: 0 | BW31: 0 | BX31: 0 | BY31: 0 | BZ31: 0 | CA31: 0 | CB31: 0 | CC31: 0 | CD31: =CD$5*INDEX($D31:$K31,1,CD$1-$D$11+1) -> 0 | CE31: 0 | CF31: 0 | CG31: 0 | CH31: 0 | CI31: 0 | CJ31: 0 | CK31: 0 | CL31: 0 | CM31: 0 | CN31: 0 | CO31: 0 | CP31: 0 | CQ31: 0 | CR31: 0 | CS31: 0
B32: Precio | C32: =CONTROL!F26*RIESGO!C6 -> 0 | D32: =$C32*D$8 -> 0 | E32: 0 | F32: 0 | G32: 0 | H32: 0 | I32: 0 | J32: 0 | K32: 0
B33: Unidades | C33: =CONTROL!F27*RIESGO!C5 -> 0 | D33: =IF(D$11<$C31,0,IF(D$11=$C31,$C33,C33*(1+D35))) -> 0 | E33: 0 | F33: 0 | G33: 0 | H33: 0 | I33: 0 | J33: 0 | K33: 0
B34: Crecimiento | E34: =TRANSPOSE(CONTROL!F29:F34)*RIESGO!$C$10 -> 0 | F34: 0 | G34: 0 | H34: 0 | I34: 0 | J34: 0 | K34: =CONTROL!$C$23*RIESGO!$C$10 -> 0
E35: =IF(D33=0,0,E34) -> 0 | F35: =IF(E33=0,0,F34) -> 0 | G35: =IF(F33=0,0,G34) -> 0 | H35: =IF(G33=0,0,H34) -> 0 | I35: =IF(H33=0,0,I34) -> 0 | J35: =IF(I33=0,0,J34) -> 0 | K35: =K34 -> 0
B36: =CONTROL!G24 -> Línea E | C36: =CONTROL!G25 -> 0
B37: Ingresos | C37: =CONTROL!G26*RIESGO!C6*RIESGO!C5 -> 0 | D37: =IF(D4<C36,0,C37) -> 0 | E37: =IF(E4<$C$36,0,IF(E4=$C$36,$C$37*E8,D37*(1+E39)*E8/D8)) -> 0 | F37: 0 | G37: 0 | H37: 0 | I37: 0 | J37: 0 | K37: 0 | N37: =N$5*INDEX($D37:$K37,1,N$1-$D$11+1) -> 0 | O37: =O$5*INDEX($D37:$K37,1,O$1-$D$11+1) -> 0 | P37: 0 | Q37: =Q$5*INDEX($D37:$K37,1,Q$1-$D$11+1) -> 0 | R37: =R$5*INDEX($D37:$K37,1,R$1-$D$11+1) -> 0 | S37: 0 | T37: 0 | U37: 0 | V37: 0 | W37: 0 | X37: 0 | Y37: 0 | Z37: 0 | AA37: 0 | AB37: 0 | AC37: 0 | AD37: 0 | AE37: 0 | AF37: 0 | AG37: 0 | AH37: 0 | AI37: 0 | AJ37: 0 | AK37: 0 | AL37: 0 | AM37: 0 | AN37: 0 | AO37: 0 | AP37: 0 | AQ37: 0 | AR37: 0 | AS37: 0 | AT37: 0 | AU37: 0 | AV37: 0 | AW37: 0 | AX37: 0 | AY37: 0 | AZ37: 0 | BA37: 0 | BB37: 0 | BC37: 0 | BD37: 0 | BE37: 0 | BF37: 0 | BG37: 0 | BH37: 0 | BI37: 0 | BJ37: 0 | BK37: 0 | BL37: 0 | BM37: 0 | BN37: 0 | BO37: 0 | BP37: 0 | BQ37: 0 | BR37: 0 | BS37: 0 | BT37: 0 | BU37: 0 | BV37: 0 | BW37: 0 | BX37: 0 | BY37: 0 | BZ37: 0 | CA37: 0 | CB37: 0 | CC37: 0 | CD37: =CD$5*INDEX($D37:$K37,1,CD$1-$D$11+1) -> 0 | CE37: 0 | CF37: 0 | CG37: 0 | CH37: 0 | CI37: 0 | CJ37: 0 | CK37: 0 | CL37: 0 | CM37: 0 | CN37: 0 | CO37: 0 | CP37: 0 | CQ37: 0 | CR37: 0 | CS37: 0
B38: Crecimiento | E38: =TRANSPOSE(CONTROL!G29:G34)*RIESGO!$C$10 -> 0 | F38: 0 | G38: 0 | H38: 0 | I38: 0 | J38: 0 | K38: =CONTROL!$C$23*RIESGO!$C$10 -> 0
E39: =IF(D37=0,0,E38) -> 0 | F39: =IF(E37=0,0,F38) -> 0 | G39: =IF(F37=0,0,G38) -> 0 | H39: 0 | I39: 0 | J39: 0 | K39: =K38 -> 0
B40: =CONTROL!H24 -> Línea F | C40: =CONTROL!H25 -> 0
B41: Ingresos | C41: =CONTROL!H26*RIESGO!C6*RIESGO!C5 -> 0 | D41: =D43*(D13+D19+D25+D31+D37) -> 0 | E41: 0 | F41: 0 | G41: 0 | H41: 0 | I41: 0 | J41: 0 | K41: 0 | N41: =N$5*INDEX($D41:$K41,1,N$1-$D$11+1) -> 0 | O41: =O$5*INDEX($D41:$K41,1,O$1-$D$11+1) -> 0 | P41: 0 | Q41: =Q$5*INDEX($D41:$K41,1,Q$1-$D$11+1) -> 0 | R41: =R$5*INDEX($D41:$K41,1,R$1-$D$11+1) -> 0 | S41: 0 | T41: 0 | U41: 0 | V41: 0 | W41: 0 | X41: 0 | Y41: 0 | Z41: 0 | AA41: 0 | AB41: 0 | AC41: 0 | AD41: 0 | AE41: 0 | AF41: 0 | AG41: 0 | AH41: 0 | AI41: 0 | AJ41: 0 | AK41: 0 | AL41: 0 | AM41: 0 | AN41: 0 | AO41: 0 | AP41: 0 | AQ41: 0 | AR41: 0 | AS41: 0 | AT41: 0 | AU41: 0 | AV41: 0 | AW41: 0 | AX41: 0 | AY41: 0 | AZ41: 0 | BA41: 0 | BB41: 0 | BC41: 0 | BD41: 0 | BE41: 0 | BF41: 0 | BG41: 0 | BH41: 0 | BI41: 0 | BJ41: 0 | BK41: 0 | BL41: 0 | BM41: 0 | BN41: 0 | BO41: 0 | BP41: 0 | BQ41: 0 | BR41: 0 | BS41: 0 | BT41: 0 | BU41: 0 | BV41: 0 | BW41: 0 | BX41: 0 | BY41: 0 | BZ41: 0 | CA41: 0 | CB41: 0 | CC41: 0 | CD41: =CD$5*INDEX($D41:$K41,1,CD$1-$D$11+1) -> 0 | CE41: 0 | CF41: 0 | CG41: 0 | CH41: 0 | CI41: 0 | CJ41: 0 | CK41: 0 | CL41: 0 | CM41: 0 | CN41: 0 | CO41: 0 | CP41: 0 | CQ41: 0 | CR41: 0 | CS41: 0
B42: Crecimiento | E42: =TRANSPOSE(CONTROL!H29:H34)*RIESGO!$C$10 -> 0 | F42: 0 | G42: 0 | H42: 0 | I42: 0 | J42: 0 | K42: =CONTROL!$C$23*RIESGO!$C$10 -> 0
D43: =IF(D4<C40,0,C41) -> 0 | E43: =IF(E4<$C$40,0,IF(E4=$C$40,$C$41,D43*(1+E42))) -> 0 | F43: =IF(F4<$C$40,0,IF(F4=$C$40,$C$41,E43*(1+F42))) -> 0 | G43: 0 | H43: 0 | I43: 0 | J43: 0 | K43: 0
C45: Ingresos Totales | D45: =D13+D19+D25+D31+D37+D41 -> 560640 | E45: 616704 | F45: 709209.6 | G45: 851051.52 | H45: 1063814.4 | I45: 1382958.72 | J45: 1866994.272 | K45: 1866994.272 | N45: =N13+N19+N25+N31+N37+N41 -> 11212.8 | O45: 22425.6 | P45: 28032 | Q45: 28032 | R45: 28032 | S45: 39244.8 | T45: 39244.8 | U45: 56064 | V45: 56064 | W45: 84096 | X45: 84096 | Y45: 84096 | Z45: 43169.28 | AA45: 43169.28 | AB45: 43169.28 | AC45: 43169.28 | AD45: 43169.28 | AE45: 49336.32 | AF45: 49336.32 | AG45: 55503.36 | AH45: 61670.4 | AI45: 61670.4 | AJ45: 61670.4 | AK45: 61670.4 | AL45: 49644.672 | AM45: 49644.672 | AN45: 49644.672 | AO45: 49644.672 | AP45: 49644.672 | AQ45: 56736.768 | AR45: 56736.768 | AS45: 63828.864 | AT45: =AT13+AT19+AT25+AT31+AT37+AT41 -> 70920.96 | AU45: 70920.96 | AV45: 70920.96 | AW45: 70920.96 | AX45: 59573.6064 | AY45: 59573.6064 | AZ45: 59573.6064 | BA45: 59573.6064 | BB45: 59573.6064 | BC45: 68084.1216 | BD45: 68084.1216 | BE45: 76594.6368 | BF45: 85105.152 | BG45: 85105.152 | BH45: 85105.152 | BI45: 85105.152 | BJ45: 74467.008 | BK45: 74467.008 | BL45: 74467.008 | BM45: 74467.008 | BN45: 74467.008 | BO45: 85105.152 | BP45: 85105.152 | BQ45: 95743.296 | BR45: 106381.44 | BS45: 106381.44 | BT45: 106381.44 | BU45: 106381.44 | BV45: 96807.1104 | BW45: 96807.1104 | BX45: 96807.1104 | BY45: 96807.1104 | BZ45: =BZ13+BZ19+BZ25+BZ31+BZ37+BZ41 -> 96807.1104 | CA45: 110636.6976 | CB45: 110636.6976 | CC45: 124466.2848 | CD45: 138295.872 | CE45: 138295.872 | CF45: 138295.872 | CG45: 138295.872 | CH45: 130689.599 | CI45: 130689.599 | CJ45: 130689.599 | CK45: 130689.599 | CL45: 130689.599 | CM45: 149359.5418 | CN45: 149359.5418 | CO45: 168029.4845 | CP45: 186699.4272 | CQ45: 186699.4272 | CR45: 186699.4272 | CS45: 186699.4272
C46: Crecimiento | E46: =E45/D45-1 -> 0.1 | F46: 0.15 | G46: 0.2 | H46: 0.25 | I46: 0.3 | J46: 0.35 | K46: 0
B48: Nivel primer año | C48: =1-(Mes_Ini-1)/12 -> 1
B49: Costes Fijos | C49: Datos Base | D49: =D11 -> 2020 | E49: 2021 | F49: 2022 | G49: 2023 | H49: 2024 | I49: 2025 | J49: =J11 -> 2026 | K49: 2027 | N49: =N2 -> 2020-01-31 | O49: 2020-02-29 | P49: 2020-03-31 | Q49: 2020-04-30 | R49: 2020-05-31 | S49: 2020-06-30 | T49: 2020-07-31 | U49: 2020-08-31 | V49: 2020-09-30 | W49: 2020-10-31 | X49: 2020-11-30 | Y49: 2020-12-31 | Z49: 2021-01-31 | AA49: 2021-02-28 | AB49: 2021-03-31 | AC49: 2021-04-30 | AD49: 2021-05-31 | AE49: 2021-06-30 | AF49: 2021-07-31 | AG49: 2021-08-31 | AH49: 2021-09-30 | AI49: 2021-10-31 | AJ49: 2021-11-30 | AK49: 2021-12-31 | AL49: 2022-01-31 | AM49: 2022-02-28 | AN49: 2022-03-31 | AO49: 2022-04-30 | AP49: 2022-05-31 | AQ49: 2022-06-30 | AR49: 2022-07-31 | AS49: 2022-08-31 | AT49: =AT2 -> 2022-09-30 | AU49: 2022-10-31 | AV49: 2022-11-30 | AW49: 2022-12-31 | AX49: 2023-01-31 | AY49: 2023-02-28 | AZ49: 2023-03-31 | BA49: 2023-04-30 | BB49: 2023-05-31 | BC49: 2023-06-30 | BD49: 2023-07-31 | BE49: 2023-08-31 | BF49: 2023-09-30 | BG49: 2023-10-31 | BH49: 2023-11-30 | BI49: 2023-12-31 | BJ49: 2024-01-31 | BK49: 2024-02-29 | BL49: 2024-03-31 | BM49: 2024-04-30 | BN49: 2024-05-31 | BO49: 2024-06-30 | BP49: 2024-07-31 | BQ49: 2024-08-31 | BR49: 2024-09-30 | BS49: 2024-10-31 | BT49: 2024-11-30 | BU49: 2024-12-31 | BV49: 2025-01-31 | BW49: 2025-02-28 | BX49: 2025-03-31 | BY49: 2025-04-30 | BZ49: =BZ2 -> 2025-05-31 | CA49: 2025-06-30 | CB49: 2025-07-31 | CC49: 2025-08-31 | CD49: 2025-09-30 | CE49: 2025-10-31 | CF49: 2025-11-30 | CG49: 2025-12-31 | CH49: 2026-01-31 | CI49: 2026-02-28 | CJ49: 2026-03-31 | CK49: 2026-04-30 | CL49: 2026-05-31 | CM49: 2026-06-30 | CN49: 2026-07-31 | CO49: 2026-08-31 | CP49: 2026-09-30 | CQ49: 2026-10-31 | CR49: 2026-11-30 | CS49: 2026-12-31
B50: Personal | C50: 474600 | D50: =C50*RIESGO!$C$8*$C$48 -> 474600 | E50: =$C50*RIESGO!$C$8*E$9 -> 474600 | F50: =$C50*RIESGO!$C$8*F$9 -> 474600 | G50: =$C50*RIESGO!$C$8*G$9 -> 474600 | H50: =$C50*RIESGO!$C$8*H$9 -> 474600 | I50: =$C50*RIESGO!$C$8*I$9 -> 474600 | J50: =$C50*RIESGO!$C$8*J$9 -> 474600 | K50: =$C50*RIESGO!$C$8*K$9 -> 474600 | N50: =N$6*INDEX($D50:$K50,1,N$1-$D$11+1) -> 39534.18 | O50: =O$6*INDEX($D50:$K50,1,O$1-$D$11+1) -> 39534.18 | P50: 39534.18 | Q50: 39534.18 | R50: 39534.18 | S50: 39534.18 | T50: 39534.18 | U50: 39534.18 | V50: 39534.18 | W50: 39534.18 | X50: 39534.18 | Y50: 39724.02 | Z50: 39534.18 | AA50: 39534.18 | AB50: 39534.18 | AC50: 39534.18 | AD50: 39534.18 | AE50: 39534.18 | AF50: 39534.18 | AG50: 39534.18 | AH50: 39534.18 | AI50: 39534.18 | AJ50: 39534.18 | AK50: 39724.02 | AL50: 39534.18 | AM50: 39534.18 | AN50: 39534.18 | AO50: 39534.18 | AP50: 39534.18 | AQ50: 39534.18 | AR50: 39534.18 | AS50: 39534.18 | AT50: 39534.18 | AU50: 39534.18 | AV50: 39534.18 | AW50: 39724.02 | AX50: 39534.18 | AY50: 39534.18 | AZ50: 39534.18 | BA50: 39534.18 | BB50: 39534.18 | BC50: 39534.18 | BD50: 39534.18 | BE50: 39534.18 | BF50: 39534.18 | BG50: 39534.18 | BH50: 39534.18 | BI50: 39724.02 | BJ50: 39534.18 | BK50: 39534.18 | BL50: 39534.18 | BM50: 39534.18 | BN50: 39534.18 | BO50: 39534.18 | BP50: 39534.18 | BQ50: 39534.18 | BR50: 39534.18 | BS50: 39534.18 | BT50: 39534.18 | BU50: 39724.02 | BV50: 39534.18 | BW50: 39534.18 | BX50: 39534.18 | BY50: 39534.18 | BZ50: 39534.18 | CA50: =CA$6*INDEX($D50:$K50,1,CA$1-$D$11+1) -> 39534.18 | CB50: 39534.18 | CC50: 39534.18 | CD50: 39534.18 | CE50: 39534.18 | CF50: 39534.18 | CG50: 39724.02 | CH50: 39534.18 | CI50: 39534.18 | CJ50: 39534.18 | CK50: 39534.18 | CL50: 39534.18 | CM50: 39534.18 | CN50: 39534.18 | CO50: 39534.18 | CP50: 39534.18 | CQ50: 39534.18 | CR50: 39534.18 | CS50: 39724.02
B51: Alquileres | C51: 9000 | D51: =C51*RIESGO!$C$8*$C$48 -> 9000 | E51: =$C51*RIESGO!$C$8*E$9 -> 9000 | F51: =$C51*RIESGO!$C$8*F$9 -> 9000 | G51: =$C51*RIESGO!$C$8*G$9 -> 9000 | H51: =$C51*RIESGO!$C$8*H$9 -> 9000 | I51: =$C51*RIESGO!$C$8*I$9 -> 9000 | J51: =$C51*RIESGO!$C$8*J$9 -> 9000 | K51: =$C51*RIESGO!$C$8*K$9 -> 9000 | N51: =N$6*INDEX($D51:$K51,1,N$1-$D$11+1) -> 749.7 | O51: 749.7 | P51: 749.7 | Q51: 749.7 | R51: 749.7 | S51: 749.7 | T51: 749.7 | U51: 749.7 | V51: 749.7 | W51: 749.7 | X51: 749.7 | Y51: 753.3 | Z51: 749.7 | AA51: 749.7 | AB51: 749.7 | AC51: 749.7 | AD51: 749.7 | AE51: 749.7 | AF51: 749.7 | AG51: 749.7 | AH51: 749.7 | AI51: 749.7 | AJ51: 749.7 | AK51: 753.3 | AL51: 749.7 | AM51: 749.7 | AN51: 749.7 | AO51: 749.7 | AP51: 749.7 | AQ51: 749.7 | AR51: 749.7 | AS51: 749.7 | AT51: 749.7 | AU51: 749.7 | AV51: 749.7 | AW51: 753.3 | AX51: 749.7 | AY51: 749.7 | AZ51: 749.7 | BA51: 749.7 | BB51: 749.7 | BC51: 749.7 | BD51: 749.7 | BE51: 749.7 | BF51: 749.7 | BG51: 749.7 | BH51: 749.7 | BI51: 753.3 | BJ51: 749.7 | BK51: 749.7 | BL51: 749.7 | BM51: 749.7 | BN51: 749.7 | BO51: 749.7 | BP51: 749.7 | BQ51: 749.7 | BR51: 749.7 | BS51: 749.7 | BT51: 749.7 | BU51: 753.3 | BV51: 749.7 | BW51: 749.7 | BX51: 749.7 | BY51: 749.7 | BZ51: 749.7 | CA51: 749.7 | CB51: 749.7 | CC51: 749.7 | CD51: 749.7 | CE51: 749.7 | CF51: 749.7 | CG51: 753.3 | CH51: 749.7 | CI51: 749.7 | CJ51: 749.7 | CK51: 749.7 | CL51: 749.7 | CM51: 749.7 | CN51: 749.7 | CO51: 749.7 | CP51: 749.7 | CQ51: 749.7 | CR51: 749.7 | CS51: 753.3
B52: Motos | C52: 12000 | D52: =C52*RIESGO!$C$8*$C$48 -> 12000 | E52: =$C52*RIESGO!$C$8*E$9 -> 12000 | F52: =$C52*RIESGO!$C$8*F$9 -> 12000 | G52: =$C52*RIESGO!$C$8*G$9 -> 12000 | H52: =$C52*RIESGO!$C$8*H$9 -> 12000 | I52: =$C52*RIESGO!$C$8*I$9 -> 12000 | J52: =$C52*RIESGO!$C$8*J$9 -> 12000 | K52: =$C52*RIESGO!$C$8*K$9 -> 12000 | N52: 999.6 | O52: =O$6*INDEX($D52:$K52,1,O$1-$D$11+1) -> 999.6 | P52: 999.6 | Q52: 999.6 | R52: 999.6 | S52: 999.6 | T52: 999.6 | U52: 999.6 | V52: 999.6 | W52: 999.6 | X52: 999.6 | Y52: 1004.4 | Z52: 999.6 | AA52: 999.6 | AB52: 999.6 | AC52: 999.6 | AD52: 999.6 | AE52: 999.6 | AF52: 999.6 | AG52: 999.6 | AH52: 999.6 | AI52: 999.6 | AJ52: 999.6 | AK52: 1004.4 | AL52: 999.6 | AM52: 999.6 | AN52: 999.6 | AO52: 999.6 | AP52: 999.6 | AQ52: 999.6 | AR52: 999.6 | AS52: 999.6 | AT52: 999.6 | AU52: 999.6 | AV52: 999.6 | AW52: 1004.4 | AX52: 999.6 | AY52: 999.6 | AZ52: 999.6 | BA52: 999.6 | BB52: 999.6 | BC52: 999.6 | BD52: 999.6 | BE52: 999.6 | BF52: 999.6 | BG52: 999.6 | BH52: 999.6 | BI52: 1004.4 | BJ52: 999.6 | BK52: 999.6 | BL52: 999.6 | BM52: 999.6 | BN52: 999.6 | BO52: 999.6 | BP52: 999.6 | BQ52: 999.6 | BR52: 999.6 | BS52: 999.6 | BT52: 999.6 | BU52: 1004.4 | BV52: 999.6 | BW52: 999.6 | BX52: 999.6 | BY52: 999.6 | BZ52: 999.6 | CA52: 999.6 | CB52: 999.6 | CC52: 999.6 | CD52: 999.6 | CE52: 999.6 | CF52: 999.6 | CG52: 1004.4 | CH52: 999.6 | CI52: 999.6 | CJ52: 999.6 | CK52: 999.6 | CL52: 999.6 | CM52: 999.6 | CN52: 999.6 | CO52: 999.6 | CP52: 999.6 | CQ52: 999.6 | CR52: 999.6 | CS52: 1004.4
B53: Carga de las motos | C53: 4473 | D53: =C53*RIESGO!$C$8*$C$48 -> 4473 | E53: =$C53*RIESGO!$C$8*E$9 -> 4473 | F53: =$C53*RIESGO!$C$8*F$9 -> 4473 | G53: =$C53*RIESGO!$C$8*G$9 -> 4473 | H53: =$C53*RIESGO!$C$8*H$9 -> 4473 | I53: =$C53*RIESGO!$C$8*I$9 -> 4473 | J53: =$C53*RIESGO!$C$8*J$9 -> 4473 | K53: =$C53*RIESGO!$C$8*K$9 -> 4473 | N53: 372.6009 | O53: 372.6009 | P53: 372.6009 | Q53: 372.6009 | R53: 372.6009 | S53: 372.6009 | T53: 372.6009 | U53: 372.6009 | V53: 372.6009 | W53: 372.6009 | X53: 372.6009 | Y53: 374.3901 | Z53: 372.6009 | AA53: 372.6009 | AB53: 372.6009 | AC53: 372.6009 | AD53: 372.6009 | AE53: 372.6009 | AF53: 372.6009 | AG53: 372.6009 | AH53: 372.6009 | AI53: 372.6009 | AJ53: 372.6009 | AK53: 374.3901 | AL53: 372.6009 | AM53: 372.6009 | AN53: 372.6009 | AO53: 372.6009 | AP53: 372.6009 | AQ53: 372.6009 | AR53: 372.6009 | AS53: 372.6009 | AT53: 372.6009 | AU53: 372.6009 | AV53: 372.6009 | AW53: 374.3901 | AX53: 372.6009 | AY53: 372.6009 | AZ53: 372.6009 | BA53: 372.6009 | BB53: 372.6009 | BC53: 372.6009 | BD53: 372.6009 | BE53: 372.6009 | BF53: 372.6009 | BG53: 372.6009 | BH53: 372.6009 | BI53: 374.3901 | BJ53: 372.6009 | BK53: 372.6009 | BL53: 372.6009 | BM53: 372.6009 | BN53: 372.6009 | BO53: 372.6009 | BP53: 372.6009 | BQ53: 372.6009 | BR53: 372.6009 | BS53: 372.6009 | BT53: 372.6009 | BU53: 374.3901 | BV53: 372.6009 | BW53: 372.6009 | BX53: 372.6009 | BY53: 372.6009 | BZ53: 372.6009 | CA53: 372.6009 | CB53: 372.6009 | CC53: 372.6009 | CD53: 372.6009 | CE53: 372.6009 | CF53: 372.6009 | CG53: 374.3901 | CH53: 372.6009 | CI53: 372.6009 | CJ53: 372.6009 | CK53: 372.6009 | CL53: 372.6009 | CM53: 372.6009 | CN53: 372.6009 | CO53: 372.6009 | CP53: 372.6009 | CQ53: 372.6009 | CR53: 372.6009 | CS53: 374.3901
B54: Plan mkt | C54: 33500 | D54: =C54*RIESGO!$C$8*$C$48 -> 33500 | E54: =$C54*RIESGO!$C$8*E$9 -> 33500 | F54: =$C54*RIESGO!$C$8*F$9 -> 33500 | G54: =$C54*RIESGO!$C$8*G$9 -> 33500 | H54: =$C54*RIESGO!$C$8*H$9 -> 33500 | I54: =$C54*RIESGO!$C$8*I$9 -> 33500 | J54: =$C54*RIESGO!$C$8*J$9 -> 33500 | K54: =$C54*RIESGO!$C$8*K$9 -> 33500 | N54: 2790.55 | O54: 2790.55 | P54: 2790.55 | Q54: 2790.55 | R54: 2790.55 | S54: 2790.55 | T54: 2790.55 | U54: 2790.55 | V54: 2790.55 | W54: 2790.55 | X54: 2790.55 | Y54: 2803.95 | Z54: 2790.55 | AA54: 2790.55 | AB54: 2790.55 | AC54: 2790.55 | AD54: 2790.55 | AE54: 2790.55 | AF54: 2790.55 | AG54: 2790.55 | AH54: 2790.55 | AI54: 2790.55 | AJ54: 2790.55 | AK54: 2803.95 | AL54: 2790.55 | AM54: 2790.55 | AN54: 2790.55 | AO54: 2790.55 | AP54: 2790.55 | AQ54: 2790.55 | AR54: 2790.55 | AS54: 2790.55 | AT54: 2790.55 | AU54: 2790.55 | AV54: 2790.55 | AW54: 2803.95 | AX54: 2790.55 | AY54: 2790.55 | AZ54: 2790.55 | BA54: 2790.55 | BB54: 2790.55 | BC54: 2790.55 | BD54: 2790.55 | BE54: 2790.55 | BF54: 2790.55 | BG54: 2790.55 | BH54: 2790.55 | BI54: 2803.95 | BJ54: 2790.55 | BK54: 2790.55 | BL54: 2790.55 | BM54: 2790.55 | BN54: 2790.55 | BO54: 2790.55 | BP54: 2790.55 | BQ54: 2790.55 | BR54: 2790.55 | BS54: 2790.55 | BT54: 2790.55 | BU54: 2803.95 | BV54: 2790.55 | BW54: 2790.55 | BX54: 2790.55 | BY54: 2790.55 | BZ54: 2790.55 | CA54: 2790.55 | CB54: 2790.55 | CC54: 2790.55 | CD54: 2790.55 | CE54: 2790.55 | CF54: 2790.55 | CG54: 2803.95 | CH54: 2790.55 | CI54: 2790.55 | CJ54: 2790.55 | CK54: 2790.55 | CL54: 2790.55 | CM54: 2790.55 | CN54: 2790.55 | CO54: 2790.55 | CP54: 2790.55 | CQ54: 2790.55 | CR54: 2790.55 | CS54: 2803.95
B55: Plan estretégico | C55: 16000 | D55: =C55*RIESGO!$C$8*$C$48 -> 16000 | E55: =$C55*RIESGO!$C$8*E$9 -> 16000 | F55: =$C55*RIESGO!$C$8*F$9 -> 16000 | G55: =$C55*RIESGO!$C$8*G$9 -> 16000 | H55: =$C55*RIESGO!$C$8*H$9 -> 16000 | I55: =$C55*RIESGO!$C$8*I$9 -> 16000 | J55: =$C55*RIESGO!$C$8*J$9 -> 16000 | K55: =$C55*RIESGO!$C$8*K$9 -> 16000 | N55: 1332.8 | O55: 1332.8 | P55: 1332.8 | Q55: 1332.8 | R55: 1332.8 | S55: 1332.8 | T55: 1332.8 | U55: 1332.8 | V55: 1332.8 | W55: 1332.8 | X55: 1332.8 | Y55: 1339.2 | Z55: 1332.8 | AA55: 1332.8 | AB55: 1332.8 | AC55: 1332.8 | AD55: 1332.8 | AE55: 1332.8 | AF55: 1332.8 | AG55: 1332.8 | AH55: 1332.8 | AI55: 1332.8 | AJ55: 1332.8 | AK55: 1339.2 | AL55: 1332.8 | AM55: 1332.8 | AN55: 1332.8 | AO55: 1332.8 | AP55: 1332.8 | AQ55: 1332.8 | AR55: 1332.8 | AS55: 1332.8 | AT55: 1332.8 | AU55: 1332.8 | AV55: 1332.8 | AW55: 1339.2 | AX55: 1332.8 | AY55: 1332.8 | AZ55: 1332.8 | BA55: 1332.8 | BB55: 1332.8 | BC55: 1332.8 | BD55: 1332.8 | BE55: 1332.8 | BF55: 1332.8 | BG55: 1332.8 | BH55: 1332.8 | BI55: 1339.2 | BJ55: 1332.8 | BK55: 1332.8 | BL55: 1332.8 | BM55: 1332.8 | BN55: 1332.8 | BO55: 1332.8 | BP55: 1332.8 | BQ55: 1332.8 | BR55: 1332.8 | BS55: 1332.8 | BT55: 1332.8 | BU55: 1339.2 | BV55: 1332.8 | BW55: 1332.8 | BX55: 1332.8 | BY55: 1332.8 | BZ55: =BZ$6*INDEX($D55:$K55,1,BZ$1-$D$11+1) -> 1332.8 | CA55: 1332.8 | CB55: 1332.8 | CC55: 1332.8 | CD55: 1332.8 | CE55: 1332.8 | CF55: 1332.8 | CG55: 1339.2 | CH55: 1332.8 | CI55: 1332.8 | CJ55: 1332.8 | CK55: 1332.8 | CL55: 1332.8 | CM55: 1332.8 | CN55: 1332.8 | CO55: 1332.8 | CP55: 1332.8 | CQ55: 1332.8 | CR55: 1332.8 | CS55: 1339.2
B56: TOTAL FIJOS | D56: =SUM(D50:D55) -> 549573 | E56: 549573 | F56: 549573 | G56: 549573 | H56: 549573 | I56: 549573 | J56: 549573 | K56: 549573 | N56: =SUM(N50:N55) -> 45779.4309 | O56: 45779.4309 | P56: 45779.4309 | Q56: 45779.4309 | R56: 45779.4309 | S56: 45779.4309 | T56: 45779.4309 | U56: 45779.4309 | V56: 45779.4309 | W56: 45779.4309 | X56: 45779.4309 | Y56: 45999.2601 | Z56: 45779.4309 | AA56: 45779.4309 | AB56: 45779.4309 | AC56: 45779.4309 | AD56: 45779.4309 | AE56: 45779.4309 | AF56: 45779.4309 | AG56: 45779.4309 | AH56: 45779.4309 | AI56: 45779.4309 | AJ56: 45779.4309 | AK56: 45999.2601 | AL56: 45779.4309 | AM56: 45779.4309 | AN56: 45779.4309 | AO56: 45779.4309 | AP56: 45779.4309 | AQ56: 45779.4309 | AR56: 45779.4309 | AS56: 45779.4309 | AT56: =SUM(AT50:AT55) -> 45779.4309 | AU56: 45779.4309 | AV56: 45779.4309 | AW56: 45999.2601 | AX56: 45779.4309 | AY56: 45779.4309 | AZ56: 45779.4309 | BA56: 45779.4309 | BB56: 45779.4309 | BC56: 45779.4309 | BD56: 45779.4309 | BE56: 45779.4309 | BF56: 45779.4309 | BG56: 45779.4309 | BH56: 45779.4309 | BI56: 45999.2601 | BJ56: 45779.4309 | BK56: 45779.4309 | BL56: 45779.4309 | BM56: 45779.4309 | BN56: 45779.4309 | BO56: 45779.4309 | BP56: 45779.4309 | BQ56: 45779.4309 | BR56: 45779.4309 | BS56: 45779.4309 | BT56: 45779.4309 | BU56: 45999.2601 | BV56: 45779.4309 | BW56: 45779.4309 | BX56: 45779.4309 | BY56: 45779.4309 | BZ56: =SUM(BZ50:BZ55) -> 45779.4309 | CA56: 45779.4309 | CB56: 45779.4309 | CC56: 45779.4309 | CD56: 45779.4309 | CE56: 45779.4309 | CF56: 45779.4309 | CG56: 45999.2601 | CH56: 45779.4309 | CI56: 45779.4309 | CJ56: 45779.4309 | CK56: 45779.4309 | CL56: 45779.4309 | CM56: 45779.4309 | CN56: 45779.4309 | CO56: 45779.4309 | CP56: 45779.4309 | CQ56: 45779.4309 | CR56: 45779.4309 | CS56: 45999.2601
B58: COSTES VARIABLES | D58: =D4 -> 2020 | E58: 2021 | F58: 2022 | G58: 2023 | H58: 2024 | I58: 2025 | J58: 2026 | K58: 2027 | N58: =N49 -> 2020-01-31 | O58: 2020-02-29 | P58: 2020-03-31 | Q58: 2020-04-30 | R58: 2020-05-31 | S58: 2020-06-30 | T58: 2020-07-31 | U58: 2020-08-31 | V58: 2020-09-30 | W58: 2020-10-31 | X58: 2020-11-30 | Y58: 2020-12-31 | Z58: 2021-01-31 | AA58: 2021-02-28 | AB58: 2021-03-31 | AC58: 2021-04-30 | AD58: 2021-05-31 | AE58: 2021-06-30 | AF58: 2021-07-31 | AG58: 2021-08-31 | AH58: 2021-09-30 | AI58: 2021-10-31 | AJ58: 2021-11-30 | AK58: 2021-12-31 | AL58: 2022-01-31 | AM58: 2022-02-28 | AN58: 2022-03-31 | AO58: 2022-04-30 | AP58: 2022-05-31 | AQ58: 2022-06-30 | AR58: 2022-07-31 | AS58: 2022-08-31 | AT58: =AT49 -> 2022-09-30 | AU58: 2022-10-31 | AV58: 2022-11-30 | AW58: 2022-12-31 | AX58: 2023-01-31 | AY58: 2023-02-28 | AZ58: 2023-03-31 | BA58: 2023-04-30 | BB58: 2023-05-31 | BC58: 2023-06-30 | BD58: 2023-07-31 | BE58: 2023-08-31 | BF58: 2023-09-30 | BG58: 2023-10-31 | BH58: 2023-11-30 | BI58: 2023-12-31 | BJ58: 2024-01-31 | BK58: 2024-02-29 | BL58: 2024-03-31 | BM58: 2024-04-30 | BN58: 2024-05-31 | BO58: 2024-06-30 | BP58: 2024-07-31 | BQ58: 2024-08-31 | BR58: 2024-09-30 | BS58: 2024-10-31 | BT58: 2024-11-30 | BU58: 2024-12-31 | BV58: 2025-01-31 | BW58: 2025-02-28 | BX58: 2025-03-31 | BY58: 2025-04-30 | BZ58: =BZ49 -> 2025-05-31 | CA58: 2025-06-30 | CB58: 2025-07-31 | CC58: 2025-08-31 | CD58: 2025-09-30 | CE58: 2025-10-31 | CF58: 2025-11-30 | CG58: 2025-12-31 | CH58: 2026-01-31 | CI58: 2026-02-28 | CJ58: 2026-03-31 | CK58: 2026-04-30 | CL58: 2026-05-31 | CM58: 2026-06-30 | CN58: 2026-07-31 | CO58: 2026-08-31 | CP58: 2026-09-30 | CQ58: 2026-10-31 | CR58: 2026-11-30 | CS58: 2026-12-31
B59: =B12 -> Línea A | C59: DATO BASE | D59: =SUM(D60:D65) -> 0 | E59: 0 | F59: 0 | G59: 0 | H59: 0 | I59: 0 | J59: 0 | K59: =SUM(K60:K65) -> 0 | N59: 0 | O59: 0 | P59: 0 | Q59: 0 | R59: 0 | S59: 0 | T59: 0 | U59: 0 | V59: 0 | W59: 0 | X59: 0 | Y59: 0 | Z59: 0 | AA59: 0 | AB59: 0 | AC59: 0 | AD59: 0 | AE59: 0 | AF59: 0 | AG59: 0 | AH59: 0 | AI59: 0 | AJ59: 0 | AK59: 0 | AL59: 0 | AM59: 0 | AN59: 0 | AO59: 0 | AP59: 0 | AQ59: 0 | AR59: 0 | AS59: 0 | AT59: 0 | AU59: 0 | AV59: 0 | AW59: 0 | AX59: 0 | AY59: 0 | AZ59: 0 | BA59: 0 | BB59: 0 | BC59: 0 | BD59: 0 | BE59: 0 | BF59: 0 | BG59: 0 | BH59: 0 | BI59: 0 | BJ59: 0 | BK59: 0 | BL59: 0 | BM59: 0 | BN59: 0 | BO59: 0 | BP59: 0 | BQ59: 0 | BR59: =SUM(BR60:BR65) -> 0 | BS59: 0 | BT59: 0 | BU59: 0 | BV59: 0 | BW59: 0 | BX59: 0 | BY59: 0 | BZ59: 0 | CA59: 0 | CB59: 0 | CC59: 0 | CD59: 0 | CE59: 0 | CF59: 0 | CG59: 0 | CH59: 0 | CI59: 0 | CJ59: 0 | CK59: 0 | CL59: 0 | CM59: 0 | CN59: 0 | CO59: 0 | CP59: 0 | CQ59: 0 | CR59: 0 | CS59: 0
D60: =$C60*RIESGO!$C$7*D$15*D$9 -> 0 | E60: =$C60*RIESGO!$C$7*E$9*E$15 -> 0 | F60: =$C60*RIESGO!$C$7*F$9*F$15 -> 0 | G60: =$C60*RIESGO!$C$7*G$9*G$15 -> 0 | H60: =$C60*RIESGO!$C$7*H$9*H$15 -> 0 | I60: =$C60*RIESGO!$C$7*I$9*I$15 -> 0 | J60: =$C60*RIESGO!$C$7*J$9*J$15 -> 0 | K60: =$C60*RIESGO!$C$7*K$9*K$15 -> 0 | N60: =N$5*INDEX($D60:$K60,1,N$1-$D$11+1) -> 0 | O60: =O$5*INDEX($D60:$K60,1,O$1-$D$11+1) -> 0 | P60: 0 | Q60: 0 | R60: 0 | S60: 0 | T60: 0 | U60: 0 | V60: 0 | W60: 0 | X60: 0 | Y60: 0 | Z60: 0 | AA60: 0 | AB60: 0 | AC60: 0 | AD60: 0 | AE60: 0 | AF60: 0 | AG60: 0 | AH60: 0 | AI60: 0 | AJ60: 0 | AK60: 0 | AL60: 0 | AM60: 0 | AN60: 0 | AO60: 0 | AP60: 0 | AQ60: 0 | AR60: 0 | AS60: 0 | AT60: 0 | AU60: 0 | AV60: 0 | AW60: 0 | AX60: 0 | AY60: 0 | AZ60: 0 | BA60: 0 | BB60: 0 | BC60: 0 | BD60: 0 | BE60: 0 | BF60: 0 | BG60: 0 | BH60: 0 | BI60: 0 | BJ60: 0 | BK60: 0 | BL60: 0 | BM60: 0 | BN60: 0 | BO60: 0 | BP60: 0 | BQ60: 0 | BR60: 0 | BS60: 0 | BT60: 0 | BU60: 0 | BV60: 0 | BW60: 0 | BX60: 0 | BY60: 0 | BZ60: 0 | CA60: =CA$5*INDEX($D60:$K60,1,CA$1-$D$11+1) -> 0 | CB60: 0 | CC60: 0 | CD60: 0 | CE60: 0 | CF60: 0 | CG60: 0 | CH60: 0 | CI60: 0 | CJ60: 0 | CK60: 0 | CL60: 0 | CM60: 0 | CN60: 0 | CO60: 0 | CP60: 0 | CQ60: 0 | CR60: 0 | CS60: 0
D61: =$C61*RIESGO!$C$7*D$13 -> 0 | E61: =$C61*RIESGO!$C$7*E$13 -> 0 | F61: =$C61*RIESGO!$C$7*F$13 -> 0 | G61: =$C61*RIESGO!$C$7*G$13 -> 0 | H61: =$C61*RIESGO!$C$7*H$13 -> 0 | I61: =$C61*RIESGO!$C$7*I$13 -> 0 | J61: =$C61*RIESGO!$C$7*J$13 -> 0 | K61: =$C61*RIESGO!$C$7*K$13 -> 0 | N61: =N$5*INDEX($D61:$K61,1,N$1-$D$11+1) -> 0 | O61: 0 | P61: 0 | Q61: 0 | R61: 0 | S61: 0 | T61: 0 | U61: 0 | V61: 0 | W61: 0 | X61: 0 | Y61: 0 | Z61: 0 | AA61: 0 | AB61: 0 | AC61: 0 | AD61: 0 | AE61: 0 | AF61: 0 | AG61: 0 | AH61: 0 | AI61: 0 | AJ61: 0 | AK61: 0 | AL61: 0 | AM61: 0 | AN61: 0 | AO61: 0 | AP61: 0 | AQ61: 0 | AR61: 0 | AS61: 0 | AT61: 0 | AU61: 0 | AV61: 0 | AW61: 0 | AX61: 0 | AY61: 0 | AZ61: 0 | BA61: 0 | BB61: 0 | BC61: 0 | BD61: 0 | BE61: 0 | BF61: 0 | BG61: 0 | BH61: 0 | BI61: 0 | BJ61: 0 | BK61: 0 | BL61: 0 | BM61: 0 | BN61: 0 | BO61: 0 | BP61: 0 | BQ61: 0 | BR61: 0 | BS61: 0 | BT61: 0 | BU61: 0 | BV61: 0 | BW61: 0 | BX61: 0 | BY61: 0 | BZ61: 0 | CA61: 0 | CB61: 0 | CC61: 0 | CD61: 0 | CE61: 0 | CF61: 0 | CG61: 0 | CH61: 0 | CI61: 0 | CJ61: 0 | CK61: 0 | CL61: 0 | CM61: 0 | CN61: 0 | CO61: 0 | CP61: 0 | CQ61: 0 | CR61: 0 | CS61: 0
D62: =$C62*RIESGO!$C$7*D$15*D$9 -> 0 | E62: =$C62*RIESGO!$C$7*E$9*E$15 -> 0 | F62: =$C62*RIESGO!$C$7*F$9*F$15 -> 0 | G62: =$C62*RIESGO!$C$7*G$9*G$15 -> 0 | H62: =$C62*RIESGO!$C$7*H$9*H$15 -> 0 | I62: =$C62*RIESGO!$C$7*I$9*I$15 -> 0 | J62: =$C62*RIESGO!$C$7*J$9*J$15 -> 0 | K62: =$C62*RIESGO!$C$7*K$9*K$15 -> 0 | N62: 0 | O62: =O$5*INDEX($D62:$K62,1,O$1-$D$11+1) -> 0 | P62: 0 | Q62: 0 | R62: 0 | S62: 0 | T62: 0 | U62: 0 | V62: 0 | W62: 0 | X62: 0 | Y62: 0 | Z62: 0 | AA62: 0 | AB62: 0 | AC62: 0 | AD62: 0 | AE62: 0 | AF62: 0 | AG62: 0 | AH62: 0 | AI62: 0 | AJ62: 0 | AK62: 0 | AL62: 0 | AM62: 0 | AN62: 0 | AO62: 0 | AP62: 0 | AQ62: 0 | AR62: 0 | AS62: 0 | AT62: 0 | AU62: 0 | AV62: 0 | AW62: 0 | AX62: 0 | AY62: 0 | AZ62: 0 | BA62: 0 | BB62: 0 | BC62: 0 | BD62: 0 | BE62: 0 | BF62: 0 | BG62: 0 | BH62: 0 | BI62: 0 | BJ62: 0 | BK62: 0 | BL62: 0 | BM62: 0 | BN62: 0 | BO62: 0 | BP62: 0 | BQ62: 0 | BR62: 0 | BS62: 0 | BT62: 0 | BU62: 0 | BV62: 0 | BW62: 0 | BX62: 0 | BY62: 0 | BZ62: 0 | CA62: 0 | CB62: 0 | CC62: 0 | CD62: 0 | CE62: 0 | CF62: 0 | CG62: 0 | CH62: 0 | CI62: 0 | CJ62: 0 | CK62: 0 | CL62: 0 | CM62: 0 | CN62: 0 | CO62: 0 | CP62: 0 | CQ62: 0 | CR62: 0 | CS62: 0
D63: =$C63*RIESGO!$C$7*D$13 -> 0 | E63: =$C63*RIESGO!$C$7*E$13 -> 0 | F63: =$C63*RIESGO!$C$7*F$13 -> 0 | G63: =$C63*RIESGO!$C$7*G$13 -> 0 | H63: =$C63*RIESGO!$C$7*H$13 -> 0 | I63: =$C63*RIESGO!$C$7*I$13 -> 0 | J63: =$C63*RIESGO!$C$7*J$13 -> 0 | K63: =$C63*RIESGO!$C$7*K$13 -> 0 | N63: 0 | O63: 0 | P63: 0 | Q63: 0 | R63: 0 | S63: 0 | T63: 0 | U63: 0 | V63: 0 | W63: 0 | X63: 0 | Y63: 0 | Z63: 0 | AA63: 0 | AB63: 0 | AC63: 0 | AD63: 0 | AE63: 0 | AF63: 0 | AG63: 0 | AH63: 0 | AI63: 0 | AJ63: 0 | AK63: 0 | AL63: 0 | AM63: 0 | AN63: 0 | AO63: 0 | AP63: 0 | AQ63: 0 | AR63: 0 | AS63: 0 | AT63: 0 | AU63: 0 | AV63: 0 | AW63: 0 | AX63: 0 | AY63: 0 | AZ63: 0 | BA63: 0 | BB63: 0 | BC63: 0 | BD63: 0 | BE63: 0 | BF63: 0 | BG63: 0 | BH63: 0 | BI63: 0 | BJ63: 0 | BK63: 0 | BL63: 0 | BM63: 0 | BN63: 0 | BO63: 0 | BP63: 0 | BQ63: 0 | BR63: 0 | BS63: 0 | BT63: 0 | BU63: 0 | BV63: 0 | BW63: 0 | BX63: 0 | BY63: 0 | BZ63: 0 | CA63: 0 | CB63: 0 | CC63: 0 | CD63: 0 | CE63: 0 | CF63: 0 | CG63: 0 | CH63: 0 | CI63: 0 | CJ63: 0 | CK63: 0 | CL63: 0 | CM63: 0 | CN63: 0 | CO63: 0 | CP63: 0 | CQ63: 0 | CR63: 0 | CS63: 0
D64: =$C64*RIESGO!$C$7*D$15*D$9 -> 0 | E64: =$C64*RIESGO!$C$7*E$9*E$15 -> 0 | F64: =$C64*RIESGO!$C$7*F$9*F$15 -> 0 | G64: =$C64*RIESGO!$C$7*G$9*G$15 -> 0 | H64: =$C64*RIESGO!$C$7*H$9*H$15 -> 0 | I64: =$C64*RIESGO!$C$7*I$9*I$15 -> 0 | J64: =$C64*RIESGO!$C$7*J$9*J$15 -> 0 | K64: =$C64*RIESGO!$C$7*K$9*K$15 -> 0 | N64: 0 | O64: 0 | P64: 0 | Q64: 0 | R64: 0 | S64: 0 | T64: 0 | U64: 0 | V64: 0 | W64: 0 | X64: 0 | Y64: 0 | Z64: 0 | AA64: 0 | AB64: 0 | AC64: 0 | AD64: 0 | AE64: 0 | AF64: 0 | AG64: 0 | AH64: 0 | AI64: 0 | AJ64: 0 | AK64: 0 | AL64: 0 | AM64: 0 | AN64: 0 | AO64: 0 | AP64: 0 | AQ64: 0 | AR64: 0 | AS64: 0 | AT64: 0 | AU64: 0 | AV64: 0 | AW64: 0 | AX64: 0 | AY64: 0 | AZ64: 0 | BA64: 0 | BB64: 0 | BC64: 0 | BD64: 0 | BE64: 0 | BF64: 0 | BG64: 0 | BH64: 0 | BI64: 0 | BJ64: 0 | BK64: 0 | BL64: 0 | BM64: 0 | BN64: 0 | BO64: 0 | BP64: 0 | BQ64: 0 | BR64: 0 | BS64: 0 | BT64: 0 | BU64: 0 | BV64: 0 | BW64: 0 | BX64: 0 | BY64: 0 | BZ64: 0 | CA64: 0 | CB64: 0 | CC64: 0 | CD64: 0 | CE64: 0 | CF64: 0 | CG64: 0 | CH64: 0 | CI64: 0 | CJ64: 0 | CK64: 0 | CL64: 0 | CM64: 0 | CN64: 0 | CO64: 0 | CP64: 0 | CQ64: 0 | CR64: 0 | CS64: 0
D65: =$C65*RIESGO!$C$7*D$13 -> 0 | E65: =$C65*RIESGO!$C$7*E$13 -> 0 | F65: =$C65*RIESGO!$C$7*F$13 -> 0 | G65: =$C65*RIESGO!$C$7*G$13 -> 0 | H65: =$C65*RIESGO!$C$7*H$13 -> 0 | I65: =$C65*RIESGO!$C$7*I$13 -> 0 | J65: =$C65*RIESGO!$C$7*J$13 -> 0 | K65: =$C65*RIESGO!$C$7*K$13 -> 0 | N65: 0 | O65: 0 | P65: 0 | Q65: 0 | R65: 0 | S65: 0 | T65: 0 | U65: 0 | V65: 0 | W65: 0 | X65: 0 | Y65: 0 | Z65: 0 | AA65: 0 | AB65: 0 | AC65: 0 | AD65: 0 | AE65: 0 | AF65: 0 | AG65: 0 | AH65: 0 | AI65: 0 | AJ65: 0 | AK65: 0 | AL65: 0 | AM65: 0 | AN65: 0 | AO65: 0 | AP65: 0 | AQ65: 0 | AR65: 0 | AS65: 0 | AT65: 0 | AU65: 0 | AV65: 0 | AW65: 0 | AX65: 0 | AY65: 0 | AZ65: 0 | BA65: 0 | BB65: 0 | BC65: 0 | BD65: 0 | BE65: 0 | BF65: 0 | BG65: 0 | BH65: 0 | BI65: 0 | BJ65: 0 | BK65: 0 | BL65: 0 | BM65: 0 | BN65: 0 | BO65: 0 | BP65: 0 | BQ65: 0 | BR65: 0 | BS65: 0 | BT65: 0 | BU65: 0 | BV65: 0 | BW65: 0 | BX65: 0 | BY65: 0 | BZ65: =BZ$5*INDEX($D65:$K65,1,BZ$1-$D$11+1) -> 0 | CA65: 0 | CB65: 0 | CC65: 0 | CD65: 0 | CE65: 0 | CF65: 0 | CG65: 0 | CH65: 0 | CI65: 0 | CJ65: 0 | CK65: 0 | CL65: 0 | CM65: 0 | CN65: 0 | CO65: 0 | CP65: 0 | CQ65: 0 | CR65: 0 | CS65: 0
B67: =B18 -> Línea B | D67: =SUM(D68:D73) -> 0 | E67: 0 | F67: 0 | G67: 0 | H67: 0 | I67: 0 | J67: 0 | K67: =SUM(K68:K73) -> 0 | N67: 0 | O67: 0 | P67: 0 | Q67: 0 | R67: 0 | S67: 0 | T67: 0 | U67: 0 | V67: 0 | W67: 0 | X67: 0 | Y67: 0 | Z67: 0 | AA67: 0 | AB67: 0 | AC67: 0 | AD67: 0 | AE67: 0 | AF67: 0 | AG67: 0 | AH67: 0 | AI67: 0 | AJ67: 0 | AK67: 0 | AL67: 0 | AM67: 0 | AN67: 0 | AO67: 0 | AP67: 0 | AQ67: 0 | AR67: 0 | AS67: 0 | AT67: 0 | AU67: 0 | AV67: 0 | AW67: 0 | AX67: 0 | AY67: 0 | AZ67: 0 | BA67: 0 | BB67: 0 | BC67: 0 | BD67: 0 | BE67: 0 | BF67: 0 | BG67: 0 | BH67: 0 | BI67: 0 | BJ67: 0 | BK67: 0 | BL67: 0 | BM67: 0 | BN67: 0 | BO67: 0 | BP67: 0 | BQ67: 0 | BR67: =SUM(BR68:BR73) -> 0 | BS67: 0 | BT67: 0 | BU67: 0 | BV67: 0 | BW67: 0 | BX67: 0 | BY67: 0 | BZ67: 0 | CA67: 0 | CB67: 0 | CC67: 0 | CD67: 0 | CE67: 0 | CF67: 0 | CG67: 0 | CH67: 0 | CI67: 0 | CJ67: 0 | CK67: 0 | CL67: 0 | CM67: 0 | CN67: 0 | CO67: 0 | CP67: 0 | CQ67: 0 | CR67: 0 | CS67: 0
B68: Materiales | D68: =$C68*RIESGO!$C$7*D$9*D$21 -> 0 | E68: =$C68*RIESGO!$C$7*E$9*E$21 -> 0 | F68: =$C68*RIESGO!$C$7*F$9*F$21 -> 0 | G68: =$C68*RIESGO!$C$7*G$9*G$21 -> 0 | H68: =$C68*RIESGO!$C$7*H$9*H$21 -> 0 | I68: =$C68*RIESGO!$C$7*I$9*I$21 -> 0 | J68: =$C68*RIESGO!$C$7*J$9*J$21 -> 0 | K68: =$C68*RIESGO!$C$7*K$9*K$21 -> 0 | N68: =N$5*INDEX($D68:$K68,1,N$1-$D$11+1) -> 0 | O68: =O$5*INDEX($D68:$K68,1,O$1-$D$11+1) -> 0 | P68: 0 | Q68: 0 | R68: 0 | S68: 0 | T68: 0 | U68: 0 | V68: 0 | W68: 0 | X68: 0 | Y68: 0 | Z68: 0 | AA68: 0 | AB68: 0 | AC68: 0 | AD68: 0 | AE68: 0 | AF68: 0 | AG68: 0 | AH68: 0 | AI68: 0 | AJ68: 0 | AK68: 0 | AL68: 0 | AM68: 0 | AN68: 0 | AO68: 0 | AP68: 0 | AQ68: 0 | AR68: 0 | AS68: 0 | AT68: 0 | AU68: 0 | AV68: 0 | AW68: 0 | AX68: 0 | AY68: 0 | AZ68: 0 | BA68: 0 | BB68: 0 | BC68: 0 | BD68: 0 | BE68: 0 | BF68: 0 | BG68: 0 | BH68: 0 | BI68: 0 | BJ68: 0 | BK68: 0 | BL68: 0 | BM68: 0 | BN68: 0 | BO68: 0 | BP68: 0 | BQ68: 0 | BR68: 0 | BS68: 0 | BT68: 0 | BU68: 0 | BV68: 0 | BW68: 0 | BX68: 0 | BY68: 0 | BZ68: 0 | CA68: =CA$5*INDEX($D68:$K68,1,CA$1-$D$11+1) -> 0 | CB68: 0 | CC68: 0 | CD68: 0 | CE68: 0 | CF68: 0 | CG68: 0 | CH68: 0 | CI68: 0 | CJ68: 0 | CK68: 0 | CL68: 0 | CM68: 0 | CN68: 0 | CO68: 0 | CP68: 0 | CQ68: 0 | CR68: 0 | CS68: 0
B69: Materiales (%) | D69: =$C69*RIESGO!$C$7*D$19 -> 0 | E69: =$C69*RIESGO!$C$7*E$19 -> 0 | F69: =$C69*RIESGO!$C$7*F$19 -> 0 | G69: =$C69*RIESGO!$C$7*G$19 -> 0 | H69: =$C69*RIESGO!$C$7*H$19 -> 0 | I69: =$C69*RIESGO!$C$7*I$19 -> 0 | J69: =$C69*RIESGO!$C$7*J$19 -> 0 | K69: =$C69*RIESGO!$C$7*K$19 -> 0 | N69: =N$5*INDEX($D69:$K69,1,N$1-$D$11+1) -> 0 | O69: 0 | P69: 0 | Q69: 0 | R69: 0 | S69: 0 | T69: 0 | U69: 0 | V69: 0 | W69: 0 | X69: 0 | Y69: 0 | Z69: 0 | AA69: 0 | AB69: 0 | AC69: 0 | AD69: 0 | AE69: 0 | AF69: 0 | AG69: 0 | AH69: 0 | AI69: 0 | AJ69: 0 | AK69: 0 | AL69: 0 | AM69: 0 | AN69: 0 | AO69: 0 | AP69: 0 | AQ69: 0 | AR69: 0 | AS69: 0 | AT69: 0 | AU69: 0 | AV69: 0 | AW69: 0 | AX69: 0 | AY69: 0 | AZ69: 0 | BA69: 0 | BB69: 0 | BC69: 0 | BD69: 0 | BE69: 0 | BF69: 0 | BG69: 0 | BH69: 0 | BI69: 0 | BJ69: 0 | BK69: 0 | BL69: 0 | BM69: 0 | BN69: 0 | BO69: 0 | BP69: 0 | BQ69: 0 | BR69: 0 | BS69: 0 | BT69: 0 | BU69: 0 | BV69: 0 | BW69: 0 | BX69: 0 | BY69: 0 | BZ69: 0 | CA69: 0 | CB69: 0 | CC69: 0 | CD69: 0 | CE69: 0 | CF69: 0 | CG69: 0 | CH69: 0 | CI69: 0 | CJ69: 0 | CK69: 0 | CL69: 0 | CM69: 0 | CN69: 0 | CO69: 0 | CP69: 0 | CQ69: 0 | CR69: 0 | CS69: 0
B70: Otros de Explotación | D70: =$C70*RIESGO!$C$7*D$9*D$21 -> 0 | E70: =$C70*RIESGO!$C$7*E$9*E$21 -> 0 | F70: =$C70*RIESGO!$C$7*F$9*F$21 -> 0 | G70: =$C70*RIESGO!$C$7*G$9*G$21 -> 0 | H70: =$C70*RIESGO!$C$7*H$9*H$21 -> 0 | I70: =$C70*RIESGO!$C$7*I$9*I$21 -> 0 | J70: =$C70*RIESGO!$C$7*J$9*J$21 -> 0 | K70: =$C70*RIESGO!$C$7*K$9*K$21 -> 0 | N70: 0 | O70: =O$5*INDEX($D70:$K70,1,O$1-$D$11+1) -> 0 | P70: 0 | Q70: 0 | R70: 0 | S70: 0 | T70: 0 | U70: 0 | V70: 0 | W70: 0 | X70: 0 | Y70: 0 | Z70: 0 | AA70: 0 | AB70: 0 | AC70: 0 | AD70: 0 | AE70: 0 | AF70: 0 | AG70: 0 | AH70: 0 | AI70: 0 | AJ70: 0 | AK70: 0 | AL70: 0 | AM70: 0 | AN70: 0 | AO70: 0 | AP70: 0 | AQ70: 0 | AR70: 0 | AS70: 0 | AT70: 0 | AU70: 0 | AV70: 0 | AW70: 0 | AX70: 0 | AY70: 0 | AZ70: 0 | BA70: 0 | BB70: 0 | BC70: 0 | BD70: 0 | BE70: 0 | BF70: 0 | BG70: 0 | BH70: 0 | BI70: 0 | BJ70: 0 | BK70: 0 | BL70: 0 | BM70: 0 | BN70: 0 | BO70: 0 | BP70: 0 | BQ70: 0 | BR70: 0 | BS70: 0 | BT70: 0 | BU70: 0 | BV70: 0 | BW70: 0 | BX70: 0 | BY70: 0 | BZ70: 0 | CA70: 0 | CB70: 0 | CC70: 0 | CD70: 0 | CE70: 0 | CF70: 0 | CG70: 0 | CH70: 0 | CI70: 0 | CJ70: 0 | CK70: 0 | CL70: 0 | CM70: 0 | CN70: 0 | CO70: 0 | CP70: 0 | CQ70: 0 | CR70: 0 | CS70: 0
B71: Otros de Explotación (%) | D71: =$C71*RIESGO!$C$7*D$19 -> 0 | E71: =$C71*RIESGO!$C$7*E$19 -> 0 | F71: =$C71*RIESGO!$C$7*F$19 -> 0 | G71: =$C71*RIESGO!$C$7*G$19 -> 0 | H71: =$C71*RIESGO!$C$7*H$19 -> 0 | I71: =$C71*RIESGO!$C$7*I$19 -> 0 | J71: =$C71*RIESGO!$C$7*J$19 -> 0 | K71: =$C71*RIESGO!$C$7*K$19 -> 0 | N71: 0 | O71: 0 | P71: 0 | Q71: 0 | R71: 0 | S71: 0 | T71: 0 | U71: 0 | V71: 0 | W71: 0 | X71: 0 | Y71: 0 | Z71: 0 | AA71: 0 | AB71: 0 | AC71: 0 | AD71: 0 | AE71: 0 | AF71: 0 | AG71: 0 | AH71: 0 | AI71: 0 | AJ71: 0 | AK71: 0 | AL71: 0 | AM71: 0 | AN71: 0 | AO71: 0 | AP71: 0 | AQ71: 0 | AR71: 0 | AS71: 0 | AT71: 0 | AU71: 0 | AV71: 0 | AW71: 0 | AX71: 0 | AY71: 0 | AZ71: 0 | BA71: 0 | BB71: 0 | BC71: 0 | BD71: 0 | BE71: 0 | BF71: 0 | BG71: 0 | BH71: 0 | BI71: 0 | BJ71: 0 | BK71: 0 | BL71: 0 | BM71: 0 | BN71: 0 | BO71: 0 | BP71: 0 | BQ71: 0 | BR71: 0 | BS71: 0 | BT71: 0 | BU71: 0 | BV71: 0 | BW71: 0 | BX71: 0 | BY71: 0 | BZ71: 0 | CA71: 0 | CB71: 0 | CC71: 0 | CD71: 0 | CE71: 0 | CF71: 0 | CG71: 0 | CH71: 0 | CI71: 0 | CJ71: 0 | CK71: 0 | CL71: 0 | CM71: 0 | CN71: 0 | CO71: 0 | CP71: 0 | CQ71: 0 | CR71: 0 | CS71: 0
B72: Comercialización | D72: =$C72*RIESGO!$C$7*D$9*D$21 -> 0 | E72: =$C72*RIESGO!$C$7*E$9*E$21 -> 0 | F72: =$C72*RIESGO!$C$7*F$9*F$21 -> 0 | G72: =$C72*RIESGO!$C$7*G$9*G$21 -> 0 | H72: =$C72*RIESGO!$C$7*H$9*H$21 -> 0 | I72: =$C72*RIESGO!$C$7*I$9*I$21 -> 0 | J72: =$C72*RIESGO!$C$7*J$9*J$21 -> 0 | K72: =$C72*RIESGO!$C$7*K$9*K$21 -> 0 | N72: 0 | O72: 0 | P72: 0 | Q72: 0 | R72: 0 | S72: 0 | T72: 0 | U72: 0 | V72: 0 | W72: 0 | X72: 0 | Y72: 0 | Z72: 0 | AA72: 0 | AB72: 0 | AC72: 0 | AD72: 0 | AE72: 0 | AF72: 0 | AG72: 0 | AH72: 0 | AI72: 0 | AJ72: 0 | AK72: 0 | AL72: 0 | AM72: 0 | AN72: 0 | AO72: 0 | AP72: 0 | AQ72: 0 | AR72: 0 | AS72: 0 | AT72: 0 | AU72: 0 | AV72: 0 | AW72: 0 | AX72: 0 | AY72: 0 | AZ72: 0 | BA72: 0 | BB72: 0 | BC72: 0 | BD72: 0 | BE72: 0 | BF72: 0 | BG72: 0 | BH72: 0 | BI72: 0 | BJ72: 0 | BK72: 0 | BL72: 0 | BM72: 0 | BN72: 0 | BO72: 0 | BP72: 0 | BQ72: 0 | BR72: 0 | BS72: 0 | BT72: 0 | BU72: 0 | BV72: 0 | BW72: 0 | BX72: 0 | BY72: 0 | BZ72: 0 | CA72: 0 | CB72: 0 | CC72: 0 | CD72: 0 | CE72: 0 | CF72: 0 | CG72: 0 | CH72: 0 | CI72: 0 | CJ72: 0 | CK72: 0 | CL72: 0 | CM72: 0 | CN72: 0 | CO72: 0 | CP72: 0 | CQ72: 0 | CR72: 0 | CS72: 0
B73: Comercialización (%) | D73: =$C73*RIESGO!$C$7*D$19 -> 0 | E73: =$C73*RIESGO!$C$7*E$19 -> 0 | F73: =$C73*RIESGO!$C$7*F$19 -> 0 | G73: =$C73*RIESGO!$C$7*G$19 -> 0 | H73: =$C73*RIESGO!$C$7*H$19 -> 0 | I73: =$C73*RIESGO!$C$7*I$19 -> 0 | J73: =$C73*RIESGO!$C$7*J$19 -> 0 | K73: =$C73*RIESGO!$C$7*K$19 -> 0 | N73: 0 | O73: 0 | P73: 0 | Q73: 0 | R73: 0 | S73: 0 | T73: 0 | U73: 0 | V73: 0 | W73: 0 | X73: 0 | Y73: 0 | Z73: 0 | AA73: 0 | AB73: 0 | AC73: 0 | AD73: 0 | AE73: 0 | AF73: 0 | AG73: 0 | AH73: 0 | AI73: 0 | AJ73: 0 | AK73: 0 | AL73: 0 | AM73: 0 | AN73: 0 | AO73: 0 | AP73: 0 | AQ73: 0 | AR73: 0 | AS73: 0 | AT73: 0 | AU73: 0 | AV73: 0 | AW73: 0 | AX73: 0 | AY73: 0 | AZ73: 0 | BA73: 0 | BB73: 0 | BC73: 0 | BD73: 0 | BE73: 0 | BF73: 0 | BG73: 0 | BH73: 0 | BI73: 0 | BJ73: 0 | BK73: 0 | BL73: 0 | BM73: 0 | BN73: 0 | BO73: 0 | BP73: 0 | BQ73: 0 | BR73: 0 | BS73: 0 | BT73: 0 | BU73: 0 | BV73: 0 | BW73: 0 | BX73: 0 | BY73: 0 | BZ73: =BZ$5*INDEX($D73:$K73,1,BZ$1-$D$11+1) -> 0 | CA73: 0 | CB73: 0 | CC73: 0 | CD73: 0 | CE73: 0 | CF73: 0 | CG73: 0 | CH73: 0 | CI73: 0 | CJ73: 0 | CK73: 0 | CL73: 0 | CM73: 0 | CN73: 0 | CO73: 0 | CP73: 0 | CQ73: 0 | CR73: 0 | CS73: 0
B75: =B24 -> Línea C | D75: =SUM(D76:D81) -> 0 | E75: 0 | F75: 0 | G75: 0 | H75: 0 | I75: 0 | J75: 0 | K75: =SUM(K76:K81) -> 0 | N75: 0 | O75: 0 | P75: 0 | Q75: 0 | R75: 0 | S75: 0 | T75: 0 | U75: 0 | V75: 0 | W75: 0 | X75: 0 | Y75: 0 | Z75: 0 | AA75: 0 | AB75: 0 | AC75: 0 | AD75: 0 | AE75: 0 | AF75: 0 | AG75: 0 | AH75: 0 | AI75: 0 | AJ75: 0 | AK75: 0 | AL75: 0 | AM75: 0 | AN75: 0 | AO75: 0 | AP75: 0 | AQ75: 0 | AR75: 0 | AS75: 0 | AT75: 0 | AU75: 0 | AV75: 0 | AW75: 0 | AX75: 0 | AY75: 0 | AZ75: 0 | BA75: 0 | BB75: 0 | BC75: 0 | BD75: 0 | BE75: 0 | BF75: 0 | BG75: 0 | BH75: 0 | BI75: 0 | BJ75: 0 | BK75: 0 | BL75: 0 | BM75: 0 | BN75: 0 | BO75: 0 | BP75: 0 | BQ75: 0 | BR75: =SUM(BR76:BR81) -> 0 | BS75: 0 | BT75: 0 | BU75: 0 | BV75: 0 | BW75: 0 | BX75: 0 | BY75: 0 | BZ75: 0 | CA75: 0 | CB75: 0 | CC75: 0 | CD75: 0 | CE75: 0 | CF75: 0 | CG75: 0 | CH75: 0 | CI75: 0 | CJ75: 0 | CK75: 0 | CL75: 0 | CM75: 0 | CN75: 0 | CO75: 0 | CP75: 0 | CQ75: 0 | CR75: 0 | CS75: 0
